Workbook

Sheet notes

Sheet daily uptake
F2: Crop Nitrogen Uptake Calculator | U2: Marsha Campbell Mathews & David Crohn
P3: temperature data sources | U3: ver. 11-14-2011 © University of California 2011
P4: before Jan 1: | Q4: Denair avg 1994 - 2010
P5: after Jan 1: | Q5: Denair avg 1994 - 2010
P6: backup: | Q6: Denair avg 1994 - 2010
B8: =TODAY() -> 2012-03-07 | C8: day of season | D8: winter cereal forage | H8: silage corn | O8: triple crop sudan | U8: calculate uptake between two dates
B9: =E9 -> 2010-11-01 | C9: 1 | E9: 2010-11-01 | F9: WF planting date | I9: 2011-04-15 | J9: corn planting date | P9: 2011-08-31 | Q9: sudan planting date | U9: 2010-10-31 | V9: date 1
C10: =E10-$E$9+1 -> 162 | E10: 2011-04-11 | F10: WF harvest date | I10: 2011-08-29 | J10: corn harvest date | P10: 2011-10-07 | Q10: sudan harvest date | U10: 2011-01-16 | V10: date 2
E11: 140 | F11: lbs/A expected N uptake | I11: 250 | J11: lbs/A expected N uptake | P11: 100 | Q11: lbs/A expected N uptake | U11: =SUMIF(C$95:C$502,">="&C27,L$95:L$502)-SUMIF(C$95:C$502,">="&C28,L$95:L$502) -> 34.56336766 | V11: N uptake between dates (lbs N/acre)
C12: =IF(E12>0,E12-$E$9+1,"") -> 95 | E12: 2011-02-03 | F12: irrigation date 1 | I12: =I9+30 -> 2011-05-15 | J12: 1st irrigation date | P12: 2011-09-19 | Q12: irrigation date 1
C13: =IF(E13>0,E13-$E$9+1,"") -> 131 | E13: 2011-03-11 | F13: irrigation date 2 | I13: 10 | J13: num days between irrigations | P13: 2011-09-28 | Q13: irrigation date 2 | U13: Corn GDU date | V13: cumulative corn GDU from planting
C14: =IF(E14>0,E14-$E$9+1,"") ->  | F14: irrigation date 3 | I14: =VLOOKUP(C23,$C$95:$V$502,$P$94,FALSE) ->  | J14: ="GDUs planting to "&TEXT(C22,"mmm d;@") -> GDUs planting to Mar 6 | Q14: irrigation date 3 | V14: to this date (yesterday if blank)
F15: time of maximum uptake | I15: =VLOOKUP(C20,$C$95:$V$502,$P$94,FALSE) -> 2750 | J15: GDU planting to harvest | Q15: irrigation date 4 | U15: ="cutoff minimum = "&cutoff.corn.min&" ⁰F cutoff maximum = "&cutoff.corn.max&" ⁰F" -> cutoff minimum = 50 ⁰F cutoff maximum = 95 ⁰F
C17: =IF(E17>0,E17-$E$9+1,"") -> 
B18: corn planting | C18: =IF(I9>0,I9-$E$9+1,"") -> 166
B19: yesterday | C19: =TODAY()-$E$9-1 -> 491
B20: corn harvest | C20: =IF(I10>0,I10-$E$9+1,"") -> 302
B21: corn 1st irrig | C21: =IF(I12>0,I12-$E$9+1,"") -> 196
B22: corn GDU thru date | C22: =IF(U14>0,U14,TODAY()-1) -> 2012-03-06
B23: corn GDU thru day | C23: =C22-E9+1 -> 492
B24: third planting | C24: =IF(P9>0,P9-$E$9+1,I10-$E$9) -> 304
B25: third harvest | C25: =IF(P10>0,P10-$E$9+1,I10-$E$9) -> 341
B27: datebetween start | C27: =IF(U9-$E$9+1>0,U9-$E$9+1,0) -> 0
B28: datebetween end | C28: =IF(U10>0,U10-$E$9+1,"") -> 77
E30: date | F30: crop and irrigation number | G30: N lbs/A thru next irrig | I30: cumulative lbs N/A to date | J30: adjust date | Z30: lbs/ac N/period
B31: =IF(E31=E$42,"true","false") -> false | C31: =IF(E31>0,E31-$E$9+1,"") -> 1 | E31: =E9 -> 2010-11-01 | F31: winter crop planting | G31: =SUM(Z31:Z36) -> 47.09892862 | Z31: =SUMIF(C$95:C$502,">="&C31,L$95:L$502)-SUMIF(C$95:C$502,">="&C32,L$95:L$502) -> 6.664987066
B32: =IF(E32=E$42,"true","false") -> false | C32: 17 | E32: =IF(J32>0,J32,(ROUND((($E$37-$E$31)/6),0)*1)+E$31) -> 2010-11-17 | I32: =IF(B32="true",0,SUM(Z$31:Z31)) -> 6.664987066 | Z32: 6.907085637 | AO32: dates for equal number of days in each period
B33: false | C33: 33 | E33: =IF(J33>0,J33,(ROUND((($E$37-$E$31)/6),0)*2)+E$31) -> 2010-12-03 | I33: =IF(B33="true",0,SUM(Z$31:Z32)) -> 13.5720727 | Z33: 7.197823359 | AO33: 16 | AP33: days in period
B34: false | C34: 49 | E34: =IF(J34>0,J34,(ROUND((($E$37-$E$31)/6),0)*3)+E$31) -> 2010-12-19 | I34: =IF(B34="true",0,SUM(Z$31:Z33)) -> 20.76989606 | Z34: 7.352462732 | AO34: =$E31+$AO$33 -> 2010-11-17
B35: false | C35: 65 | E35: =IF(J35>0,J35,(ROUND((($E$37-$E$31)/6),0)*4)+E$31) -> 2011-01-04 | I35: =IF(B35="true",0,SUM(Z$31:Z34)) -> 28.1223588 | Z35: 8.911487986 | AO35: =AO34+$AO$33 -> 2010-12-03
B36: false | C36: 81 | E36: =IF(J36>0,J36,(ROUND((($E$37-$E$31)/6),0)*5)+E$31) -> 2011-01-20 | I36: =IF(B36="true",0,SUM(Z$31:Z35)) -> 37.03384678 | Z36: 10.06508183 | AO36: 2010-12-19
B37: false | C37: 95 | E37: =IF(J37>0,J37,IF(E12>0,E12,E$10)) -> 2011-02-03 | F37: winter crop 1st | G37: =SUM(Z37:Z39) -> 40.21946554 | I37: =IF(B37="true",0,SUM(Z$31:Z36)) -> 47.09892862 | Z37: 11.43406099 | AO37: 2011-01-04
B38: false | C38: 107 | E38: =(ROUND((($E$40-$E$37)/3),0)*1)+E$37 -> 2011-02-15 | I38: =IF(B38="true",0,SUM(Z$31:Z37)) -> 58.5329896 | Z38: 13.11819709 | AO38: 2011-01-20
B39: false | C39: 119 | E39: =(ROUND((($E$40-$E$37)/3),0)*2)+E$37 -> 2011-02-27 | I39: =IF(B39="true",0,SUM(Z$31:Z38)) -> 71.65118669 | Z39: 15.66720746 | AO39: 2011-02-05
B40: false | C40: 131 | E40: =IF(J40>0,J40,IF(E13>0,E13,E$10)) -> 2011-03-11 | F40: winter crop 2nd | G40: =SUM(Z40:Z42) -> 50.9670544 | I40: =IF(B40="true",0,SUM(Z$31:Z39)) -> 87.31839415 | Z40: 50.9670544 | AO40: 2011-02-21
B41: true | C41: 162 | E41: =IF(J41>0,J41,IF(E14>0,E14,E$10)) -> 2011-04-11 | F41: winter crop 3rd | G41: =SUM(Z41:Z43) -> 0 | I41: =IF(B41="true",0,SUM(Z$31:Z40)) -> 0 | Z41: 0 | AO41: 2011-03-09
B42: ="false" -> false | C42: 162 | E42: =E10 -> 2011-04-11 | F42: winter crop harvest | I42: =IF(B42="true",0,SUM(Z$31:Z41)) -> 138.2854486 | AO42: 2011-03-25
AO43: 2011-04-10
B44: =IF(E44=E$55,"true","false") -> false | C44: =IF(E44>0,E44-$E$9+1,"") -> 166 | E44: =I9 -> 2011-04-15 | F44: corn planting | G44: =Z44 -> 2.589373204 | Z44: =SUMIF(C$95:C$502,">="&C44,L$95:L$502)-SUMIF(C$95:C$502,">="&C45,L$95:L$502) -> 2.589373204 | AO44: 2011-04-26
B45: =IF(E45=E$55,"true","false") -> false | C45: 196 | E45: =IF(J45>0,J45,I12) -> 2011-05-15 | F45: corn 1st | G45: 7.358036723 | I45: =IF(B45="true",0,SUM(Z$44:Z44)) -> 2.589373204 | Z45: 7.358036723
B46: false | C46: 206 | E46: =IF(J46>0,J46,IF((E45+I$13)<E$55-5,E45+I$13,E$55)) -> 2011-05-25 | F46: corn 2nd | G46: 10.52308264 | I46: =IF(B46="true",0,SUM(Z$44:Z45)) -> 9.947409927 | Z46: 10.52308264 | AO46: 11 | AP46: days in period
B47: false | C47: 216 | E47: 2011-06-04 | F47: corn 3rd | G47: 13.74181105 | I47: =IF(B47="true",0,SUM(Z$44:Z46)) -> 20.47049257 | Z47: 13.74181105 | AO47: =$E44+$AO$46 -> 2011-04-26
B48: false | C48: 226 | E48: 2011-06-14 | F48: corn 4th | G48: 65.98794701 | I48: =IF(B48="true",0,SUM(Z$44:Z47)) -> 34.21230362 | Z48: 65.98794701 | AO48: =AO47+$AO$46 -> 2011-05-07
B49: false | C49: 236 | E49: 2011-06-24 | F49: corn 5th | G49: 52.48806114 | I49: =IF(B49="true",0,SUM(Z$44:Z48)) -> 100.2002506 | Z49: 52.48806114 | AO49: 2011-05-18
B50: false | C50: 246 | E50: 2011-07-04 | F50: corn 6th | G50: 1.122240361 | I50: =IF(B50="true",0,SUM(Z$44:Z49)) -> 152.6883118 | Z50: 1.122240361 | AO50: 2011-05-29
B51: false | C51: 256 | E51: 2011-07-14 | F51: corn 7th | G51: 4.693276042 | I51: =IF(B51="true",0,SUM(Z$44:Z50)) -> 153.8105521 | Z51: 4.693276042 | AO51: 2011-06-09
B52: false | C52: 266 | E52: 2011-07-24 | F52: corn 8th | G52: 25.42534736 | I52: =IF(B52="true",0,SUM(Z$44:Z51)) -> 158.5038282 | Z52: 25.42534736 | AO52: 2011-06-20
B53: false | C53: 276 | E53: 2011-08-03 | F53: corn 9th | G53: 34.48072132 | I53: =IF(B53="true",0,SUM(Z$44:Z52)) -> 183.9291755 | Z53: 34.48072132 | AO53: 2011-07-01
B54: false | C54: 286 | E54: 2011-08-13 | F54: corn 10th | G54: 31.23889487 | I54: =IF(B54="true",0,SUM(Z$44:Z53)) -> 218.4098969 | Z54: 31.23889487 | AO54: 2011-07-12
B55: ="false" -> false | C55: 302 | E55: =I10 -> 2011-08-29 | F55: corn harvest | G55: 0 | I55: =IF(B55="true",0,SUM(Z$44:Z54)) -> 249.6487917 | AO55: 2011-07-23
AO56: 2011-08-03
B57: =IF(E57=E$62,"true","false") -> false | C57: =IF(E57>0,E57-$E$9+1,"") -> 304 | E57: =IF(P9>0,P9,E55) -> 2011-08-31 | F57: triple crop planting | G57: =Z57 -> 29.81989755 | Z57: =SUMIF(C$95:C$502,">="&C57,L$95:L$502)-SUMIF(C$95:C$502,">="&C58,L$95:L$502) -> 29.81989755 | AO57: 2011-08-14
B58: =IF(E58=E$62,"true","false") -> false | C58: 323 | E58: =IF(J58>0,J58,IF(P12>0,P12,E$62)) -> 2011-09-19 | F58: triple crop 1st | G58: =Z58 -> 27.14834611 | I58: =IF(B58="true",0,SUM(Z$57:Z57)) -> 29.81989755 | Z58: =SUMIF(C$95:C$502,">="&C58,L$95:L$502)-SUMIF(C$95:C$502,">="&C59,L$95:L$502) -> 27.14834611
B59: =IF(E59=E$62,"true","false") -> false | C59: 332 | E59: =IF(J59>0,J59,IF(P13>0,P13,E$62)) -> 2011-09-28 | F59: triple crop 2nd | G59: =Z59 -> 37.89755013 | I59: =IF(B59="true",0,SUM(Z$57:Z58)) -> 56.96824366 | Z59: =SUMIF(C$95:C$502,">="&C59,L$95:L$502)-SUMIF(C$95:C$502,">="&C60,L$95:L$502) -> 37.89755013
B60: =IF(E60=E$62,"true","false") -> true | C60: 341 | E60: 2011-10-07 | F60: triple crop 3rd | G60: =Z60 -> 0 | I60: =IF(B60="true",0,SUM(Z$57:Z59)) -> 0 | Z60: =SUMIF(C$95:C$502,">="&C60,L$95:L$502)-SUMIF(C$95:C$502,">="&C61,L$95:L$502) -> 0
B61: =IF(E61=E$62,"true","false") -> true | C61: 341 | E61: 2011-10-07 | F61: triple crop 4th | G61: =Z61 -> 0 | I61: =IF(B61="true",0,SUM(Z$57:Z60)) -> 0 | Z61: =SUMIF(C$95:C$502,">="&C61,L$95:L$502)-SUMIF(C$95:C$502,">="&C62,L$95:L$502) -> 0
B62: ="false" -> false | C62: 341 | E62: =IF(P10>0,P10,E57) -> 2011-10-07 | F62: triple crop harvest | I62: =IF(B62="true",0,SUM(Z$57:Z61)) -> 94.86579379
U88: primary year 1: | V88: =PrimaryYear1 -> Denair avg 1994 - 2010
P89: forage | Q89: corn | U89: primary year 2: | V89: =PrimaryYear2 -> Denair avg 1994 - 2010
N90: max cutoff | P90: 75 | Q90: 95 | U90: Backup year: | V90: =BackupYear -> Denair avg 1994 - 2010
N91: min cutoff | P91: 45 | Q91: 50
G92: =SUM(G95:G502) -> 140 | I92: =SUM(I95:I502) -> 250 | J92: =SUM(J95:J502) -> 100 | U92: these are in °F
C93: day of season | F93: date | G93: cereal lbs N/A per day | I93: Corn lbs N per day | J93: Sudan lbs N per day | L93: lbs N/day, all | N93: corn GDU | P93: Cumulative corn GDU | Q93: forage GDD | S93: mean daily temp. | U93: air maximum temperature | V93: air minimum temperature | W93: avg soil temp. | X93: data source for max | Y93: data source for min | Z93: data source for soil
C94: =COLUMN(C94)-COLUMN($C94)+1 -> 1 | F94: =COLUMN(F94)-COLUMN($C94)+1 -> 4 | G94: =COLUMN(G94)-COLUMN($C94)+1 -> 5 | I94: =COLUMN(I94)-COLUMN($C94)+1 -> 7 | J94: 8 | L94: =COLUMN(L94)-COLUMN($C94)+1 -> 10 | M94: 11 | N94: 12 | O94: 13 | P94: 14 | Q94: 15 | S94: =COLUMN(S94)-COLUMN($C94)+1 -> 17 | U94: =COLUMN(U94)-COLUMN($C94)+1 -> 19 | V94: =COLUMN(V94)-COLUMN($C94)+1 -> 20
C95: 1 | F95: =E9 -> 2010-11-01 | G95: ='uptake calcs'!M12 -> 0.3824088874 | I95: ='uptake calcs'!L12 -> 0 | J95: ='uptake calcs'!N12 -> 0 | L95: =SUM(G95:J95) -> 0.3824088874 | N95: =IF($U95>cutoff.corn.min,((IF($U95>cutoff.corn.max,cutoff.corn.max,$U95)+IF($V95<cutoff.corn.min,cutoff.corn.min,$V95))/2)-cutoff.corn.min,0) -> 10 | P95: =IF(AND(C95>=C$44,C95<=$C$55),N95+P94,0) -> 0 | Q95: =((U95+V95)/2)-32 -> 24 | S95: =AVERAGE(U95:V95) -> 56 | U95: 70 | V95: 42 | W95: 0 | X95: Year 1 | Y95: Year 1 | Z95: No Data
C96: 2 | F96: =F95+1 -> 2010-11-02 | G96: =MAX('uptake calcs'!M13-'uptake calcs'!M12,0) -> 0.3915939834 | I96: =MAX('uptake calcs'!L13-'uptake calcs'!L12,0) -> 0 | J96: =MAX('uptake calcs'!N13-'uptake calcs'!N12,0) -> 0 | L96: 0.3915939834 | N96: =IF($U96>cutoff.corn.min,((IF($U96>cutoff.corn.max,cutoff.corn.max,$U96)+IF($V96<cutoff.corn.min,cutoff.corn.min,$V96))/2)-cutoff.corn.min,0) -> 10.5 | P96: 0 | Q96: 24 | S96: 56 | U96: 71 | V96: 41 | W96: 0 | X96: Year 1 | Y96: Year 1 | Z96: No Data
C97: 3 | F97: =F96+1 -> 2010-11-03 | G97: =MAX('uptake calcs'!M14-'uptake calcs'!M13,0) -> 0.3840678851 | I97: =MAX('uptake calcs'!L14-'uptake calcs'!L13,0) -> 0 | J97: =MAX('uptake calcs'!N14-'uptake calcs'!N13,0) -> 0 | L97: 0.3840678851 | N97: 9.5 | P97: 0 | Q97: 23 | S97: 55 | U97: 69 | V97: 41 | W97: 0 | X97: Year 1 | Y97: Year 1 | Z97: No Data
C98: 4 | F98: 2010-11-04 | G98: =MAX('uptake calcs'!M15-'uptake calcs'!M14,0) -> 0.3842037723 | I98: =MAX('uptake calcs'!L15-'uptake calcs'!L14,0) -> 0 | J98: =MAX('uptake calcs'!N15-'uptake calcs'!N14,0) -> 0 | L98: 0.3842037723 | N98: 9.5 | P98: 0 | Q98: 22.5 | S98: 54.5 | U98: 69 | V98: 40 | W98: 0 | X98: Year 1 | Y98: Year 1 | Z98: No Data
C99: 5 | F99: 2010-11-05 | G99: =MAX('uptake calcs'!M16-'uptake calcs'!M15,0) -> 0.4280827039 | I99: =MAX('uptake calcs'!L16-'uptake calcs'!L15,0) -> 0 | J99: =MAX('uptake calcs'!N16-'uptake calcs'!N15,0) -> 0 | L99: 0.4280827039 | N99: 10.5 | P99: 0 | Q99: 24.5 | S99: 56.5 | U99: 71 | V99: 42 | W99: 0 | X99: Year 1 | Y99: Year 1 | Z99: No Data
C100: 6 | F100: 2010-11-06 | G100: =MAX('uptake calcs'!M17-'uptake calcs'!M16,0) -> 0.4203215303 | I100: =MAX('uptake calcs'!L17-'uptake calcs'!L16,0) -> 0 | J100: =MAX('uptake calcs'!N17-'uptake calcs'!N16,0) -> 0 | L100: 0.4203215303 | N100: 9.5 | P100: 0 | Q100: 23.5 | S100: 55.5 | U100: 69 | V100: 42 | W100: 0 | X100: Year 1 | Y100: Year 1 | Z100: No Data
C101: 7 | F101: 2010-11-07 | G101: =MAX('uptake calcs'!M18-'uptake calcs'!M17,0) -> 0.4392695448 | I101: =MAX('uptake calcs'!L18-'uptake calcs'!L17,0) -> 0 | J101: =MAX('uptake calcs'!N18-'uptake calcs'!N17,0) -> 0 | L101: 0.4392695448 | N101: 9 | P101: 0 | Q101: 24 | S101: 56 | U101: 68 | V101: 44 | W101: 0 | X101: Year 1 | Y101: Year 1 | Z101: No Data
C102: 8 | F102: 2010-11-08 | G102: =MAX('uptake calcs'!M19-'uptake calcs'!M18,0) -> 0.4211683859 | I102: =MAX('uptake calcs'!L19-'uptake calcs'!L18,0) -> 0 | J102: =MAX('uptake calcs'!N19-'uptake calcs'!N18,0) -> 0 | L102: 0.4211683859 | N102: 8 | P102: 0 | Q102: 22.5 | S102: 54.5 | U102: 66 | V102: 43 | W102: 0 | X102: Year 1 | Y102: Year 1 | Z102: No Data
C103: 9 | F103: 2010-11-09 | G103: =MAX('uptake calcs'!M20-'uptake calcs'!M19,0) -> 0.4110580036 | I103: =MAX('uptake calcs'!L20-'uptake calcs'!L19,0) -> 0 | J103: =MAX('uptake calcs'!N20-'uptake calcs'!N19,0) -> 0 | L103: 0.4110580036 | N103: 8 | P103: 0 | Q103: 21.5 | S103: 53.5 | U103: 66 | V103: 41 | W103: 0 | X103: Year 1 | Y103: Year 1 | Z103: No Data
C104: 10 | F104: 2010-11-10 | G104: =MAX('uptake calcs'!M21-'uptake calcs'!M20,0) -> 0.3999051571 | I104: =MAX('uptake calcs'!L21-'uptake calcs'!L20,0) -> 0 | J104: =MAX('uptake calcs'!N21-'uptake calcs'!N20,0) -> 0 | L104: 0.3999051571 | N104: 7 | P104: 0 | Q104: 20.5 | S104: 52.5 | U104: 64 | V104: 41 | W104: 0 | X104: Year 1 | Y104: Year 1 | Z104: No Data
C105: 11 | F105: 2010-11-11 | G105: =MAX('uptake calcs'!M22-'uptake calcs'!M21,0) -> 0.417852833 | I105: =MAX('uptake calcs'!L22-'uptake calcs'!L21,0) -> 0 | J105: =MAX('uptake calcs'!N22-'uptake calcs'!N21,0) -> 0 | L105: 0.417852833 | N105: 7 | P105: 0 | Q105: 21 | S105: 53 | U105: 64 | V105: 42 | W105: 0 | X105: Year 1 | Y105: Year 1 | Z105: No Data
C106: 12 | F106: 2010-11-12 | G106: =MAX('uptake calcs'!M23-'uptake calcs'!M22,0) -> 0.4057853158 | I106: =MAX('uptake calcs'!L23-'uptake calcs'!L22,0) -> 0 | J106: =MAX('uptake calcs'!N23-'uptake calcs'!N22,0) -> 0 | L106: 0.4057853158 | N106: 7.5 | P106: 0 | Q106: 20 | S106: 52 | U106: 65 | V106: 39 | W106: 0 | X106: Year 1 | Y106: Year 1 | Z106: No Data
C107: 13 | F107: 2010-11-13 | G107: =MAX('uptake calcs'!M24-'uptake calcs'!M23,0) -> 0.434424485 | I107: =MAX('uptake calcs'!L24-'uptake calcs'!L23,0) -> 0 | J107: =MAX('uptake calcs'!N24-'uptake calcs'!N23,0) -> 0 | L107: 0.434424485 | N107: 8 | P107: 0 | Q107: 21 | S107: 53 | U107: 66 | V107: 40 | W107: 0 | X107: Year 1 | Y107: Year 1 | Z107: No Data
C108: 14 | F108: 2010-11-14 | G108: =MAX('uptake calcs'!M25-'uptake calcs'!M24,0) -> 0.443109818 | I108: =MAX('uptake calcs'!L25-'uptake calcs'!L24,0) -> 0 | J108: =MAX('uptake calcs'!N25-'uptake calcs'!N24,0) -> 0 | L108: 0.443109818 | N108: 8 | P108: 0 | Q108: 21 | S108: 53 | U108: 66 | V108: 40 | W108: 0 | X108: Year 1 | Y108: Year 1 | Z108: No Data
C109: 15 | F109: 2010-11-15 | G109: =MAX('uptake calcs'!M26-'uptake calcs'!M25,0) -> 0.4410657226 | I109: =MAX('uptake calcs'!L26-'uptake calcs'!L25,0) -> 0 | J109: =MAX('uptake calcs'!N26-'uptake calcs'!N25,0) -> 0 | L109: 0.4410657226 | N109: 7.5 | P109: 0 | Q109: 20.5 | S109: 52.5 | U109: 65 | V109: 40 | W109: 0 | X109: Year 1 | Y109: Year 1 | Z109: No Data
C110: 16 | F110: 2010-11-16 | G110: =MAX('uptake calcs'!M27-'uptake calcs'!M26,0) -> 0.4606690381 | I110: =MAX('uptake calcs'!L27-'uptake calcs'!L26,0) -> 0 | J110: =MAX('uptake calcs'!N27-'uptake calcs'!N26,0) -> 0 | L110: 0.4606690381 | N110: 7.5 | P110: 0 | Q110: 21 | S110: 53 | U110: 65 | V110: 41 | W110: 0 | X110: Year 1 | Y110: Year 1 | Z110: No Data
C111: 17 | F111: 2010-11-17 | G111: =MAX('uptake calcs'!M28-'uptake calcs'!M27,0) -> 0.4810515863 | I111: =MAX('uptake calcs'!L28-'uptake calcs'!L27,0) -> 0 | J111: =MAX('uptake calcs'!N28-'uptake calcs'!N27,0) -> 0 | L111: 0.4810515863 | N111: 8 | P111: 0 | Q111: 21.5 | S111: 53.5 | U111: 66 | V111: 41 | W111: 0 | X111: Year 1 | Y111: Year 1 | Z111: No Data
C112: 18 | F112: 2010-11-18 | G112: =MAX('uptake calcs'!M29-'uptake calcs'!M28,0) -> 0.4791974441 | I112: =MAX('uptake calcs'!L29-'uptake calcs'!L28,0) -> 0 | J112: =MAX('uptake calcs'!N29-'uptake calcs'!N28,0) -> 0 | L112: 0.4791974441 | N112: 7.5 | P112: 0 | Q112: 21 | S112: 53 | U112: 65 | V112: 41 | W112: 0 | X112: Year 1 | Y112: Year 1 | Z112: No Data
C113: 19 | F113: 2010-11-19 | G113: =MAX('uptake calcs'!M30-'uptake calcs'!M29,0) -> 0.4416208262 | I113: =MAX('uptake calcs'!L30-'uptake calcs'!L29,0) -> 0 | J113: =MAX('uptake calcs'!N30-'uptake calcs'!N29,0) -> 0 | L113: 0.4416208262 | N113: 6.5 | P113: 0 | Q113: 19 | S113: 51 | U113: 63 | V113: 39 | W113: 0 | X113: Year 1 | Y113: Year 1 | Z113: No Data
C114: 20 | F114: 2010-11-20 | G114: =MAX('uptake calcs'!M31-'uptake calcs'!M30,0) -> 0.4613142181 | I114: =MAX('uptake calcs'!L31-'uptake calcs'!L30,0) -> 0 | J114: =MAX('uptake calcs'!N31-'uptake calcs'!N30,0) -> 0 | L114: 0.4613142181 | N114: 6.5 | P114: 0 | Q114: 19.5 | S114: 51.5 | U114: 63 | V114: 40 | W114: 0 | X114: Year 1 | Y114: Year 1 | Z114: No Data
C115: 21 | F115: 2010-11-21 | G115: =MAX('uptake calcs'!M32-'uptake calcs'!M31,0) -> 0.4331785759 | I115: =MAX('uptake calcs'!L32-'uptake calcs'!L31,0) -> 0 | J115: =MAX('uptake calcs'!N32-'uptake calcs'!N31,0) -> 0 | L115: 0.4331785759 | N115: 6 | P115: 0 | Q115: 18 | S115: 50 | U115: 62 | V115: 38 | W115: 0 | X115: Year 1 | Y115: Year 1 | Z115: No Data
C116: 22 | F116: 2010-11-22 | G116: =MAX('uptake calcs'!M33-'uptake calcs'!M32,0) -> 0.4279935762 | I116: =MAX('uptake calcs'!L33-'uptake calcs'!L32,0) -> 0 | J116: =MAX('uptake calcs'!N33-'uptake calcs'!N32,0) -> 0 | L116: 0.4279935762 | N116: 6 | P116: 0 | Q116: 17.5 | S116: 49.5 | U116: 62 | V116: 37 | W116: 0 | X116: Year 1 | Y116: Year 1 | Z116: No Data
C117: 23 | F117: 2010-11-23 | G117: =MAX('uptake calcs'!M34-'uptake calcs'!M33,0) -> 0.4223045083 | I117: =MAX('uptake calcs'!L34-'uptake calcs'!L33,0) -> 0 | J117: =MAX('uptake calcs'!N34-'uptake calcs'!N33,0) -> 0 | L117: 0.4223045083 | N117: 6 | P117: 0 | Q117: 17 | S117: 49 | U117: 62 | V117: 36 | W117: 0 | X117: Year 1 | Y117: Year 1 | Z117: No Data
C118: 24 | F118: 2010-11-24 | G118: =MAX('uptake calcs'!M35-'uptake calcs'!M34,0) -> 0.4161149519 | I118: =MAX('uptake calcs'!L35-'uptake calcs'!L34,0) -> 0 | J118: =MAX('uptake calcs'!N35-'uptake calcs'!N34,0) -> 0 | L118: 0.4161149519 | N118: 5.5 | P118: 0 | Q118: 16.5 | S118: 48.5 | U118: 61 | V118: 36 | W118: 0 | X118: Year 1 | Y118: Year 1 | Z118: No Data
C119: 25 | F119: 2010-11-25 | G119: =MAX('uptake calcs'!M36-'uptake calcs'!M35,0) -> 0.4481146299 | I119: =MAX('uptake calcs'!L36-'uptake calcs'!L35,0) -> 0 | J119: =MAX('uptake calcs'!N36-'uptake calcs'!N35,0) -> 0 | L119: 0.4481146299 | N119: 6 | P119: 0 | Q119: 17.5 | S119: 49.5 | U119: 62 | V119: 37 | W119: 0 | X119: Year 1 | Y119: Year 1 | Z119: No Data
C120: 26 | F120: 2010-11-26 | G120: =MAX('uptake calcs'!M37-'uptake calcs'!M36,0) -> 0.4158774046 | I120: =MAX('uptake calcs'!L37-'uptake calcs'!L36,0) -> 0 | J120: =MAX('uptake calcs'!N37-'uptake calcs'!N36,0) -> 0 | L120: 0.4158774046 | N120: 4.5 | P120: 0 | Q120: 16 | S120: 48 | U120: 59 | V120: 37 | W120: 0 | X120: Year 1 | Y120: Year 1 | Z120: No Data
C121: 27 | F121: 2010-11-27 | G121: =MAX('uptake calcs'!M38-'uptake calcs'!M37,0) -> 0.3952939835 | I121: =MAX('uptake calcs'!L38-'uptake calcs'!L37,0) -> 0 | J121: =MAX('uptake calcs'!N38-'uptake calcs'!N37,0) -> 0 | L121: 0.3952939835 | N121: 3.5 | P121: 0 | Q121: 15 | S121: 47 | U121: 57 | V121: 37 | W121: 0 | X121: Year 1 | Y121: Year 1 | Z121: No Data
C122: 28 | F122: 2010-11-28 | G122: =MAX('uptake calcs'!M39-'uptake calcs'!M38,0) -> 0.4140218738 | I122: =MAX('uptake calcs'!L39-'uptake calcs'!L38,0) -> 0 | J122: =MAX('uptake calcs'!N39-'uptake calcs'!N38,0) -> 0 | L122: 0.4140218738 | N122: 4 | P122: 0 | Q122: 15.5 | S122: 47.5 | U122: 58 | V122: 37 | W122: 0 | X122: Year 1 | Y122: Year 1 | Z122: No Data
C123: 29 | F123: 2010-11-29 | G123: =MAX('uptake calcs'!M40-'uptake calcs'!M39,0) -> 0.406088016 | I123: =MAX('uptake calcs'!L40-'uptake calcs'!L39,0) -> 0 | J123: =MAX('uptake calcs'!N40-'uptake calcs'!N39,0) -> 0 | L123: 0.406088016 | N123: 4 | P123: 0 | Q123: 15 | S123: 47 | U123: 58 | V123: 36 | W123: 0 | X123: Year 1 | Y123: Year 1 | Z123: No Data
C124: 30 | F124: 2010-11-30 | G124: =MAX('uptake calcs'!M41-'uptake calcs'!M40,0) -> 0.4252779621 | I124: =MAX('uptake calcs'!L41-'uptake calcs'!L40,0) -> 0 | J124: =MAX('uptake calcs'!N41-'uptake calcs'!N40,0) -> 0 | L124: 0.4252779621 | N124: 4.5 | P124: 0 | Q124: 15.5 | S124: 47.5 | U124: 59 | V124: 36 | W124: 0 | X124: Year 1 | Y124: Year 1 | Z124: No Data
C125: 31 | F125: 2010-12-01 | G125: =MAX('uptake calcs'!M42-'uptake calcs'!M41,0) -> 0.4170794056 | I125: =MAX('uptake calcs'!L42-'uptake calcs'!L41,0) -> 0 | J125: =MAX('uptake calcs'!N42-'uptake calcs'!N41,0) -> 0 | L125: 0.4170794056 | N125: 4 | P125: 0 | Q125: 15 | S125: 47 | U125: 58 | V125: 36 | W125: 0 | X125: Year 1 | Y125: Year 1 | Z125: No Data
C126: 32 | F126: 2010-12-02 | G126: =MAX('uptake calcs'!M43-'uptake calcs'!M42,0) -> 0.4225566746 | I126: =MAX('uptake calcs'!L43-'uptake calcs'!L42,0) -> 0 | J126: =MAX('uptake calcs'!N43-'uptake calcs'!N42,0) -> 0 | L126: 0.4225566746 | N126: 4.5 | P126: 0 | Q126: 15 | S126: 47 | U126: 59 | V126: 35 | W126: 0 | X126: Year 1 | Y126: Year 1 | Z126: No Data
C127: 33 | F127: 2010-12-03 | G127: =MAX('uptake calcs'!M44-'uptake calcs'!M43,0) -> 0.4137219111 | I127: =MAX('uptake calcs'!L44-'uptake calcs'!L43,0) -> 0 | J127: =MAX('uptake calcs'!N44-'uptake calcs'!N43,0) -> 0 | L127: 0.4137219111 | N127: 3.5 | P127: 0 | Q127: 14.5 | S127: 46.5 | U127: 57 | V127: 36 | W127: 0 | X127: Year 1 | Y127: Year 1 | Z127: No Data
C128: 34 | F128: 2010-12-04 | G128: =MAX('uptake calcs'!M45-'uptake calcs'!M44,0) -> 0.433464876 | I128: =MAX('uptake calcs'!L45-'uptake calcs'!L44,0) -> 0 | J128: =MAX('uptake calcs'!N45-'uptake calcs'!N44,0) -> 0 | L128: 0.433464876 | N128: 4 | P128: 0 | Q128: 15 | S128: 47 | U128: 58 | V128: 36 | W128: 0 | X128: Year 1 | Y128: Year 1 | Z128: No Data
C129: 35 | F129: 2010-12-05 | G129: =MAX('uptake calcs'!M46-'uptake calcs'!M45,0) -> 0.439079964 | I129: =MAX('uptake calcs'!L46-'uptake calcs'!L45,0) -> 0 | J129: =MAX('uptake calcs'!N46-'uptake calcs'!N45,0) -> 0 | L129: 0.439079964 | N129: 3.5 | P129: 0 | Q129: 15 | S129: 47 | U129: 57 | V129: 37 | W129: 0 | X129: Year 1 | Y129: Year 1 | Z129: No Data
C130: 36 | F130: 2010-12-06 | G130: =MAX('uptake calcs'!M47-'uptake calcs'!M46,0) -> 0.4447407249 | I130: =MAX('uptake calcs'!L47-'uptake calcs'!L46,0) -> 0 | J130: =MAX('uptake calcs'!N47-'uptake calcs'!N46,0) -> 0 | L130: 0.4447407249 | N130: 3.5 | P130: 0 | Q130: 15 | S130: 47 | U130: 57 | V130: 37 | W130: 0 | X130: Year 1 | Y130: Year 1 | Z130: No Data
C131: 37 | F131: 2010-12-07 | G131: =MAX('uptake calcs'!M48-'uptake calcs'!M47,0) -> 0.4655604012 | I131: =MAX('uptake calcs'!L48-'uptake calcs'!L47,0) -> 0 | J131: =MAX('uptake calcs'!N48-'uptake calcs'!N47,0) -> 0 | L131: 0.4655604012 | N131: 3.5 | P131: 0 | Q131: 15.5 | S131: 47.5 | U131: 57 | V131: 38 | W131: 0 | X131: Year 1 | Y131: Year 1 | Z131: No Data
C132: 38 | F132: 2010-12-08 | G132: =MAX('uptake calcs'!M49-'uptake calcs'!M48,0) -> 0.4257840828 | I132: =MAX('uptake calcs'!L49-'uptake calcs'!L48,0) -> 0 | J132: =MAX('uptake calcs'!N49-'uptake calcs'!N48,0) -> 0 | L132: 0.4257840828 | N132: 3.5 | P132: 0 | Q132: 14 | S132: 46 | U132: 57 | V132: 35 | W132: 0 | X132: Year 1 | Y132: Year 1 | Z132: No Data
C133: 39 | F133: 2010-12-09 | G133: =MAX('uptake calcs'!M50-'uptake calcs'!M49,0) -> 0.446311516 | I133: =MAX('uptake calcs'!L50-'uptake calcs'!L49,0) -> 0 | J133: =MAX('uptake calcs'!N50-'uptake calcs'!N49,0) -> 0 | L133: 0.446311516 | N133: 3.5 | P133: 0 | Q133: 14.5 | S133: 46.5 | U133: 57 | V133: 36 | W133: 0 | X133: Year 1 | Y133: Year 1 | Z133: No Data
C134: 40 | F134: 2010-12-10 | G134: =MAX('uptake calcs'!M51-'uptake calcs'!M50,0) -> 0.4674406241 | I134: =MAX('uptake calcs'!L51-'uptake calcs'!L50,0) -> 0 | J134: =MAX('uptake calcs'!N51-'uptake calcs'!N50,0) -> 0 | L134: 0.4674406241 | N134: 3.5 | P134: 0 | Q134: 15 | S134: 47 | U134: 57 | V134: 37 | W134: 0 | X134: Year 1 | Y134: Year 1 | Z134: No Data
C135: 41 | F135: 2010-12-11 | G135: =MAX('uptake calcs'!M52-'uptake calcs'!M51,0) -> 0.4415812672 | I135: =MAX('uptake calcs'!L52-'uptake calcs'!L51,0) -> 0 | J135: =MAX('uptake calcs'!N52-'uptake calcs'!N51,0) -> 0 | L135: 0.4415812672 | N135: 2.5 | P135: 0 | Q135: 14 | S135: 46 | U135: 55 | V135: 37 | W135: 0 | X135: Year 1 | Y135: Year 1 | Z135: No Data
C136: 42 | F136: 2010-12-12 | G136: =MAX('uptake calcs'!M53-'uptake calcs'!M52,0) -> 0.4627879344 | I136: =MAX('uptake calcs'!L53-'uptake calcs'!L52,0) -> 0 | J136: =MAX('uptake calcs'!N53-'uptake calcs'!N52,0) -> 0 | L136: 0.4627879344 | N136: 2.5 | P136: 0 | Q136: 14.5 | S136: 46.5 | U136: 55 | V136: 38 | W136: 0 | X136: Year 1 | Y136: Year 1 | Z136: No Data
C137: 43 | F137: 2010-12-13 | G137: =MAX('uptake calcs'!M54-'uptake calcs'!M53,0) -> 0.5171267888 | I137: =MAX('uptake calcs'!L54-'uptake calcs'!L53,0) -> 0 | J137: =MAX('uptake calcs'!N54-'uptake calcs'!N53,0) -> 0 | L137: 0.5171267888 | N137: 4 | P137: 0 | Q137: 16 | S137: 48 | U137: 58 | V137: 38 | W137: 0 | X137: Year 1 | Y137: Year 1 | Z137: No Data
C138: 44 | F138: 2010-12-14 | G138: =MAX('uptake calcs'!M55-'uptake calcs'!M54,0) -> 0.4745450416 | I138: =MAX('uptake calcs'!L55-'uptake calcs'!L54,0) -> 0 | J138: =MAX('uptake calcs'!N55-'uptake calcs'!N54,0) -> 0 | L138: 0.4745450416 | N138: 2.5 | P138: 0 | Q138: 14.5 | S138: 46.5 | U138: 55 | V138: 38 | W138: 0 | X138: Year 1 | Y138: Year 1 | Z138: No Data
C139: 45 | F139: 2010-12-15 | G139: =MAX('uptake calcs'!M56-'uptake calcs'!M55,0) -> 0.4635391211 | I139: =MAX('uptake calcs'!L56-'uptake calcs'!L55,0) -> 0 | J139: =MAX('uptake calcs'!N56-'uptake calcs'!N55,0) -> 0 | L139: 0.4635391211 | N139: 2.5 | P139: 0 | Q139: 14 | S139: 46 | U139: 55 | V139: 37 | W139: 0 | X139: Year 1 | Y139: Year 1 | Z139: No Data
C140: 46 | F140: 2010-12-16 | G140: =MAX('uptake calcs'!M57-'uptake calcs'!M56,0) -> 0.4183490302 | I140: =MAX('uptake calcs'!L57-'uptake calcs'!L56,0) -> 0 | J140: =MAX('uptake calcs'!N57-'uptake calcs'!N56,0) -> 0 | L140: 0.4183490302 | N140: 2 | P140: 0 | Q140: 12.5 | S140: 44.5 | U140: 54 | V140: 35 | W140: 0 | X140: Year 1 | Y140: Year 1 | Z140: No Data
C141: 47 | F141: 2010-12-17 | G141: =MAX('uptake calcs'!M58-'uptake calcs'!M57,0) -> 0.4395866348 | I141: =MAX('uptake calcs'!L58-'uptake calcs'!L57,0) -> 0 | J141: =MAX('uptake calcs'!N58-'uptake calcs'!N57,0) -> 0 | L141: 0.4395866348 | N141: 2 | P141: 0 | Q141: 13 | S141: 45 | U141: 54 | V141: 36 | W141: 0 | X141: Year 1 | Y141: Year 1 | Z141: No Data
C142: 48 | F142: 2010-12-18 | G142: =MAX('uptake calcs'!M59-'uptake calcs'!M58,0) -> 0.4442034413 | I142: =MAX('uptake calcs'!L59-'uptake calcs'!L58,0) -> 0 | J142: =MAX('uptake calcs'!N59-'uptake calcs'!N58,0) -> 0 | L142: 0.4442034413 | N142: 1.5 | P142: 0 | Q142: 13 | S142: 45 | U142: 53 | V142: 37 | W142: 0 | X142: Year 1 | Y142: Year 1 | Z142: No Data
C143: 49 | F143: 2010-12-19 | G143: =MAX('uptake calcs'!M60-'uptake calcs'!M59,0) -> 0.4314955861 | I143: =MAX('uptake calcs'!L60-'uptake calcs'!L59,0) -> 0 | J143: =MAX('uptake calcs'!N60-'uptake calcs'!N59,0) -> 0 | L143: 0.4314955861 | N143: 1.5 | P143: 0 | Q143: 12.5 | S143: 44.5 | U143: 53 | V143: 36 | W143: 0 | X143: Year 1 | Y143: Year 1 | Z143: No Data
C144: 50 | F144: 2010-12-20 | G144: =MAX('uptake calcs'!M61-'uptake calcs'!M60,0) -> 0.4182931057 | I144: =MAX('uptake calcs'!L61-'uptake calcs'!L60,0) -> 0 | J144: =MAX('uptake calcs'!N61-'uptake calcs'!N60,0) -> 0 | L144: 0.4182931057 | N144: 1 | P144: 0 | Q144: 12 | S144: 44 | U144: 52 | V144: 36 | W144: 0 | X144: Year 1 | Y144: Year 1 | Z144: No Data
C145: 51 | F145: 2010-12-21 | G145: =MAX('uptake calcs'!M62-'uptake calcs'!M61,0) -> 0.4046113855 | I145: =MAX('uptake calcs'!L62-'uptake calcs'!L61,0) -> 0 | J145: =MAX('uptake calcs'!N62-'uptake calcs'!N61,0) -> 0 | L145: 0.4046113855 | N145: 1 | P145: 0 | Q145: 11.5 | S145: 43.5 | U145: 52 | V145: 35 | W145: 0 | X145: Year 1 | Y145: Year 1 | Z145: No Data
C146: 52 | F146: 2010-12-22 | G146: =MAX('uptake calcs'!M63-'uptake calcs'!M62,0) -> 0.4439737707 | I146: =MAX('uptake calcs'!L63-'uptake calcs'!L62,0) -> 0 | J146: =MAX('uptake calcs'!N63-'uptake calcs'!N62,0) -> 0 | L146: 0.4439737707 | N146: 1.5 | P146: 0 | Q146: 12.5 | S146: 44.5 | U146: 53 | V146: 36 | W146: 0 | X146: Year 1 | Y146: Year 1 | Z146: No Data
C147: 53 | F147: 2010-12-23 | G147: =MAX('uptake calcs'!M64-'uptake calcs'!M63,0) -> 0.3943133412 | I147: =MAX('uptake calcs'!L64-'uptake calcs'!L63,0) -> 0 | J147: =MAX('uptake calcs'!N64-'uptake calcs'!N63,0) -> 0 | L147: 0.3943133412 | N147: 1.5 | P147: 0 | Q147: 11 | S147: 43 | U147: 53 | V147: 33 | W147: 0 | X147: Year 1 | Y147: Year 1 | Z147: No Data
C148: 54 | F148: 2010-12-24 | G148: =MAX('uptake calcs'!M65-'uptake calcs'!M64,0) -> 0.3977131186 | I148: =MAX('uptake calcs'!L65-'uptake calcs'!L64,0) -> 0 | J148: =MAX('uptake calcs'!N65-'uptake calcs'!N64,0) -> 0 | L148: 0.3977131186 | N148: 1 | P148: 0 | Q148: 11 | S148: 43 | U148: 52 | V148: 34 | W148: 0 | X148: Year 1 | Y148: Year 1 | Z148: No Data
C149: 55 | F149: 2010-12-25 | G149: =MAX('uptake calcs'!M66-'uptake calcs'!M65,0) -> 0.3645187821 | I149: =MAX('uptake calcs'!L66-'uptake calcs'!L65,0) -> 0 | J149: =MAX('uptake calcs'!N66-'uptake calcs'!N65,0) -> 0 | L149: 0.3645187821 | N149: 1 | P149: 0 | Q149: 10 | S149: 42 | U149: 52 | V149: 32 | W149: 0 | X149: Year 1 | Y149: Year 1 | Z149: No Data
C150: 56 | F150: 2010-12-26 | G150: =MAX('uptake calcs'!M67-'uptake calcs'!M66,0) -> 0.4226963796 | I150: =MAX('uptake calcs'!L67-'uptake calcs'!L66,0) -> 0 | J150: =MAX('uptake calcs'!N67-'uptake calcs'!N66,0) -> 0 | L150: 0.4226963796 | N150: 2 | P150: 0 | Q150: 11.5 | S150: 43.5 | U150: 54 | V150: 33 | W150: 0 | X150: Year 1 | Y150: Year 1 | Z150: No Data
C151: 57 | F151: 2010-12-27 | G151: =MAX('uptake calcs'!M68-'uptake calcs'!M67,0) -> 0.4823564676 | I151: =MAX('uptake calcs'!L68-'uptake calcs'!L67,0) -> 0 | J151: =MAX('uptake calcs'!N68-'uptake calcs'!N67,0) -> 0 | L151: 0.4823564676 | N151: 3 | P151: 0 | Q151: 13 | S151: 45 | U151: 56 | V151: 34 | W151: 0 | X151: Year 1 | Y151: Year 1 | Z151: No Data
C152: 58 | F152: 2010-12-28 | G152: =MAX('uptake calcs'!M69-'uptake calcs'!M68,0) -> 0.4871789573 | I152: =MAX('uptake calcs'!L69-'uptake calcs'!L68,0) -> 0 | J152: =MAX('uptake calcs'!N69-'uptake calcs'!N68,0) -> 0 | L152: 0.4871789573 | N152: 2 | P152: 0 | Q152: 13 | S152: 45 | U152: 54 | V152: 36 | W152: 0 | X152: Year 1 | Y152: Year 1 | Z152: No Data
C153: 59 | F153: 2010-12-29 | G153: =MAX('uptake calcs'!M70-'uptake calcs'!M69,0) -> 0.4920212605 | I153: =MAX('uptake calcs'!L70-'uptake calcs'!L69,0) -> 0 | J153: =MAX('uptake calcs'!N70-'uptake calcs'!N69,0) -> 0 | L153: 0.4920212605 | N153: 2 | P153: 0 | Q153: 13 | S153: 45 | U153: 54 | V153: 36 | W153: 0 | X153: Year 1 | Y153: Year 1 | Z153: No Data
C154: 60 | F154: 2010-12-30 | G154: =MAX('uptake calcs'!M71-'uptake calcs'!M70,0) -> 0.4968827468 | I154: =MAX('uptake calcs'!L71-'uptake calcs'!L70,0) -> 0 | J154: =MAX('uptake calcs'!N71-'uptake calcs'!N70,0) -> 0 | L154: 0.4968827468 | N154: 2 | P154: 0 | Q154: 13 | S154: 45 | U154: 54 | V154: 36 | W154: 0 | X154: Year 1 | Y154: Year 1 | Z154: No Data
C155: 61 | F155: 2010-12-31 | G155: =MAX('uptake calcs'!M72-'uptake calcs'!M71,0) -> 0.5405625518 | I155: =MAX('uptake calcs'!L72-'uptake calcs'!L71,0) -> 0 | J155: =MAX('uptake calcs'!N72-'uptake calcs'!N71,0) -> 0 | L155: 0.5405625518 | N155: 2.5 | P155: 0 | Q155: 14 | S155: 46 | U155: 55 | V155: 37 | W155: 0 | X155: Year 1 | Y155: Year 1 | Z155: No Data
C156: 62 | F156: 2011-01-01 | G156: =MAX('uptake calcs'!M73-'uptake calcs'!M72,0) -> 0.5266376804 | I156: =MAX('uptake calcs'!L73-'uptake calcs'!L72,0) -> 0 | J156: =MAX('uptake calcs'!N73-'uptake calcs'!N72,0) -> 0 | L156: 0.5266376804 | N156: 2 | P156: 0 | Q156: 13.5 | S156: 45.5 | U156: 54 | V156: 37 | W156: 0 | X156: Year 2 | Y156: Year 2 | Z156: No Data
C157: 63 | F157: 2011-01-02 | G157: =MAX('uptake calcs'!M74-'uptake calcs'!M73,0) -> 0.5319401928 | I157: =MAX('uptake calcs'!L74-'uptake calcs'!L73,0) -> 0 | J157: =MAX('uptake calcs'!N74-'uptake calcs'!N73,0) -> 0 | L157: 0.5319401928 | N157: 2 | P157: 0 | Q157: 13.5 | S157: 45.5 | U157: 54 | V157: 37 | W157: 0 | X157: Year 2 | Y157: Year 2 | Z157: No Data
C158: 64 | F158: 2011-01-03 | G158: =MAX('uptake calcs'!M75-'uptake calcs'!M74,0) -> 0.5172674056 | I158: =MAX('uptake calcs'!L75-'uptake calcs'!L74,0) -> 0 | J158: =MAX('uptake calcs'!N75-'uptake calcs'!N74,0) -> 0 | L158: 0.5172674056 | N158: 2 | P158: 0 | Q158: 13 | S158: 45 | U158: 54 | V158: 36 | W158: 0 | X158: Year 2 | Y158: Year 2 | Z158: No Data
C159: 65 | F159: 2011-01-04 | G159: =MAX('uptake calcs'!M76-'uptake calcs'!M75,0) -> 0.4818704656 | I159: =MAX('uptake calcs'!L76-'uptake calcs'!L75,0) -> 0 | J159: =MAX('uptake calcs'!N76-'uptake calcs'!N75,0) -> 0 | L159: =SUM(G159:J159) -> 0.4818704656 | N159: =IF($U159>cutoff.corn.min,((IF($U159>cutoff.corn.max,cutoff.corn.max,$U159)+IF($V159<cutoff.corn.min,cutoff.corn.min,$V159))/2)-cutoff.corn.min,0) -> 1.5 | P159: =IF(AND(C159>=C$44,C159<=$C$55),N159+P158,0) -> 0 | Q159: =((U159+V159)/2)-32 -> 12 | S159: =AVERAGE(U159:V159) -> 44 | U159: 53 | V159: 35 | W159: 0 | X159: Year 2 | Y159: Year 2 | Z159: No Data
C160: 66 | F160: 2011-01-05 | G160: =MAX('uptake calcs'!M77-'uptake calcs'!M76,0) -> 0.4860996975 | I160: =MAX('uptake calcs'!L77-'uptake calcs'!L76,0) -> 0 | J160: =MAX('uptake calcs'!N77-'uptake calcs'!N76,0) -> 0 | L160: 0.4860996975 | N160: 1.5 | P160: 0 | Q160: 12 | S160: 44 | U160: 53 | V160: 35 | W160: 0 | X160: Year 2 | Y160: Year 2 | Z160: No Data
C161: 67 | F161: =F160+1 -> 2011-01-06 | G161: =MAX('uptake calcs'!M78-'uptake calcs'!M77,0) -> 0.4493162257 | I161: =MAX('uptake calcs'!L78-'uptake calcs'!L77,0) -> 0 | J161: =MAX('uptake calcs'!N78-'uptake calcs'!N77,0) -> 0 | L161: 0.4493162257 | N161: 1 | P161: 0 | Q161: 11 | S161: 43 | U161: 52 | V161: 34 | W161: 0 | X161: Year 2 | Y161: Year 2 | Z161: No Data
C162: 68 | F162: 2011-01-07 | G162: =MAX('uptake calcs'!M79-'uptake calcs'!M78,0) -> 0.4942365441 | I162: =MAX('uptake calcs'!L79-'uptake calcs'!L78,0) -> 0 | J162: =MAX('uptake calcs'!N79-'uptake calcs'!N78,0) -> 0 | L162: 0.4942365441 | N162: 1 | P162: 0 | Q162: 12 | S162: 44 | U162: 52 | V162: 36 | W162: 0 | X162: Year 2 | Y162: Year 2 | Z162: No Data
C163: 69 | F163: 2011-01-08 | G163: =MAX('uptake calcs'!M80-'uptake calcs'!M79,0) -> 0.5611089933 | I163: =MAX('uptake calcs'!L80-'uptake calcs'!L79,0) -> 0 | J163: =MAX('uptake calcs'!N80-'uptake calcs'!N79,0) -> 0 | L163: 0.5611089933 | N163: 1.5 | P163: 0 | Q163: 13.5 | S163: 45.5 | U163: 53 | V163: 38 | W163: 0 | X163: Year 2 | Y163: Year 2 | Z163: No Data
C164: 70 | F164: 2011-01-09 | G164: =MAX('uptake calcs'!M81-'uptake calcs'!M80,0) -> 0.5876004272 | I164: =MAX('uptake calcs'!L81-'uptake calcs'!L80,0) -> 0 | J164: =MAX('uptake calcs'!N81-'uptake calcs'!N80,0) -> 0 | L164: 0.5876004272 | N164: 2 | P164: 0 | Q164: 14 | S164: 46 | U164: 54 | V164: 38 | W164: 0 | X164: Year 2 | Y164: Year 2 | Z164: No Data
C165: 71 | F165: 2011-01-10 | G165: =MAX('uptake calcs'!M82-'uptake calcs'!M81,0) -> 0.5934276535 | I165: =MAX('uptake calcs'!L82-'uptake calcs'!L81,0) -> 0 | J165: =MAX('uptake calcs'!N82-'uptake calcs'!N81,0) -> 0 | L165: 0.5934276535 | N165: 2 | P165: 0 | Q165: 14 | S165: 46 | U165: 54 | V165: 38 | W165: 0 | X165: Year 2 | Y165: Year 2 | Z165: No Data
C166: 72 | F166: 2011-01-11 | G166: =MAX('uptake calcs'!M83-'uptake calcs'!M82,0) -> 0.5562689476 | I166: =MAX('uptake calcs'!L83-'uptake calcs'!L82,0) -> 0 | J166: =MAX('uptake calcs'!N83-'uptake calcs'!N82,0) -> 0 | L166: 0.5562689476 | N166: 1 | P166: 0 | Q166: 13 | S166: 45 | U166: 52 | V166: 38 | W166: 0 | X166: Year 2 | Y166: Year 2 | Z166: No Data
C167: 73 | F167: 2011-01-12 | G167: =MAX('uptake calcs'!M84-'uptake calcs'!M83,0) -> 0.5830037679 | I167: =MAX('uptake calcs'!L84-'uptake calcs'!L83,0) -> 0 | J167: =MAX('uptake calcs'!N84-'uptake calcs'!N83,0) -> 0 | L167: 0.5830037679 | N167: 1.5 | P167: 0 | Q167: 13.5 | S167: 45.5 | U167: 53 | V167: 38 | W167: 0 | X167: Year 2 | Y167: Year 2 | Z167: No Data
C168: 74 | F168: 2011-01-13 | G168: =MAX('uptake calcs'!M85-'uptake calcs'!M84,0) -> 0.5446774942 | I168: =MAX('uptake calcs'!L85-'uptake calcs'!L84,0) -> 0 | J168: =MAX('uptake calcs'!N85-'uptake calcs'!N84,0) -> 0 | L168: 0.5446774942 | N168: 2 | P168: 0 | Q168: 12.5 | S168: 44.5 | U168: 54 | V168: 35 | W168: 0 | X168: Year 2 | Y168: Year 2 | Z168: No Data
C169: 75 | F169: 2011-01-14 | G169: =MAX('uptake calcs'!M86-'uptake calcs'!M85,0) -> 0.5493567294 | I169: =MAX('uptake calcs'!L86-'uptake calcs'!L85,0) -> 0 | J169: =MAX('uptake calcs'!N86-'uptake calcs'!N85,0) -> 0 | L169: 0.5493567294 | N169: 1.5 | P169: 0 | Q169: 12.5 | S169: 44.5 | U169: 53 | V169: 36 | W169: 0 | X169: Year 2 | Y169: Year 2 | Z169: No Data
C170: 76 | F170: 2011-01-15 | G170: =MAX('uptake calcs'!M87-'uptake calcs'!M86,0) -> 0.5540419223 | I170: =MAX('uptake calcs'!L87-'uptake calcs'!L86,0) -> 0 | J170: =MAX('uptake calcs'!N87-'uptake calcs'!N86,0) -> 0 | L170: 0.5540419223 | N170: 1.5 | P170: 0 | Q170: 12.5 | S170: 44.5 | U170: 53 | V170: 36 | W170: 0 | X170: Year 2 | Y170: Year 2 | Z170: No Data
C171: 77 | F171: 2011-01-16 | G171: =MAX('uptake calcs'!M88-'uptake calcs'!M87,0) -> 0.6036336163 | I171: =MAX('uptake calcs'!L88-'uptake calcs'!L87,0) -> 0 | J171: =MAX('uptake calcs'!N88-'uptake calcs'!N87,0) -> 0 | L171: 0.6036336163 | N171: 2.5 | P171: 0 | Q171: 13.5 | S171: 45.5 | U171: 55 | V171: 36 | W171: 0 | X171: Year 2 | Y171: Year 2 | Z171: No Data
C172: 78 | F172: 2011-01-17 | G172: =MAX('uptake calcs'!M89-'uptake calcs'!M88,0) -> 0.6091098666 | I172: =MAX('uptake calcs'!L89-'uptake calcs'!L88,0) -> 0 | J172: =MAX('uptake calcs'!N89-'uptake calcs'!N88,0) -> 0 | L172: 0.6091098666 | N172: 2 | P172: 0 | Q172: 13.5 | S172: 45.5 | U172: 54 | V172: 37 | W172: 0 | X172: Year 2 | Y172: Year 2 | Z172: No Data
C173: 79 | F173: 2011-01-18 | G173: =MAX('uptake calcs'!M90-'uptake calcs'!M89,0) -> 0.6374583323 | I173: =MAX('uptake calcs'!L90-'uptake calcs'!L89,0) -> 0 | J173: =MAX('uptake calcs'!N90-'uptake calcs'!N89,0) -> 0 | L173: 0.6374583323 | N173: 2.5 | P173: 0 | Q173: 14 | S173: 46 | U173: 55 | V173: 37 | W173: 0 | X173: Year 2 | Y173: Year 2 | Z173: No Data
C174: 80 | F174: 2011-01-19 | G174: =MAX('uptake calcs'!M91-'uptake calcs'!M90,0) -> 0.6202773026 | I174: =MAX('uptake calcs'!L91-'uptake calcs'!L90,0) -> 0 | J174: =MAX('uptake calcs'!N91-'uptake calcs'!N90,0) -> 0 | L174: 0.6202773026 | N174: 2.5 | P174: 0 | Q174: 13.5 | S174: 45.5 | U174: 55 | V174: 36 | W174: 0 | X174: Year 2 | Y174: Year 2 | Z174: No Data
C175: 81 | F175: 2011-01-20 | G175: =MAX('uptake calcs'!M92-'uptake calcs'!M91,0) -> 0.5792221114 | I175: =MAX('uptake calcs'!L92-'uptake calcs'!L91,0) -> 0 | J175: =MAX('uptake calcs'!N92-'uptake calcs'!N91,0) -> 0 | L175: 0.5792221114 | N175: 2 | P175: 0 | Q175: 12.5 | S175: 44.5 | U175: 54 | V175: 35 | W175: 0 | X175: Year 2 | Y175: Year 2 | Z175: No Data
C176: 82 | F176: 2011-01-21 | G176: =MAX('uptake calcs'!M93-'uptake calcs'!M92,0) -> 0.6308432254 | I176: =MAX('uptake calcs'!L93-'uptake calcs'!L92,0) -> 0 | J176: =MAX('uptake calcs'!N93-'uptake calcs'!N92,0) -> 0 | L176: 0.6308432254 | N176: 2.5 | P176: 0 | Q176: 13.5 | S176: 45.5 | U176: 55 | V176: 36 | W176: 0 | X176: Year 2 | Y176: Year 2 | Z176: No Data
C177: 83 | F177: 2011-01-22 | G177: =MAX('uptake calcs'!M94-'uptake calcs'!M93,0) -> 0.636329421 | I177: =MAX('uptake calcs'!L94-'uptake calcs'!L93,0) -> 0 | J177: =MAX('uptake calcs'!N94-'uptake calcs'!N93,0) -> 0 | L177: 0.636329421 | N177: 2 | P177: 0 | Q177: 13.5 | S177: 45.5 | U177: 54 | V177: 37 | W177: 0 | X177: Year 2 | Y177: Year 2 | Z177: No Data
C178: 84 | F178: 2011-01-23 | G178: =MAX('uptake calcs'!M95-'uptake calcs'!M94,0) -> 0.66569024 | I178: =MAX('uptake calcs'!L95-'uptake calcs'!L94,0) -> 0 | J178: =MAX('uptake calcs'!N95-'uptake calcs'!N94,0) -> 0 | L178: 0.66569024 | N178: 2 | P178: 0 | Q178: 14 | S178: 46 | U178: 54 | V178: 38 | W178: 0 | X178: Year 2 | Y178: Year 2 | Z178: No Data
C179: 85 | F179: 2011-01-24 | G179: =MAX('uptake calcs'!M96-'uptake calcs'!M95,0) -> 0.6715855025 | I179: =MAX('uptake calcs'!L96-'uptake calcs'!L95,0) -> 0 | J179: =MAX('uptake calcs'!N96-'uptake calcs'!N95,0) -> 0 | L179: 0.6715855025 | N179: 2 | P179: 0 | Q179: 14 | S179: 46 | U179: 54 | V179: 38 | W179: 0 | X179: Year 2 | Y179: Year 2 | Z179: No Data
C180: 86 | F180: 2011-01-25 | G180: =MAX('uptake calcs'!M97-'uptake calcs'!M96,0) -> 0.774738996 | I180: =MAX('uptake calcs'!L97-'uptake calcs'!L96,0) -> 0 | J180: =MAX('uptake calcs'!N97-'uptake calcs'!N96,0) -> 0 | L180: 0.774738996 | N180: 3.5 | P180: 0 | Q180: 16 | S180: 48 | U180: 57 | V180: 39 | W180: 0 | X180: Year 2 | Y180: Year 2 | Z180: No Data
C181: 87 | F181: 2011-01-26 | G181: =MAX('uptake calcs'!M98-'uptake calcs'!M97,0) -> 0.733297212 | I181: =MAX('uptake calcs'!L98-'uptake calcs'!L97,0) -> 0 | J181: =MAX('uptake calcs'!N98-'uptake calcs'!N97,0) -> 0 | L181: 0.733297212 | N181: 2.5 | P181: 0 | Q181: 15 | S181: 47 | U181: 55 | V181: 39 | W181: 0 | X181: Year 2 | Y181: Year 2 | Z181: No Data
C182: 88 | F182: 2011-01-27 | G182: =MAX('uptake calcs'!M99-'uptake calcs'!M98,0) -> 0.7648257067 | I182: =MAX('uptake calcs'!L99-'uptake calcs'!L98,0) -> 0 | J182: =MAX('uptake calcs'!N99-'uptake calcs'!N98,0) -> 0 | L182: 0.7648257067 | N182: 3.5 | P182: 0 | Q182: 15.5 | S182: 47.5 | U182: 57 | V182: 38 | W182: 0 | X182: Year 2 | Y182: Year 2 | Z182: No Data
C183: 89 | F183: 2011-01-28 | G183: =MAX('uptake calcs'!M100-'uptake calcs'!M99,0) -> 0.696989486 | I183: =MAX('uptake calcs'!L100-'uptake calcs'!L99,0) -> 0 | J183: =MAX('uptake calcs'!N100-'uptake calcs'!N99,0) -> 0 | L183: 0.696989486 | N183: 3 | P183: 0 | Q183: 14 | S183: 46 | U183: 56 | V183: 36 | W183: 0 | X183: Year 2 | Y183: Year 2 | Z183: No Data
C184: 90 | F184: 2011-01-29 | G184: =MAX('uptake calcs'!M101-'uptake calcs'!M100,0) -> 0.7280526034 | I184: =MAX('uptake calcs'!L101-'uptake calcs'!L100,0) -> 0 | J184: =MAX('uptake calcs'!N101-'uptake calcs'!N100,0) -> 0 | L184: 0.7280526034 | N184: 4 | P184: 0 | Q184: 14.5 | S184: 46.5 | U184: 58 | V184: 35 | W184: 0 | X184: Year 2 | Y184: Year 2 | Z184: No Data
C185: 91 | F185: 2011-01-30 | G185: =MAX('uptake calcs'!M102-'uptake calcs'!M101,0) -> 0.7088920815 | I185: =MAX('uptake calcs'!L102-'uptake calcs'!L101,0) -> 0 | J185: =MAX('uptake calcs'!N102-'uptake calcs'!N101,0) -> 0 | L185: 0.7088920815 | N185: 2.5 | P185: 0 | Q185: 14 | S185: 46 | U185: 55 | V185: 37 | W185: 0 | X185: Year 2 | Y185: Year 2 | Z185: No Data
C186: 92 | F186: 2011-01-31 | G186: =MAX('uptake calcs'!M103-'uptake calcs'!M102,0) -> 0.7916398549 | I186: =MAX('uptake calcs'!L103-'uptake calcs'!L102,0) -> 0 | J186: =MAX('uptake calcs'!N103-'uptake calcs'!N102,0) -> 0 | L186: 0.7916398549 | N186: 3.5 | P186: 0 | Q186: 15.5 | S186: 47.5 | U186: 57 | V186: 38 | W186: 0 | X186: Year 2 | Y186: Year 2 | Z186: No Data
C187: 93 | F187: 2011-02-01 | G187: =MAX('uptake calcs'!M104-'uptake calcs'!M103,0) -> 0.8246440065 | I187: =MAX('uptake calcs'!L104-'uptake calcs'!L103,0) -> 0 | J187: =MAX('uptake calcs'!N104-'uptake calcs'!N103,0) -> 0 | L187: 0.8246440065 | N187: 4 | P187: 0 | Q187: 16 | S187: 48 | U187: 58 | V187: 38 | W187: 0 | X187: Year 2 | Y187: Year 2 | Z187: No Data
C188: 94 | F188: 2011-02-02 | G188: =MAX('uptake calcs'!M105-'uptake calcs'!M104,0) -> 0.8583313874 | I188: =MAX('uptake calcs'!L105-'uptake calcs'!L104,0) -> 0 | J188: =MAX('uptake calcs'!N105-'uptake calcs'!N104,0) -> 0 | L188: 0.8583313874 | N188: 4.5 | P188: 0 | Q188: 16.5 | S188: 48.5 | U188: 59 | V188: 38 | W188: 0 | X188: Year 2 | Y188: Year 2 | Z188: No Data
C189: 95 | F189: 2011-02-03 | G189: =MAX('uptake calcs'!M106-'uptake calcs'!M105,0) -> 0.8927157305 | I189: =MAX('uptake calcs'!L106-'uptake calcs'!L105,0) -> 0 | J189: =MAX('uptake calcs'!N106-'uptake calcs'!N105,0) -> 0 | L189: 0.8927157305 | N189: 5 | P189: 0 | Q189: 17 | S189: 49 | U189: 60 | V189: 38 | W189: 0 | X189: Year 2 | Y189: Year 2 | Z189: No Data
C190: 96 | F190: 2011-02-04 | G190: =MAX('uptake calcs'!M107-'uptake calcs'!M106,0) -> 0.9278093271 | I190: =MAX('uptake calcs'!L107-'uptake calcs'!L106,0) -> 0 | J190: =MAX('uptake calcs'!N107-'uptake calcs'!N106,0) -> 0 | L190: 0.9278093271 | N190: 5.5 | P190: 0 | Q190: 17.5 | S190: 49.5 | U190: 61 | V190: 38 | W190: 0 | X190: Year 2 | Y190: Year 2 | Z190: No Data
C191: 97 | F191: 2011-02-05 | G191: =MAX('uptake calcs'!M108-'uptake calcs'!M107,0) -> 0.9098416201 | I191: =MAX('uptake calcs'!L108-'uptake calcs'!L107,0) -> 0 | J191: =MAX('uptake calcs'!N108-'uptake calcs'!N107,0) -> 0 | L191: 0.9098416201 | N191: 5 | P191: 0 | Q191: 17 | S191: 49 | U191: 60 | V191: 38 | W191: 0 | X191: Year 2 | Y191: Year 2 | Z191: No Data
C192: 98 | F192: 2011-02-06 | G192: =MAX('uptake calcs'!M109-'uptake calcs'!M108,0) -> 0.891086986 | I192: =MAX('uptake calcs'!L109-'uptake calcs'!L108,0) -> 0 | J192: =MAX('uptake calcs'!N109-'uptake calcs'!N108,0) -> 0 | L192: 0.891086986 | N192: 4.5 | P192: 0 | Q192: 16.5 | S192: 48.5 | U192: 59 | V192: 38 | W192: 0 | X192: Year 2 | Y192: Year 2 | Z192: No Data
C193: 99 | F193: 2011-02-07 | G193: =MAX('uptake calcs'!M110-'uptake calcs'!M109,0) -> 0.9810345316 | I193: =MAX('uptake calcs'!L110-'uptake calcs'!L109,0) -> 0 | J193: =MAX('uptake calcs'!N110-'uptake calcs'!N109,0) -> 0 | L193: 0.9810345316 | N193: 4.5 | P193: 0 | Q193: 18 | S193: 50 | U193: 59 | V193: 41 | W193: 0 | X193: Year 2 | Y193: Year 2 | Z193: No Data
C194: 100 | F194: 2011-02-08 | G194: =MAX('uptake calcs'!M111-'uptake calcs'!M110,0) -> 0.9350421091 | I194: =MAX('uptake calcs'!L111-'uptake calcs'!L110,0) -> 0 | J194: =MAX('uptake calcs'!N111-'uptake calcs'!N110,0) -> 0 | L194: 0.9350421091 | N194: 4.5 | P194: 0 | Q194: 17 | S194: 49 | U194: 59 | V194: 39 | W194: 0 | X194: Year 2 | Y194: Year 2 | Z194: No Data
C195: 101 | F195: 2011-02-09 | G195: =MAX('uptake calcs'!M112-'uptake calcs'!M111,0) -> 0.9153906137 | I195: =MAX('uptake calcs'!L112-'uptake calcs'!L111,0) -> 0 | J195: =MAX('uptake calcs'!N112-'uptake calcs'!N111,0) -> 0 | L195: 0.9153906137 | N195: 5 | P195: 0 | Q195: 16.5 | S195: 48.5 | U195: 60 | V195: 37 | W195: 0 | X195: Year 2 | Y195: Year 2 | Z195: No Data
C196: 102 | F196: 2011-02-10 | G196: =MAX('uptake calcs'!M113-'uptake calcs'!M112,0) -> 0.9230666333 | I196: =MAX('uptake calcs'!L113-'uptake calcs'!L112,0) -> 0 | J196: =MAX('uptake calcs'!N113-'uptake calcs'!N112,0) -> 0 | L196: 0.9230666333 | N196: 5 | P196: 0 | Q196: 16.5 | S196: 48.5 | U196: 60 | V196: 37 | W196: 0 | X196: Year 2 | Y196: Year 2 | Z196: No Data
C197: 103 | F197: 2011-02-11 | G197: =MAX('uptake calcs'!M114-'uptake calcs'!M113,0) -> 0.9873317479 | I197: =MAX('uptake calcs'!L114-'uptake calcs'!L113,0) -> 0 | J197: =MAX('uptake calcs'!N114-'uptake calcs'!N113,0) -> 0 | L197: 0.9873317479 | N197: 5 | P197: 0 | Q197: 17.5 | S197: 49.5 | U197: 60 | V197: 39 | W197: 0 | X197: Year 2 | Y197: Year 2 | Z197: No Data
C198: 104 | F198: 2011-02-12 | G198: =MAX('uptake calcs'!M115-'uptake calcs'!M114,0) -> 0.9958245691 | I198: =MAX('uptake calcs'!L115-'uptake calcs'!L114,0) -> 0 | J198: =MAX('uptake calcs'!N115-'uptake calcs'!N114,0) -> 0 | L198: 0.9958245691 | N198: 5.5 | P198: 0 | Q198: 17.5 | S198: 49.5 | U198: 61 | V198: 38 | W198: 0 | X198: Year 2 | Y198: Year 2 | Z198: No Data
C199: 105 | F199: 2011-02-13 | G199: =MAX('uptake calcs'!M116-'uptake calcs'!M115,0) -> 1.033053457 | I199: =MAX('uptake calcs'!L116-'uptake calcs'!L115,0) -> 0 | J199: =MAX('uptake calcs'!N116-'uptake calcs'!N115,0) -> 0 | L199: 1.033053457 | N199: 5 | P199: 0 | Q199: 18 | S199: 50 | U199: 60 | V199: 40 | W199: 0 | X199: Year 2 | Y199: Year 2 | Z199: No Data
C200: 106 | F200: 2011-02-14 | G200: =MAX('uptake calcs'!M117-'uptake calcs'!M116,0) -> 1.041863662 | I200: =MAX('uptake calcs'!L117-'uptake calcs'!L116,0) -> 0 | J200: =MAX('uptake calcs'!N117-'uptake calcs'!N116,0) -> 0 | L200: 1.041863662 | N200: 6 | P200: 0 | Q200: 18 | S200: 50 | U200: 62 | V200: 38 | W200: 0 | X200: Year 2 | Y200: Year 2 | Z200: No Data
C201: 107 | F201: 2011-02-15 | G201: =MAX('uptake calcs'!M118-'uptake calcs'!M117,0) -> 0.9626994988 | I201: =MAX('uptake calcs'!L118-'uptake calcs'!L117,0) -> 0 | J201: =MAX('uptake calcs'!N118-'uptake calcs'!N117,0) -> 0 | L201: 0.9626994988 | N201: 5 | P201: 0 | Q201: 16.5 | S201: 48.5 | U201: 60 | V201: 37 | W201: 0 | X201: Year 2 | Y201: Year 2 | Z201: No Data
C202: 108 | F202: 2011-02-16 | G202: =MAX('uptake calcs'!M119-'uptake calcs'!M118,0) -> 1.088002341 | I202: =MAX('uptake calcs'!L119-'uptake calcs'!L118,0) -> 0 | J202: =MAX('uptake calcs'!N119-'uptake calcs'!N118,0) -> 0 | L202: 1.088002341 | N202: 5.5 | P202: 0 | Q202: 18.5 | S202: 50.5 | U202: 61 | V202: 40 | W202: 0 | X202: Year 2 | Y202: Year 2 | Z202: No Data
C203: 109 | F203: 2011-02-17 | G203: =MAX('uptake calcs'!M120-'uptake calcs'!M119,0) -> 1.186332642 | I203: =MAX('uptake calcs'!L120-'uptake calcs'!L119,0) -> 0 | J203: =MAX('uptake calcs'!N120-'uptake calcs'!N119,0) -> 0 | L203: 1.186332642 | N203: 6 | P203: 0 | Q203: 20 | S203: 52 | U203: 62 | V203: 42 | W203: 0 | X203: Year 2 | Y203: Year 2 | Z203: No Data
C204: 110 | F204: 2011-02-18 | G204: =MAX('uptake calcs'!M121-'uptake calcs'!M120,0) -> 1.136614844 | I204: =MAX('uptake calcs'!L121-'uptake calcs'!L120,0) -> 0 | J204: =MAX('uptake calcs'!N121-'uptake calcs'!N120,0) -> 0 | L204: 1.136614844 | N204: 6 | P204: 0 | Q204: 19 | S204: 51 | U204: 62 | V204: 40 | W204: 0 | X204: Year 2 | Y204: Year 2 | Z204: No Data
C205: 111 | F205: 2011-02-19 | G205: =MAX('uptake calcs'!M122-'uptake calcs'!M121,0) -> 1.055037653 | I205: =MAX('uptake calcs'!L122-'uptake calcs'!L121,0) -> 0 | J205: =MAX('uptake calcs'!N122-'uptake calcs'!N121,0) -> 0 | L205: 1.055037653 | N205: 4.5 | P205: 0 | Q205: 17.5 | S205: 49.5 | U205: 59 | V205: 40 | W205: 0 | X205: Year 2 | Y205: Year 2 | Z205: No Data
C206: 112 | F206: 2011-02-20 | G206: =MAX('uptake calcs'!M123-'uptake calcs'!M122,0) -> 1.123703327 | I206: =MAX('uptake calcs'!L123-'uptake calcs'!L122,0) -> 0 | J206: =MAX('uptake calcs'!N123-'uptake calcs'!N122,0) -> 0 | L206: 1.123703327 | N206: 5 | P206: 0 | Q206: 18.5 | S206: 50.5 | U206: 60 | V206: 41 | W206: 0 | X206: Year 2 | Y206: Year 2 | Z206: No Data
C207: 113 | F207: 2011-02-21 | G207: =MAX('uptake calcs'!M124-'uptake calcs'!M123,0) -> 1.009378353 | I207: =MAX('uptake calcs'!L124-'uptake calcs'!L123,0) -> 0 | J207: =MAX('uptake calcs'!N124-'uptake calcs'!N123,0) -> 0 | L207: 1.009378353 | N207: 4.5 | P207: 0 | Q207: 16.5 | S207: 48.5 | U207: 59 | V207: 38 | W207: 0 | X207: Year 2 | Y207: Year 2 | Z207: No Data
C208: 114 | F208: 2011-02-22 | G208: =MAX('uptake calcs'!M125-'uptake calcs'!M124,0) -> 1.077810726 | I208: =MAX('uptake calcs'!L125-'uptake calcs'!L124,0) -> 0 | J208: =MAX('uptake calcs'!N125-'uptake calcs'!N124,0) -> 0 | L208: 1.077810726 | N208: 4.5 | P208: 0 | Q208: 17.5 | S208: 49.5 | U208: 59 | V208: 40 | W208: 0 | X208: Year 2 | Y208: Year 2 | Z208: No Data
C209: 115 | F209: 2011-02-23 | G209: =MAX('uptake calcs'!M126-'uptake calcs'!M125,0) -> 1.054056053 | I209: =MAX('uptake calcs'!L126-'uptake calcs'!L125,0) -> 0 | J209: =MAX('uptake calcs'!N126-'uptake calcs'!N125,0) -> 0 | L209: 1.054056053 | N209: 5 | P209: 0 | Q209: 17 | S209: 49 | U209: 60 | V209: 38 | W209: 0 | X209: Year 2 | Y209: Year 2 | Z209: No Data
C210: 116 | F210: 2011-02-24 | G210: =MAX('uptake calcs'!M127-'uptake calcs'!M126,0) -> 1.092180771 | I210: =MAX('uptake calcs'!L127-'uptake calcs'!L126,0) -> 0 | J210: =MAX('uptake calcs'!N127-'uptake calcs'!N126,0) -> 0 | L210: 1.092180771 | N210: 5 | P210: 0 | Q210: 17.5 | S210: 49.5 | U210: 60 | V210: 39 | W210: 0 | X210: Year 2 | Y210: Year 2 | Z210: No Data
C211: 117 | F211: 2011-02-25 | G211: =MAX('uptake calcs'!M128-'uptake calcs'!M127,0) -> 1.162304807 | I211: =MAX('uptake calcs'!L128-'uptake calcs'!L127,0) -> 0 | J211: =MAX('uptake calcs'!N128-'uptake calcs'!N127,0) -> 0 | L211: 1.162304807 | N211: 5.5 | P211: 0 | Q211: 18.5 | S211: 50.5 | U211: 61 | V211: 40 | W211: 0 | X211: Year 2 | Y211: Year 2 | Z211: No Data
C212: 118 | F212: 2011-02-26 | G212: =MAX('uptake calcs'!M129-'uptake calcs'!M128,0) -> 1.170076076 | I212: =MAX('uptake calcs'!L129-'uptake calcs'!L128,0) -> 0 | J212: =MAX('uptake calcs'!N129-'uptake calcs'!N128,0) -> 0 | L212: 1.170076076 | N212: 5.5 | P212: 0 | Q212: 18.5 | S212: 50.5 | U212: 61 | V212: 40 | W212: 0 | X212: Year 2 | Y212: Year 2 | Z212: No Data
C213: 119 | F213: 2011-02-27 | G213: =MAX('uptake calcs'!M130-'uptake calcs'!M129,0) -> 1.209616168 | I213: =MAX('uptake calcs'!L130-'uptake calcs'!L129,0) -> 0 | J213: =MAX('uptake calcs'!N130-'uptake calcs'!N129,0) -> 0 | L213: 1.209616168 | N213: 5.5 | P213: 0 | Q213: 19 | S213: 51 | U213: 61 | V213: 41 | W213: 0 | X213: Year 2 | Y213: Year 2 | Z213: No Data
C214: 120 | F214: 2011-02-28 | G214: =MAX('uptake calcs'!M131-'uptake calcs'!M130,0) -> 1.217456251 | I214: =MAX('uptake calcs'!L131-'uptake calcs'!L130,0) -> 0 | J214: =MAX('uptake calcs'!N131-'uptake calcs'!N130,0) -> 0 | L214: 1.217456251 | N214: 6.5 | P214: 0 | Q214: 19 | S214: 51 | U214: 63 | V214: 39 | W214: 0 | X214: Year 2 | Y214: Year 2 | Z214: No Data
C215: 121 | F215: 2011-03-01 | G215: =MAX('uptake calcs'!M132-'uptake calcs'!M131,0) -> 1.257448827 | I215: =MAX('uptake calcs'!L132-'uptake calcs'!L131,0) -> 0 | J215: =MAX('uptake calcs'!N132-'uptake calcs'!N131,0) -> 0 | L215: 1.257448827 | N215: 6.5 | P215: 0 | Q215: 19.5 | S215: 51.5 | U215: 63 | V215: 40 | W215: 0 | X215: Year 2 | Y215: Year 2 | Z215: No Data
C216: 122 | F216: 2011-03-02 | G216: =MAX('uptake calcs'!M133-'uptake calcs'!M132,0) -> 1.362948053 | I216: =MAX('uptake calcs'!L133-'uptake calcs'!L132,0) -> 0 | J216: =MAX('uptake calcs'!N133-'uptake calcs'!N132,0) -> 0 | L216: 1.362948053 | N216: 7 | P216: 0 | Q216: 21 | S216: 53 | U216: 64 | V216: 42 | W216: 0 | X216: Year 2 | Y216: Year 2 | Z216: No Data
C217: 123 | F217: 2011-03-03 | G217: =MAX('uptake calcs'!M134-'uptake calcs'!M133,0) -> 1.208020749 | I217: =MAX('uptake calcs'!L134-'uptake calcs'!L133,0) -> 0 | J217: =MAX('uptake calcs'!N134-'uptake calcs'!N133,0) -> 0 | L217: 1.208020749 | N217: 5.5 | P217: 0 | Q217: 18.5 | S217: 50.5 | U217: 61 | V217: 40 | W217: 0 | X217: Year 2 | Y217: Year 2 | Z217: No Data
C218: 124 | F218: 2011-03-04 | G218: =MAX('uptake calcs'!M135-'uptake calcs'!M134,0) -> 1.214688186 | I218: =MAX('uptake calcs'!L135-'uptake calcs'!L134,0) -> 0 | J218: =MAX('uptake calcs'!N135-'uptake calcs'!N134,0) -> 0 | L218: 1.214688186 | N218: 6.5 | P218: 0 | Q218: 18.5 | S218: 50.5 | U218: 63 | V218: 38 | W218: 0 | X218: Year 2 | Y218: Year 2 | Z218: No Data
C219: 125 | F219: 2011-03-05 | G219: =MAX('uptake calcs'!M136-'uptake calcs'!M135,0) -> 1.254254904 | I219: =MAX('uptake calcs'!L136-'uptake calcs'!L135,0) -> 0 | J219: =MAX('uptake calcs'!N136-'uptake calcs'!N135,0) -> 0 | L219: 1.254254904 | N219: 6 | P219: 0 | Q219: 19 | S219: 51 | U219: 62 | V219: 40 | W219: 0 | X219: Year 2 | Y219: Year 2 | Z219: No Data
C220: 126 | F220: 2011-03-06 | G220: =MAX('uptake calcs'!M137-'uptake calcs'!M136,0) -> 1.294138211 | I220: =MAX('uptake calcs'!L137-'uptake calcs'!L136,0) -> 0 | J220: =MAX('uptake calcs'!N137-'uptake calcs'!N136,0) -> 0 | L220: 1.294138211 | N220: 7 | P220: 0 | Q220: 19.5 | S220: 51.5 | U220: 64 | V220: 39 | W220: 0 | X220: Year 2 | Y220: Year 2 | Z220: No Data
C221: 127 | F221: 2011-03-07 | G221: =MAX('uptake calcs'!M138-'uptake calcs'!M137,0) -> 1.334312031 | I221: =MAX('uptake calcs'!L138-'uptake calcs'!L137,0) -> 0 | J221: =MAX('uptake calcs'!N138-'uptake calcs'!N137,0) -> 0 | L221: 1.334312031 | N221: 8 | P221: 0 | Q221: 20 | S221: 52 | U221: 66 | V221: 38 | W221: 0 | X221: Year 2 | Y221: Year 2 | Z221: No Data
C222: 128 | F222: 2011-03-08 | G222: =MAX('uptake calcs'!M139-'uptake calcs'!M138,0) -> 1.441986049 | I222: =MAX('uptake calcs'!L139-'uptake calcs'!L138,0) -> 0 | J222: =MAX('uptake calcs'!N139-'uptake calcs'!N138,0) -> 0 | L222: 1.441986049 | N222: 8.5 | P222: 0 | Q222: 21.5 | S222: 53.5 | U222: 67 | V222: 40 | W222: 0 | X222: Year 2 | Y222: Year 2 | Z222: No Data
C223: 129 | F223: 2011-03-09 | G223: =MAX('uptake calcs'!M140-'uptake calcs'!M139,0) -> 1.415745769 | I223: =MAX('uptake calcs'!L140-'uptake calcs'!L139,0) -> 0 | J223: =MAX('uptake calcs'!N140-'uptake calcs'!N139,0) -> 0 | L223: =SUM(G223:J223) -> 1.415745769 | N223: =IF($U223>cutoff.corn.min,((IF($U223>cutoff.corn.max,cutoff.corn.max,$U223)+IF($V223<cutoff.corn.min,cutoff.corn.min,$V223))/2)-cutoff.corn.min,0) -> 8 | P223: =IF(AND(C223>=C$44,C223<=$C$55),N223+P222,0) -> 0 | Q223: =((U223+V223)/2)-32 -> 21 | S223: =AVERAGE(U223:V223) -> 53 | U223: 66 | V223: 40 | W223: 0 | X223: Year 2 | Y223: Year 2 | Z223: No Data
C224: 130 | F224: 2011-03-10 | G224: =MAX('uptake calcs'!M141-'uptake calcs'!M140,0) -> 1.456592262 | I224: =MAX('uptake calcs'!L141-'uptake calcs'!L140,0) -> 0 | J224: =MAX('uptake calcs'!N141-'uptake calcs'!N140,0) -> 0 | L224: 1.456592262 | N224: 8.5 | P224: 0 | Q224: 21.5 | S224: 53.5 | U224: 67 | V224: 40 | W224: 0 | X224: Year 2 | Y224: Year 2 | Z224: No Data
C225: 131 | F225: =F224+1 -> 2011-03-11 | G225: =MAX('uptake calcs'!M142-'uptake calcs'!M141,0) -> 1.531705086 | I225: =MAX('uptake calcs'!L142-'uptake calcs'!L141,0) -> 0 | J225: =MAX('uptake calcs'!N142-'uptake calcs'!N141,0) -> 0 | L225: 1.531705086 | N225: 9 | P225: 0 | Q225: 22.5 | S225: 54.5 | U225: 68 | V225: 41 | W225: 0 | X225: Year 2 | Y225: Year 2 | Z225: No Data
C226: 132 | F226: 2011-03-12 | G226: =MAX('uptake calcs'!M143-'uptake calcs'!M142,0) -> 1.504572125 | I226: =MAX('uptake calcs'!L143-'uptake calcs'!L142,0) -> 0 | J226: =MAX('uptake calcs'!N143-'uptake calcs'!N142,0) -> 0 | L226: 1.504572125 | N226: 9 | P226: 0 | Q226: 22 | S226: 54 | U226: 68 | V226: 40 | W226: 0 | X226: Year 2 | Y226: Year 2 | Z226: No Data
C227: 133 | F227: 2011-03-13 | G227: =MAX('uptake calcs'!M144-'uptake calcs'!M143,0) -> 1.54543033 | I227: =MAX('uptake calcs'!L144-'uptake calcs'!L143,0) -> 0 | J227: =MAX('uptake calcs'!N144-'uptake calcs'!N143,0) -> 0 | L227: 1.54543033 | N227: 9 | P227: 0 | Q227: 22.5 | S227: 54.5 | U227: 68 | V227: 41 | W227: 0 | X227: Year 2 | Y227: Year 2 | Z227: No Data
C228: 134 | F228: 2011-03-14 | G228: =MAX('uptake calcs'!M145-'uptake calcs'!M144,0) -> 1.586311712 | I228: =MAX('uptake calcs'!L145-'uptake calcs'!L144,0) -> 0 | J228: =MAX('uptake calcs'!N145-'uptake calcs'!N144,0) -> 0 | L228: 1.586311712 | N228: 9.5 | P228: 0 | Q228: 23 | S228: 55 | U228: 69 | V228: 41 | W228: 0 | X228: Year 2 | Y228: Year 2 | Z228: No Data
C229: 135 | F229: 2011-03-15 | G229: =MAX('uptake calcs'!M146-'uptake calcs'!M145,0) -> 1.627163008 | I229: =MAX('uptake calcs'!L146-'uptake calcs'!L145,0) -> 0 | J229: =MAX('uptake calcs'!N146-'uptake calcs'!N145,0) -> 0 | L229: 1.627163008 | N229: 9.5 | P229: 0 | Q229: 23.5 | S229: 55.5 | U229: 69 | V229: 42 | W229: 0 | X229: Year 2 | Y229: Year 2 | Z229: No Data
C230: 136 | F230: 2011-03-16 | G230: =MAX('uptake calcs'!M147-'uptake calcs'!M146,0) -> 1.667927007 | I230: =MAX('uptake calcs'!L147-'uptake calcs'!L146,0) -> 0 | J230: =MAX('uptake calcs'!N147-'uptake calcs'!N146,0) -> 0 | L230: 1.667927007 | N230: 9.5 | P230: 0 | Q230: 24 | S230: 56 | U230: 69 | V230: 43 | W230: 0 | X230: Year 2 | Y230: Year 2 | Z230: No Data
... 272 more rows

Sheet uptake calcs (hidden)
G1: Adjust Karlen's times (GDD °C) to local conditons: | H1: Karlen: | O1: Scenario 2: Winter forage 130 lbs N/acre planted Nov 4, harvest March 28 | AK1: Adjust Karlen's times (GDD °C) to local conditons: | AL1: Karlen: | AU1: Karlen:
C2: Adjust Karlen's metric yields to English: | H2: Linear | I2: Start S | J2: Start Flat | K2: Start S | L2: End S | O2: Corn 240 lbs N/acre planted April 10, harvested Aug 8 | AG2: Adjust Karlen's metric yields to English: | AL2: Linear | AM2: Start S | AN2: Start Flat | AO2: Start S | AP2: End S | AU2: Linear | AV2: Start S | AW2: Start Flat | AX2: Start S | AY2: End S
C3: Maize | D3: GDD °C | E3: GDD °C | F3: GDD °C | G3: GDD °C | H3: GDD °C | I3: 0 | J3: 491.0569 | K3: 764.2276 | L3: 991.8699 | M3: 1469.9186 | O3: Sudan 100 lbs N/acre planted Aug 15, harvest Oct 15 | AG3: Maize | AH3: GDD °C | AI3: GDD °C | AJ3: GDD °C | AK3: GDD °C | AL3: GDD °C | AM3: 182.1138 | AN3: 491.0569 | AO3: 764.2276 | AP3: 991.8699 | AQ3: 1469.9186 | AU3: GDD °C | AV3: 182.1138 | AW3: 491.0569 | AX3: 764.2276 | AY3: 991.8699 | AZ3: 1469.9186
C4: CS, CH | D4: 180-491 | E4: 491-765 | F4: 765-991 | G4: 991-1470 | H4: tM: | I4: 364.4917559 | J4: 611.5617145 | K4: 1265.95477 | L4: Corn | M4: =VLOOKUP('daily uptake'!$AC$502,'daily uptake'!$AB$499:$AD$501,3) -> 1400 | N4: 5926.741902 | AG4: CS, CH | AH4: 180-491 | AI4: 491-765 | AJ4: 765-991 | AK4: 991-1470 | AL4: tM: | AM4: 364.4917559 | AN4: 611.5617145 | AO4: 1265.95477 | AP4: Corn | AU4: tM: | AV4: 364.4917559 | AW4: 611.5617145 | AX4: 1265.95477 | AY4: Corn
C5: kg/ha | D5: 0 | E5: 50.3631 | F5: 262.4697 | G5: 422.276 | H5: N: | I5: 0.02186273996 | J5: 2.040947361 | K5: 170259.6509 | L5: Adj. | M5: 0.755 | N5: 0.1900119231 | R5: 0.2112821904 | AG5: kg/ha | AH5: 0 | AI5: 50.3631 | AJ5: 262.4697 | AK5: 422.276 | AL5: N: | AM5: 0.02186273996 | AN5: 2.040947361 | AO5: 170259.6509 | AP5: Adj. | AU5: N: | AV5: 0.02186273996 | AW5: 2.040947361 | AX5: 170259.6509 | AY5: Adj.
C6: lb/ac | D6: =D5*0.893 -> 0 | E6: =E5*0.893 -> 44.9742483 | F6: =F5*0.893 -> 234.3854421 | G6: =G5*0.893 -> 377.092468 | H6: B: | I6: -0.02689264282 | J6: -0.01589595713 | K6: -0.006261284058 | L6: Factors | M6: -0.00204 | N6: -0.002441526966 | R6: -0.004618555323 | AG6: lb/ac | AH6: =AH5*0.893 -> 0 | AI6: =AI5*0.893 -> 44.9742483 | AJ6: =AJ5*0.893 -> 234.3854421 | AK6: =AK5*0.893 -> 377.092468 | AL6: B: | AM6: -0.02689264282 | AN6: -0.01589595713 | AO6: -0.006261284058 | AP6: Factors | AU6: B: | AV6: -0.02689264282 | AW6: -0.01589595713 | AX6: -0.006261284058 | AY6: Factors
H7: tS: | I7: =I3 -> 0 | J7: =I9 -> 491.0569 | K7: =L3 -> 991.8699 | L7: ='daily uptake'!I11 -> 250 | AL7: tS: | AM7: =AM3 -> 182.1138 | AN7: =AM9 -> 491.0569 | AO7: =AP3 -> 991.8699 | AP7: ='daily uptake'!I11 -> 250 | AU7: tS: | AV7: =AV3 -> 182.1138 | AW7: =AV9 -> 491.0569 | AX7: =AY3 -> 991.8699 | AY7: =AP7 -> 250
H8: CS: | I8: 0 | J8: 44.9742483 | K8: 234.3854421 | L8: =MAX(K12:K376) -> 380.9645028 | AL8: CS: | AM8: 0 | AN8: 44.9742483 | AO8: 234.3854421 | AP8: =MAX(AO12:AO376) -> 326.9843802 | AU8: CS: | AV8: 0 | AW8: 44.9742483 | AX8: 234.3854421 | AY8: =MAX(AX12:AX376) -> 0
C9: Denair | D9: Denair | E9: Specific | F9: Specific | H9: tH: | I9: =J3 -> 491.0569 | J9: =K3 -> 764.2276 | K9: =M3 -> 1469.9186 | M9: =MAX(E12:E419) -> 1601.111111 | N9: =MAX(G12:G419) -> 784.1666667 | AL9: tH: | AM9: =AN3 -> 491.0569 | AN9: =AO3 -> 764.2276 | AO9: =AQ3 -> 1469.9186 | AU9: tH: | AV9: =AW3 -> 491.0569 | AW9: =AX3 -> 764.2276 | AX9: =AZ3 -> 1469.9186
C10: GDD °C | D10: GDD °C | E10: GDD °C | F10: GDD °C | H10: CH: | I10: =E6 -> 44.9742483 | J10: =F6 -> 234.3854421 | K10: =G6 -> 377.092468 | M10: ='daily uptake'!E11 -> 140 | N10: ='daily uptake'!P11 -> 100 | R10: Daily | AL10: CH: | AM10: =AI6 -> 44.9742483 | AN10: =AJ6 -> 234.3854421 | AO10: =AK6 -> 377.092468 | AU10: CH: | AV10: =AO6 -> -0.006261284058 | AW10: =AP6 -> Factors | AX10: =AQ6 -> 0
B11: Date | C11: Wheat | D11: Corn | E11: Wheat | F11: Corn | G11: Sudan | H11: 180-491 | I11: 491-765 | J11: 765-991- | K11: Corn | L11: Corn | M11: Wheat | N11: Sudan | O11: =B11 -> Date | P11: Total | Q11: =B11 -> Date | R11: N demand (lb/ac) | Y11: period ending | Z11: lbs this period | AA11: cumulative | AB11: % this period | AJ11: GDD | AL11: 180-491 | AM11: 491-765 | AN11: 765-991- | AO11: Corn | AP11: Corn | AS11: GDD | AU11: 180-491 | AV11: 491-765 | AW11: 765-991- | AX11: Corn | AY11: Corn
A12: 1 | B12: ='daily uptake'!F95 -> 2010-11-01 | C12: =5/9*'daily uptake'!Q95 -> 13.33333333 | D12: =5/9*'daily uptake'!N95 -> 5.555555556 | E12: =IF(AND($A12>='daily uptake'!$C$9,$A12<='daily uptake'!$C$10),$C12,0) -> 13.33333333 | F12: =IF(AND($A12>='daily uptake'!$C$18,$A12<='daily uptake'!$C$20),$D12,0) -> 0 | G12: =IF(AND($A12>='daily uptake'!$C$24,$A12<='daily uptake'!$C$25),$C12,0) -> 0 | H12: =IF(OR(F12<=I7,F12>I9),0,I8+(I10-I8)*(1-((I5+EXP(I6*(I4-I7)))/(I5+EXP(I6*(I4-F12))))^I5)/(1-((I5+EXP(I6*(I4-I7)))/(I5+EXP(I6*(I4-I9))))^I5)) -> 0 | I12: =IF(OR(F12<=J7,F12>J9),0,J8+(J10-J8)*(1-((J5+EXP(J6*(J4-J7)))/(J5+EXP(J6*(J4-F12))))^J5)/(1-((J5+EXP(J6*(J4-J7)))/(J5+EXP(J6*(J4-J9))))^J5)) -> 0 | J12: =IF(OR(F12<=J9,F12>100000),0,IF(F12<=K7,K8,K8+(K10-K8)*(1-((K5+EXP(K6*(K4-K7)))/(K5+EXP(K6*(K4-F12))))^K5)/(1-((K5+EXP(K6*(K4-K7)))/(K5+EXP(K6*(K4-K9))))^K5))) -> 0 | K12: =H12+I12+J12 -> 0 | L12: =IF(L$8=0,0,K12*L$7/L$8) -> 0 | M12: =M$10*(1-(($M$5+EXP($M$6*$M$4))/($M$5+EXP($M$6*($M$4-$E12))))^$M$5)/(1-(($M$5+EXP($M$6*$M$4))/($M$5+EXP($M$6*($M$4-M$9))))^$M$5) -> 0.3824088874 | N12: =N$10*(1-(($N$5+EXP($N$6*$N$4))/($N$5+EXP($N$6*($N$4-$G12))))^$N$5)/(1-(($N$5+EXP($N$6*$N$4))/($N$5+EXP($N$6*($N$4-N$9))))^$N$5) -> 0 | O12: 2010-11-01 | P12: =MAX(L$12:L12)+MAX(M$12:M12)+MAX(N$12:N12) -> 0.3824088874 | Q12: 2010-11-01 | R12: =P12 -> 0.3824088874 | Y12: =O38 -> 2010-11-27 | Z12: =AA12-Z9 -> 11.48704877 | AA12: =P38 -> 11.48704877 | AB12: =Z12/AA$22 -> 0.08199516153 | AJ12: 0 | AL12: =IF(OR(AJ12<=AM7,AJ12>AM9),0,AM8+(AM10-AM8)*(1-((AM5+EXP(AM6*(AM4-AM7)))/(AM5+EXP(AM6*(AM4-AJ12))))^AM5)/(1-((AM5+EXP(AM6*(AM4-AM7)))/(AM5+EXP(AM6*(AM4-AM9))))^AM5)) -> 0 | AM12: =IF(OR(AJ12<=AN7,AJ12>AN9),0,AN8+(AN10-AN8)*(1-((AN5+EXP(AN6*(AN4-AN7)))/(AN5+EXP(AN6*(AN4-AJ12))))^AN5)/(1-((AN5+EXP(AN6*(AN4-AN7)))/(AN5+EXP(AN6*(AN4-AN9))))^AN5)) -> 0 | AN12: =IF(OR(AJ12<=AN9,AJ12>100000),0,IF(AJ12<=AO7,AO8,AO8+(AO10-AO8)*(1-((AO5+EXP(AO6*(AO4-AO7)))/(AO5+EXP(AO6*(AO4-AJ12))))^AO5)/(1-((AO5+EXP(AO6*(AO4-AO7)))/(AO5+EXP(AO6*(AO4-AO9))))^AO5))) -> 0 | AO12: =AL12+AM12+AN12 -> 0 | AP12: =IF(AP$8=0,0,AO12*AP$7/AP$8) -> 0 | AS12: 0 | AU12: =IF(OR(AS12<=AV7,AS12>AV9),0,AV8+(AV10-AV8)*(1-((AV5+EXP(AV6*(AV4-AV7)))/(AV5+EXP(AV6*(AV4-AS12))))^AV5)/(1-((AV5+EXP(AV6*(AV4-AV7)))/(AV5+EXP(AV6*(AV4-AV9))))^AV5)) -> 0 | AV12: =IF(OR(AS12<=AW7,AS12>AW9),0,AW8+(AW10-AW8)*(1-((AW5+EXP(AW6*(AW4-AW7)))/(AW5+EXP(AW6*(AW4-AS12))))^AW5)/(1-((AW5+EXP(AW6*(AW4-AW7)))/(AW5+EXP(AW6*(AW4-AW9))))^AW5)) -> 0 | AW12: =IF(OR(AS12<=AW9,AS12>100000),0,IF(AS12<=AX7,AX8,AX8+(AX10-AX8)*(1-((AX5+EXP(AX6*(AX4-AX7)))/(AX5+EXP(AX6*(AX4-AS12))))^AX5)/(1-((AX5+EXP(AX6*(AX4-AX7)))/(AX5+EXP(AX6*(AX4-AX9))))^AX5))) -> 0 | AX12: =AU12+AV12+AW12 -> 0 | AY12: =IF(AY$8=0,0,AX12*AY$7/AY$8) -> 0
A13: 2 | B13: ='daily uptake'!F96 -> 2010-11-02 | C13: =5/9*'daily uptake'!Q96 -> 13.33333333 | D13: =5/9*'daily uptake'!N96 -> 5.833333333 | E13: =IF(AND($A13>='daily uptake'!$C$9,$A13<='daily uptake'!$C$10),$C13+E12,0) -> 26.66666667 | F13: =IF(AND($A13>='daily uptake'!$C$18,$A13<='daily uptake'!$C$20),$D13+F12,0) -> 0 | G13: =IF(AND($A13>='daily uptake'!$C$24,$A13<='daily uptake'!$C$25),$C13+G12,0) -> 0 | H13: =IF(OR(F13<=I7,F13>I9),0,I8+(I10-I8)*(1-((I5+EXP(I6*(I4-I7)))/(I5+EXP(I6*(I4-F13))))^I5)/(1-((I5+EXP(I6*(I4-I7)))/(I5+EXP(I6*(I4-I9))))^I5)) -> 0 | I13: =IF(OR(F13<=J7,F13>J9),0,J8+(J10-J8)*(1-((J5+EXP(J6*(J4-J7)))/(J5+EXP(J6*(J4-F13))))^J5)/(1-((J5+EXP(J6*(J4-J7)))/(J5+EXP(J6*(J4-J9))))^J5)) -> 0 | J13: =IF(OR(F13<=J9,F13>100000),0,IF(F13<=K7,K8,K8+(K10-K8)*(1-((K5+EXP(K6*(K4-K7)))/(K5+EXP(K6*(K4-F13))))^K5)/(1-((K5+EXP(K6*(K4-K7)))/(K5+EXP(K6*(K4-K9))))^K5))) -> 0 | K13: 0 | L13: =IF(L$8=0,0,K13*L$7/L$8) -> 0 | M13: 0.7740028708 | N13: =N$10*(1-(($N$5+EXP($N$6*$N$4))/($N$5+EXP($N$6*($N$4-$G13))))^$N$5)/(1-(($N$5+EXP($N$6*$N$4))/($N$5+EXP($N$6*($N$4-N$9))))^$N$5) -> 0 | O13: 2010-11-02 | P13: =MAX(L$12:L13)+MAX(M$12:M13)+MAX(N$12:N13) -> 0.7740028708 | Q13: 2010-11-02 | R13: =P13-P12 -> 0.3915939834 | Y13: =O53 -> 2010-12-12 | Z13: =AA13-AA12 -> 6.525497234 | AA13: =P53 -> 18.01254601 | AB13: 0.0465793443 | AJ13: 0 | AL13: =IF(OR(AJ13<=AM7,AJ13>AM9),0,AM8+(AM10-AM8)*(1-((AM5+EXP(AM6*(AM4-AM7)))/(AM5+EXP(AM6*(AM4-AJ13))))^AM5)/(1-((AM5+EXP(AM6*(AM4-AM7)))/(AM5+EXP(AM6*(AM4-AM9))))^AM5)) -> 0 | AM13: =IF(OR(AJ13<=AN7,AJ13>AN9),0,AN8+(AN10-AN8)*(1-((AN5+EXP(AN6*(AN4-AN7)))/(AN5+EXP(AN6*(AN4-AJ13))))^AN5)/(1-((AN5+EXP(AN6*(AN4-AN7)))/(AN5+EXP(AN6*(AN4-AN9))))^AN5)) -> 0 | AN13: =IF(OR(AJ13<=AN9,AJ13>100000),0,IF(AJ13<=AO7,AO8,AO8+(AO10-AO8)*(1-((AO5+EXP(AO6*(AO4-AO7)))/(AO5+EXP(AO6*(AO4-AJ13))))^AO5)/(1-((AO5+EXP(AO6*(AO4-AO7)))/(AO5+EXP(AO6*(AO4-AO9))))^AO5))) -> 0 | AO13: 0 | AP13: =IF(AP$8=0,0,AO13*AP$7/AP$8) -> 0 | AS13: 0 | AU13: =IF(OR(AS13<=AV7,AS13>AV9),0,AV8+(AV10-AV8)*(1-((AV5+EXP(AV6*(AV4-AV7)))/(AV5+EXP(AV6*(AV4-AS13))))^AV5)/(1-((AV5+EXP(AV6*(AV4-AV7)))/(AV5+EXP(AV6*(AV4-AV9))))^AV5)) -> 0 | AV13: =IF(OR(AS13<=AW7,AS13>AW9),0,AW8+(AW10-AW8)*(1-((AW5+EXP(AW6*(AW4-AW7)))/(AW5+EXP(AW6*(AW4-AS13))))^AW5)/(1-((AW5+EXP(AW6*(AW4-AW7)))/(AW5+EXP(AW6*(AW4-AW9))))^AW5)) -> 0 | AW13: =IF(OR(AS13<=AW9,AS13>100000),0,IF(AS13<=AX7,AX8,AX8+(AX10-AX8)*(1-((AX5+EXP(AX6*(AX4-AX7)))/(AX5+EXP(AX6*(AX4-AS13))))^AX5)/(1-((AX5+EXP(AX6*(AX4-AX7)))/(AX5+EXP(AX6*(AX4-AX9))))^AX5))) -> 0 | AX13: 0 | AY13: =IF(AY$8=0,0,AX13*AY$7/AY$8) -> 0
A14: 3 | B14: ='daily uptake'!F97 -> 2010-11-03 | C14: =5/9*'daily uptake'!Q97 -> 12.77777778 | D14: =5/9*'daily uptake'!N97 -> 5.277777778 | E14: =IF(AND($A14>='daily uptake'!$C$9,$A14<='daily uptake'!$C$10),$C14+E13,0) -> 39.44444444 | F14: =IF(AND($A14>='daily uptake'!$C$18,$A14<='daily uptake'!$C$20),$D14+F13,0) -> 0 | G14: =IF(AND($A14>='daily uptake'!$C$24,$A14<='daily uptake'!$C$25),$C14+G13,0) -> 0 | H14: =IF(OR(F14<=I7,F14>I9),0,I8+(I10-I8)*(1-((I5+EXP(I6*(I4-I7)))/(I5+EXP(I6*(I4-F14))))^I5)/(1-((I5+EXP(I6*(I4-I7)))/(I5+EXP(I6*(I4-I9))))^I5)) -> 0 | I14: =IF(OR(F14<=J7,F14>J9),0,J8+(J10-J8)*(1-((J5+EXP(J6*(J4-J7)))/(J5+EXP(J6*(J4-F14))))^J5)/(1-((J5+EXP(J6*(J4-J7)))/(J5+EXP(J6*(J4-J9))))^J5)) -> 0 | J14: =IF(OR(F14<=J9,F14>100000),0,IF(F14<=K7,K8,K8+(K10-K8)*(1-((K5+EXP(K6*(K4-K7)))/(K5+EXP(K6*(K4-F14))))^K5)/(1-((K5+EXP(K6*(K4-K7)))/(K5+EXP(K6*(K4-K9))))^K5))) -> 0 | K14: 0 | L14: 0 | M14: 1.158070756 | N14: 0 | O14: 2010-11-03 | P14: =MAX(L$12:L14)+MAX(M$12:M14)+MAX(N$12:N14) -> 1.158070756 | Q14: 2010-11-03 | R14: 0.3840678851 | Y14: =O68 -> 2010-12-27 | Z14: 6.517321995 | AA14: =P68 -> 24.529868 | AB14: 0.04652098902 | AJ14: 0 | AL14: =IF(OR(AJ14<=AM7,AJ14>AM9),0,AM8+(AM10-AM8)*(1-((AM5+EXP(AM6*(AM4-AM7)))/(AM5+EXP(AM6*(AM4-AJ14))))^AM5)/(1-((AM5+EXP(AM6*(AM4-AM7)))/(AM5+EXP(AM6*(AM4-AM9))))^AM5)) -> 0 | AM14: =IF(OR(AJ14<=AN7,AJ14>AN9),0,AN8+(AN10-AN8)*(1-((AN5+EXP(AN6*(AN4-AN7)))/(AN5+EXP(AN6*(AN4-AJ14))))^AN5)/(1-((AN5+EXP(AN6*(AN4-AN7)))/(AN5+EXP(AN6*(AN4-AN9))))^AN5)) -> 0 | AN14: =IF(OR(AJ14<=AN9,AJ14>100000),0,IF(AJ14<=AO7,AO8,AO8+(AO10-AO8)*(1-((AO5+EXP(AO6*(AO4-AO7)))/(AO5+EXP(AO6*(AO4-AJ14))))^AO5)/(1-((AO5+EXP(AO6*(AO4-AO7)))/(AO5+EXP(AO6*(AO4-AO9))))^AO5))) -> 0 | AO14: 0 | AP14: 0 | AS14: 0 | AU14: =IF(OR(AS14<=AV7,AS14>AV9),0,AV8+(AV10-AV8)*(1-((AV5+EXP(AV6*(AV4-AV7)))/(AV5+EXP(AV6*(AV4-AS14))))^AV5)/(1-((AV5+EXP(AV6*(AV4-AV7)))/(AV5+EXP(AV6*(AV4-AV9))))^AV5)) -> 0 | AV14: =IF(OR(AS14<=AW7,AS14>AW9),0,AW8+(AW10-AW8)*(1-((AW5+EXP(AW6*(AW4-AW7)))/(AW5+EXP(AW6*(AW4-AS14))))^AW5)/(1-((AW5+EXP(AW6*(AW4-AW7)))/(AW5+EXP(AW6*(AW4-AW9))))^AW5)) -> 0 | AW14: =IF(OR(AS14<=AW9,AS14>100000),0,IF(AS14<=AX7,AX8,AX8+(AX10-AX8)*(1-((AX5+EXP(AX6*(AX4-AX7)))/(AX5+EXP(AX6*(AX4-AS14))))^AX5)/(1-((AX5+EXP(AX6*(AX4-AX7)))/(AX5+EXP(AX6*(AX4-AX9))))^AX5))) -> 0 | AX14: 0 | AY14: 0
A15: 4 | B15: ='daily uptake'!F98 -> 2010-11-04 | C15: =5/9*'daily uptake'!Q98 -> 12.5 | D15: =5/9*'daily uptake'!N98 -> 5.277777778 | E15: =IF(AND($A15>='daily uptake'!$C$9,$A15<='daily uptake'!$C$10),$C15+E14,0) -> 51.94444444 | F15: =IF(AND($A15>='daily uptake'!$C$18,$A15<='daily uptake'!$C$20),$D15+F14,0) -> 0 | G15: =IF(AND($A15>='daily uptake'!$C$24,$A15<='daily uptake'!$C$25),$C15+G14,0) -> 0 | H15: =IF(OR(F15<=I7,F15>I9),0,I8+(I10-I8)*(1-((I5+EXP(I6*(I4-I7)))/(I5+EXP(I6*(I4-F15))))^I5)/(1-((I5+EXP(I6*(I4-I7)))/(I5+EXP(I6*(I4-I9))))^I5)) -> 0 | I15: =IF(OR(F15<=J7,F15>J9),0,J8+(J10-J8)*(1-((J5+EXP(J6*(J4-J7)))/(J5+EXP(J6*(J4-F15))))^J5)/(1-((J5+EXP(J6*(J4-J7)))/(J5+EXP(J6*(J4-J9))))^J5)) -> 0 | J15: =IF(OR(F15<=J9,F15>100000),0,IF(F15<=K7,K8,K8+(K10-K8)*(1-((K5+EXP(K6*(K4-K7)))/(K5+EXP(K6*(K4-F15))))^K5)/(1-((K5+EXP(K6*(K4-K7)))/(K5+EXP(K6*(K4-K9))))^K5))) -> 0 | K15: 0 | L15: 0 | M15: 1.542274528 | N15: 0 | O15: 2010-11-04 | P15: =MAX(L$12:L15)+MAX(M$12:M15)+MAX(N$12:N15) -> 1.542274528 | Q15: 2010-11-04 | R15: 0.3842037723 | Y15: =O84 -> 2011-01-12 | Z15: 8.385423517 | AA15: =P84 -> 32.91529152 | AB15: 0.05985559646 | AJ15: 0 | AL15: =IF(OR(AJ15<=AM7,AJ15>AM9),0,AM8+(AM10-AM8)*(1-((AM5+EXP(AM6*(AM4-AM7)))/(AM5+EXP(AM6*(AM4-AJ15))))^AM5)/(1-((AM5+EXP(AM6*(AM4-AM7)))/(AM5+EXP(AM6*(AM4-AM9))))^AM5)) -> 0 | AM15: =IF(OR(AJ15<=AN7,AJ15>AN9),0,AN8+(AN10-AN8)*(1-((AN5+EXP(AN6*(AN4-AN7)))/(AN5+EXP(AN6*(AN4-AJ15))))^AN5)/(1-((AN5+EXP(AN6*(AN4-AN7)))/(AN5+EXP(AN6*(AN4-AN9))))^AN5)) -> 0 | AN15: =IF(OR(AJ15<=AN9,AJ15>100000),0,IF(AJ15<=AO7,AO8,AO8+(AO10-AO8)*(1-((AO5+EXP(AO6*(AO4-AO7)))/(AO5+EXP(AO6*(AO4-AJ15))))^AO5)/(1-((AO5+EXP(AO6*(AO4-AO7)))/(AO5+EXP(AO6*(AO4-AO9))))^AO5))) -> 0 | AO15: 0 | AP15: 0 | AS15: 0 | AU15: =IF(OR(AS15<=AV7,AS15>AV9),0,AV8+(AV10-AV8)*(1-((AV5+EXP(AV6*(AV4-AV7)))/(AV5+EXP(AV6*(AV4-AS15))))^AV5)/(1-((AV5+EXP(AV6*(AV4-AV7)))/(AV5+EXP(AV6*(AV4-AV9))))^AV5)) -> 0 | AV15: =IF(OR(AS15<=AW7,AS15>AW9),0,AW8+(AW10-AW8)*(1-((AW5+EXP(AW6*(AW4-AW7)))/(AW5+EXP(AW6*(AW4-AS15))))^AW5)/(1-((AW5+EXP(AW6*(AW4-AW7)))/(AW5+EXP(AW6*(AW4-AW9))))^AW5)) -> 0 | AW15: =IF(OR(AS15<=AW9,AS15>100000),0,IF(AS15<=AX7,AX8,AX8+(AX10-AX8)*(1-((AX5+EXP(AX6*(AX4-AX7)))/(AX5+EXP(AX6*(AX4-AS15))))^AX5)/(1-((AX5+EXP(AX6*(AX4-AX7)))/(AX5+EXP(AX6*(AX4-AX9))))^AX5))) -> 0 | AX15: 0 | AY15: 0
A16: 5 | B16: ='daily uptake'!F99 -> 2010-11-05 | C16: =5/9*'daily uptake'!Q99 -> 13.61111111 | D16: =5/9*'daily uptake'!N99 -> 5.833333333 | E16: =IF(AND($A16>='daily uptake'!$C$9,$A16<='daily uptake'!$C$10),$C16+E15,0) -> 65.55555556 | F16: =IF(AND($A16>='daily uptake'!$C$18,$A16<='daily uptake'!$C$20),$D16+F15,0) -> 0 | G16: =IF(AND($A16>='daily uptake'!$C$24,$A16<='daily uptake'!$C$25),$C16+G15,0) -> 0 | H16: =IF(OR(F16<=I7,F16>I9),0,I8+(I10-I8)*(1-((I5+EXP(I6*(I4-I7)))/(I5+EXP(I6*(I4-F16))))^I5)/(1-((I5+EXP(I6*(I4-I7)))/(I5+EXP(I6*(I4-I9))))^I5)) -> 0 | I16: =IF(OR(F16<=J7,F16>J9),0,J8+(J10-J8)*(1-((J5+EXP(J6*(J4-J7)))/(J5+EXP(J6*(J4-F16))))^J5)/(1-((J5+EXP(J6*(J4-J7)))/(J5+EXP(J6*(J4-J9))))^J5)) -> 0 | J16: =IF(OR(F16<=J9,F16>100000),0,IF(F16<=K7,K8,K8+(K10-K8)*(1-((K5+EXP(K6*(K4-K7)))/(K5+EXP(K6*(K4-F16))))^K5)/(1-((K5+EXP(K6*(K4-K7)))/(K5+EXP(K6*(K4-K9))))^K5))) -> 0 | K16: 0 | L16: 0 | M16: 1.970357232 | N16: 0 | O16: 2010-11-05 | P16: =MAX(L$12:L16)+MAX(M$12:M16)+MAX(N$12:N16) -> 1.970357232 | Q16: 2010-11-05 | R16: 0.4280827039 | Y16: =O99 -> 2011-01-27 | Z16: 9.575087679 | AA16: =P99 -> 42.4903792 | AB16: 0.06834748215 | AJ16: 0 | AL16: =IF(OR(AJ16<=AM7,AJ16>AM9),0,AM8+(AM10-AM8)*(1-((AM5+EXP(AM6*(AM4-AM7)))/(AM5+EXP(AM6*(AM4-AJ16))))^AM5)/(1-((AM5+EXP(AM6*(AM4-AM7)))/(AM5+EXP(AM6*(AM4-AM9))))^AM5)) -> 0 | AM16: =IF(OR(AJ16<=AN7,AJ16>AN9),0,AN8+(AN10-AN8)*(1-((AN5+EXP(AN6*(AN4-AN7)))/(AN5+EXP(AN6*(AN4-AJ16))))^AN5)/(1-((AN5+EXP(AN6*(AN4-AN7)))/(AN5+EXP(AN6*(AN4-AN9))))^AN5)) -> 0 | AN16: =IF(OR(AJ16<=AN9,AJ16>100000),0,IF(AJ16<=AO7,AO8,AO8+(AO10-AO8)*(1-((AO5+EXP(AO6*(AO4-AO7)))/(AO5+EXP(AO6*(AO4-AJ16))))^AO5)/(1-((AO5+EXP(AO6*(AO4-AO7)))/(AO5+EXP(AO6*(AO4-AO9))))^AO5))) -> 0 | AO16: 0 | AP16: 0 | AS16: 0 | AU16: =IF(OR(AS16<=AV7,AS16>AV9),0,AV8+(AV10-AV8)*(1-((AV5+EXP(AV6*(AV4-AV7)))/(AV5+EXP(AV6*(AV4-AS16))))^AV5)/(1-((AV5+EXP(AV6*(AV4-AV7)))/(AV5+EXP(AV6*(AV4-AV9))))^AV5)) -> 0 | AV16: =IF(OR(AS16<=AW7,AS16>AW9),0,AW8+(AW10-AW8)*(1-((AW5+EXP(AW6*(AW4-AW7)))/(AW5+EXP(AW6*(AW4-AS16))))^AW5)/(1-((AW5+EXP(AW6*(AW4-AW7)))/(AW5+EXP(AW6*(AW4-AW9))))^AW5)) -> 0 | AW16: =IF(OR(AS16<=AW9,AS16>100000),0,IF(AS16<=AX7,AX8,AX8+(AX10-AX8)*(1-((AX5+EXP(AX6*(AX4-AX7)))/(AX5+EXP(AX6*(AX4-AS16))))^AX5)/(1-((AX5+EXP(AX6*(AX4-AX7)))/(AX5+EXP(AX6*(AX4-AX9))))^AX5))) -> 0 | AX16: 0 | AY16: 0
A17: 6 | B17: ='daily uptake'!F100 -> 2010-11-06 | C17: =5/9*'daily uptake'!Q100 -> 13.05555556 | D17: =5/9*'daily uptake'!N100 -> 5.277777778 | E17: =IF(AND($A17>='daily uptake'!$C$9,$A17<='daily uptake'!$C$10),$C17+E16,0) -> 78.61111111 | F17: =IF(AND($A17>='daily uptake'!$C$18,$A17<='daily uptake'!$C$20),$D17+F16,0) -> 0 | G17: =IF(AND($A17>='daily uptake'!$C$24,$A17<='daily uptake'!$C$25),$C17+G16,0) -> 0 | H17: =IF(OR(F17<=I7,F17>I9),0,I8+(I10-I8)*(1-((I5+EXP(I6*(I4-I7)))/(I5+EXP(I6*(I4-F17))))^I5)/(1-((I5+EXP(I6*(I4-I7)))/(I5+EXP(I6*(I4-I9))))^I5)) -> 0 | I17: =IF(OR(F17<=J7,F17>J9),0,J8+(J10-J8)*(1-((J5+EXP(J6*(J4-J7)))/(J5+EXP(J6*(J4-F17))))^J5)/(1-((J5+EXP(J6*(J4-J7)))/(J5+EXP(J6*(J4-J9))))^J5)) -> 0 | J17: =IF(OR(F17<=J9,F17>100000),0,IF(F17<=K7,K8,K8+(K10-K8)*(1-((K5+EXP(K6*(K4-K7)))/(K5+EXP(K6*(K4-F17))))^K5)/(1-((K5+EXP(K6*(K4-K7)))/(K5+EXP(K6*(K4-K9))))^K5))) -> 0 | K17: 0 | L17: 0 | M17: 2.390678762 | N17: 0 | O17: 2010-11-06 | P17: =MAX(L$12:L17)+MAX(M$12:M17)+MAX(N$12:N17) -> 2.390678762 | Q17: 2010-11-06 | R17: 0.4203215303 | Y17: =O115 -> 2011-02-12 | Z17: 13.96769329 | AA17: =P115 -> 56.45807248 | AB17: 0.09970213326 | AJ17: 0 | AL17: =IF(OR(AJ17<=AM7,AJ17>AM9),0,AM8+(AM10-AM8)*(1-((AM5+EXP(AM6*(AM4-AM7)))/(AM5+EXP(AM6*(AM4-AJ17))))^AM5)/(1-((AM5+EXP(AM6*(AM4-AM7)))/(AM5+EXP(AM6*(AM4-AM9))))^AM5)) -> 0 | AM17: =IF(OR(AJ17<=AN7,AJ17>AN9),0,AN8+(AN10-AN8)*(1-((AN5+EXP(AN6*(AN4-AN7)))/(AN5+EXP(AN6*(AN4-AJ17))))^AN5)/(1-((AN5+EXP(AN6*(AN4-AN7)))/(AN5+EXP(AN6*(AN4-AN9))))^AN5)) -> 0 | AN17: =IF(OR(AJ17<=AN9,AJ17>100000),0,IF(AJ17<=AO7,AO8,AO8+(AO10-AO8)*(1-((AO5+EXP(AO6*(AO4-AO7)))/(AO5+EXP(AO6*(AO4-AJ17))))^AO5)/(1-((AO5+EXP(AO6*(AO4-AO7)))/(AO5+EXP(AO6*(AO4-AO9))))^AO5))) -> 0 | AO17: 0 | AP17: 0 | AS17: 0 | AU17: =IF(OR(AS17<=AV7,AS17>AV9),0,AV8+(AV10-AV8)*(1-((AV5+EXP(AV6*(AV4-AV7)))/(AV5+EXP(AV6*(AV4-AS17))))^AV5)/(1-((AV5+EXP(AV6*(AV4-AV7)))/(AV5+EXP(AV6*(AV4-AV9))))^AV5)) -> 0 | AV17: =IF(OR(AS17<=AW7,AS17>AW9),0,AW8+(AW10-AW8)*(1-((AW5+EXP(AW6*(AW4-AW7)))/(AW5+EXP(AW6*(AW4-AS17))))^AW5)/(1-((AW5+EXP(AW6*(AW4-AW7)))/(AW5+EXP(AW6*(AW4-AW9))))^AW5)) -> 0 | AW17: =IF(OR(AS17<=AW9,AS17>100000),0,IF(AS17<=AX7,AX8,AX8+(AX10-AX8)*(1-((AX5+EXP(AX6*(AX4-AX7)))/(AX5+EXP(AX6*(AX4-AS17))))^AX5)/(1-((AX5+EXP(AX6*(AX4-AX7)))/(AX5+EXP(AX6*(AX4-AX9))))^AX5))) -> 0 | AX17: 0 | AY17: 0
A18: 7 | B18: ='daily uptake'!F101 -> 2010-11-07 | C18: =5/9*'daily uptake'!Q101 -> 13.33333333 | D18: =5/9*'daily uptake'!N101 -> 5 | E18: =IF(AND($A18>='daily uptake'!$C$9,$A18<='daily uptake'!$C$10),$C18+E17,0) -> 91.94444444 | F18: =IF(AND($A18>='daily uptake'!$C$18,$A18<='daily uptake'!$C$20),$D18+F17,0) -> 0 | G18: =IF(AND($A18>='daily uptake'!$C$24,$A18<='daily uptake'!$C$25),$C18+G17,0) -> 0 | H18: =IF(OR(F18<=I7,F18>I9),0,I8+(I10-I8)*(1-((I5+EXP(I6*(I4-I7)))/(I5+EXP(I6*(I4-F18))))^I5)/(1-((I5+EXP(I6*(I4-I7)))/(I5+EXP(I6*(I4-I9))))^I5)) -> 0 | I18: =IF(OR(F18<=J7,F18>J9),0,J8+(J10-J8)*(1-((J5+EXP(J6*(J4-J7)))/(J5+EXP(J6*(J4-F18))))^J5)/(1-((J5+EXP(J6*(J4-J7)))/(J5+EXP(J6*(J4-J9))))^J5)) -> 0 | J18: =IF(OR(F18<=J9,F18>100000),0,IF(F18<=K7,K8,K8+(K10-K8)*(1-((K5+EXP(K6*(K4-K7)))/(K5+EXP(K6*(K4-F18))))^K5)/(1-((K5+EXP(K6*(K4-K7)))/(K5+EXP(K6*(K4-K9))))^K5))) -> 0 | K18: 0 | L18: 0 | M18: 2.829948307 | N18: 0 | O18: 2010-11-07 | P18: =MAX(L$12:L18)+MAX(M$12:M18)+MAX(N$12:N18) -> 2.829948307 | Q18: 2010-11-07 | R18: 0.4392695448 | Y18: =O130 -> 2011-02-27 | Z18: 16.40273038 | AA18: =P130 -> 72.86080286 | AB18: 0.1170835568 | AJ18: 0 | AL18: =IF(OR(AJ18<=AM7,AJ18>AM9),0,AM8+(AM10-AM8)*(1-((AM5+EXP(AM6*(AM4-AM7)))/(AM5+EXP(AM6*(AM4-AJ18))))^AM5)/(1-((AM5+EXP(AM6*(AM4-AM7)))/(AM5+EXP(AM6*(AM4-AM9))))^AM5)) -> 0 | AM18: =IF(OR(AJ18<=AN7,AJ18>AN9),0,AN8+(AN10-AN8)*(1-((AN5+EXP(AN6*(AN4-AN7)))/(AN5+EXP(AN6*(AN4-AJ18))))^AN5)/(1-((AN5+EXP(AN6*(AN4-AN7)))/(AN5+EXP(AN6*(AN4-AN9))))^AN5)) -> 0 | AN18: =IF(OR(AJ18<=AN9,AJ18>100000),0,IF(AJ18<=AO7,AO8,AO8+(AO10-AO8)*(1-((AO5+EXP(AO6*(AO4-AO7)))/(AO5+EXP(AO6*(AO4-AJ18))))^AO5)/(1-((AO5+EXP(AO6*(AO4-AO7)))/(AO5+EXP(AO6*(AO4-AO9))))^AO5))) -> 0 | AO18: 0 | AP18: 0 | AS18: 0 | AU18: =IF(OR(AS18<=AV7,AS18>AV9),0,AV8+(AV10-AV8)*(1-((AV5+EXP(AV6*(AV4-AV7)))/(AV5+EXP(AV6*(AV4-AS18))))^AV5)/(1-((AV5+EXP(AV6*(AV4-AV7)))/(AV5+EXP(AV6*(AV4-AV9))))^AV5)) -> 0 | AV18: =IF(OR(AS18<=AW7,AS18>AW9),0,AW8+(AW10-AW8)*(1-((AW5+EXP(AW6*(AW4-AW7)))/(AW5+EXP(AW6*(AW4-AS18))))^AW5)/(1-((AW5+EXP(AW6*(AW4-AW7)))/(AW5+EXP(AW6*(AW4-AW9))))^AW5)) -> 0 | AW18: =IF(OR(AS18<=AW9,AS18>100000),0,IF(AS18<=AX7,AX8,AX8+(AX10-AX8)*(1-((AX5+EXP(AX6*(AX4-AX7)))/(AX5+EXP(AX6*(AX4-AS18))))^AX5)/(1-((AX5+EXP(AX6*(AX4-AX7)))/(AX5+EXP(AX6*(AX4-AX9))))^AX5))) -> 0 | AX18: 0 | AY18: 0
A19: 8 | B19: ='daily uptake'!F102 -> 2010-11-08 | C19: =5/9*'daily uptake'!Q102 -> 12.5 | D19: =5/9*'daily uptake'!N102 -> 4.444444444 | E19: =IF(AND($A19>='daily uptake'!$C$9,$A19<='daily uptake'!$C$10),$C19+E18,0) -> 104.4444444 | F19: =IF(AND($A19>='daily uptake'!$C$18,$A19<='daily uptake'!$C$20),$D19+F18,0) -> 0 | G19: =IF(AND($A19>='daily uptake'!$C$24,$A19<='daily uptake'!$C$25),$C19+G18,0) -> 0 | H19: =IF(OR(F19<=I7,F19>I9),0,I8+(I10-I8)*(1-((I5+EXP(I6*(I4-I7)))/(I5+EXP(I6*(I4-F19))))^I5)/(1-((I5+EXP(I6*(I4-I7)))/(I5+EXP(I6*(I4-I9))))^I5)) -> 0 | I19: =IF(OR(F19<=J7,F19>J9),0,J8+(J10-J8)*(1-((J5+EXP(J6*(J4-J7)))/(J5+EXP(J6*(J4-F19))))^J5)/(1-((J5+EXP(J6*(J4-J7)))/(J5+EXP(J6*(J4-J9))))^J5)) -> 0 | J19: =IF(OR(F19<=J9,F19>100000),0,IF(F19<=K7,K8,K8+(K10-K8)*(1-((K5+EXP(K6*(K4-K7)))/(K5+EXP(K6*(K4-F19))))^K5)/(1-((K5+EXP(K6*(K4-K7)))/(K5+EXP(K6*(K4-K9))))^K5))) -> 0 | K19: 0 | L19: 0 | M19: 3.251116693 | N19: 0 | O19: 2010-11-08 | P19: =MAX(L$12:L19)+MAX(M$12:M19)+MAX(N$12:N19) -> 3.251116693 | Q19: 2010-11-08 | R19: 0.4211683859 | Y19: =O143 -> 2011-03-12 | Z19: 17.4938685 | AA19: =P143 -> 90.35467137 | AB19: 0.1248721584 | AJ19: 0 | AL19: =IF(OR(AJ19<=AM7,AJ19>AM9),0,AM8+(AM10-AM8)*(1-((AM5+EXP(AM6*(AM4-AM7)))/(AM5+EXP(AM6*(AM4-AJ19))))^AM5)/(1-((AM5+EXP(AM6*(AM4-AM7)))/(AM5+EXP(AM6*(AM4-AM9))))^AM5)) -> 0 | AM19: =IF(OR(AJ19<=AN7,AJ19>AN9),0,AN8+(AN10-AN8)*(1-((AN5+EXP(AN6*(AN4-AN7)))/(AN5+EXP(AN6*(AN4-AJ19))))^AN5)/(1-((AN5+EXP(AN6*(AN4-AN7)))/(AN5+EXP(AN6*(AN4-AN9))))^AN5)) -> 0 | AN19: =IF(OR(AJ19<=AN9,AJ19>100000),0,IF(AJ19<=AO7,AO8,AO8+(AO10-AO8)*(1-((AO5+EXP(AO6*(AO4-AO7)))/(AO5+EXP(AO6*(AO4-AJ19))))^AO5)/(1-((AO5+EXP(AO6*(AO4-AO7)))/(AO5+EXP(AO6*(AO4-AO9))))^AO5))) -> 0 | AO19: 0 | AP19: 0
A20: 9 | B20: ='daily uptake'!F103 -> 2010-11-09 | C20: =5/9*'daily uptake'!Q103 -> 11.94444444 | D20: =5/9*'daily uptake'!N103 -> 4.444444444 | E20: =IF(AND($A20>='daily uptake'!$C$9,$A20<='daily uptake'!$C$10),$C20+E19,0) -> 116.3888889 | F20: =IF(AND($A20>='daily uptake'!$C$18,$A20<='daily uptake'!$C$20),$D20+F19,0) -> 0 | G20: =IF(AND($A20>='daily uptake'!$C$24,$A20<='daily uptake'!$C$25),$C20+G19,0) -> 0 | H20: =IF(OR(F20<=I7,F20>I9),0,I8+(I10-I8)*(1-((I5+EXP(I6*(I4-I7)))/(I5+EXP(I6*(I4-F20))))^I5)/(1-((I5+EXP(I6*(I4-I7)))/(I5+EXP(I6*(I4-I9))))^I5)) -> 0 | I20: =IF(OR(F20<=J7,F20>J9),0,J8+(J10-J8)*(1-((J5+EXP(J6*(J4-J7)))/(J5+EXP(J6*(J4-F20))))^J5)/(1-((J5+EXP(J6*(J4-J7)))/(J5+EXP(J6*(J4-J9))))^J5)) -> 0 | J20: =IF(OR(F20<=J9,F20>100000),0,IF(F20<=K7,K8,K8+(K10-K8)*(1-((K5+EXP(K6*(K4-K7)))/(K5+EXP(K6*(K4-F20))))^K5)/(1-((K5+EXP(K6*(K4-K7)))/(K5+EXP(K6*(K4-K9))))^K5))) -> 0 | K20: 0 | L20: 0 | M20: 3.662174697 | N20: 0 | O20: 2010-11-09 | P20: =MAX(L$12:L20)+MAX(M$12:M20)+MAX(N$12:N20) -> 3.662174697 | Q20: 2010-11-09 | R20: 0.4110580036 | Y20: =O158 -> 2011-03-27 | Z20: 25.0676749 | AA20: =P158 -> 115.4223463 | AB20: 0.1789343889 | AJ20: 0 | AL20: =IF(OR(AJ20<=AM7,AJ20>AM9),0,AM8+(AM10-AM8)*(1-((AM5+EXP(AM6*(AM4-AM7)))/(AM5+EXP(AM6*(AM4-AJ20))))^AM5)/(1-((AM5+EXP(AM6*(AM4-AM7)))/(AM5+EXP(AM6*(AM4-AM9))))^AM5)) -> 0 | AM20: =IF(OR(AJ20<=AN7,AJ20>AN9),0,AN8+(AN10-AN8)*(1-((AN5+EXP(AN6*(AN4-AN7)))/(AN5+EXP(AN6*(AN4-AJ20))))^AN5)/(1-((AN5+EXP(AN6*(AN4-AN7)))/(AN5+EXP(AN6*(AN4-AN9))))^AN5)) -> 0 | AN20: =IF(OR(AJ20<=AN9,AJ20>100000),0,IF(AJ20<=AO7,AO8,AO8+(AO10-AO8)*(1-((AO5+EXP(AO6*(AO4-AO7)))/(AO5+EXP(AO6*(AO4-AJ20))))^AO5)/(1-((AO5+EXP(AO6*(AO4-AO7)))/(AO5+EXP(AO6*(AO4-AO9))))^AO5))) -> 0 | AO20: 0 | AP20: 0
A21: 10 | B21: ='daily uptake'!F104 -> 2010-11-10 | C21: =5/9*'daily uptake'!Q104 -> 11.38888889 | D21: =5/9*'daily uptake'!N104 -> 3.888888889 | E21: =IF(AND($A21>='daily uptake'!$C$9,$A21<='daily uptake'!$C$10),$C21+E20,0) -> 127.7777778 | F21: =IF(AND($A21>='daily uptake'!$C$18,$A21<='daily uptake'!$C$20),$D21+F20,0) -> 0 | G21: =IF(AND($A21>='daily uptake'!$C$24,$A21<='daily uptake'!$C$25),$C21+G20,0) -> 0 | H21: =IF(OR(F21<=I7,F21>I9),0,I8+(I10-I8)*(1-((I5+EXP(I6*(I4-I7)))/(I5+EXP(I6*(I4-F21))))^I5)/(1-((I5+EXP(I6*(I4-I7)))/(I5+EXP(I6*(I4-I9))))^I5)) -> 0 | I21: =IF(OR(F21<=J7,F21>J9),0,J8+(J10-J8)*(1-((J5+EXP(J6*(J4-J7)))/(J5+EXP(J6*(J4-F21))))^J5)/(1-((J5+EXP(J6*(J4-J7)))/(J5+EXP(J6*(J4-J9))))^J5)) -> 0 | J21: =IF(OR(F21<=J9,F21>100000),0,IF(F21<=K7,K8,K8+(K10-K8)*(1-((K5+EXP(K6*(K4-K7)))/(K5+EXP(K6*(K4-F21))))^K5)/(1-((K5+EXP(K6*(K4-K7)))/(K5+EXP(K6*(K4-K9))))^K5))) -> 0 | K21: 0 | L21: 0 | M21: 4.062079854 | N21: 0 | O21: 2010-11-10 | P21: =MAX(L$12:L21)+MAX(M$12:M21)+MAX(N$12:N21) -> 4.062079854 | Q21: 2010-11-10 | R21: 0.3999051571 | Y21: =O174 -> 2011-04-12 | Z21: 24.57765374 | AA21: =P174 -> 140 | AB21: 0.175436592 | AJ21: 0 | AL21: =IF(OR(AJ21<=AM7,AJ21>AM9),0,AM8+(AM10-AM8)*(1-((AM5+EXP(AM6*(AM4-AM7)))/(AM5+EXP(AM6*(AM4-AJ21))))^AM5)/(1-((AM5+EXP(AM6*(AM4-AM7)))/(AM5+EXP(AM6*(AM4-AM9))))^AM5)) -> 0 | AM21: =IF(OR(AJ21<=AN7,AJ21>AN9),0,AN8+(AN10-AN8)*(1-((AN5+EXP(AN6*(AN4-AN7)))/(AN5+EXP(AN6*(AN4-AJ21))))^AN5)/(1-((AN5+EXP(AN6*(AN4-AN7)))/(AN5+EXP(AN6*(AN4-AN9))))^AN5)) -> 0 | AN21: =IF(OR(AJ21<=AN9,AJ21>100000),0,IF(AJ21<=AO7,AO8,AO8+(AO10-AO8)*(1-((AO5+EXP(AO6*(AO4-AO7)))/(AO5+EXP(AO6*(AO4-AJ21))))^AO5)/(1-((AO5+EXP(AO6*(AO4-AO7)))/(AO5+EXP(AO6*(AO4-AO9))))^AO5))) -> 0 | AO21: 0 | AP21: 0
A22: 11 | B22: ='daily uptake'!F105 -> 2010-11-11 | C22: =5/9*'daily uptake'!Q105 -> 11.66666667 | D22: =5/9*'daily uptake'!N105 -> 3.888888889 | E22: =IF(AND($A22>='daily uptake'!$C$9,$A22<='daily uptake'!$C$10),$C22+E21,0) -> 139.4444444 | F22: =IF(AND($A22>='daily uptake'!$C$18,$A22<='daily uptake'!$C$20),$D22+F21,0) -> 0 | G22: =IF(AND($A22>='daily uptake'!$C$24,$A22<='daily uptake'!$C$25),$C22+G21,0) -> 0 | H22: =IF(OR(F22<=I7,F22>I9),0,I8+(I10-I8)*(1-((I5+EXP(I6*(I4-I7)))/(I5+EXP(I6*(I4-F22))))^I5)/(1-((I5+EXP(I6*(I4-I7)))/(I5+EXP(I6*(I4-I9))))^I5)) -> 0 | I22: =IF(OR(F22<=J7,F22>J9),0,J8+(J10-J8)*(1-((J5+EXP(J6*(J4-J7)))/(J5+EXP(J6*(J4-F22))))^J5)/(1-((J5+EXP(J6*(J4-J7)))/(J5+EXP(J6*(J4-J9))))^J5)) -> 0 | J22: =IF(OR(F22<=J9,F22>100000),0,IF(F22<=K7,K8,K8+(K10-K8)*(1-((K5+EXP(K6*(K4-K7)))/(K5+EXP(K6*(K4-F22))))^K5)/(1-((K5+EXP(K6*(K4-K7)))/(K5+EXP(K6*(K4-K9))))^K5))) -> 0 | K22: 0 | L22: 0 | M22: 4.479932687 | N22: 0 | O22: 2010-11-11 | P22: =MAX(L$12:L22)+MAX(M$12:M22)+MAX(N$12:N22) -> 4.479932687 | Q22: 2010-11-11 | R22: 0.417852833 | Y22: =O189 -> 2011-04-27 | Z22: 0.09422698956 | AA22: =P189 -> 140.094227 | AB22: 0.0006725972339 | AJ22: 0 | AL22: =IF(OR(AJ22<=AM7,AJ22>AM9),0,AM8+(AM10-AM8)*(1-((AM5+EXP(AM6*(AM4-AM7)))/(AM5+EXP(AM6*(AM4-AJ22))))^AM5)/(1-((AM5+EXP(AM6*(AM4-AM7)))/(AM5+EXP(AM6*(AM4-AM9))))^AM5)) -> 0 | AM22: =IF(OR(AJ22<=AN7,AJ22>AN9),0,AN8+(AN10-AN8)*(1-((AN5+EXP(AN6*(AN4-AN7)))/(AN5+EXP(AN6*(AN4-AJ22))))^AN5)/(1-((AN5+EXP(AN6*(AN4-AN7)))/(AN5+EXP(AN6*(AN4-AN9))))^AN5)) -> 0 | AN22: =IF(OR(AJ22<=AN9,AJ22>100000),0,IF(AJ22<=AO7,AO8,AO8+(AO10-AO8)*(1-((AO5+EXP(AO6*(AO4-AO7)))/(AO5+EXP(AO6*(AO4-AJ22))))^AO5)/(1-((AO5+EXP(AO6*(AO4-AO7)))/(AO5+EXP(AO6*(AO4-AO9))))^AO5))) -> 0 | AO22: 0 | AP22: 0
A23: 12 | B23: ='daily uptake'!F106 -> 2010-11-12 | C23: =5/9*'daily uptake'!Q106 -> 11.11111111 | D23: =5/9*'daily uptake'!N106 -> 4.166666667 | E23: =IF(AND($A23>='daily uptake'!$C$9,$A23<='daily uptake'!$C$10),$C23+E22,0) -> 150.5555556 | F23: =IF(AND($A23>='daily uptake'!$C$18,$A23<='daily uptake'!$C$20),$D23+F22,0) -> 0 | G23: =IF(AND($A23>='daily uptake'!$C$24,$A23<='daily uptake'!$C$25),$C23+G22,0) -> 0 | H23: =IF(OR(F23<=I7,F23>I9),0,I8+(I10-I8)*(1-((I5+EXP(I6*(I4-I7)))/(I5+EXP(I6*(I4-F23))))^I5)/(1-((I5+EXP(I6*(I4-I7)))/(I5+EXP(I6*(I4-I9))))^I5)) -> 0 | I23: =IF(OR(F23<=J7,F23>J9),0,J8+(J10-J8)*(1-((J5+EXP(J6*(J4-J7)))/(J5+EXP(J6*(J4-F23))))^J5)/(1-((J5+EXP(J6*(J4-J7)))/(J5+EXP(J6*(J4-J9))))^J5)) -> 0 | J23: =IF(OR(F23<=J9,F23>100000),0,IF(F23<=K7,K8,K8+(K10-K8)*(1-((K5+EXP(K6*(K4-K7)))/(K5+EXP(K6*(K4-F23))))^K5)/(1-((K5+EXP(K6*(K4-K7)))/(K5+EXP(K6*(K4-K9))))^K5))) -> 0 | K23: 0 | L23: 0 | M23: 4.885718003 | N23: 0 | O23: 2010-11-12 | P23: =MAX(L$12:L23)+MAX(M$12:M23)+MAX(N$12:N23) -> 4.885718003 | Q23: 2010-11-12 | R23: 0.4057853158 | AJ23: 0 | AL23: =IF(OR(AJ23<=AM7,AJ23>AM9),0,AM8+(AM10-AM8)*(1-((AM5+EXP(AM6*(AM4-AM7)))/(AM5+EXP(AM6*(AM4-AJ23))))^AM5)/(1-((AM5+EXP(AM6*(AM4-AM7)))/(AM5+EXP(AM6*(AM4-AM9))))^AM5)) -> 0 | AM23: =IF(OR(AJ23<=AN7,AJ23>AN9),0,AN8+(AN10-AN8)*(1-((AN5+EXP(AN6*(AN4-AN7)))/(AN5+EXP(AN6*(AN4-AJ23))))^AN5)/(1-((AN5+EXP(AN6*(AN4-AN7)))/(AN5+EXP(AN6*(AN4-AN9))))^AN5)) -> 0 | AN23: =IF(OR(AJ23<=AN9,AJ23>100000),0,IF(AJ23<=AO7,AO8,AO8+(AO10-AO8)*(1-((AO5+EXP(AO6*(AO4-AO7)))/(AO5+EXP(AO6*(AO4-AJ23))))^AO5)/(1-((AO5+EXP(AO6*(AO4-AO7)))/(AO5+EXP(AO6*(AO4-AO9))))^AO5))) -> 0 | AO23: 0 | AP23: 0
A24: 13 | B24: ='daily uptake'!F107 -> 2010-11-13 | C24: =5/9*'daily uptake'!Q107 -> 11.66666667 | D24: =5/9*'daily uptake'!N107 -> 4.444444444 | E24: =IF(AND($A24>='daily uptake'!$C$9,$A24<='daily uptake'!$C$10),$C24+E23,0) -> 162.2222222 | F24: =IF(AND($A24>='daily uptake'!$C$18,$A24<='daily uptake'!$C$20),$D24+F23,0) -> 0 | G24: =IF(AND($A24>='daily uptake'!$C$24,$A24<='daily uptake'!$C$25),$C24+G23,0) -> 0 | H24: =IF(OR(F24<=I7,F24>I9),0,I8+(I10-I8)*(1-((I5+EXP(I6*(I4-I7)))/(I5+EXP(I6*(I4-F24))))^I5)/(1-((I5+EXP(I6*(I4-I7)))/(I5+EXP(I6*(I4-I9))))^I5)) -> 0 | I24: =IF(OR(F24<=J7,F24>J9),0,J8+(J10-J8)*(1-((J5+EXP(J6*(J4-J7)))/(J5+EXP(J6*(J4-F24))))^J5)/(1-((J5+EXP(J6*(J4-J7)))/(J5+EXP(J6*(J4-J9))))^J5)) -> 0 | J24: =IF(OR(F24<=J9,F24>100000),0,IF(F24<=K7,K8,K8+(K10-K8)*(1-((K5+EXP(K6*(K4-K7)))/(K5+EXP(K6*(K4-F24))))^K5)/(1-((K5+EXP(K6*(K4-K7)))/(K5+EXP(K6*(K4-K9))))^K5))) -> 0 | K24: 0 | L24: 0 | M24: 5.320142488 | N24: 0 | O24: 2010-11-13 | P24: =MAX(L$12:L24)+MAX(M$12:M24)+MAX(N$12:N24) -> 5.320142488 | Q24: 2010-11-13 | R24: 0.434424485 | AJ24: 0 | AL24: =IF(OR(AJ24<=AM7,AJ24>AM9),0,AM8+(AM10-AM8)*(1-((AM5+EXP(AM6*(AM4-AM7)))/(AM5+EXP(AM6*(AM4-AJ24))))^AM5)/(1-((AM5+EXP(AM6*(AM4-AM7)))/(AM5+EXP(AM6*(AM4-AM9))))^AM5)) -> 0 | AM24: =IF(OR(AJ24<=AN7,AJ24>AN9),0,AN8+(AN10-AN8)*(1-((AN5+EXP(AN6*(AN4-AN7)))/(AN5+EXP(AN6*(AN4-AJ24))))^AN5)/(1-((AN5+EXP(AN6*(AN4-AN7)))/(AN5+EXP(AN6*(AN4-AN9))))^AN5)) -> 0 | AN24: =IF(OR(AJ24<=AN9,AJ24>100000),0,IF(AJ24<=AO7,AO8,AO8+(AO10-AO8)*(1-((AO5+EXP(AO6*(AO4-AO7)))/(AO5+EXP(AO6*(AO4-AJ24))))^AO5)/(1-((AO5+EXP(AO6*(AO4-AO7)))/(AO5+EXP(AO6*(AO4-AO9))))^AO5))) -> 0 | AO24: 0 | AP24: 0
A25: 14 | B25: ='daily uptake'!F108 -> 2010-11-14 | C25: =5/9*'daily uptake'!Q108 -> 11.66666667 | D25: =5/9*'daily uptake'!N108 -> 4.444444444 | E25: =IF(AND($A25>='daily uptake'!$C$9,$A25<='daily uptake'!$C$10),$C25+E24,0) -> 173.8888889 | F25: =IF(AND($A25>='daily uptake'!$C$18,$A25<='daily uptake'!$C$20),$D25+F24,0) -> 0 | G25: =IF(AND($A25>='daily uptake'!$C$24,$A25<='daily uptake'!$C$25),$C25+G24,0) -> 0 | H25: =IF(OR(F25<=I7,F25>I9),0,I8+(I10-I8)*(1-((I5+EXP(I6*(I4-I7)))/(I5+EXP(I6*(I4-F25))))^I5)/(1-((I5+EXP(I6*(I4-I7)))/(I5+EXP(I6*(I4-I9))))^I5)) -> 0 | I25: =IF(OR(F25<=J7,F25>J9),0,J8+(J10-J8)*(1-((J5+EXP(J6*(J4-J7)))/(J5+EXP(J6*(J4-F25))))^J5)/(1-((J5+EXP(J6*(J4-J7)))/(J5+EXP(J6*(J4-J9))))^J5)) -> 0 | J25: =IF(OR(F25<=J9,F25>100000),0,IF(F25<=K7,K8,K8+(K10-K8)*(1-((K5+EXP(K6*(K4-K7)))/(K5+EXP(K6*(K4-F25))))^K5)/(1-((K5+EXP(K6*(K4-K7)))/(K5+EXP(K6*(K4-K9))))^K5))) -> 0 | K25: 0 | L25: 0 | M25: 5.763252306 | N25: 0 | O25: 2010-11-14 | P25: =MAX(L$12:L25)+MAX(M$12:M25)+MAX(N$12:N25) -> 5.763252306 | Q25: 2010-11-14 | R25: 0.443109818 | AJ25: 0 | AL25: =IF(OR(AJ25<=AM7,AJ25>AM9),0,AM8+(AM10-AM8)*(1-((AM5+EXP(AM6*(AM4-AM7)))/(AM5+EXP(AM6*(AM4-AJ25))))^AM5)/(1-((AM5+EXP(AM6*(AM4-AM7)))/(AM5+EXP(AM6*(AM4-AM9))))^AM5)) -> 0 | AM25: =IF(OR(AJ25<=AN7,AJ25>AN9),0,AN8+(AN10-AN8)*(1-((AN5+EXP(AN6*(AN4-AN7)))/(AN5+EXP(AN6*(AN4-AJ25))))^AN5)/(1-((AN5+EXP(AN6*(AN4-AN7)))/(AN5+EXP(AN6*(AN4-AN9))))^AN5)) -> 0 | AN25: =IF(OR(AJ25<=AN9,AJ25>100000),0,IF(AJ25<=AO7,AO8,AO8+(AO10-AO8)*(1-((AO5+EXP(AO6*(AO4-AO7)))/(AO5+EXP(AO6*(AO4-AJ25))))^AO5)/(1-((AO5+EXP(AO6*(AO4-AO7)))/(AO5+EXP(AO6*(AO4-AO9))))^AO5))) -> 0 | AO25: 0 | AP25: 0
A26: 15 | B26: ='daily uptake'!F109 -> 2010-11-15 | C26: =5/9*'daily uptake'!Q109 -> 11.38888889 | D26: =5/9*'daily uptake'!N109 -> 4.166666667 | E26: =IF(AND($A26>='daily uptake'!$C$9,$A26<='daily uptake'!$C$10),$C26+E25,0) -> 185.2777778 | F26: =IF(AND($A26>='daily uptake'!$C$18,$A26<='daily uptake'!$C$20),$D26+F25,0) -> 0 | G26: =IF(AND($A26>='daily uptake'!$C$24,$A26<='daily uptake'!$C$25),$C26+G25,0) -> 0 | H26: =IF(OR(F26<=I7,F26>I9),0,I8+(I10-I8)*(1-((I5+EXP(I6*(I4-I7)))/(I5+EXP(I6*(I4-F26))))^I5)/(1-((I5+EXP(I6*(I4-I7)))/(I5+EXP(I6*(I4-I9))))^I5)) -> 0 | I26: =IF(OR(F26<=J7,F26>J9),0,J8+(J10-J8)*(1-((J5+EXP(J6*(J4-J7)))/(J5+EXP(J6*(J4-F26))))^J5)/(1-((J5+EXP(J6*(J4-J7)))/(J5+EXP(J6*(J4-J9))))^J5)) -> 0 | J26: =IF(OR(F26<=J9,F26>100000),0,IF(F26<=K7,K8,K8+(K10-K8)*(1-((K5+EXP(K6*(K4-K7)))/(K5+EXP(K6*(K4-F26))))^K5)/(1-((K5+EXP(K6*(K4-K7)))/(K5+EXP(K6*(K4-K9))))^K5))) -> 0 | K26: 0 | L26: 0 | M26: 6.204318028 | N26: 0 | O26: 2010-11-15 | P26: =MAX(L$12:L26)+MAX(M$12:M26)+MAX(N$12:N26) -> 6.204318028 | Q26: 2010-11-15 | R26: 0.4410657226 | AJ26: 0 | AL26: =IF(OR(AJ26<=AM7,AJ26>AM9),0,AM8+(AM10-AM8)*(1-((AM5+EXP(AM6*(AM4-AM7)))/(AM5+EXP(AM6*(AM4-AJ26))))^AM5)/(1-((AM5+EXP(AM6*(AM4-AM7)))/(AM5+EXP(AM6*(AM4-AM9))))^AM5)) -> 0 | AM26: =IF(OR(AJ26<=AN7,AJ26>AN9),0,AN8+(AN10-AN8)*(1-((AN5+EXP(AN6*(AN4-AN7)))/(AN5+EXP(AN6*(AN4-AJ26))))^AN5)/(1-((AN5+EXP(AN6*(AN4-AN7)))/(AN5+EXP(AN6*(AN4-AN9))))^AN5)) -> 0 | AN26: =IF(OR(AJ26<=AN9,AJ26>100000),0,IF(AJ26<=AO7,AO8,AO8+(AO10-AO8)*(1-((AO5+EXP(AO6*(AO4-AO7)))/(AO5+EXP(AO6*(AO4-AJ26))))^AO5)/(1-((AO5+EXP(AO6*(AO4-AO7)))/(AO5+EXP(AO6*(AO4-AO9))))^AO5))) -> 0 | AO26: 0 | AP26: 0
A27: 16 | B27: ='daily uptake'!F110 -> 2010-11-16 | C27: =5/9*'daily uptake'!Q110 -> 11.66666667 | D27: =5/9*'daily uptake'!N110 -> 4.166666667 | E27: =IF(AND($A27>='daily uptake'!$C$9,$A27<='daily uptake'!$C$10),$C27+E26,0) -> 196.9444444 | F27: =IF(AND($A27>='daily uptake'!$C$18,$A27<='daily uptake'!$C$20),$D27+F26,0) -> 0 | G27: =IF(AND($A27>='daily uptake'!$C$24,$A27<='daily uptake'!$C$25),$C27+G26,0) -> 0 | H27: =IF(OR(F27<=I7,F27>I9),0,I8+(I10-I8)*(1-((I5+EXP(I6*(I4-I7)))/(I5+EXP(I6*(I4-F27))))^I5)/(1-((I5+EXP(I6*(I4-I7)))/(I5+EXP(I6*(I4-I9))))^I5)) -> 0 | I27: =IF(OR(F27<=J7,F27>J9),0,J8+(J10-J8)*(1-((J5+EXP(J6*(J4-J7)))/(J5+EXP(J6*(J4-F27))))^J5)/(1-((J5+EXP(J6*(J4-J7)))/(J5+EXP(J6*(J4-J9))))^J5)) -> 0 | J27: =IF(OR(F27<=J9,F27>100000),0,IF(F27<=K7,K8,K8+(K10-K8)*(1-((K5+EXP(K6*(K4-K7)))/(K5+EXP(K6*(K4-F27))))^K5)/(1-((K5+EXP(K6*(K4-K7)))/(K5+EXP(K6*(K4-K9))))^K5))) -> 0 | K27: 0 | L27: 0 | M27: 6.664987066 | N27: 0 | O27: 2010-11-16 | P27: =MAX(L$12:L27)+MAX(M$12:M27)+MAX(N$12:N27) -> 6.664987066 | Q27: 2010-11-16 | R27: 0.4606690381 | AJ27: 0 | AL27: =IF(OR(AJ27<=AM7,AJ27>AM9),0,AM8+(AM10-AM8)*(1-((AM5+EXP(AM6*(AM4-AM7)))/(AM5+EXP(AM6*(AM4-AJ27))))^AM5)/(1-((AM5+EXP(AM6*(AM4-AM7)))/(AM5+EXP(AM6*(AM4-AM9))))^AM5)) -> 0 | AM27: =IF(OR(AJ27<=AN7,AJ27>AN9),0,AN8+(AN10-AN8)*(1-((AN5+EXP(AN6*(AN4-AN7)))/(AN5+EXP(AN6*(AN4-AJ27))))^AN5)/(1-((AN5+EXP(AN6*(AN4-AN7)))/(AN5+EXP(AN6*(AN4-AN9))))^AN5)) -> 0 | AN27: =IF(OR(AJ27<=AN9,AJ27>100000),0,IF(AJ27<=AO7,AO8,AO8+(AO10-AO8)*(1-((AO5+EXP(AO6*(AO4-AO7)))/(AO5+EXP(AO6*(AO4-AJ27))))^AO5)/(1-((AO5+EXP(AO6*(AO4-AO7)))/(AO5+EXP(AO6*(AO4-AO9))))^AO5))) -> 0 | AO27: 0 | AP27: 0
A28: 17 | B28: ='daily uptake'!F111 -> 2010-11-17 | C28: =5/9*'daily uptake'!Q111 -> 11.94444444 | D28: =5/9*'daily uptake'!N111 -> 4.444444444 | E28: =IF(AND($A28>='daily uptake'!$C$9,$A28<='daily uptake'!$C$10),$C28+E27,0) -> 208.8888889 | F28: =IF(AND($A28>='daily uptake'!$C$18,$A28<='daily uptake'!$C$20),$D28+F27,0) -> 0 | G28: =IF(AND($A28>='daily uptake'!$C$24,$A28<='daily uptake'!$C$25),$C28+G27,0) -> 0 | H28: =IF(OR(F28<=I7,F28>I9),0,I8+(I10-I8)*(1-((I5+EXP(I6*(I4-I7)))/(I5+EXP(I6*(I4-F28))))^I5)/(1-((I5+EXP(I6*(I4-I7)))/(I5+EXP(I6*(I4-I9))))^I5)) -> 0 | I28: =IF(OR(F28<=J7,F28>J9),0,J8+(J10-J8)*(1-((J5+EXP(J6*(J4-J7)))/(J5+EXP(J6*(J4-F28))))^J5)/(1-((J5+EXP(J6*(J4-J7)))/(J5+EXP(J6*(J4-J9))))^J5)) -> 0 | J28: =IF(OR(F28<=J9,F28>100000),0,IF(F28<=K7,K8,K8+(K10-K8)*(1-((K5+EXP(K6*(K4-K7)))/(K5+EXP(K6*(K4-F28))))^K5)/(1-((K5+EXP(K6*(K4-K7)))/(K5+EXP(K6*(K4-K9))))^K5))) -> 0 | K28: 0 | L28: 0 | M28: 7.146038653 | N28: 0 | O28: 2010-11-17 | P28: =MAX(L$12:L28)+MAX(M$12:M28)+MAX(N$12:N28) -> 7.146038653 | Q28: 2010-11-17 | R28: 0.4810515863 | AJ28: 0 | AL28: =IF(OR(AJ28<=AM7,AJ28>AM9),0,AM8+(AM10-AM8)*(1-((AM5+EXP(AM6*(AM4-AM7)))/(AM5+EXP(AM6*(AM4-AJ28))))^AM5)/(1-((AM5+EXP(AM6*(AM4-AM7)))/(AM5+EXP(AM6*(AM4-AM9))))^AM5)) -> 0 | AM28: =IF(OR(AJ28<=AN7,AJ28>AN9),0,AN8+(AN10-AN8)*(1-((AN5+EXP(AN6*(AN4-AN7)))/(AN5+EXP(AN6*(AN4-AJ28))))^AN5)/(1-((AN5+EXP(AN6*(AN4-AN7)))/(AN5+EXP(AN6*(AN4-AN9))))^AN5)) -> 0 | AN28: =IF(OR(AJ28<=AN9,AJ28>100000),0,IF(AJ28<=AO7,AO8,AO8+(AO10-AO8)*(1-((AO5+EXP(AO6*(AO4-AO7)))/(AO5+EXP(AO6*(AO4-AJ28))))^AO5)/(1-((AO5+EXP(AO6*(AO4-AO7)))/(AO5+EXP(AO6*(AO4-AO9))))^AO5))) -> 0 | AO28: 0 | AP28: 0
A29: 18 | B29: ='daily uptake'!F112 -> 2010-11-18 | C29: =5/9*'daily uptake'!Q112 -> 11.66666667 | D29: =5/9*'daily uptake'!N112 -> 4.166666667 | E29: =IF(AND($A29>='daily uptake'!$C$9,$A29<='daily uptake'!$C$10),$C29+E28,0) -> 220.5555556 | F29: =IF(AND($A29>='daily uptake'!$C$18,$A29<='daily uptake'!$C$20),$D29+F28,0) -> 0 | G29: =IF(AND($A29>='daily uptake'!$C$24,$A29<='daily uptake'!$C$25),$C29+G28,0) -> 0 | H29: =IF(OR(F29<=I7,F29>I9),0,I8+(I10-I8)*(1-((I5+EXP(I6*(I4-I7)))/(I5+EXP(I6*(I4-F29))))^I5)/(1-((I5+EXP(I6*(I4-I7)))/(I5+EXP(I6*(I4-I9))))^I5)) -> 0 | I29: =IF(OR(F29<=J7,F29>J9),0,J8+(J10-J8)*(1-((J5+EXP(J6*(J4-J7)))/(J5+EXP(J6*(J4-F29))))^J5)/(1-((J5+EXP(J6*(J4-J7)))/(J5+EXP(J6*(J4-J9))))^J5)) -> 0 | J29: =IF(OR(F29<=J9,F29>100000),0,IF(F29<=K7,K8,K8+(K10-K8)*(1-((K5+EXP(K6*(K4-K7)))/(K5+EXP(K6*(K4-F29))))^K5)/(1-((K5+EXP(K6*(K4-K7)))/(K5+EXP(K6*(K4-K9))))^K5))) -> 0 | K29: 0 | L29: 0 | M29: 7.625236097 | N29: 0 | O29: 2010-11-18 | P29: =MAX(L$12:L29)+MAX(M$12:M29)+MAX(N$12:N29) -> 7.625236097 | Q29: 2010-11-18 | R29: 0.4791974441 | AJ29: 0 | AL29: =IF(OR(AJ29<=AM7,AJ29>AM9),0,AM8+(AM10-AM8)*(1-((AM5+EXP(AM6*(AM4-AM7)))/(AM5+EXP(AM6*(AM4-AJ29))))^AM5)/(1-((AM5+EXP(AM6*(AM4-AM7)))/(AM5+EXP(AM6*(AM4-AM9))))^AM5)) -> 0 | AM29: =IF(OR(AJ29<=AN7,AJ29>AN9),0,AN8+(AN10-AN8)*(1-((AN5+EXP(AN6*(AN4-AN7)))/(AN5+EXP(AN6*(AN4-AJ29))))^AN5)/(1-((AN5+EXP(AN6*(AN4-AN7)))/(AN5+EXP(AN6*(AN4-AN9))))^AN5)) -> 0 | AN29: =IF(OR(AJ29<=AN9,AJ29>100000),0,IF(AJ29<=AO7,AO8,AO8+(AO10-AO8)*(1-((AO5+EXP(AO6*(AO4-AO7)))/(AO5+EXP(AO6*(AO4-AJ29))))^AO5)/(1-((AO5+EXP(AO6*(AO4-AO7)))/(AO5+EXP(AO6*(AO4-AO9))))^AO5))) -> 0 | AO29: 0 | AP29: 0
A30: 19 | B30: ='daily uptake'!F113 -> 2010-11-19 | C30: =5/9*'daily uptake'!Q113 -> 10.55555556 | D30: =5/9*'daily uptake'!N113 -> 3.611111111 | E30: =IF(AND($A30>='daily uptake'!$C$9,$A30<='daily uptake'!$C$10),$C30+E29,0) -> 231.1111111 | F30: =IF(AND($A30>='daily uptake'!$C$18,$A30<='daily uptake'!$C$20),$D30+F29,0) -> 0 | G30: =IF(AND($A30>='daily uptake'!$C$24,$A30<='daily uptake'!$C$25),$C30+G29,0) -> 0 | H30: =IF(OR(F30<=I7,F30>I9),0,I8+(I10-I8)*(1-((I5+EXP(I6*(I4-I7)))/(I5+EXP(I6*(I4-F30))))^I5)/(1-((I5+EXP(I6*(I4-I7)))/(I5+EXP(I6*(I4-I9))))^I5)) -> 0 | I30: =IF(OR(F30<=J7,F30>J9),0,J8+(J10-J8)*(1-((J5+EXP(J6*(J4-J7)))/(J5+EXP(J6*(J4-F30))))^J5)/(1-((J5+EXP(J6*(J4-J7)))/(J5+EXP(J6*(J4-J9))))^J5)) -> 0 | J30: =IF(OR(F30<=J9,F30>100000),0,IF(F30<=K7,K8,K8+(K10-K8)*(1-((K5+EXP(K6*(K4-K7)))/(K5+EXP(K6*(K4-F30))))^K5)/(1-((K5+EXP(K6*(K4-K7)))/(K5+EXP(K6*(K4-K9))))^K5))) -> 0 | K30: 0 | L30: 0 | M30: 8.066856923 | N30: 0 | O30: 2010-11-19 | P30: =MAX(L$12:L30)+MAX(M$12:M30)+MAX(N$12:N30) -> 8.066856923 | Q30: 2010-11-19 | R30: 0.4416208262 | AJ30: 0 | AL30: =IF(OR(AJ30<=AM7,AJ30>AM9),0,AM8+(AM10-AM8)*(1-((AM5+EXP(AM6*(AM4-AM7)))/(AM5+EXP(AM6*(AM4-AJ30))))^AM5)/(1-((AM5+EXP(AM6*(AM4-AM7)))/(AM5+EXP(AM6*(AM4-AM9))))^AM5)) -> 0 | AM30: =IF(OR(AJ30<=AN7,AJ30>AN9),0,AN8+(AN10-AN8)*(1-((AN5+EXP(AN6*(AN4-AN7)))/(AN5+EXP(AN6*(AN4-AJ30))))^AN5)/(1-((AN5+EXP(AN6*(AN4-AN7)))/(AN5+EXP(AN6*(AN4-AN9))))^AN5)) -> 0 | AN30: =IF(OR(AJ30<=AN9,AJ30>100000),0,IF(AJ30<=AO7,AO8,AO8+(AO10-AO8)*(1-((AO5+EXP(AO6*(AO4-AO7)))/(AO5+EXP(AO6*(AO4-AJ30))))^AO5)/(1-((AO5+EXP(AO6*(AO4-AO7)))/(AO5+EXP(AO6*(AO4-AO9))))^AO5))) -> 0 | AO30: 0 | AP30: 0
A31: 20 | B31: ='daily uptake'!F114 -> 2010-11-20 | C31: =5/9*'daily uptake'!Q114 -> 10.83333333 | D31: =5/9*'daily uptake'!N114 -> 3.611111111 | E31: =IF(AND($A31>='daily uptake'!$C$9,$A31<='daily uptake'!$C$10),$C31+E30,0) -> 241.9444444 | F31: =IF(AND($A31>='daily uptake'!$C$18,$A31<='daily uptake'!$C$20),$D31+F30,0) -> 0 | G31: =IF(AND($A31>='daily uptake'!$C$24,$A31<='daily uptake'!$C$25),$C31+G30,0) -> 0 | H31: =IF(OR(F31<=I7,F31>I9),0,I8+(I10-I8)*(1-((I5+EXP(I6*(I4-I7)))/(I5+EXP(I6*(I4-F31))))^I5)/(1-((I5+EXP(I6*(I4-I7)))/(I5+EXP(I6*(I4-I9))))^I5)) -> 0 | I31: =IF(OR(F31<=J7,F31>J9),0,J8+(J10-J8)*(1-((J5+EXP(J6*(J4-J7)))/(J5+EXP(J6*(J4-F31))))^J5)/(1-((J5+EXP(J6*(J4-J7)))/(J5+EXP(J6*(J4-J9))))^J5)) -> 0 | J31: =IF(OR(F31<=J9,F31>100000),0,IF(F31<=K7,K8,K8+(K10-K8)*(1-((K5+EXP(K6*(K4-K7)))/(K5+EXP(K6*(K4-F31))))^K5)/(1-((K5+EXP(K6*(K4-K7)))/(K5+EXP(K6*(K4-K9))))^K5))) -> 0 | K31: 0 | L31: 0 | M31: 8.528171141 | N31: 0 | O31: 2010-11-20 | P31: =MAX(L$12:L31)+MAX(M$12:M31)+MAX(N$12:N31) -> 8.528171141 | Q31: 2010-11-20 | R31: 0.4613142181 | AJ31: 0 | AL31: =IF(OR(AJ31<=AM7,AJ31>AM9),0,AM8+(AM10-AM8)*(1-((AM5+EXP(AM6*(AM4-AM7)))/(AM5+EXP(AM6*(AM4-AJ31))))^AM5)/(1-((AM5+EXP(AM6*(AM4-AM7)))/(AM5+EXP(AM6*(AM4-AM9))))^AM5)) -> 0 | AM31: =IF(OR(AJ31<=AN7,AJ31>AN9),0,AN8+(AN10-AN8)*(1-((AN5+EXP(AN6*(AN4-AN7)))/(AN5+EXP(AN6*(AN4-AJ31))))^AN5)/(1-((AN5+EXP(AN6*(AN4-AN7)))/(AN5+EXP(AN6*(AN4-AN9))))^AN5)) -> 0 | AN31: =IF(OR(AJ31<=AN9,AJ31>100000),0,IF(AJ31<=AO7,AO8,AO8+(AO10-AO8)*(1-((AO5+EXP(AO6*(AO4-AO7)))/(AO5+EXP(AO6*(AO4-AJ31))))^AO5)/(1-((AO5+EXP(AO6*(AO4-AO7)))/(AO5+EXP(AO6*(AO4-AO9))))^AO5))) -> 0 | AO31: 0 | AP31: 0
A32: 21 | B32: ='daily uptake'!F115 -> 2010-11-21 | C32: =5/9*'daily uptake'!Q115 -> 10 | D32: =5/9*'daily uptake'!N115 -> 3.333333333 | E32: =IF(AND($A32>='daily uptake'!$C$9,$A32<='daily uptake'!$C$10),$C32+E31,0) -> 251.9444444 | F32: =IF(AND($A32>='daily uptake'!$C$18,$A32<='daily uptake'!$C$20),$D32+F31,0) -> 0 | G32: =IF(AND($A32>='daily uptake'!$C$24,$A32<='daily uptake'!$C$25),$C32+G31,0) -> 0 | H32: =IF(OR(F32<=I7,F32>I9),0,I8+(I10-I8)*(1-((I5+EXP(I6*(I4-I7)))/(I5+EXP(I6*(I4-F32))))^I5)/(1-((I5+EXP(I6*(I4-I7)))/(I5+EXP(I6*(I4-I9))))^I5)) -> 0 | I32: =IF(OR(F32<=J7,F32>J9),0,J8+(J10-J8)*(1-((J5+EXP(J6*(J4-J7)))/(J5+EXP(J6*(J4-F32))))^J5)/(1-((J5+EXP(J6*(J4-J7)))/(J5+EXP(J6*(J4-J9))))^J5)) -> 0 | J32: =IF(OR(F32<=J9,F32>100000),0,IF(F32<=K7,K8,K8+(K10-K8)*(1-((K5+EXP(K6*(K4-K7)))/(K5+EXP(K6*(K4-F32))))^K5)/(1-((K5+EXP(K6*(K4-K7)))/(K5+EXP(K6*(K4-K9))))^K5))) -> 0 | K32: 0 | L32: 0 | M32: 8.961349717 | N32: 0 | O32: 2010-11-21 | P32: =MAX(L$12:L32)+MAX(M$12:M32)+MAX(N$12:N32) -> 8.961349717 | Q32: 2010-11-21 | R32: 0.4331785759 | AJ32: 0 | AL32: =IF(OR(AJ32<=AM7,AJ32>AM9),0,AM8+(AM10-AM8)*(1-((AM5+EXP(AM6*(AM4-AM7)))/(AM5+EXP(AM6*(AM4-AJ32))))^AM5)/(1-((AM5+EXP(AM6*(AM4-AM7)))/(AM5+EXP(AM6*(AM4-AM9))))^AM5)) -> 0 | AM32: =IF(OR(AJ32<=AN7,AJ32>AN9),0,AN8+(AN10-AN8)*(1-((AN5+EXP(AN6*(AN4-AN7)))/(AN5+EXP(AN6*(AN4-AJ32))))^AN5)/(1-((AN5+EXP(AN6*(AN4-AN7)))/(AN5+EXP(AN6*(AN4-AN9))))^AN5)) -> 0 | AN32: =IF(OR(AJ32<=AN9,AJ32>100000),0,IF(AJ32<=AO7,AO8,AO8+(AO10-AO8)*(1-((AO5+EXP(AO6*(AO4-AO7)))/(AO5+EXP(AO6*(AO4-AJ32))))^AO5)/(1-((AO5+EXP(AO6*(AO4-AO7)))/(AO5+EXP(AO6*(AO4-AO9))))^AO5))) -> 0 | AO32: 0 | AP32: 0
A33: 22 | B33: ='daily uptake'!F116 -> 2010-11-22 | C33: =5/9*'daily uptake'!Q116 -> 9.722222222 | D33: =5/9*'daily uptake'!N116 -> 3.333333333 | E33: =IF(AND($A33>='daily uptake'!$C$9,$A33<='daily uptake'!$C$10),$C33+E32,0) -> 261.6666667 | F33: =IF(AND($A33>='daily uptake'!$C$18,$A33<='daily uptake'!$C$20),$D33+F32,0) -> 0 | G33: =IF(AND($A33>='daily uptake'!$C$24,$A33<='daily uptake'!$C$25),$C33+G32,0) -> 0 | H33: =IF(OR(F33<=I7,F33>I9),0,I8+(I10-I8)*(1-((I5+EXP(I6*(I4-I7)))/(I5+EXP(I6*(I4-F33))))^I5)/(1-((I5+EXP(I6*(I4-I7)))/(I5+EXP(I6*(I4-I9))))^I5)) -> 0 | I33: =IF(OR(F33<=J7,F33>J9),0,J8+(J10-J8)*(1-((J5+EXP(J6*(J4-J7)))/(J5+EXP(J6*(J4-F33))))^J5)/(1-((J5+EXP(J6*(J4-J7)))/(J5+EXP(J6*(J4-J9))))^J5)) -> 0 | J33: =IF(OR(F33<=J9,F33>100000),0,IF(F33<=K7,K8,K8+(K10-K8)*(1-((K5+EXP(K6*(K4-K7)))/(K5+EXP(K6*(K4-F33))))^K5)/(1-((K5+EXP(K6*(K4-K7)))/(K5+EXP(K6*(K4-K9))))^K5))) -> 0 | K33: 0 | L33: 0 | M33: 9.389343293 | N33: 0 | O33: 2010-11-22 | P33: =MAX(L$12:L33)+MAX(M$12:M33)+MAX(N$12:N33) -> 9.389343293 | Q33: 2010-11-22 | R33: 0.4279935762 | AJ33: 0 | AL33: =IF(OR(AJ33<=AM7,AJ33>AM9),0,AM8+(AM10-AM8)*(1-((AM5+EXP(AM6*(AM4-AM7)))/(AM5+EXP(AM6*(AM4-AJ33))))^AM5)/(1-((AM5+EXP(AM6*(AM4-AM7)))/(AM5+EXP(AM6*(AM4-AM9))))^AM5)) -> 0 | AM33: =IF(OR(AJ33<=AN7,AJ33>AN9),0,AN8+(AN10-AN8)*(1-((AN5+EXP(AN6*(AN4-AN7)))/(AN5+EXP(AN6*(AN4-AJ33))))^AN5)/(1-((AN5+EXP(AN6*(AN4-AN7)))/(AN5+EXP(AN6*(AN4-AN9))))^AN5)) -> 0 | AN33: =IF(OR(AJ33<=AN9,AJ33>100000),0,IF(AJ33<=AO7,AO8,AO8+(AO10-AO8)*(1-((AO5+EXP(AO6*(AO4-AO7)))/(AO5+EXP(AO6*(AO4-AJ33))))^AO5)/(1-((AO5+EXP(AO6*(AO4-AO7)))/(AO5+EXP(AO6*(AO4-AO9))))^AO5))) -> 0 | AO33: 0 | AP33: 0
A34: 23 | B34: ='daily uptake'!F117 -> 2010-11-23 | C34: =5/9*'daily uptake'!Q117 -> 9.444444444 | D34: =5/9*'daily uptake'!N117 -> 3.333333333 | E34: =IF(AND($A34>='daily uptake'!$C$9,$A34<='daily uptake'!$C$10),$C34+E33,0) -> 271.1111111 | F34: =IF(AND($A34>='daily uptake'!$C$18,$A34<='daily uptake'!$C$20),$D34+F33,0) -> 0 | G34: =IF(AND($A34>='daily uptake'!$C$24,$A34<='daily uptake'!$C$25),$C34+G33,0) -> 0 | H34: =IF(OR(F34<=I7,F34>I9),0,I8+(I10-I8)*(1-((I5+EXP(I6*(I4-I7)))/(I5+EXP(I6*(I4-F34))))^I5)/(1-((I5+EXP(I6*(I4-I7)))/(I5+EXP(I6*(I4-I9))))^I5)) -> 0 | I34: =IF(OR(F34<=J7,F34>J9),0,J8+(J10-J8)*(1-((J5+EXP(J6*(J4-J7)))/(J5+EXP(J6*(J4-F34))))^J5)/(1-((J5+EXP(J6*(J4-J7)))/(J5+EXP(J6*(J4-J9))))^J5)) -> 0 | J34: =IF(OR(F34<=J9,F34>100000),0,IF(F34<=K7,K8,K8+(K10-K8)*(1-((K5+EXP(K6*(K4-K7)))/(K5+EXP(K6*(K4-F34))))^K5)/(1-((K5+EXP(K6*(K4-K7)))/(K5+EXP(K6*(K4-K9))))^K5))) -> 0 | K34: 0 | L34: 0 | M34: 9.811647801 | N34: 0 | O34: 2010-11-23 | P34: =MAX(L$12:L34)+MAX(M$12:M34)+MAX(N$12:N34) -> 9.811647801 | Q34: 2010-11-23 | R34: 0.4223045083 | AJ34: 0 | AL34: =IF(OR(AJ34<=AM7,AJ34>AM9),0,AM8+(AM10-AM8)*(1-((AM5+EXP(AM6*(AM4-AM7)))/(AM5+EXP(AM6*(AM4-AJ34))))^AM5)/(1-((AM5+EXP(AM6*(AM4-AM7)))/(AM5+EXP(AM6*(AM4-AM9))))^AM5)) -> 0 | AM34: =IF(OR(AJ34<=AN7,AJ34>AN9),0,AN8+(AN10-AN8)*(1-((AN5+EXP(AN6*(AN4-AN7)))/(AN5+EXP(AN6*(AN4-AJ34))))^AN5)/(1-((AN5+EXP(AN6*(AN4-AN7)))/(AN5+EXP(AN6*(AN4-AN9))))^AN5)) -> 0 | AN34: =IF(OR(AJ34<=AN9,AJ34>100000),0,IF(AJ34<=AO7,AO8,AO8+(AO10-AO8)*(1-((AO5+EXP(AO6*(AO4-AO7)))/(AO5+EXP(AO6*(AO4-AJ34))))^AO5)/(1-((AO5+EXP(AO6*(AO4-AO7)))/(AO5+EXP(AO6*(AO4-AO9))))^AO5))) -> 0 | AO34: 0 | AP34: 0
A35: 24 | B35: ='daily uptake'!F118 -> 2010-11-24 | C35: =5/9*'daily uptake'!Q118 -> 9.166666667 | D35: =5/9*'daily uptake'!N118 -> 3.055555556 | E35: =IF(AND($A35>='daily uptake'!$C$9,$A35<='daily uptake'!$C$10),$C35+E34,0) -> 280.2777778 | F35: =IF(AND($A35>='daily uptake'!$C$18,$A35<='daily uptake'!$C$20),$D35+F34,0) -> 0 | G35: =IF(AND($A35>='daily uptake'!$C$24,$A35<='daily uptake'!$C$25),$C35+G34,0) -> 0 | H35: =IF(OR(F35<=I7,F35>I9),0,I8+(I10-I8)*(1-((I5+EXP(I6*(I4-I7)))/(I5+EXP(I6*(I4-F35))))^I5)/(1-((I5+EXP(I6*(I4-I7)))/(I5+EXP(I6*(I4-I9))))^I5)) -> 0 | I35: =IF(OR(F35<=J7,F35>J9),0,J8+(J10-J8)*(1-((J5+EXP(J6*(J4-J7)))/(J5+EXP(J6*(J4-F35))))^J5)/(1-((J5+EXP(J6*(J4-J7)))/(J5+EXP(J6*(J4-J9))))^J5)) -> 0 | J35: =IF(OR(F35<=J9,F35>100000),0,IF(F35<=K7,K8,K8+(K10-K8)*(1-((K5+EXP(K6*(K4-K7)))/(K5+EXP(K6*(K4-F35))))^K5)/(1-((K5+EXP(K6*(K4-K7)))/(K5+EXP(K6*(K4-K9))))^K5))) -> 0 | K35: 0 | L35: 0 | M35: 10.22776275 | N35: 0 | O35: 2010-11-24 | P35: =MAX(L$12:L35)+MAX(M$12:M35)+MAX(N$12:N35) -> 10.22776275 | Q35: 2010-11-24 | R35: 0.4161149519 | AJ35: 0 | AL35: =IF(OR(AJ35<=AM7,AJ35>AM9),0,AM8+(AM10-AM8)*(1-((AM5+EXP(AM6*(AM4-AM7)))/(AM5+EXP(AM6*(AM4-AJ35))))^AM5)/(1-((AM5+EXP(AM6*(AM4-AM7)))/(AM5+EXP(AM6*(AM4-AM9))))^AM5)) -> 0 | AM35: =IF(OR(AJ35<=AN7,AJ35>AN9),0,AN8+(AN10-AN8)*(1-((AN5+EXP(AN6*(AN4-AN7)))/(AN5+EXP(AN6*(AN4-AJ35))))^AN5)/(1-((AN5+EXP(AN6*(AN4-AN7)))/(AN5+EXP(AN6*(AN4-AN9))))^AN5)) -> 0 | AN35: =IF(OR(AJ35<=AN9,AJ35>100000),0,IF(AJ35<=AO7,AO8,AO8+(AO10-AO8)*(1-((AO5+EXP(AO6*(AO4-AO7)))/(AO5+EXP(AO6*(AO4-AJ35))))^AO5)/(1-((AO5+EXP(AO6*(AO4-AO7)))/(AO5+EXP(AO6*(AO4-AO9))))^AO5))) -> 0 | AO35: 0 | AP35: 0
A36: 25 | B36: ='daily uptake'!F119 -> 2010-11-25 | C36: =5/9*'daily uptake'!Q119 -> 9.722222222 | D36: =5/9*'daily uptake'!N119 -> 3.333333333 | E36: =IF(AND($A36>='daily uptake'!$C$9,$A36<='daily uptake'!$C$10),$C36+E35,0) -> 290 | F36: =IF(AND($A36>='daily uptake'!$C$18,$A36<='daily uptake'!$C$20),$D36+F35,0) -> 0 | G36: =IF(AND($A36>='daily uptake'!$C$24,$A36<='daily uptake'!$C$25),$C36+G35,0) -> 0 | H36: =IF(OR(F36<=I7,F36>I9),0,I8+(I10-I8)*(1-((I5+EXP(I6*(I4-I7)))/(I5+EXP(I6*(I4-F36))))^I5)/(1-((I5+EXP(I6*(I4-I7)))/(I5+EXP(I6*(I4-I9))))^I5)) -> 0 | I36: =IF(OR(F36<=J7,F36>J9),0,J8+(J10-J8)*(1-((J5+EXP(J6*(J4-J7)))/(J5+EXP(J6*(J4-F36))))^J5)/(1-((J5+EXP(J6*(J4-J7)))/(J5+EXP(J6*(J4-J9))))^J5)) -> 0 | J36: =IF(OR(F36<=J9,F36>100000),0,IF(F36<=K7,K8,K8+(K10-K8)*(1-((K5+EXP(K6*(K4-K7)))/(K5+EXP(K6*(K4-F36))))^K5)/(1-((K5+EXP(K6*(K4-K7)))/(K5+EXP(K6*(K4-K9))))^K5))) -> 0 | K36: 0 | L36: 0 | M36: 10.67587738 | N36: 0 | O36: 2010-11-25 | P36: =MAX(L$12:L36)+MAX(M$12:M36)+MAX(N$12:N36) -> 10.67587738 | Q36: 2010-11-25 | R36: 0.4481146299 | AJ36: 0 | AL36: =IF(OR(AJ36<=AM7,AJ36>AM9),0,AM8+(AM10-AM8)*(1-((AM5+EXP(AM6*(AM4-AM7)))/(AM5+EXP(AM6*(AM4-AJ36))))^AM5)/(1-((AM5+EXP(AM6*(AM4-AM7)))/(AM5+EXP(AM6*(AM4-AM9))))^AM5)) -> 0 | AM36: =IF(OR(AJ36<=AN7,AJ36>AN9),0,AN8+(AN10-AN8)*(1-((AN5+EXP(AN6*(AN4-AN7)))/(AN5+EXP(AN6*(AN4-AJ36))))^AN5)/(1-((AN5+EXP(AN6*(AN4-AN7)))/(AN5+EXP(AN6*(AN4-AN9))))^AN5)) -> 0 | AN36: =IF(OR(AJ36<=AN9,AJ36>100000),0,IF(AJ36<=AO7,AO8,AO8+(AO10-AO8)*(1-((AO5+EXP(AO6*(AO4-AO7)))/(AO5+EXP(AO6*(AO4-AJ36))))^AO5)/(1-((AO5+EXP(AO6*(AO4-AO7)))/(AO5+EXP(AO6*(AO4-AO9))))^AO5))) -> 0 | AO36: 0 | AP36: 0
A37: 26 | B37: ='daily uptake'!F120 -> 2010-11-26 | C37: =5/9*'daily uptake'!Q120 -> 8.888888889 | D37: =5/9*'daily uptake'!N120 -> 2.5 | E37: =IF(AND($A37>='daily uptake'!$C$9,$A37<='daily uptake'!$C$10),$C37+E36,0) -> 298.8888889 | F37: =IF(AND($A37>='daily uptake'!$C$18,$A37<='daily uptake'!$C$20),$D37+F36,0) -> 0 | G37: =IF(AND($A37>='daily uptake'!$C$24,$A37<='daily uptake'!$C$25),$C37+G36,0) -> 0 | H37: =IF(OR(F37<=I7,F37>I9),0,I8+(I10-I8)*(1-((I5+EXP(I6*(I4-I7)))/(I5+EXP(I6*(I4-F37))))^I5)/(1-((I5+EXP(I6*(I4-I7)))/(I5+EXP(I6*(I4-I9))))^I5)) -> 0 | I37: =IF(OR(F37<=J7,F37>J9),0,J8+(J10-J8)*(1-((J5+EXP(J6*(J4-J7)))/(J5+EXP(J6*(J4-F37))))^J5)/(1-((J5+EXP(J6*(J4-J7)))/(J5+EXP(J6*(J4-J9))))^J5)) -> 0 | J37: =IF(OR(F37<=J9,F37>100000),0,IF(F37<=K7,K8,K8+(K10-K8)*(1-((K5+EXP(K6*(K4-K7)))/(K5+EXP(K6*(K4-F37))))^K5)/(1-((K5+EXP(K6*(K4-K7)))/(K5+EXP(K6*(K4-K9))))^K5))) -> 0 | K37: 0 | L37: 0 | M37: 11.09175479 | N37: 0 | O37: 2010-11-26 | P37: =MAX(L$12:L37)+MAX(M$12:M37)+MAX(N$12:N37) -> 11.09175479 | Q37: 2010-11-26 | R37: 0.4158774046 | AJ37: 0 | AL37: =IF(OR(AJ37<=AM7,AJ37>AM9),0,AM8+(AM10-AM8)*(1-((AM5+EXP(AM6*(AM4-AM7)))/(AM5+EXP(AM6*(AM4-AJ37))))^AM5)/(1-((AM5+EXP(AM6*(AM4-AM7)))/(AM5+EXP(AM6*(AM4-AM9))))^AM5)) -> 0 | AM37: =IF(OR(AJ37<=AN7,AJ37>AN9),0,AN8+(AN10-AN8)*(1-((AN5+EXP(AN6*(AN4-AN7)))/(AN5+EXP(AN6*(AN4-AJ37))))^AN5)/(1-((AN5+EXP(AN6*(AN4-AN7)))/(AN5+EXP(AN6*(AN4-AN9))))^AN5)) -> 0 | AN37: =IF(OR(AJ37<=AN9,AJ37>100000),0,IF(AJ37<=AO7,AO8,AO8+(AO10-AO8)*(1-((AO5+EXP(AO6*(AO4-AO7)))/(AO5+EXP(AO6*(AO4-AJ37))))^AO5)/(1-((AO5+EXP(AO6*(AO4-AO7)))/(AO5+EXP(AO6*(AO4-AO9))))^AO5))) -> 0 | AO37: 0 | AP37: 0
A38: 27 | B38: ='daily uptake'!F121 -> 2010-11-27 | C38: =5/9*'daily uptake'!Q121 -> 8.333333333 | D38: =5/9*'daily uptake'!N121 -> 1.944444444 | E38: =IF(AND($A38>='daily uptake'!$C$9,$A38<='daily uptake'!$C$10),$C38+E37,0) -> 307.2222222 | F38: =IF(AND($A38>='daily uptake'!$C$18,$A38<='daily uptake'!$C$20),$D38+F37,0) -> 0 | G38: =IF(AND($A38>='daily uptake'!$C$24,$A38<='daily uptake'!$C$25),$C38+G37,0) -> 0 | H38: =IF(OR(F38<=I7,F38>I9),0,I8+(I10-I8)*(1-((I5+EXP(I6*(I4-I7)))/(I5+EXP(I6*(I4-F38))))^I5)/(1-((I5+EXP(I6*(I4-I7)))/(I5+EXP(I6*(I4-I9))))^I5)) -> 0 | I38: =IF(OR(F38<=J7,F38>J9),0,J8+(J10-J8)*(1-((J5+EXP(J6*(J4-J7)))/(J5+EXP(J6*(J4-F38))))^J5)/(1-((J5+EXP(J6*(J4-J7)))/(J5+EXP(J6*(J4-J9))))^J5)) -> 0 | J38: =IF(OR(F38<=J9,F38>100000),0,IF(F38<=K7,K8,K8+(K10-K8)*(1-((K5+EXP(K6*(K4-K7)))/(K5+EXP(K6*(K4-F38))))^K5)/(1-((K5+EXP(K6*(K4-K7)))/(K5+EXP(K6*(K4-K9))))^K5))) -> 0 | K38: 0 | L38: 0 | M38: 11.48704877 | N38: 0 | O38: 2010-11-27 | P38: =MAX(L$12:L38)+MAX(M$12:M38)+MAX(N$12:N38) -> 11.48704877 | Q38: 2010-11-27 | R38: 0.3952939835 | AJ38: 0 | AL38: =IF(OR(AJ38<=AM7,AJ38>AM9),0,AM8+(AM10-AM8)*(1-((AM5+EXP(AM6*(AM4-AM7)))/(AM5+EXP(AM6*(AM4-AJ38))))^AM5)/(1-((AM5+EXP(AM6*(AM4-AM7)))/(AM5+EXP(AM6*(AM4-AM9))))^AM5)) -> 0 | AM38: =IF(OR(AJ38<=AN7,AJ38>AN9),0,AN8+(AN10-AN8)*(1-((AN5+EXP(AN6*(AN4-AN7)))/(AN5+EXP(AN6*(AN4-AJ38))))^AN5)/(1-((AN5+EXP(AN6*(AN4-AN7)))/(AN5+EXP(AN6*(AN4-AN9))))^AN5)) -> 0 | AN38: =IF(OR(AJ38<=AN9,AJ38>100000),0,IF(AJ38<=AO7,AO8,AO8+(AO10-AO8)*(1-((AO5+EXP(AO6*(AO4-AO7)))/(AO5+EXP(AO6*(AO4-AJ38))))^AO5)/(1-((AO5+EXP(AO6*(AO4-AO7)))/(AO5+EXP(AO6*(AO4-AO9))))^AO5))) -> 0 | AO38: 0 | AP38: 0
A39: 28 | B39: ='daily uptake'!F122 -> 2010-11-28 | C39: =5/9*'daily uptake'!Q122 -> 8.611111111 | D39: =5/9*'daily uptake'!N122 -> 2.222222222 | E39: =IF(AND($A39>='daily uptake'!$C$9,$A39<='daily uptake'!$C$10),$C39+E38,0) -> 315.8333333 | F39: =IF(AND($A39>='daily uptake'!$C$18,$A39<='daily uptake'!$C$20),$D39+F38,0) -> 0 | G39: =IF(AND($A39>='daily uptake'!$C$24,$A39<='daily uptake'!$C$25),$C39+G38,0) -> 0 | H39: =IF(OR(F39<=I7,F39>I9),0,I8+(I10-I8)*(1-((I5+EXP(I6*(I4-I7)))/(I5+EXP(I6*(I4-F39))))^I5)/(1-((I5+EXP(I6*(I4-I7)))/(I5+EXP(I6*(I4-I9))))^I5)) -> 0 | I39: =IF(OR(F39<=J7,F39>J9),0,J8+(J10-J8)*(1-((J5+EXP(J6*(J4-J7)))/(J5+EXP(J6*(J4-F39))))^J5)/(1-((J5+EXP(J6*(J4-J7)))/(J5+EXP(J6*(J4-J9))))^J5)) -> 0 | J39: =IF(OR(F39<=J9,F39>100000),0,IF(F39<=K7,K8,K8+(K10-K8)*(1-((K5+EXP(K6*(K4-K7)))/(K5+EXP(K6*(K4-F39))))^K5)/(1-((K5+EXP(K6*(K4-K7)))/(K5+EXP(K6*(K4-K9))))^K5))) -> 0 | K39: 0 | L39: 0 | M39: 11.90107065 | N39: 0 | O39: 2010-11-28 | P39: =MAX(L$12:L39)+MAX(M$12:M39)+MAX(N$12:N39) -> 11.90107065 | Q39: 2010-11-28 | R39: 0.4140218738 | AJ39: 0 | AL39: =IF(OR(AJ39<=AM7,AJ39>AM9),0,AM8+(AM10-AM8)*(1-((AM5+EXP(AM6*(AM4-AM7)))/(AM5+EXP(AM6*(AM4-AJ39))))^AM5)/(1-((AM5+EXP(AM6*(AM4-AM7)))/(AM5+EXP(AM6*(AM4-AM9))))^AM5)) -> 0 | AM39: =IF(OR(AJ39<=AN7,AJ39>AN9),0,AN8+(AN10-AN8)*(1-((AN5+EXP(AN6*(AN4-AN7)))/(AN5+EXP(AN6*(AN4-AJ39))))^AN5)/(1-((AN5+EXP(AN6*(AN4-AN7)))/(AN5+EXP(AN6*(AN4-AN9))))^AN5)) -> 0 | AN39: =IF(OR(AJ39<=AN9,AJ39>100000),0,IF(AJ39<=AO7,AO8,AO8+(AO10-AO8)*(1-((AO5+EXP(AO6*(AO4-AO7)))/(AO5+EXP(AO6*(AO4-AJ39))))^AO5)/(1-((AO5+EXP(AO6*(AO4-AO7)))/(AO5+EXP(AO6*(AO4-AO9))))^AO5))) -> 0 | AO39: 0 | AP39: 0
A40: 29 | B40: ='daily uptake'!F123 -> 2010-11-29 | C40: =5/9*'daily uptake'!Q123 -> 8.333333333 | D40: =5/9*'daily uptake'!N123 -> 2.222222222 | E40: =IF(AND($A40>='daily uptake'!$C$9,$A40<='daily uptake'!$C$10),$C40+E39,0) -> 324.1666667 | F40: =IF(AND($A40>='daily uptake'!$C$18,$A40<='daily uptake'!$C$20),$D40+F39,0) -> 0 | G40: =IF(AND($A40>='daily uptake'!$C$24,$A40<='daily uptake'!$C$25),$C40+G39,0) -> 0 | H40: =IF(OR(F40<=I7,F40>I9),0,I8+(I10-I8)*(1-((I5+EXP(I6*(I4-I7)))/(I5+EXP(I6*(I4-F40))))^I5)/(1-((I5+EXP(I6*(I4-I7)))/(I5+EXP(I6*(I4-I9))))^I5)) -> 0 | I40: =IF(OR(F40<=J7,F40>J9),0,J8+(J10-J8)*(1-((J5+EXP(J6*(J4-J7)))/(J5+EXP(J6*(J4-F40))))^J5)/(1-((J5+EXP(J6*(J4-J7)))/(J5+EXP(J6*(J4-J9))))^J5)) -> 0 | J40: =IF(OR(F40<=J9,F40>100000),0,IF(F40<=K7,K8,K8+(K10-K8)*(1-((K5+EXP(K6*(K4-K7)))/(K5+EXP(K6*(K4-F40))))^K5)/(1-((K5+EXP(K6*(K4-K7)))/(K5+EXP(K6*(K4-K9))))^K5))) -> 0 | K40: 0 | L40: 0 | M40: 12.30715866 | N40: 0 | O40: 2010-11-29 | P40: =MAX(L$12:L40)+MAX(M$12:M40)+MAX(N$12:N40) -> 12.30715866 | Q40: 2010-11-29 | R40: 0.406088016 | AJ40: 0 | AL40: =IF(OR(AJ40<=AM7,AJ40>AM9),0,AM8+(AM10-AM8)*(1-((AM5+EXP(AM6*(AM4-AM7)))/(AM5+EXP(AM6*(AM4-AJ40))))^AM5)/(1-((AM5+EXP(AM6*(AM4-AM7)))/(AM5+EXP(AM6*(AM4-AM9))))^AM5)) -> 0 | AM40: =IF(OR(AJ40<=AN7,AJ40>AN9),0,AN8+(AN10-AN8)*(1-((AN5+EXP(AN6*(AN4-AN7)))/(AN5+EXP(AN6*(AN4-AJ40))))^AN5)/(1-((AN5+EXP(AN6*(AN4-AN7)))/(AN5+EXP(AN6*(AN4-AN9))))^AN5)) -> 0 | AN40: =IF(OR(AJ40<=AN9,AJ40>100000),0,IF(AJ40<=AO7,AO8,AO8+(AO10-AO8)*(1-((AO5+EXP(AO6*(AO4-AO7)))/(AO5+EXP(AO6*(AO4-AJ40))))^AO5)/(1-((AO5+EXP(AO6*(AO4-AO7)))/(AO5+EXP(AO6*(AO4-AO9))))^AO5))) -> 0 | AO40: 0 | AP40: 0
A41: 30 | B41: ='daily uptake'!F124 -> 2010-11-30 | C41: =5/9*'daily uptake'!Q124 -> 8.611111111 | D41: =5/9*'daily uptake'!N124 -> 2.5 | E41: =IF(AND($A41>='daily uptake'!$C$9,$A41<='daily uptake'!$C$10),$C41+E40,0) -> 332.7777778 | F41: =IF(AND($A41>='daily uptake'!$C$18,$A41<='daily uptake'!$C$20),$D41+F40,0) -> 0 | G41: =IF(AND($A41>='daily uptake'!$C$24,$A41<='daily uptake'!$C$25),$C41+G40,0) -> 0 | H41: =IF(OR(F41<=I7,F41>I9),0,I8+(I10-I8)*(1-((I5+EXP(I6*(I4-I7)))/(I5+EXP(I6*(I4-F41))))^I5)/(1-((I5+EXP(I6*(I4-I7)))/(I5+EXP(I6*(I4-I9))))^I5)) -> 0 | I41: =IF(OR(F41<=J7,F41>J9),0,J8+(J10-J8)*(1-((J5+EXP(J6*(J4-J7)))/(J5+EXP(J6*(J4-F41))))^J5)/(1-((J5+EXP(J6*(J4-J7)))/(J5+EXP(J6*(J4-J9))))^J5)) -> 0 | J41: =IF(OR(F41<=J9,F41>100000),0,IF(F41<=K7,K8,K8+(K10-K8)*(1-((K5+EXP(K6*(K4-K7)))/(K5+EXP(K6*(K4-F41))))^K5)/(1-((K5+EXP(K6*(K4-K7)))/(K5+EXP(K6*(K4-K9))))^K5))) -> 0 | K41: 0 | L41: 0 | M41: 12.73243662 | N41: 0 | O41: 2010-11-30 | P41: =MAX(L$12:L41)+MAX(M$12:M41)+MAX(N$12:N41) -> 12.73243662 | Q41: 2010-11-30 | R41: 0.4252779621 | AJ41: 0 | AL41: =IF(OR(AJ41<=AM7,AJ41>AM9),0,AM8+(AM10-AM8)*(1-((AM5+EXP(AM6*(AM4-AM7)))/(AM5+EXP(AM6*(AM4-AJ41))))^AM5)/(1-((AM5+EXP(AM6*(AM4-AM7)))/(AM5+EXP(AM6*(AM4-AM9))))^AM5)) -> 0 | AM41: =IF(OR(AJ41<=AN7,AJ41>AN9),0,AN8+(AN10-AN8)*(1-((AN5+EXP(AN6*(AN4-AN7)))/(AN5+EXP(AN6*(AN4-AJ41))))^AN5)/(1-((AN5+EXP(AN6*(AN4-AN7)))/(AN5+EXP(AN6*(AN4-AN9))))^AN5)) -> 0 | AN41: =IF(OR(AJ41<=AN9,AJ41>100000),0,IF(AJ41<=AO7,AO8,AO8+(AO10-AO8)*(1-((AO5+EXP(AO6*(AO4-AO7)))/(AO5+EXP(AO6*(AO4-AJ41))))^AO5)/(1-((AO5+EXP(AO6*(AO4-AO7)))/(AO5+EXP(AO6*(AO4-AO9))))^AO5))) -> 0 | AO41: 0 | AP41: 0
A42: 31 | B42: ='daily uptake'!F125 -> 2010-12-01 | C42: =5/9*'daily uptake'!Q125 -> 8.333333333 | D42: =5/9*'daily uptake'!N125 -> 2.222222222 | E42: =IF(AND($A42>='daily uptake'!$C$9,$A42<='daily uptake'!$C$10),$C42+E41,0) -> 341.1111111 | F42: =IF(AND($A42>='daily uptake'!$C$18,$A42<='daily uptake'!$C$20),$D42+F41,0) -> 0 | G42: =IF(AND($A42>='daily uptake'!$C$24,$A42<='daily uptake'!$C$25),$C42+G41,0) -> 0 | H42: =IF(OR(F42<=I7,F42>I9),0,I8+(I10-I8)*(1-((I5+EXP(I6*(I4-I7)))/(I5+EXP(I6*(I4-F42))))^I5)/(1-((I5+EXP(I6*(I4-I7)))/(I5+EXP(I6*(I4-I9))))^I5)) -> 0 | I42: =IF(OR(F42<=J7,F42>J9),0,J8+(J10-J8)*(1-((J5+EXP(J6*(J4-J7)))/(J5+EXP(J6*(J4-F42))))^J5)/(1-((J5+EXP(J6*(J4-J7)))/(J5+EXP(J6*(J4-J9))))^J5)) -> 0 | J42: =IF(OR(F42<=J9,F42>100000),0,IF(F42<=K7,K8,K8+(K10-K8)*(1-((K5+EXP(K6*(K4-K7)))/(K5+EXP(K6*(K4-F42))))^K5)/(1-((K5+EXP(K6*(K4-K7)))/(K5+EXP(K6*(K4-K9))))^K5))) -> 0 | K42: 0 | L42: 0 | M42: 13.14951603 | N42: 0 | O42: 2010-12-01 | P42: =MAX(L$12:L42)+MAX(M$12:M42)+MAX(N$12:N42) -> 13.14951603 | Q42: 2010-12-01 | R42: 0.4170794056 | AJ42: 0 | AL42: =IF(OR(AJ42<=AM7,AJ42>AM9),0,AM8+(AM10-AM8)*(1-((AM5+EXP(AM6*(AM4-AM7)))/(AM5+EXP(AM6*(AM4-AJ42))))^AM5)/(1-((AM5+EXP(AM6*(AM4-AM7)))/(AM5+EXP(AM6*(AM4-AM9))))^AM5)) -> 0 | AM42: =IF(OR(AJ42<=AN7,AJ42>AN9),0,AN8+(AN10-AN8)*(1-((AN5+EXP(AN6*(AN4-AN7)))/(AN5+EXP(AN6*(AN4-AJ42))))^AN5)/(1-((AN5+EXP(AN6*(AN4-AN7)))/(AN5+EXP(AN6*(AN4-AN9))))^AN5)) -> 0 | AN42: =IF(OR(AJ42<=AN9,AJ42>100000),0,IF(AJ42<=AO7,AO8,AO8+(AO10-AO8)*(1-((AO5+EXP(AO6*(AO4-AO7)))/(AO5+EXP(AO6*(AO4-AJ42))))^AO5)/(1-((AO5+EXP(AO6*(AO4-AO7)))/(AO5+EXP(AO6*(AO4-AO9))))^AO5))) -> 0 | AO42: 0 | AP42: 0
A43: 32 | B43: ='daily uptake'!F126 -> 2010-12-02 | C43: =5/9*'daily uptake'!Q126 -> 8.333333333 | D43: =5/9*'daily uptake'!N126 -> 2.5 | E43: =IF(AND($A43>='daily uptake'!$C$9,$A43<='daily uptake'!$C$10),$C43+E42,0) -> 349.4444444 | F43: =IF(AND($A43>='daily uptake'!$C$18,$A43<='daily uptake'!$C$20),$D43+F42,0) -> 0 | G43: =IF(AND($A43>='daily uptake'!$C$24,$A43<='daily uptake'!$C$25),$C43+G42,0) -> 0 | H43: =IF(OR(F43<=I7,F43>I9),0,I8+(I10-I8)*(1-((I5+EXP(I6*(I4-I7)))/(I5+EXP(I6*(I4-F43))))^I5)/(1-((I5+EXP(I6*(I4-I7)))/(I5+EXP(I6*(I4-I9))))^I5)) -> 0 | I43: =IF(OR(F43<=J7,F43>J9),0,J8+(J10-J8)*(1-((J5+EXP(J6*(J4-J7)))/(J5+EXP(J6*(J4-F43))))^J5)/(1-((J5+EXP(J6*(J4-J7)))/(J5+EXP(J6*(J4-J9))))^J5)) -> 0 | J43: =IF(OR(F43<=J9,F43>100000),0,IF(F43<=K7,K8,K8+(K10-K8)*(1-((K5+EXP(K6*(K4-K7)))/(K5+EXP(K6*(K4-F43))))^K5)/(1-((K5+EXP(K6*(K4-K7)))/(K5+EXP(K6*(K4-K9))))^K5))) -> 0 | K43: 0 | L43: 0 | M43: 13.5720727 | N43: 0 | O43: 2010-12-02 | P43: =MAX(L$12:L43)+MAX(M$12:M43)+MAX(N$12:N43) -> 13.5720727 | Q43: 2010-12-02 | R43: 0.4225566746 | AJ43: 0 | AL43: =IF(OR(AJ43<=AM7,AJ43>AM9),0,AM8+(AM10-AM8)*(1-((AM5+EXP(AM6*(AM4-AM7)))/(AM5+EXP(AM6*(AM4-AJ43))))^AM5)/(1-((AM5+EXP(AM6*(AM4-AM7)))/(AM5+EXP(AM6*(AM4-AM9))))^AM5)) -> 0 | AM43: =IF(OR(AJ43<=AN7,AJ43>AN9),0,AN8+(AN10-AN8)*(1-((AN5+EXP(AN6*(AN4-AN7)))/(AN5+EXP(AN6*(AN4-AJ43))))^AN5)/(1-((AN5+EXP(AN6*(AN4-AN7)))/(AN5+EXP(AN6*(AN4-AN9))))^AN5)) -> 0 | AN43: =IF(OR(AJ43<=AN9,AJ43>100000),0,IF(AJ43<=AO7,AO8,AO8+(AO10-AO8)*(1-((AO5+EXP(AO6*(AO4-AO7)))/(AO5+EXP(AO6*(AO4-AJ43))))^AO5)/(1-((AO5+EXP(AO6*(AO4-AO7)))/(AO5+EXP(AO6*(AO4-AO9))))^AO5))) -> 0 | AO43: 0 | AP43: 0
A44: 33 | B44: ='daily uptake'!F127 -> 2010-12-03 | C44: =5/9*'daily uptake'!Q127 -> 8.055555556 | D44: =5/9*'daily uptake'!N127 -> 1.944444444 | E44: =IF(AND($A44>='daily uptake'!$C$9,$A44<='daily uptake'!$C$10),$C44+E43,0) -> 357.5 | F44: =IF(AND($A44>='daily uptake'!$C$18,$A44<='daily uptake'!$C$20),$D44+F43,0) -> 0 | G44: =IF(AND($A44>='daily uptake'!$C$24,$A44<='daily uptake'!$C$25),$C44+G43,0) -> 0 | H44: =IF(OR(F44<=I7,F44>I9),0,I8+(I10-I8)*(1-((I5+EXP(I6*(I4-I7)))/(I5+EXP(I6*(I4-F44))))^I5)/(1-((I5+EXP(I6*(I4-I7)))/(I5+EXP(I6*(I4-I9))))^I5)) -> 0 | I44: =IF(OR(F44<=J7,F44>J9),0,J8+(J10-J8)*(1-((J5+EXP(J6*(J4-J7)))/(J5+EXP(J6*(J4-F44))))^J5)/(1-((J5+EXP(J6*(J4-J7)))/(J5+EXP(J6*(J4-J9))))^J5)) -> 0 | J44: =IF(OR(F44<=J9,F44>100000),0,IF(F44<=K7,K8,K8+(K10-K8)*(1-((K5+EXP(K6*(K4-K7)))/(K5+EXP(K6*(K4-F44))))^K5)/(1-((K5+EXP(K6*(K4-K7)))/(K5+EXP(K6*(K4-K9))))^K5))) -> 0 | K44: 0 | L44: 0 | M44: 13.98579461 | N44: 0 | O44: 2010-12-03 | P44: =MAX(L$12:L44)+MAX(M$12:M44)+MAX(N$12:N44) -> 13.98579461 | Q44: 2010-12-03 | R44: 0.4137219111 | AJ44: 0 | AL44: =IF(OR(AJ44<=AM7,AJ44>AM9),0,AM8+(AM10-AM8)*(1-((AM5+EXP(AM6*(AM4-AM7)))/(AM5+EXP(AM6*(AM4-AJ44))))^AM5)/(1-((AM5+EXP(AM6*(AM4-AM7)))/(AM5+EXP(AM6*(AM4-AM9))))^AM5)) -> 0 | AM44: =IF(OR(AJ44<=AN7,AJ44>AN9),0,AN8+(AN10-AN8)*(1-((AN5+EXP(AN6*(AN4-AN7)))/(AN5+EXP(AN6*(AN4-AJ44))))^AN5)/(1-((AN5+EXP(AN6*(AN4-AN7)))/(AN5+EXP(AN6*(AN4-AN9))))^AN5)) -> 0 | AN44: =IF(OR(AJ44<=AN9,AJ44>100000),0,IF(AJ44<=AO7,AO8,AO8+(AO10-AO8)*(1-((AO5+EXP(AO6*(AO4-AO7)))/(AO5+EXP(AO6*(AO4-AJ44))))^AO5)/(1-((AO5+EXP(AO6*(AO4-AO7)))/(AO5+EXP(AO6*(AO4-AO9))))^AO5))) -> 0 | AO44: 0 | AP44: 0
A45: 34 | B45: ='daily uptake'!F128 -> 2010-12-04 | C45: =5/9*'daily uptake'!Q128 -> 8.333333333 | D45: =5/9*'daily uptake'!N128 -> 2.222222222 | E45: =IF(AND($A45>='daily uptake'!$C$9,$A45<='daily uptake'!$C$10),$C45+E44,0) -> 365.8333333 | F45: =IF(AND($A45>='daily uptake'!$C$18,$A45<='daily uptake'!$C$20),$D45+F44,0) -> 0 | G45: =IF(AND($A45>='daily uptake'!$C$24,$A45<='daily uptake'!$C$25),$C45+G44,0) -> 0 | H45: =IF(OR(F45<=I7,F45>I9),0,I8+(I10-I8)*(1-((I5+EXP(I6*(I4-I7)))/(I5+EXP(I6*(I4-F45))))^I5)/(1-((I5+EXP(I6*(I4-I7)))/(I5+EXP(I6*(I4-I9))))^I5)) -> 0 | I45: =IF(OR(F45<=J7,F45>J9),0,J8+(J10-J8)*(1-((J5+EXP(J6*(J4-J7)))/(J5+EXP(J6*(J4-F45))))^J5)/(1-((J5+EXP(J6*(J4-J7)))/(J5+EXP(J6*(J4-J9))))^J5)) -> 0 | J45: =IF(OR(F45<=J9,F45>100000),0,IF(F45<=K7,K8,K8+(K10-K8)*(1-((K5+EXP(K6*(K4-K7)))/(K5+EXP(K6*(K4-F45))))^K5)/(1-((K5+EXP(K6*(K4-K7)))/(K5+EXP(K6*(K4-K9))))^K5))) -> 0 | K45: 0 | L45: 0 | M45: 14.41925949 | N45: 0 | O45: 2010-12-04 | P45: =MAX(L$12:L45)+MAX(M$12:M45)+MAX(N$12:N45) -> 14.41925949 | Q45: 2010-12-04 | R45: 0.433464876 | AJ45: 0 | AL45: =IF(OR(AJ45<=AM7,AJ45>AM9),0,AM8+(AM10-AM8)*(1-((AM5+EXP(AM6*(AM4-AM7)))/(AM5+EXP(AM6*(AM4-AJ45))))^AM5)/(1-((AM5+EXP(AM6*(AM4-AM7)))/(AM5+EXP(AM6*(AM4-AM9))))^AM5)) -> 0 | AM45: =IF(OR(AJ45<=AN7,AJ45>AN9),0,AN8+(AN10-AN8)*(1-((AN5+EXP(AN6*(AN4-AN7)))/(AN5+EXP(AN6*(AN4-AJ45))))^AN5)/(1-((AN5+EXP(AN6*(AN4-AN7)))/(AN5+EXP(AN6*(AN4-AN9))))^AN5)) -> 0 | AN45: =IF(OR(AJ45<=AN9,AJ45>100000),0,IF(AJ45<=AO7,AO8,AO8+(AO10-AO8)*(1-((AO5+EXP(AO6*(AO4-AO7)))/(AO5+EXP(AO6*(AO4-AJ45))))^AO5)/(1-((AO5+EXP(AO6*(AO4-AO7)))/(AO5+EXP(AO6*(AO4-AO9))))^AO5))) -> 0 | AO45: 0 | AP45: 0
A46: 35 | B46: ='daily uptake'!F129 -> 2010-12-05 | C46: =5/9*'daily uptake'!Q129 -> 8.333333333 | D46: =5/9*'daily uptake'!N129 -> 1.944444444 | E46: =IF(AND($A46>='daily uptake'!$C$9,$A46<='daily uptake'!$C$10),$C46+E45,0) -> 374.1666667 | F46: =IF(AND($A46>='daily uptake'!$C$18,$A46<='daily uptake'!$C$20),$D46+F45,0) -> 0 | G46: =IF(AND($A46>='daily uptake'!$C$24,$A46<='daily uptake'!$C$25),$C46+G45,0) -> 0 | H46: =IF(OR(F46<=I7,F46>I9),0,I8+(I10-I8)*(1-((I5+EXP(I6*(I4-I7)))/(I5+EXP(I6*(I4-F46))))^I5)/(1-((I5+EXP(I6*(I4-I7)))/(I5+EXP(I6*(I4-I9))))^I5)) -> 0 | I46: =IF(OR(F46<=J7,F46>J9),0,J8+(J10-J8)*(1-((J5+EXP(J6*(J4-J7)))/(J5+EXP(J6*(J4-F46))))^J5)/(1-((J5+EXP(J6*(J4-J7)))/(J5+EXP(J6*(J4-J9))))^J5)) -> 0 | J46: =IF(OR(F46<=J9,F46>100000),0,IF(F46<=K7,K8,K8+(K10-K8)*(1-((K5+EXP(K6*(K4-K7)))/(K5+EXP(K6*(K4-F46))))^K5)/(1-((K5+EXP(K6*(K4-K7)))/(K5+EXP(K6*(K4-K9))))^K5))) -> 0 | K46: 0 | L46: 0 | M46: 14.85833945 | N46: 0 | O46: 2010-12-05 | P46: =MAX(L$12:L46)+MAX(M$12:M46)+MAX(N$12:N46) -> 14.85833945 | Q46: 2010-12-05 | R46: 0.439079964 | AJ46: 0 | AL46: =IF(OR(AJ46<=AM7,AJ46>AM9),0,AM8+(AM10-AM8)*(1-((AM5+EXP(AM6*(AM4-AM7)))/(AM5+EXP(AM6*(AM4-AJ46))))^AM5)/(1-((AM5+EXP(AM6*(AM4-AM7)))/(AM5+EXP(AM6*(AM4-AM9))))^AM5)) -> 0 | AM46: =IF(OR(AJ46<=AN7,AJ46>AN9),0,AN8+(AN10-AN8)*(1-((AN5+EXP(AN6*(AN4-AN7)))/(AN5+EXP(AN6*(AN4-AJ46))))^AN5)/(1-((AN5+EXP(AN6*(AN4-AN7)))/(AN5+EXP(AN6*(AN4-AN9))))^AN5)) -> 0 | AN46: =IF(OR(AJ46<=AN9,AJ46>100000),0,IF(AJ46<=AO7,AO8,AO8+(AO10-AO8)*(1-((AO5+EXP(AO6*(AO4-AO7)))/(AO5+EXP(AO6*(AO4-AJ46))))^AO5)/(1-((AO5+EXP(AO6*(AO4-AO7)))/(AO5+EXP(AO6*(AO4-AO9))))^AO5))) -> 0 | AO46: 0 | AP46: 0
A47: 36 | B47: ='daily uptake'!F130 -> 2010-12-06 | C47: =5/9*'daily uptake'!Q130 -> 8.333333333 | D47: =5/9*'daily uptake'!N130 -> 1.944444444 | E47: =IF(AND($A47>='daily uptake'!$C$9,$A47<='daily uptake'!$C$10),$C47+E46,0) -> 382.5 | F47: =IF(AND($A47>='daily uptake'!$C$18,$A47<='daily uptake'!$C$20),$D47+F46,0) -> 0 | G47: =IF(AND($A47>='daily uptake'!$C$24,$A47<='daily uptake'!$C$25),$C47+G46,0) -> 0 | H47: =IF(OR(F47<=I7,F47>I9),0,I8+(I10-I8)*(1-((I5+EXP(I6*(I4-I7)))/(I5+EXP(I6*(I4-F47))))^I5)/(1-((I5+EXP(I6*(I4-I7)))/(I5+EXP(I6*(I4-I9))))^I5)) -> 0 | I47: =IF(OR(F47<=J7,F47>J9),0,J8+(J10-J8)*(1-((J5+EXP(J6*(J4-J7)))/(J5+EXP(J6*(J4-F47))))^J5)/(1-((J5+EXP(J6*(J4-J7)))/(J5+EXP(J6*(J4-J9))))^J5)) -> 0 | J47: =IF(OR(F47<=J9,F47>100000),0,IF(F47<=K7,K8,K8+(K10-K8)*(1-((K5+EXP(K6*(K4-K7)))/(K5+EXP(K6*(K4-F47))))^K5)/(1-((K5+EXP(K6*(K4-K7)))/(K5+EXP(K6*(K4-K9))))^K5))) -> 0 | K47: 0 | L47: 0 | M47: 15.30308018 | N47: 0 | O47: 2010-12-06 | P47: =MAX(L$12:L47)+MAX(M$12:M47)+MAX(N$12:N47) -> 15.30308018 | Q47: 2010-12-06 | R47: 0.4447407249 | AJ47: 0 | AL47: =IF(OR(AJ47<=AM7,AJ47>AM9),0,AM8+(AM10-AM8)*(1-((AM5+EXP(AM6*(AM4-AM7)))/(AM5+EXP(AM6*(AM4-AJ47))))^AM5)/(1-((AM5+EXP(AM6*(AM4-AM7)))/(AM5+EXP(AM6*(AM4-AM9))))^AM5)) -> 0 | AM47: =IF(OR(AJ47<=AN7,AJ47>AN9),0,AN8+(AN10-AN8)*(1-((AN5+EXP(AN6*(AN4-AN7)))/(AN5+EXP(AN6*(AN4-AJ47))))^AN5)/(1-((AN5+EXP(AN6*(AN4-AN7)))/(AN5+EXP(AN6*(AN4-AN9))))^AN5)) -> 0 | AN47: =IF(OR(AJ47<=AN9,AJ47>100000),0,IF(AJ47<=AO7,AO8,AO8+(AO10-AO8)*(1-((AO5+EXP(AO6*(AO4-AO7)))/(AO5+EXP(AO6*(AO4-AJ47))))^AO5)/(1-((AO5+EXP(AO6*(AO4-AO7)))/(AO5+EXP(AO6*(AO4-AO9))))^AO5))) -> 0 | AO47: 0 | AP47: 0
A48: 37 | B48: ='daily uptake'!F131 -> 2010-12-07 | C48: =5/9*'daily uptake'!Q131 -> 8.611111111 | D48: =5/9*'daily uptake'!N131 -> 1.944444444 | E48: =IF(AND($A48>='daily uptake'!$C$9,$A48<='daily uptake'!$C$10),$C48+E47,0) -> 391.1111111 | F48: =IF(AND($A48>='daily uptake'!$C$18,$A48<='daily uptake'!$C$20),$D48+F47,0) -> 0 | G48: =IF(AND($A48>='daily uptake'!$C$24,$A48<='daily uptake'!$C$25),$C48+G47,0) -> 0 | H48: =IF(OR(F48<=I7,F48>I9),0,I8+(I10-I8)*(1-((I5+EXP(I6*(I4-I7)))/(I5+EXP(I6*(I4-F48))))^I5)/(1-((I5+EXP(I6*(I4-I7)))/(I5+EXP(I6*(I4-I9))))^I5)) -> 0 | I48: =IF(OR(F48<=J7,F48>J9),0,J8+(J10-J8)*(1-((J5+EXP(J6*(J4-J7)))/(J5+EXP(J6*(J4-F48))))^J5)/(1-((J5+EXP(J6*(J4-J7)))/(J5+EXP(J6*(J4-J9))))^J5)) -> 0 | J48: =IF(OR(F48<=J9,F48>100000),0,IF(F48<=K7,K8,K8+(K10-K8)*(1-((K5+EXP(K6*(K4-K7)))/(K5+EXP(K6*(K4-F48))))^K5)/(1-((K5+EXP(K6*(K4-K7)))/(K5+EXP(K6*(K4-K9))))^K5))) -> 0 | K48: 0 | L48: 0 | M48: 15.76864058 | N48: 0 | O48: 2010-12-07 | P48: =MAX(L$12:L48)+MAX(M$12:M48)+MAX(N$12:N48) -> 15.76864058 | Q48: 2010-12-07 | R48: 0.4655604012 | AJ48: 0 | AL48: =IF(OR(AJ48<=AM7,AJ48>AM9),0,AM8+(AM10-AM8)*(1-((AM5+EXP(AM6*(AM4-AM7)))/(AM5+EXP(AM6*(AM4-AJ48))))^AM5)/(1-((AM5+EXP(AM6*(AM4-AM7)))/(AM5+EXP(AM6*(AM4-AM9))))^AM5)) -> 0 | AM48: =IF(OR(AJ48<=AN7,AJ48>AN9),0,AN8+(AN10-AN8)*(1-((AN5+EXP(AN6*(AN4-AN7)))/(AN5+EXP(AN6*(AN4-AJ48))))^AN5)/(1-((AN5+EXP(AN6*(AN4-AN7)))/(AN5+EXP(AN6*(AN4-AN9))))^AN5)) -> 0 | AN48: =IF(OR(AJ48<=AN9,AJ48>100000),0,IF(AJ48<=AO7,AO8,AO8+(AO10-AO8)*(1-((AO5+EXP(AO6*(AO4-AO7)))/(AO5+EXP(AO6*(AO4-AJ48))))^AO5)/(1-((AO5+EXP(AO6*(AO4-AO7)))/(AO5+EXP(AO6*(AO4-AO9))))^AO5))) -> 0 | AO48: 0 | AP48: 0
A49: 38 | B49: ='daily uptake'!F132 -> 2010-12-08 | C49: =5/9*'daily uptake'!Q132 -> 7.777777778 | D49: =5/9*'daily uptake'!N132 -> 1.944444444 | E49: =IF(AND($A49>='daily uptake'!$C$9,$A49<='daily uptake'!$C$10),$C49+E48,0) -> 398.8888889 | F49: =IF(AND($A49>='daily uptake'!$C$18,$A49<='daily uptake'!$C$20),$D49+F48,0) -> 0 | G49: =IF(AND($A49>='daily uptake'!$C$24,$A49<='daily uptake'!$C$25),$C49+G48,0) -> 0 | H49: =IF(OR(F49<=I7,F49>I9),0,I8+(I10-I8)*(1-((I5+EXP(I6*(I4-I7)))/(I5+EXP(I6*(I4-F49))))^I5)/(1-((I5+EXP(I6*(I4-I7)))/(I5+EXP(I6*(I4-I9))))^I5)) -> 0 | I49: =IF(OR(F49<=J7,F49>J9),0,J8+(J10-J8)*(1-((J5+EXP(J6*(J4-J7)))/(J5+EXP(J6*(J4-F49))))^J5)/(1-((J5+EXP(J6*(J4-J7)))/(J5+EXP(J6*(J4-J9))))^J5)) -> 0 | J49: =IF(OR(F49<=J9,F49>100000),0,IF(F49<=K7,K8,K8+(K10-K8)*(1-((K5+EXP(K6*(K4-K7)))/(K5+EXP(K6*(K4-F49))))^K5)/(1-((K5+EXP(K6*(K4-K7)))/(K5+EXP(K6*(K4-K9))))^K5))) -> 0 | K49: 0 | L49: 0 | M49: 16.19442466 | N49: 0 | O49: 2010-12-08 | P49: =MAX(L$12:L49)+MAX(M$12:M49)+MAX(N$12:N49) -> 16.19442466 | Q49: 2010-12-08 | R49: 0.4257840828 | AJ49: 0 | AL49: =IF(OR(AJ49<=AM7,AJ49>AM9),0,AM8+(AM10-AM8)*(1-((AM5+EXP(AM6*(AM4-AM7)))/(AM5+EXP(AM6*(AM4-AJ49))))^AM5)/(1-((AM5+EXP(AM6*(AM4-AM7)))/(AM5+EXP(AM6*(AM4-AM9))))^AM5)) -> 0 | AM49: =IF(OR(AJ49<=AN7,AJ49>AN9),0,AN8+(AN10-AN8)*(1-((AN5+EXP(AN6*(AN4-AN7)))/(AN5+EXP(AN6*(AN4-AJ49))))^AN5)/(1-((AN5+EXP(AN6*(AN4-AN7)))/(AN5+EXP(AN6*(AN4-AN9))))^AN5)) -> 0 | AN49: =IF(OR(AJ49<=AN9,AJ49>100000),0,IF(AJ49<=AO7,AO8,AO8+(AO10-AO8)*(1-((AO5+EXP(AO6*(AO4-AO7)))/(AO5+EXP(AO6*(AO4-AJ49))))^AO5)/(1-((AO5+EXP(AO6*(AO4-AO7)))/(AO5+EXP(AO6*(AO4-AO9))))^AO5))) -> 0 | AO49: 0 | AP49: 0
A50: 39 | B50: ='daily uptake'!F133 -> 2010-12-09 | C50: =5/9*'daily uptake'!Q133 -> 8.055555556 | D50: =5/9*'daily uptake'!N133 -> 1.944444444 | E50: =IF(AND($A50>='daily uptake'!$C$9,$A50<='daily uptake'!$C$10),$C50+E49,0) -> 406.9444444 | F50: =IF(AND($A50>='daily uptake'!$C$18,$A50<='daily uptake'!$C$20),$D50+F49,0) -> 0 | G50: =IF(AND($A50>='daily uptake'!$C$24,$A50<='daily uptake'!$C$25),$C50+G49,0) -> 0 | H50: =IF(OR(F50<=I7,F50>I9),0,I8+(I10-I8)*(1-((I5+EXP(I6*(I4-I7)))/(I5+EXP(I6*(I4-F50))))^I5)/(1-((I5+EXP(I6*(I4-I7)))/(I5+EXP(I6*(I4-I9))))^I5)) -> 0 | I50: =IF(OR(F50<=J7,F50>J9),0,J8+(J10-J8)*(1-((J5+EXP(J6*(J4-J7)))/(J5+EXP(J6*(J4-F50))))^J5)/(1-((J5+EXP(J6*(J4-J7)))/(J5+EXP(J6*(J4-J9))))^J5)) -> 0 | J50: =IF(OR(F50<=J9,F50>100000),0,IF(F50<=K7,K8,K8+(K10-K8)*(1-((K5+EXP(K6*(K4-K7)))/(K5+EXP(K6*(K4-F50))))^K5)/(1-((K5+EXP(K6*(K4-K7)))/(K5+EXP(K6*(K4-K9))))^K5))) -> 0 | K50: 0 | L50: 0 | M50: 16.64073618 | N50: 0 | O50: 2010-12-09 | P50: =MAX(L$12:L50)+MAX(M$12:M50)+MAX(N$12:N50) -> 16.64073618 | Q50: 2010-12-09 | R50: 0.446311516 | AJ50: 0 | AL50: =IF(OR(AJ50<=AM7,AJ50>AM9),0,AM8+(AM10-AM8)*(1-((AM5+EXP(AM6*(AM4-AM7)))/(AM5+EXP(AM6*(AM4-AJ50))))^AM5)/(1-((AM5+EXP(AM6*(AM4-AM7)))/(AM5+EXP(AM6*(AM4-AM9))))^AM5)) -> 0 | AM50: =IF(OR(AJ50<=AN7,AJ50>AN9),0,AN8+(AN10-AN8)*(1-((AN5+EXP(AN6*(AN4-AN7)))/(AN5+EXP(AN6*(AN4-AJ50))))^AN5)/(1-((AN5+EXP(AN6*(AN4-AN7)))/(AN5+EXP(AN6*(AN4-AN9))))^AN5)) -> 0 | AN50: =IF(OR(AJ50<=AN9,AJ50>100000),0,IF(AJ50<=AO7,AO8,AO8+(AO10-AO8)*(1-((AO5+EXP(AO6*(AO4-AO7)))/(AO5+EXP(AO6*(AO4-AJ50))))^AO5)/(1-((AO5+EXP(AO6*(AO4-AO7)))/(AO5+EXP(AO6*(AO4-AO9))))^AO5))) -> 0 | AO50: 0 | AP50: 0
A51: 40 | B51: ='daily uptake'!F134 -> 2010-12-10 | C51: =5/9*'daily uptake'!Q134 -> 8.333333333 | D51: =5/9*'daily uptake'!N134 -> 1.944444444 | E51: =IF(AND($A51>='daily uptake'!$C$9,$A51<='daily uptake'!$C$10),$C51+E50,0) -> 415.2777778 | F51: =IF(AND($A51>='daily uptake'!$C$18,$A51<='daily uptake'!$C$20),$D51+F50,0) -> 0 | G51: =IF(AND($A51>='daily uptake'!$C$24,$A51<='daily uptake'!$C$25),$C51+G50,0) -> 0 | H51: =IF(OR(F51<=I7,F51>I9),0,I8+(I10-I8)*(1-((I5+EXP(I6*(I4-I7)))/(I5+EXP(I6*(I4-F51))))^I5)/(1-((I5+EXP(I6*(I4-I7)))/(I5+EXP(I6*(I4-I9))))^I5)) -> 0 | I51: =IF(OR(F51<=J7,F51>J9),0,J8+(J10-J8)*(1-((J5+EXP(J6*(J4-J7)))/(J5+EXP(J6*(J4-F51))))^J5)/(1-((J5+EXP(J6*(J4-J7)))/(J5+EXP(J6*(J4-J9))))^J5)) -> 0 | J51: =IF(OR(F51<=J9,F51>100000),0,IF(F51<=K7,K8,K8+(K10-K8)*(1-((K5+EXP(K6*(K4-K7)))/(K5+EXP(K6*(K4-F51))))^K5)/(1-((K5+EXP(K6*(K4-K7)))/(K5+EXP(K6*(K4-K9))))^K5))) -> 0 | K51: 0 | L51: 0 | M51: 17.1081768 | N51: 0 | O51: 2010-12-10 | P51: =MAX(L$12:L51)+MAX(M$12:M51)+MAX(N$12:N51) -> 17.1081768 | Q51: 2010-12-10 | R51: 0.4674406241 | AJ51: 0 | AL51: =IF(OR(AJ51<=AM7,AJ51>AM9),0,AM8+(AM10-AM8)*(1-((AM5+EXP(AM6*(AM4-AM7)))/(AM5+EXP(AM6*(AM4-AJ51))))^AM5)/(1-((AM5+EXP(AM6*(AM4-AM7)))/(AM5+EXP(AM6*(AM4-AM9))))^AM5)) -> 0 | AM51: =IF(OR(AJ51<=AN7,AJ51>AN9),0,AN8+(AN10-AN8)*(1-((AN5+EXP(AN6*(AN4-AN7)))/(AN5+EXP(AN6*(AN4-AJ51))))^AN5)/(1-((AN5+EXP(AN6*(AN4-AN7)))/(AN5+EXP(AN6*(AN4-AN9))))^AN5)) -> 0 | AN51: =IF(OR(AJ51<=AN9,AJ51>100000),0,IF(AJ51<=AO7,AO8,AO8+(AO10-AO8)*(1-((AO5+EXP(AO6*(AO4-AO7)))/(AO5+EXP(AO6*(AO4-AJ51))))^AO5)/(1-((AO5+EXP(AO6*(AO4-AO7)))/(AO5+EXP(AO6*(AO4-AO9))))^AO5))) -> 0 | AO51: 0 | AP51: 0
A52: 41 | B52: ='daily uptake'!F135 -> 2010-12-11 | C52: =5/9*'daily uptake'!Q135 -> 7.777777778 | D52: =5/9*'daily uptake'!N135 -> 1.388888889 | E52: =IF(AND($A52>='daily uptake'!$C$9,$A52<='daily uptake'!$C$10),$C52+E51,0) -> 423.0555556 | F52: =IF(AND($A52>='daily uptake'!$C$18,$A52<='daily uptake'!$C$20),$D52+F51,0) -> 0 | G52: =IF(AND($A52>='daily uptake'!$C$24,$A52<='daily uptake'!$C$25),$C52+G51,0) -> 0 | H52: =IF(OR(F52<=I7,F52>I9),0,I8+(I10-I8)*(1-((I5+EXP(I6*(I4-I7)))/(I5+EXP(I6*(I4-F52))))^I5)/(1-((I5+EXP(I6*(I4-I7)))/(I5+EXP(I6*(I4-I9))))^I5)) -> 0 | I52: =IF(OR(F52<=J7,F52>J9),0,J8+(J10-J8)*(1-((J5+EXP(J6*(J4-J7)))/(J5+EXP(J6*(J4-F52))))^J5)/(1-((J5+EXP(J6*(J4-J7)))/(J5+EXP(J6*(J4-J9))))^J5)) -> 0 | J52: =IF(OR(F52<=J9,F52>100000),0,IF(F52<=K7,K8,K8+(K10-K8)*(1-((K5+EXP(K6*(K4-K7)))/(K5+EXP(K6*(K4-F52))))^K5)/(1-((K5+EXP(K6*(K4-K7)))/(K5+EXP(K6*(K4-K9))))^K5))) -> 0 | K52: 0 | L52: 0 | M52: 17.54975807 | N52: 0 | O52: 2010-12-11 | P52: =MAX(L$12:L52)+MAX(M$12:M52)+MAX(N$12:N52) -> 17.54975807 | Q52: 2010-12-11 | R52: 0.4415812672 | AJ52: 0 | AL52: =IF(OR(AJ52<=AM7,AJ52>AM9),0,AM8+(AM10-AM8)*(1-((AM5+EXP(AM6*(AM4-AM7)))/(AM5+EXP(AM6*(AM4-AJ52))))^AM5)/(1-((AM5+EXP(AM6*(AM4-AM7)))/(AM5+EXP(AM6*(AM4-AM9))))^AM5)) -> 0 | AM52: =IF(OR(AJ52<=AN7,AJ52>AN9),0,AN8+(AN10-AN8)*(1-((AN5+EXP(AN6*(AN4-AN7)))/(AN5+EXP(AN6*(AN4-AJ52))))^AN5)/(1-((AN5+EXP(AN6*(AN4-AN7)))/(AN5+EXP(AN6*(AN4-AN9))))^AN5)) -> 0 | AN52: =IF(OR(AJ52<=AN9,AJ52>100000),0,IF(AJ52<=AO7,AO8,AO8+(AO10-AO8)*(1-((AO5+EXP(AO6*(AO4-AO7)))/(AO5+EXP(AO6*(AO4-AJ52))))^AO5)/(1-((AO5+EXP(AO6*(AO4-AO7)))/(AO5+EXP(AO6*(AO4-AO9))))^AO5))) -> 0 | AO52: 0 | AP52: 0
A53: 42 | B53: ='daily uptake'!F136 -> 2010-12-12 | C53: =5/9*'daily uptake'!Q136 -> 8.055555556 | D53: =5/9*'daily uptake'!N136 -> 1.388888889 | E53: =IF(AND($A53>='daily uptake'!$C$9,$A53<='daily uptake'!$C$10),$C53+E52,0) -> 431.1111111 | F53: =IF(AND($A53>='daily uptake'!$C$18,$A53<='daily uptake'!$C$20),$D53+F52,0) -> 0 | G53: =IF(AND($A53>='daily uptake'!$C$24,$A53<='daily uptake'!$C$25),$C53+G52,0) -> 0 | H53: =IF(OR(F53<=I7,F53>I9),0,I8+(I10-I8)*(1-((I5+EXP(I6*(I4-I7)))/(I5+EXP(I6*(I4-F53))))^I5)/(1-((I5+EXP(I6*(I4-I7)))/(I5+EXP(I6*(I4-I9))))^I5)) -> 0 | I53: =IF(OR(F53<=J7,F53>J9),0,J8+(J10-J8)*(1-((J5+EXP(J6*(J4-J7)))/(J5+EXP(J6*(J4-F53))))^J5)/(1-((J5+EXP(J6*(J4-J7)))/(J5+EXP(J6*(J4-J9))))^J5)) -> 0 | J53: =IF(OR(F53<=J9,F53>100000),0,IF(F53<=K7,K8,K8+(K10-K8)*(1-((K5+EXP(K6*(K4-K7)))/(K5+EXP(K6*(K4-F53))))^K5)/(1-((K5+EXP(K6*(K4-K7)))/(K5+EXP(K6*(K4-K9))))^K5))) -> 0 | K53: 0 | L53: 0 | M53: 18.01254601 | N53: 0 | O53: 2010-12-12 | P53: =MAX(L$12:L53)+MAX(M$12:M53)+MAX(N$12:N53) -> 18.01254601 | Q53: 2010-12-12 | R53: 0.4627879344 | AJ53: 0 | AL53: =IF(OR(AJ53<=AM7,AJ53>AM9),0,AM8+(AM10-AM8)*(1-((AM5+EXP(AM6*(AM4-AM7)))/(AM5+EXP(AM6*(AM4-AJ53))))^AM5)/(1-((AM5+EXP(AM6*(AM4-AM7)))/(AM5+EXP(AM6*(AM4-AM9))))^AM5)) -> 0 | AM53: =IF(OR(AJ53<=AN7,AJ53>AN9),0,AN8+(AN10-AN8)*(1-((AN5+EXP(AN6*(AN4-AN7)))/(AN5+EXP(AN6*(AN4-AJ53))))^AN5)/(1-((AN5+EXP(AN6*(AN4-AN7)))/(AN5+EXP(AN6*(AN4-AN9))))^AN5)) -> 0 | AN53: =IF(OR(AJ53<=AN9,AJ53>100000),0,IF(AJ53<=AO7,AO8,AO8+(AO10-AO8)*(1-((AO5+EXP(AO6*(AO4-AO7)))/(AO5+EXP(AO6*(AO4-AJ53))))^AO5)/(1-((AO5+EXP(AO6*(AO4-AO7)))/(AO5+EXP(AO6*(AO4-AO9))))^AO5))) -> 0 | AO53: 0 | AP53: 0
A54: 43 | B54: ='daily uptake'!F137 -> 2010-12-13 | C54: =5/9*'daily uptake'!Q137 -> 8.888888889 | D54: =5/9*'daily uptake'!N137 -> 2.222222222 | E54: =IF(AND($A54>='daily uptake'!$C$9,$A54<='daily uptake'!$C$10),$C54+E53,0) -> 440 | F54: =IF(AND($A54>='daily uptake'!$C$18,$A54<='daily uptake'!$C$20),$D54+F53,0) -> 0 | G54: =IF(AND($A54>='daily uptake'!$C$24,$A54<='daily uptake'!$C$25),$C54+G53,0) -> 0 | H54: =IF(OR(F54<=I7,F54>I9),0,I8+(I10-I8)*(1-((I5+EXP(I6*(I4-I7)))/(I5+EXP(I6*(I4-F54))))^I5)/(1-((I5+EXP(I6*(I4-I7)))/(I5+EXP(I6*(I4-I9))))^I5)) -> 0 | I54: =IF(OR(F54<=J7,F54>J9),0,J8+(J10-J8)*(1-((J5+EXP(J6*(J4-J7)))/(J5+EXP(J6*(J4-F54))))^J5)/(1-((J5+EXP(J6*(J4-J7)))/(J5+EXP(J6*(J4-J9))))^J5)) -> 0 | J54: =IF(OR(F54<=J9,F54>100000),0,IF(F54<=K7,K8,K8+(K10-K8)*(1-((K5+EXP(K6*(K4-K7)))/(K5+EXP(K6*(K4-F54))))^K5)/(1-((K5+EXP(K6*(K4-K7)))/(K5+EXP(K6*(K4-K9))))^K5))) -> 0 | K54: 0 | L54: 0 | M54: 18.52967279 | N54: 0 | O54: 2010-12-13 | P54: =MAX(L$12:L54)+MAX(M$12:M54)+MAX(N$12:N54) -> 18.52967279 | Q54: 2010-12-13 | R54: 0.5171267888 | AJ54: 0 | AL54: =IF(OR(AJ54<=AM7,AJ54>AM9),0,AM8+(AM10-AM8)*(1-((AM5+EXP(AM6*(AM4-AM7)))/(AM5+EXP(AM6*(AM4-AJ54))))^AM5)/(1-((AM5+EXP(AM6*(AM4-AM7)))/(AM5+EXP(AM6*(AM4-AM9))))^AM5)) -> 0 | AM54: =IF(OR(AJ54<=AN7,AJ54>AN9),0,AN8+(AN10-AN8)*(1-((AN5+EXP(AN6*(AN4-AN7)))/(AN5+EXP(AN6*(AN4-AJ54))))^AN5)/(1-((AN5+EXP(AN6*(AN4-AN7)))/(AN5+EXP(AN6*(AN4-AN9))))^AN5)) -> 0 | AN54: =IF(OR(AJ54<=AN9,AJ54>100000),0,IF(AJ54<=AO7,AO8,AO8+(AO10-AO8)*(1-((AO5+EXP(AO6*(AO4-AO7)))/(AO5+EXP(AO6*(AO4-AJ54))))^AO5)/(1-((AO5+EXP(AO6*(AO4-AO7)))/(AO5+EXP(AO6*(AO4-AO9))))^AO5))) -> 0 | AO54: 0 | AP54: 0
A55: 44 | B55: ='daily uptake'!F138 -> 2010-12-14 | C55: =5/9*'daily uptake'!Q138 -> 8.055555556 | D55: =5/9*'daily uptake'!N138 -> 1.388888889 | E55: =IF(AND($A55>='daily uptake'!$C$9,$A55<='daily uptake'!$C$10),$C55+E54,0) -> 448.0555556 | F55: =IF(AND($A55>='daily uptake'!$C$18,$A55<='daily uptake'!$C$20),$D55+F54,0) -> 0 | G55: =IF(AND($A55>='daily uptake'!$C$24,$A55<='daily uptake'!$C$25),$C55+G54,0) -> 0 | H55: =IF(OR(F55<=I7,F55>I9),0,I8+(I10-I8)*(1-((I5+EXP(I6*(I4-I7)))/(I5+EXP(I6*(I4-F55))))^I5)/(1-((I5+EXP(I6*(I4-I7)))/(I5+EXP(I6*(I4-I9))))^I5)) -> 0 | I55: =IF(OR(F55<=J7,F55>J9),0,J8+(J10-J8)*(1-((J5+EXP(J6*(J4-J7)))/(J5+EXP(J6*(J4-F55))))^J5)/(1-((J5+EXP(J6*(J4-J7)))/(J5+EXP(J6*(J4-J9))))^J5)) -> 0 | J55: =IF(OR(F55<=J9,F55>100000),0,IF(F55<=K7,K8,K8+(K10-K8)*(1-((K5+EXP(K6*(K4-K7)))/(K5+EXP(K6*(K4-F55))))^K5)/(1-((K5+EXP(K6*(K4-K7)))/(K5+EXP(K6*(K4-K9))))^K5))) -> 0 | K55: 0 | L55: 0 | M55: 19.00421784 | N55: 0 | O55: 2010-12-14 | P55: =MAX(L$12:L55)+MAX(M$12:M55)+MAX(N$12:N55) -> 19.00421784 | Q55: 2010-12-14 | R55: 0.4745450416 | AJ55: 0 | AL55: =IF(OR(AJ55<=AM7,AJ55>AM9),0,AM8+(AM10-AM8)*(1-((AM5+EXP(AM6*(AM4-AM7)))/(AM5+EXP(AM6*(AM4-AJ55))))^AM5)/(1-((AM5+EXP(AM6*(AM4-AM7)))/(AM5+EXP(AM6*(AM4-AM9))))^AM5)) -> 0 | AM55: =IF(OR(AJ55<=AN7,AJ55>AN9),0,AN8+(AN10-AN8)*(1-((AN5+EXP(AN6*(AN4-AN7)))/(AN5+EXP(AN6*(AN4-AJ55))))^AN5)/(1-((AN5+EXP(AN6*(AN4-AN7)))/(AN5+EXP(AN6*(AN4-AN9))))^AN5)) -> 0 | AN55: =IF(OR(AJ55<=AN9,AJ55>100000),0,IF(AJ55<=AO7,AO8,AO8+(AO10-AO8)*(1-((AO5+EXP(AO6*(AO4-AO7)))/(AO5+EXP(AO6*(AO4-AJ55))))^AO5)/(1-((AO5+EXP(AO6*(AO4-AO7)))/(AO5+EXP(AO6*(AO4-AO9))))^AO5))) -> 0 | AO55: 0 | AP55: 0
A56: 45 | B56: ='daily uptake'!F139 -> 2010-12-15 | C56: =5/9*'daily uptake'!Q139 -> 7.777777778 | D56: =5/9*'daily uptake'!N139 -> 1.388888889 | E56: =IF(AND($A56>='daily uptake'!$C$9,$A56<='daily uptake'!$C$10),$C56+E55,0) -> 455.8333333 | F56: =IF(AND($A56>='daily uptake'!$C$18,$A56<='daily uptake'!$C$20),$D56+F55,0) -> 0 | G56: =IF(AND($A56>='daily uptake'!$C$24,$A56<='daily uptake'!$C$25),$C56+G55,0) -> 0 | H56: =IF(OR(F56<=I7,F56>I9),0,I8+(I10-I8)*(1-((I5+EXP(I6*(I4-I7)))/(I5+EXP(I6*(I4-F56))))^I5)/(1-((I5+EXP(I6*(I4-I7)))/(I5+EXP(I6*(I4-I9))))^I5)) -> 0 | I56: =IF(OR(F56<=J7,F56>J9),0,J8+(J10-J8)*(1-((J5+EXP(J6*(J4-J7)))/(J5+EXP(J6*(J4-F56))))^J5)/(1-((J5+EXP(J6*(J4-J7)))/(J5+EXP(J6*(J4-J9))))^J5)) -> 0 | J56: =IF(OR(F56<=J9,F56>100000),0,IF(F56<=K7,K8,K8+(K10-K8)*(1-((K5+EXP(K6*(K4-K7)))/(K5+EXP(K6*(K4-F56))))^K5)/(1-((K5+EXP(K6*(K4-K7)))/(K5+EXP(K6*(K4-K9))))^K5))) -> 0 | K56: 0 | L56: 0 | M56: 19.46775696 | N56: 0 | O56: 2010-12-15 | P56: =MAX(L$12:L56)+MAX(M$12:M56)+MAX(N$12:N56) -> 19.46775696 | Q56: 2010-12-15 | R56: 0.4635391211 | AJ56: 0 | AL56: =IF(OR(AJ56<=AM7,AJ56>AM9),0,AM8+(AM10-AM8)*(1-((AM5+EXP(AM6*(AM4-AM7)))/(AM5+EXP(AM6*(AM4-AJ56))))^AM5)/(1-((AM5+EXP(AM6*(AM4-AM7)))/(AM5+EXP(AM6*(AM4-AM9))))^AM5)) -> 0 | AM56: =IF(OR(AJ56<=AN7,AJ56>AN9),0,AN8+(AN10-AN8)*(1-((AN5+EXP(AN6*(AN4-AN7)))/(AN5+EXP(AN6*(AN4-AJ56))))^AN5)/(1-((AN5+EXP(AN6*(AN4-AN7)))/(AN5+EXP(AN6*(AN4-AN9))))^AN5)) -> 0 | AN56: =IF(OR(AJ56<=AN9,AJ56>100000),0,IF(AJ56<=AO7,AO8,AO8+(AO10-AO8)*(1-((AO5+EXP(AO6*(AO4-AO7)))/(AO5+EXP(AO6*(AO4-AJ56))))^AO5)/(1-((AO5+EXP(AO6*(AO4-AO7)))/(AO5+EXP(AO6*(AO4-AO9))))^AO5))) -> 0 | AO56: 0 | AP56: 0
A57: 46 | B57: ='daily uptake'!F140 -> 2010-12-16 | C57: =5/9*'daily uptake'!Q140 -> 6.944444444 | D57: =5/9*'daily uptake'!N140 -> 1.111111111 | E57: =IF(AND($A57>='daily uptake'!$C$9,$A57<='daily uptake'!$C$10),$C57+E56,0) -> 462.7777778 | F57: =IF(AND($A57>='daily uptake'!$C$18,$A57<='daily uptake'!$C$20),$D57+F56,0) -> 0 | G57: =IF(AND($A57>='daily uptake'!$C$24,$A57<='daily uptake'!$C$25),$C57+G56,0) -> 0 | H57: =IF(OR(F57<=I7,F57>I9),0,I8+(I10-I8)*(1-((I5+EXP(I6*(I4-I7)))/(I5+EXP(I6*(I4-F57))))^I5)/(1-((I5+EXP(I6*(I4-I7)))/(I5+EXP(I6*(I4-I9))))^I5)) -> 0 | I57: =IF(OR(F57<=J7,F57>J9),0,J8+(J10-J8)*(1-((J5+EXP(J6*(J4-J7)))/(J5+EXP(J6*(J4-F57))))^J5)/(1-((J5+EXP(J6*(J4-J7)))/(J5+EXP(J6*(J4-J9))))^J5)) -> 0 | J57: =IF(OR(F57<=J9,F57>100000),0,IF(F57<=K7,K8,K8+(K10-K8)*(1-((K5+EXP(K6*(K4-K7)))/(K5+EXP(K6*(K4-F57))))^K5)/(1-((K5+EXP(K6*(K4-K7)))/(K5+EXP(K6*(K4-K9))))^K5))) -> 0 | K57: 0 | L57: 0 | M57: 19.88610599 | N57: 0 | O57: 2010-12-16 | P57: =MAX(L$12:L57)+MAX(M$12:M57)+MAX(N$12:N57) -> 19.88610599 | Q57: 2010-12-16 | R57: 0.4183490302 | AJ57: 0 | AL57: =IF(OR(AJ57<=AM7,AJ57>AM9),0,AM8+(AM10-AM8)*(1-((AM5+EXP(AM6*(AM4-AM7)))/(AM5+EXP(AM6*(AM4-AJ57))))^AM5)/(1-((AM5+EXP(AM6*(AM4-AM7)))/(AM5+EXP(AM6*(AM4-AM9))))^AM5)) -> 0 | AM57: =IF(OR(AJ57<=AN7,AJ57>AN9),0,AN8+(AN10-AN8)*(1-((AN5+EXP(AN6*(AN4-AN7)))/(AN5+EXP(AN6*(AN4-AJ57))))^AN5)/(1-((AN5+EXP(AN6*(AN4-AN7)))/(AN5+EXP(AN6*(AN4-AN9))))^AN5)) -> 0 | AN57: =IF(OR(AJ57<=AN9,AJ57>100000),0,IF(AJ57<=AO7,AO8,AO8+(AO10-AO8)*(1-((AO5+EXP(AO6*(AO4-AO7)))/(AO5+EXP(AO6*(AO4-AJ57))))^AO5)/(1-((AO5+EXP(AO6*(AO4-AO7)))/(AO5+EXP(AO6*(AO4-AO9))))^AO5))) -> 0 | AO57: 0 | AP57: 0
A58: 47 | B58: ='daily uptake'!F141 -> 2010-12-17 | C58: =5/9*'daily uptake'!Q141 -> 7.222222222 | D58: =5/9*'daily uptake'!N141 -> 1.111111111 | E58: =IF(AND($A58>='daily uptake'!$C$9,$A58<='daily uptake'!$C$10),$C58+E57,0) -> 470 | F58: =IF(AND($A58>='daily uptake'!$C$18,$A58<='daily uptake'!$C$20),$D58+F57,0) -> 0 | G58: =IF(AND($A58>='daily uptake'!$C$24,$A58<='daily uptake'!$C$25),$C58+G57,0) -> 0 | H58: =IF(OR(F58<=I7,F58>I9),0,I8+(I10-I8)*(1-((I5+EXP(I6*(I4-I7)))/(I5+EXP(I6*(I4-F58))))^I5)/(1-((I5+EXP(I6*(I4-I7)))/(I5+EXP(I6*(I4-I9))))^I5)) -> 0 | I58: =IF(OR(F58<=J7,F58>J9),0,J8+(J10-J8)*(1-((J5+EXP(J6*(J4-J7)))/(J5+EXP(J6*(J4-F58))))^J5)/(1-((J5+EXP(J6*(J4-J7)))/(J5+EXP(J6*(J4-J9))))^J5)) -> 0 | J58: =IF(OR(F58<=J9,F58>100000),0,IF(F58<=K7,K8,K8+(K10-K8)*(1-((K5+EXP(K6*(K4-K7)))/(K5+EXP(K6*(K4-F58))))^K5)/(1-((K5+EXP(K6*(K4-K7)))/(K5+EXP(K6*(K4-K9))))^K5))) -> 0 | K58: 0 | L58: 0 | M58: 20.32569262 | N58: 0 | O58: 2010-12-17 | P58: =MAX(L$12:L58)+MAX(M$12:M58)+MAX(N$12:N58) -> 20.32569262 | Q58: 2010-12-17 | R58: 0.4395866348 | AJ58: 0 | AL58: =IF(OR(AJ58<=AM7,AJ58>AM9),0,AM8+(AM10-AM8)*(1-((AM5+EXP(AM6*(AM4-AM7)))/(AM5+EXP(AM6*(AM4-AJ58))))^AM5)/(1-((AM5+EXP(AM6*(AM4-AM7)))/(AM5+EXP(AM6*(AM4-AM9))))^AM5)) -> 0 | AM58: =IF(OR(AJ58<=AN7,AJ58>AN9),0,AN8+(AN10-AN8)*(1-((AN5+EXP(AN6*(AN4-AN7)))/(AN5+EXP(AN6*(AN4-AJ58))))^AN5)/(1-((AN5+EXP(AN6*(AN4-AN7)))/(AN5+EXP(AN6*(AN4-AN9))))^AN5)) -> 0 | AN58: =IF(OR(AJ58<=AN9,AJ58>100000),0,IF(AJ58<=AO7,AO8,AO8+(AO10-AO8)*(1-((AO5+EXP(AO6*(AO4-AO7)))/(AO5+EXP(AO6*(AO4-AJ58))))^AO5)/(1-((AO5+EXP(AO6*(AO4-AO7)))/(AO5+EXP(AO6*(AO4-AO9))))^AO5))) -> 0 | AO58: 0 | AP58: 0
A59: 48 | B59: ='daily uptake'!F142 -> 2010-12-18 | C59: =5/9*'daily uptake'!Q142 -> 7.222222222 | D59: =5/9*'daily uptake'!N142 -> 0.8333333333 | E59: =IF(AND($A59>='daily uptake'!$C$9,$A59<='daily uptake'!$C$10),$C59+E58,0) -> 477.2222222 | F59: =IF(AND($A59>='daily uptake'!$C$18,$A59<='daily uptake'!$C$20),$D59+F58,0) -> 0 | G59: =IF(AND($A59>='daily uptake'!$C$24,$A59<='daily uptake'!$C$25),$C59+G58,0) -> 0 | H59: =IF(OR(F59<=I7,F59>I9),0,I8+(I10-I8)*(1-((I5+EXP(I6*(I4-I7)))/(I5+EXP(I6*(I4-F59))))^I5)/(1-((I5+EXP(I6*(I4-I7)))/(I5+EXP(I6*(I4-I9))))^I5)) -> 0 | I59: =IF(OR(F59<=J7,F59>J9),0,J8+(J10-J8)*(1-((J5+EXP(J6*(J4-J7)))/(J5+EXP(J6*(J4-F59))))^J5)/(1-((J5+EXP(J6*(J4-J7)))/(J5+EXP(J6*(J4-J9))))^J5)) -> 0 | J59: =IF(OR(F59<=J9,F59>100000),0,IF(F59<=K7,K8,K8+(K10-K8)*(1-((K5+EXP(K6*(K4-K7)))/(K5+EXP(K6*(K4-F59))))^K5)/(1-((K5+EXP(K6*(K4-K7)))/(K5+EXP(K6*(K4-K9))))^K5))) -> 0 | K59: 0 | L59: 0 | M59: 20.76989606 | N59: 0 | O59: 2010-12-18 | P59: =MAX(L$12:L59)+MAX(M$12:M59)+MAX(N$12:N59) -> 20.76989606 | Q59: 2010-12-18 | R59: 0.4442034413 | AJ59: 0 | AL59: =IF(OR(AJ59<=AM7,AJ59>AM9),0,AM8+(AM10-AM8)*(1-((AM5+EXP(AM6*(AM4-AM7)))/(AM5+EXP(AM6*(AM4-AJ59))))^AM5)/(1-((AM5+EXP(AM6*(AM4-AM7)))/(AM5+EXP(AM6*(AM4-AM9))))^AM5)) -> 0 | AM59: =IF(OR(AJ59<=AN7,AJ59>AN9),0,AN8+(AN10-AN8)*(1-((AN5+EXP(AN6*(AN4-AN7)))/(AN5+EXP(AN6*(AN4-AJ59))))^AN5)/(1-((AN5+EXP(AN6*(AN4-AN7)))/(AN5+EXP(AN6*(AN4-AN9))))^AN5)) -> 0 | AN59: =IF(OR(AJ59<=AN9,AJ59>100000),0,IF(AJ59<=AO7,AO8,AO8+(AO10-AO8)*(1-((AO5+EXP(AO6*(AO4-AO7)))/(AO5+EXP(AO6*(AO4-AJ59))))^AO5)/(1-((AO5+EXP(AO6*(AO4-AO7)))/(AO5+EXP(AO6*(AO4-AO9))))^AO5))) -> 0 | AO59: 0 | AP59: 0
A60: 49 | B60: ='daily uptake'!F143 -> 2010-12-19 | C60: =5/9*'daily uptake'!Q143 -> 6.944444444 | D60: =5/9*'daily uptake'!N143 -> 0.8333333333 | E60: =IF(AND($A60>='daily uptake'!$C$9,$A60<='daily uptake'!$C$10),$C60+E59,0) -> 484.1666667 | F60: =IF(AND($A60>='daily uptake'!$C$18,$A60<='daily uptake'!$C$20),$D60+F59,0) -> 0 | G60: =IF(AND($A60>='daily uptake'!$C$24,$A60<='daily uptake'!$C$25),$C60+G59,0) -> 0 | H60: =IF(OR(F60<=I7,F60>I9),0,I8+(I10-I8)*(1-((I5+EXP(I6*(I4-I7)))/(I5+EXP(I6*(I4-F60))))^I5)/(1-((I5+EXP(I6*(I4-I7)))/(I5+EXP(I6*(I4-I9))))^I5)) -> 0 | I60: =IF(OR(F60<=J7,F60>J9),0,J8+(J10-J8)*(1-((J5+EXP(J6*(J4-J7)))/(J5+EXP(J6*(J4-F60))))^J5)/(1-((J5+EXP(J6*(J4-J7)))/(J5+EXP(J6*(J4-J9))))^J5)) -> 0 | J60: =IF(OR(F60<=J9,F60>100000),0,IF(F60<=K7,K8,K8+(K10-K8)*(1-((K5+EXP(K6*(K4-K7)))/(K5+EXP(K6*(K4-F60))))^K5)/(1-((K5+EXP(K6*(K4-K7)))/(K5+EXP(K6*(K4-K9))))^K5))) -> 0 | K60: 0 | L60: 0 | M60: 21.20139165 | N60: 0 | O60: 2010-12-19 | P60: =MAX(L$12:L60)+MAX(M$12:M60)+MAX(N$12:N60) -> 21.20139165 | Q60: 2010-12-19 | R60: 0.4314955861 | AJ60: 0 | AL60: =IF(OR(AJ60<=AM7,AJ60>AM9),0,AM8+(AM10-AM8)*(1-((AM5+EXP(AM6*(AM4-AM7)))/(AM5+EXP(AM6*(AM4-AJ60))))^AM5)/(1-((AM5+EXP(AM6*(AM4-AM7)))/(AM5+EXP(AM6*(AM4-AM9))))^AM5)) -> 0 | AM60: =IF(OR(AJ60<=AN7,AJ60>AN9),0,AN8+(AN10-AN8)*(1-((AN5+EXP(AN6*(AN4-AN7)))/(AN5+EXP(AN6*(AN4-AJ60))))^AN5)/(1-((AN5+EXP(AN6*(AN4-AN7)))/(AN5+EXP(AN6*(AN4-AN9))))^AN5)) -> 0 | AN60: =IF(OR(AJ60<=AN9,AJ60>100000),0,IF(AJ60<=AO7,AO8,AO8+(AO10-AO8)*(1-((AO5+EXP(AO6*(AO4-AO7)))/(AO5+EXP(AO6*(AO4-AJ60))))^AO5)/(1-((AO5+EXP(AO6*(AO4-AO7)))/(AO5+EXP(AO6*(AO4-AO9))))^AO5))) -> 0 | AO60: 0 | AP60: 0
A61: 50 | B61: ='daily uptake'!F144 -> 2010-12-20 | C61: =5/9*'daily uptake'!Q144 -> 6.666666667 | D61: =5/9*'daily uptake'!N144 -> 0.5555555556 | E61: =IF(AND($A61>='daily uptake'!$C$9,$A61<='daily uptake'!$C$10),$C61+E60,0) -> 490.8333333 | F61: =IF(AND($A61>='daily uptake'!$C$18,$A61<='daily uptake'!$C$20),$D61+F60,0) -> 0 | G61: =IF(AND($A61>='daily uptake'!$C$24,$A61<='daily uptake'!$C$25),$C61+G60,0) -> 0 | H61: =IF(OR(F61<=I7,F61>I9),0,I8+(I10-I8)*(1-((I5+EXP(I6*(I4-I7)))/(I5+EXP(I6*(I4-F61))))^I5)/(1-((I5+EXP(I6*(I4-I7)))/(I5+EXP(I6*(I4-I9))))^I5)) -> 0 | I61: =IF(OR(F61<=J7,F61>J9),0,J8+(J10-J8)*(1-((J5+EXP(J6*(J4-J7)))/(J5+EXP(J6*(J4-F61))))^J5)/(1-((J5+EXP(J6*(J4-J7)))/(J5+EXP(J6*(J4-J9))))^J5)) -> 0 | J61: =IF(OR(F61<=J9,F61>100000),0,IF(F61<=K7,K8,K8+(K10-K8)*(1-((K5+EXP(K6*(K4-K7)))/(K5+EXP(K6*(K4-F61))))^K5)/(1-((K5+EXP(K6*(K4-K7)))/(K5+EXP(K6*(K4-K9))))^K5))) -> 0 | K61: 0 | L61: 0 | M61: 21.61968475 | N61: 0 | O61: 2010-12-20 | P61: =MAX(L$12:L61)+MAX(M$12:M61)+MAX(N$12:N61) -> 21.61968475 | Q61: 2010-12-20 | R61: 0.4182931057 | AJ61: 0 | AL61: =IF(OR(AJ61<=AM7,AJ61>AM9),0,AM8+(AM10-AM8)*(1-((AM5+EXP(AM6*(AM4-AM7)))/(AM5+EXP(AM6*(AM4-AJ61))))^AM5)/(1-((AM5+EXP(AM6*(AM4-AM7)))/(AM5+EXP(AM6*(AM4-AM9))))^AM5)) -> 0 | AM61: =IF(OR(AJ61<=AN7,AJ61>AN9),0,AN8+(AN10-AN8)*(1-((AN5+EXP(AN6*(AN4-AN7)))/(AN5+EXP(AN6*(AN4-AJ61))))^AN5)/(1-((AN5+EXP(AN6*(AN4-AN7)))/(AN5+EXP(AN6*(AN4-AN9))))^AN5)) -> 0 | AN61: =IF(OR(AJ61<=AN9,AJ61>100000),0,IF(AJ61<=AO7,AO8,AO8+(AO10-AO8)*(1-((AO5+EXP(AO6*(AO4-AO7)))/(AO5+EXP(AO6*(AO4-AJ61))))^AO5)/(1-((AO5+EXP(AO6*(AO4-AO7)))/(AO5+EXP(AO6*(AO4-AO9))))^AO5))) -> 0 | AO61: 0 | AP61: 0
A62: 51 | B62: ='daily uptake'!F145 -> 2010-12-21 | C62: =5/9*'daily uptake'!Q145 -> 6.388888889 | D62: =5/9*'daily uptake'!N145 -> 0.5555555556 | E62: =IF(AND($A62>='daily uptake'!$C$9,$A62<='daily uptake'!$C$10),$C62+E61,0) -> 497.2222222 | F62: =IF(AND($A62>='daily uptake'!$C$18,$A62<='daily uptake'!$C$20),$D62+F61,0) -> 0 | G62: =IF(AND($A62>='daily uptake'!$C$24,$A62<='daily uptake'!$C$25),$C62+G61,0) -> 0 | H62: =IF(OR(F62<=I7,F62>I9),0,I8+(I10-I8)*(1-((I5+EXP(I6*(I4-I7)))/(I5+EXP(I6*(I4-F62))))^I5)/(1-((I5+EXP(I6*(I4-I7)))/(I5+EXP(I6*(I4-I9))))^I5)) -> 0 | I62: =IF(OR(F62<=J7,F62>J9),0,J8+(J10-J8)*(1-((J5+EXP(J6*(J4-J7)))/(J5+EXP(J6*(J4-F62))))^J5)/(1-((J5+EXP(J6*(J4-J7)))/(J5+EXP(J6*(J4-J9))))^J5)) -> 0 | J62: =IF(OR(F62<=J9,F62>100000),0,IF(F62<=K7,K8,K8+(K10-K8)*(1-((K5+EXP(K6*(K4-K7)))/(K5+EXP(K6*(K4-F62))))^K5)/(1-((K5+EXP(K6*(K4-K7)))/(K5+EXP(K6*(K4-K9))))^K5))) -> 0 | K62: 0 | L62: 0 | M62: 22.02429614 | N62: 0 | O62: 2010-12-21 | P62: =MAX(L$12:L62)+MAX(M$12:M62)+MAX(N$12:N62) -> 22.02429614 | Q62: 2010-12-21 | R62: 0.4046113855 | AJ62: 0 | AL62: =IF(OR(AJ62<=AM7,AJ62>AM9),0,AM8+(AM10-AM8)*(1-((AM5+EXP(AM6*(AM4-AM7)))/(AM5+EXP(AM6*(AM4-AJ62))))^AM5)/(1-((AM5+EXP(AM6*(AM4-AM7)))/(AM5+EXP(AM6*(AM4-AM9))))^AM5)) -> 0 | AM62: =IF(OR(AJ62<=AN7,AJ62>AN9),0,AN8+(AN10-AN8)*(1-((AN5+EXP(AN6*(AN4-AN7)))/(AN5+EXP(AN6*(AN4-AJ62))))^AN5)/(1-((AN5+EXP(AN6*(AN4-AN7)))/(AN5+EXP(AN6*(AN4-AN9))))^AN5)) -> 0 | AN62: =IF(OR(AJ62<=AN9,AJ62>100000),0,IF(AJ62<=AO7,AO8,AO8+(AO10-AO8)*(1-((AO5+EXP(AO6*(AO4-AO7)))/(AO5+EXP(AO6*(AO4-AJ62))))^AO5)/(1-((AO5+EXP(AO6*(AO4-AO7)))/(AO5+EXP(AO6*(AO4-AO9))))^AO5))) -> 0 | AO62: 0 | AP62: 0
A63: 52 | B63: ='daily uptake'!F146 -> 2010-12-22 | C63: =5/9*'daily uptake'!Q146 -> 6.944444444 | D63: =5/9*'daily uptake'!N146 -> 0.8333333333 | E63: =IF(AND($A63>='daily uptake'!$C$9,$A63<='daily uptake'!$C$10),$C63+E62,0) -> 504.1666667 | F63: =IF(AND($A63>='daily uptake'!$C$18,$A63<='daily uptake'!$C$20),$D63+F62,0) -> 0 | G63: =IF(AND($A63>='daily uptake'!$C$24,$A63<='daily uptake'!$C$25),$C63+G62,0) -> 0 | H63: =IF(OR(F63<=I7,F63>I9),0,I8+(I10-I8)*(1-((I5+EXP(I6*(I4-I7)))/(I5+EXP(I6*(I4-F63))))^I5)/(1-((I5+EXP(I6*(I4-I7)))/(I5+EXP(I6*(I4-I9))))^I5)) -> 0 | I63: =IF(OR(F63<=J7,F63>J9),0,J8+(J10-J8)*(1-((J5+EXP(J6*(J4-J7)))/(J5+EXP(J6*(J4-F63))))^J5)/(1-((J5+EXP(J6*(J4-J7)))/(J5+EXP(J6*(J4-J9))))^J5)) -> 0 | J63: =IF(OR(F63<=J9,F63>100000),0,IF(F63<=K7,K8,K8+(K10-K8)*(1-((K5+EXP(K6*(K4-K7)))/(K5+EXP(K6*(K4-F63))))^K5)/(1-((K5+EXP(K6*(K4-K7)))/(K5+EXP(K6*(K4-K9))))^K5))) -> 0 | K63: 0 | L63: 0 | M63: 22.46826991 | N63: 0 | O63: 2010-12-22 | P63: =MAX(L$12:L63)+MAX(M$12:M63)+MAX(N$12:N63) -> 22.46826991 | Q63: 2010-12-22 | R63: 0.4439737707 | AJ63: 0 | AL63: =IF(OR(AJ63<=AM7,AJ63>AM9),0,AM8+(AM10-AM8)*(1-((AM5+EXP(AM6*(AM4-AM7)))/(AM5+EXP(AM6*(AM4-AJ63))))^AM5)/(1-((AM5+EXP(AM6*(AM4-AM7)))/(AM5+EXP(AM6*(AM4-AM9))))^AM5)) -> 0 | AM63: =IF(OR(AJ63<=AN7,AJ63>AN9),0,AN8+(AN10-AN8)*(1-((AN5+EXP(AN6*(AN4-AN7)))/(AN5+EXP(AN6*(AN4-AJ63))))^AN5)/(1-((AN5+EXP(AN6*(AN4-AN7)))/(AN5+EXP(AN6*(AN4-AN9))))^AN5)) -> 0 | AN63: =IF(OR(AJ63<=AN9,AJ63>100000),0,IF(AJ63<=AO7,AO8,AO8+(AO10-AO8)*(1-((AO5+EXP(AO6*(AO4-AO7)))/(AO5+EXP(AO6*(AO4-AJ63))))^AO5)/(1-((AO5+EXP(AO6*(AO4-AO7)))/(AO5+EXP(AO6*(AO4-AO9))))^AO5))) -> 0 | AO63: 0 | AP63: 0
A64: 53 | B64: ='daily uptake'!F147 -> 2010-12-23 | C64: =5/9*'daily uptake'!Q147 -> 6.111111111 | D64: =5/9*'daily uptake'!N147 -> 0.8333333333 | E64: =IF(AND($A64>='daily uptake'!$C$9,$A64<='daily uptake'!$C$10),$C64+E63,0) -> 510.2777778 | F64: =IF(AND($A64>='daily uptake'!$C$18,$A64<='daily uptake'!$C$20),$D64+F63,0) -> 0 | G64: =IF(AND($A64>='daily uptake'!$C$24,$A64<='daily uptake'!$C$25),$C64+G63,0) -> 0 | H64: =IF(OR(F64<=I7,F64>I9),0,I8+(I10-I8)*(1-((I5+EXP(I6*(I4-I7)))/(I5+EXP(I6*(I4-F64))))^I5)/(1-((I5+EXP(I6*(I4-I7)))/(I5+EXP(I6*(I4-I9))))^I5)) -> 0 | I64: =IF(OR(F64<=J7,F64>J9),0,J8+(J10-J8)*(1-((J5+EXP(J6*(J4-J7)))/(J5+EXP(J6*(J4-F64))))^J5)/(1-((J5+EXP(J6*(J4-J7)))/(J5+EXP(J6*(J4-J9))))^J5)) -> 0 | J64: =IF(OR(F64<=J9,F64>100000),0,IF(F64<=K7,K8,K8+(K10-K8)*(1-((K5+EXP(K6*(K4-K7)))/(K5+EXP(K6*(K4-F64))))^K5)/(1-((K5+EXP(K6*(K4-K7)))/(K5+EXP(K6*(K4-K9))))^K5))) -> 0 | K64: 0 | L64: 0 | M64: 22.86258325 | N64: 0 | O64: 2010-12-23 | P64: =MAX(L$12:L64)+MAX(M$12:M64)+MAX(N$12:N64) -> 22.86258325 | Q64: 2010-12-23 | R64: 0.3943133412 | AJ64: 0 | AL64: =IF(OR(AJ64<=AM7,AJ64>AM9),0,AM8+(AM10-AM8)*(1-((AM5+EXP(AM6*(AM4-AM7)))/(AM5+EXP(AM6*(AM4-AJ64))))^AM5)/(1-((AM5+EXP(AM6*(AM4-AM7)))/(AM5+EXP(AM6*(AM4-AM9))))^AM5)) -> 0 | AM64: =IF(OR(AJ64<=AN7,AJ64>AN9),0,AN8+(AN10-AN8)*(1-((AN5+EXP(AN6*(AN4-AN7)))/(AN5+EXP(AN6*(AN4-AJ64))))^AN5)/(1-((AN5+EXP(AN6*(AN4-AN7)))/(AN5+EXP(AN6*(AN4-AN9))))^AN5)) -> 0 | AN64: =IF(OR(AJ64<=AN9,AJ64>100000),0,IF(AJ64<=AO7,AO8,AO8+(AO10-AO8)*(1-((AO5+EXP(AO6*(AO4-AO7)))/(AO5+EXP(AO6*(AO4-AJ64))))^AO5)/(1-((AO5+EXP(AO6*(AO4-AO7)))/(AO5+EXP(AO6*(AO4-AO9))))^AO5))) -> 0 | AO64: 0 | AP64: 0
A65: 54 | B65: ='daily uptake'!F148 -> 2010-12-24 | C65: =5/9*'daily uptake'!Q148 -> 6.111111111 | D65: =5/9*'daily uptake'!N148 -> 0.5555555556 | E65: =IF(AND($A65>='daily uptake'!$C$9,$A65<='daily uptake'!$C$10),$C65+E64,0) -> 516.3888889 | F65: =IF(AND($A65>='daily uptake'!$C$18,$A65<='daily uptake'!$C$20),$D65+F64,0) -> 0 | G65: =IF(AND($A65>='daily uptake'!$C$24,$A65<='daily uptake'!$C$25),$C65+G64,0) -> 0 | H65: =IF(OR(F65<=I7,F65>I9),0,I8+(I10-I8)*(1-((I5+EXP(I6*(I4-I7)))/(I5+EXP(I6*(I4-F65))))^I5)/(1-((I5+EXP(I6*(I4-I7)))/(I5+EXP(I6*(I4-I9))))^I5)) -> 0 | I65: =IF(OR(F65<=J7,F65>J9),0,J8+(J10-J8)*(1-((J5+EXP(J6*(J4-J7)))/(J5+EXP(J6*(J4-F65))))^J5)/(1-((J5+EXP(J6*(J4-J7)))/(J5+EXP(J6*(J4-J9))))^J5)) -> 0 | J65: =IF(OR(F65<=J9,F65>100000),0,IF(F65<=K7,K8,K8+(K10-K8)*(1-((K5+EXP(K6*(K4-K7)))/(K5+EXP(K6*(K4-F65))))^K5)/(1-((K5+EXP(K6*(K4-K7)))/(K5+EXP(K6*(K4-K9))))^K5))) -> 0 | K65: 0 | L65: 0 | M65: 23.26029637 | N65: 0 | O65: 2010-12-24 | P65: =MAX(L$12:L65)+MAX(M$12:M65)+MAX(N$12:N65) -> 23.26029637 | Q65: 2010-12-24 | R65: 0.3977131186 | AJ65: 0 | AL65: =IF(OR(AJ65<=AM7,AJ65>AM9),0,AM8+(AM10-AM8)*(1-((AM5+EXP(AM6*(AM4-AM7)))/(AM5+EXP(AM6*(AM4-AJ65))))^AM5)/(1-((AM5+EXP(AM6*(AM4-AM7)))/(AM5+EXP(AM6*(AM4-AM9))))^AM5)) -> 0 | AM65: =IF(OR(AJ65<=AN7,AJ65>AN9),0,AN8+(AN10-AN8)*(1-((AN5+EXP(AN6*(AN4-AN7)))/(AN5+EXP(AN6*(AN4-AJ65))))^AN5)/(1-((AN5+EXP(AN6*(AN4-AN7)))/(AN5+EXP(AN6*(AN4-AN9))))^AN5)) -> 0 | AN65: =IF(OR(AJ65<=AN9,AJ65>100000),0,IF(AJ65<=AO7,AO8,AO8+(AO10-AO8)*(1-((AO5+EXP(AO6*(AO4-AO7)))/(AO5+EXP(AO6*(AO4-AJ65))))^AO5)/(1-((AO5+EXP(AO6*(AO4-AO7)))/(AO5+EXP(AO6*(AO4-AO9))))^AO5))) -> 0 | AO65: 0 | AP65: 0
A66: 55 | B66: ='daily uptake'!F149 -> 2010-12-25 | C66: =5/9*'daily uptake'!Q149 -> 5.555555556 | D66: =5/9*'daily uptake'!N149 -> 0.5555555556 | E66: =IF(AND($A66>='daily uptake'!$C$9,$A66<='daily uptake'!$C$10),$C66+E65,0) -> 521.9444444 | F66: =IF(AND($A66>='daily uptake'!$C$18,$A66<='daily uptake'!$C$20),$D66+F65,0) -> 0 | G66: =IF(AND($A66>='daily uptake'!$C$24,$A66<='daily uptake'!$C$25),$C66+G65,0) -> 0 | H66: =IF(OR(F66<=I7,F66>I9),0,I8+(I10-I8)*(1-((I5+EXP(I6*(I4-I7)))/(I5+EXP(I6*(I4-F66))))^I5)/(1-((I5+EXP(I6*(I4-I7)))/(I5+EXP(I6*(I4-I9))))^I5)) -> 0 | I66: =IF(OR(F66<=J7,F66>J9),0,J8+(J10-J8)*(1-((J5+EXP(J6*(J4-J7)))/(J5+EXP(J6*(J4-F66))))^J5)/(1-((J5+EXP(J6*(J4-J7)))/(J5+EXP(J6*(J4-J9))))^J5)) -> 0 | J66: =IF(OR(F66<=J9,F66>100000),0,IF(F66<=K7,K8,K8+(K10-K8)*(1-((K5+EXP(K6*(K4-K7)))/(K5+EXP(K6*(K4-F66))))^K5)/(1-((K5+EXP(K6*(K4-K7)))/(K5+EXP(K6*(K4-K9))))^K5))) -> 0 | K66: 0 | L66: 0 | M66: 23.62481515 | N66: 0 | O66: 2010-12-25 | P66: =MAX(L$12:L66)+MAX(M$12:M66)+MAX(N$12:N66) -> 23.62481515 | Q66: 2010-12-25 | R66: 0.3645187821 | AJ66: 0 | AL66: =IF(OR(AJ66<=AM7,AJ66>AM9),0,AM8+(AM10-AM8)*(1-((AM5+EXP(AM6*(AM4-AM7)))/(AM5+EXP(AM6*(AM4-AJ66))))^AM5)/(1-((AM5+EXP(AM6*(AM4-AM7)))/(AM5+EXP(AM6*(AM4-AM9))))^AM5)) -> 0 | AM66: =IF(OR(AJ66<=AN7,AJ66>AN9),0,AN8+(AN10-AN8)*(1-((AN5+EXP(AN6*(AN4-AN7)))/(AN5+EXP(AN6*(AN4-AJ66))))^AN5)/(1-((AN5+EXP(AN6*(AN4-AN7)))/(AN5+EXP(AN6*(AN4-AN9))))^AN5)) -> 0 | AN66: =IF(OR(AJ66<=AN9,AJ66>100000),0,IF(AJ66<=AO7,AO8,AO8+(AO10-AO8)*(1-((AO5+EXP(AO6*(AO4-AO7)))/(AO5+EXP(AO6*(AO4-AJ66))))^AO5)/(1-((AO5+EXP(AO6*(AO4-AO7)))/(AO5+EXP(AO6*(AO4-AO9))))^AO5))) -> 0 | AO66: 0 | AP66: 0
A67: 56 | B67: ='daily uptake'!F150 -> 2010-12-26 | C67: =5/9*'daily uptake'!Q150 -> 6.388888889 | D67: =5/9*'daily uptake'!N150 -> 1.111111111 | E67: =IF(AND($A67>='daily uptake'!$C$9,$A67<='daily uptake'!$C$10),$C67+E66,0) -> 528.3333333 | F67: =IF(AND($A67>='daily uptake'!$C$18,$A67<='daily uptake'!$C$20),$D67+F66,0) -> 0 | G67: =IF(AND($A67>='daily uptake'!$C$24,$A67<='daily uptake'!$C$25),$C67+G66,0) -> 0 | H67: =IF(OR(F67<=I7,F67>I9),0,I8+(I10-I8)*(1-((I5+EXP(I6*(I4-I7)))/(I5+EXP(I6*(I4-F67))))^I5)/(1-((I5+EXP(I6*(I4-I7)))/(I5+EXP(I6*(I4-I9))))^I5)) -> 0 | I67: =IF(OR(F67<=J7,F67>J9),0,J8+(J10-J8)*(1-((J5+EXP(J6*(J4-J7)))/(J5+EXP(J6*(J4-F67))))^J5)/(1-((J5+EXP(J6*(J4-J7)))/(J5+EXP(J6*(J4-J9))))^J5)) -> 0 | J67: =IF(OR(F67<=J9,F67>100000),0,IF(F67<=K7,K8,K8+(K10-K8)*(1-((K5+EXP(K6*(K4-K7)))/(K5+EXP(K6*(K4-F67))))^K5)/(1-((K5+EXP(K6*(K4-K7)))/(K5+EXP(K6*(K4-K9))))^K5))) -> 0 | K67: 0 | L67: 0 | M67: 24.04751153 | N67: 0 | O67: 2010-12-26 | P67: =MAX(L$12:L67)+MAX(M$12:M67)+MAX(N$12:N67) -> 24.04751153 | Q67: 2010-12-26 | R67: 0.4226963796 | AJ67: 0 | AL67: =IF(OR(AJ67<=AM7,AJ67>AM9),0,AM8+(AM10-AM8)*(1-((AM5+EXP(AM6*(AM4-AM7)))/(AM5+EXP(AM6*(AM4-AJ67))))^AM5)/(1-((AM5+EXP(AM6*(AM4-AM7)))/(AM5+EXP(AM6*(AM4-AM9))))^AM5)) -> 0 | AM67: =IF(OR(AJ67<=AN7,AJ67>AN9),0,AN8+(AN10-AN8)*(1-((AN5+EXP(AN6*(AN4-AN7)))/(AN5+EXP(AN6*(AN4-AJ67))))^AN5)/(1-((AN5+EXP(AN6*(AN4-AN7)))/(AN5+EXP(AN6*(AN4-AN9))))^AN5)) -> 0 | AN67: =IF(OR(AJ67<=AN9,AJ67>100000),0,IF(AJ67<=AO7,AO8,AO8+(AO10-AO8)*(1-((AO5+EXP(AO6*(AO4-AO7)))/(AO5+EXP(AO6*(AO4-AJ67))))^AO5)/(1-((AO5+EXP(AO6*(AO4-AO7)))/(AO5+EXP(AO6*(AO4-AO9))))^AO5))) -> 0 | AO67: 0 | AP67: 0
A68: 57 | B68: ='daily uptake'!F151 -> 2010-12-27 | C68: =5/9*'daily uptake'!Q151 -> 7.222222222 | D68: =5/9*'daily uptake'!N151 -> 1.666666667 | E68: =IF(AND($A68>='daily uptake'!$C$9,$A68<='daily uptake'!$C$10),$C68+E67,0) -> 535.5555556 | F68: =IF(AND($A68>='daily uptake'!$C$18,$A68<='daily uptake'!$C$20),$D68+F67,0) -> 0 | G68: =IF(AND($A68>='daily uptake'!$C$24,$A68<='daily uptake'!$C$25),$C68+G67,0) -> 0 | H68: =IF(OR(F68<=I7,F68>I9),0,I8+(I10-I8)*(1-((I5+EXP(I6*(I4-I7)))/(I5+EXP(I6*(I4-F68))))^I5)/(1-((I5+EXP(I6*(I4-I7)))/(I5+EXP(I6*(I4-I9))))^I5)) -> 0 | I68: =IF(OR(F68<=J7,F68>J9),0,J8+(J10-J8)*(1-((J5+EXP(J6*(J4-J7)))/(J5+EXP(J6*(J4-F68))))^J5)/(1-((J5+EXP(J6*(J4-J7)))/(J5+EXP(J6*(J4-J9))))^J5)) -> 0 | J68: =IF(OR(F68<=J9,F68>100000),0,IF(F68<=K7,K8,K8+(K10-K8)*(1-((K5+EXP(K6*(K4-K7)))/(K5+EXP(K6*(K4-F68))))^K5)/(1-((K5+EXP(K6*(K4-K7)))/(K5+EXP(K6*(K4-K9))))^K5))) -> 0 | K68: 0 | L68: 0 | M68: 24.529868 | N68: 0 | O68: 2010-12-27 | P68: =MAX(L$12:L68)+MAX(M$12:M68)+MAX(N$12:N68) -> 24.529868 | Q68: 2010-12-27 | R68: 0.4823564676 | AJ68: 0 | AL68: =IF(OR(AJ68<=AM7,AJ68>AM9),0,AM8+(AM10-AM8)*(1-((AM5+EXP(AM6*(AM4-AM7)))/(AM5+EXP(AM6*(AM4-AJ68))))^AM5)/(1-((AM5+EXP(AM6*(AM4-AM7)))/(AM5+EXP(AM6*(AM4-AM9))))^AM5)) -> 0 | AM68: =IF(OR(AJ68<=AN7,AJ68>AN9),0,AN8+(AN10-AN8)*(1-((AN5+EXP(AN6*(AN4-AN7)))/(AN5+EXP(AN6*(AN4-AJ68))))^AN5)/(1-((AN5+EXP(AN6*(AN4-AN7)))/(AN5+EXP(AN6*(AN4-AN9))))^AN5)) -> 0 | AN68: =IF(OR(AJ68<=AN9,AJ68>100000),0,IF(AJ68<=AO7,AO8,AO8+(AO10-AO8)*(1-((AO5+EXP(AO6*(AO4-AO7)))/(AO5+EXP(AO6*(AO4-AJ68))))^AO5)/(1-((AO5+EXP(AO6*(AO4-AO7)))/(AO5+EXP(AO6*(AO4-AO9))))^AO5))) -> 0 | AO68: 0 | AP68: 0
A69: 58 | B69: ='daily uptake'!F152 -> 2010-12-28 | C69: =5/9*'daily uptake'!Q152 -> 7.222222222 | D69: =5/9*'daily uptake'!N152 -> 1.111111111 | E69: =IF(AND($A69>='daily uptake'!$C$9,$A69<='daily uptake'!$C$10),$C69+E68,0) -> 542.7777778 | F69: =IF(AND($A69>='daily uptake'!$C$18,$A69<='daily uptake'!$C$20),$D69+F68,0) -> 0 | G69: =IF(AND($A69>='daily uptake'!$C$24,$A69<='daily uptake'!$C$25),$C69+G68,0) -> 0 | H69: =IF(OR(F69<=I7,F69>I9),0,I8+(I10-I8)*(1-((I5+EXP(I6*(I4-I7)))/(I5+EXP(I6*(I4-F69))))^I5)/(1-((I5+EXP(I6*(I4-I7)))/(I5+EXP(I6*(I4-I9))))^I5)) -> 0 | I69: =IF(OR(F69<=J7,F69>J9),0,J8+(J10-J8)*(1-((J5+EXP(J6*(J4-J7)))/(J5+EXP(J6*(J4-F69))))^J5)/(1-((J5+EXP(J6*(J4-J7)))/(J5+EXP(J6*(J4-J9))))^J5)) -> 0 | J69: =IF(OR(F69<=J9,F69>100000),0,IF(F69<=K7,K8,K8+(K10-K8)*(1-((K5+EXP(K6*(K4-K7)))/(K5+EXP(K6*(K4-F69))))^K5)/(1-((K5+EXP(K6*(K4-K7)))/(K5+EXP(K6*(K4-K9))))^K5))) -> 0 | K69: 0 | L69: 0 | M69: 25.01704696 | N69: 0 | O69: 2010-12-28 | P69: =MAX(L$12:L69)+MAX(M$12:M69)+MAX(N$12:N69) -> 25.01704696 | Q69: 2010-12-28 | R69: 0.4871789573 | AJ69: 0 | AL69: =IF(OR(AJ69<=AM7,AJ69>AM9),0,AM8+(AM10-AM8)*(1-((AM5+EXP(AM6*(AM4-AM7)))/(AM5+EXP(AM6*(AM4-AJ69))))^AM5)/(1-((AM5+EXP(AM6*(AM4-AM7)))/(AM5+EXP(AM6*(AM4-AM9))))^AM5)) -> 0 | AM69: =IF(OR(AJ69<=AN7,AJ69>AN9),0,AN8+(AN10-AN8)*(1-((AN5+EXP(AN6*(AN4-AN7)))/(AN5+EXP(AN6*(AN4-AJ69))))^AN5)/(1-((AN5+EXP(AN6*(AN4-AN7)))/(AN5+EXP(AN6*(AN4-AN9))))^AN5)) -> 0 | AN69: =IF(OR(AJ69<=AN9,AJ69>100000),0,IF(AJ69<=AO7,AO8,AO8+(AO10-AO8)*(1-((AO5+EXP(AO6*(AO4-AO7)))/(AO5+EXP(AO6*(AO4-AJ69))))^AO5)/(1-((AO5+EXP(AO6*(AO4-AO7)))/(AO5+EXP(AO6*(AO4-AO9))))^AO5))) -> 0 | AO69: 0 | AP69: 0
A70: 59 | B70: ='daily uptake'!F153 -> 2010-12-29 | C70: =5/9*'daily uptake'!Q153 -> 7.222222222 | D70: =5/9*'daily uptake'!N153 -> 1.111111111 | E70: =IF(AND($A70>='daily uptake'!$C$9,$A70<='daily uptake'!$C$10),$C70+E69,0) -> 550 | F70: =IF(AND($A70>='daily uptake'!$C$18,$A70<='daily uptake'!$C$20),$D70+F69,0) -> 0 | G70: =IF(AND($A70>='daily uptake'!$C$24,$A70<='daily uptake'!$C$25),$C70+G69,0) -> 0 | H70: =IF(OR(F70<=I7,F70>I9),0,I8+(I10-I8)*(1-((I5+EXP(I6*(I4-I7)))/(I5+EXP(I6*(I4-F70))))^I5)/(1-((I5+EXP(I6*(I4-I7)))/(I5+EXP(I6*(I4-I9))))^I5)) -> 0 | I70: =IF(OR(F70<=J7,F70>J9),0,J8+(J10-J8)*(1-((J5+EXP(J6*(J4-J7)))/(J5+EXP(J6*(J4-F70))))^J5)/(1-((J5+EXP(J6*(J4-J7)))/(J5+EXP(J6*(J4-J9))))^J5)) -> 0 | J70: =IF(OR(F70<=J9,F70>100000),0,IF(F70<=K7,K8,K8+(K10-K8)*(1-((K5+EXP(K6*(K4-K7)))/(K5+EXP(K6*(K4-F70))))^K5)/(1-((K5+EXP(K6*(K4-K7)))/(K5+EXP(K6*(K4-K9))))^K5))) -> 0 | K70: 0 | L70: 0 | M70: 25.50906822 | N70: 0 | O70: 2010-12-29 | P70: =MAX(L$12:L70)+MAX(M$12:M70)+MAX(N$12:N70) -> 25.50906822 | Q70: 2010-12-29 | R70: 0.4920212605 | AJ70: 0 | AL70: =IF(OR(AJ70<=AM7,AJ70>AM9),0,AM8+(AM10-AM8)*(1-((AM5+EXP(AM6*(AM4-AM7)))/(AM5+EXP(AM6*(AM4-AJ70))))^AM5)/(1-((AM5+EXP(AM6*(AM4-AM7)))/(AM5+EXP(AM6*(AM4-AM9))))^AM5)) -> 0 | AM70: =IF(OR(AJ70<=AN7,AJ70>AN9),0,AN8+(AN10-AN8)*(1-((AN5+EXP(AN6*(AN4-AN7)))/(AN5+EXP(AN6*(AN4-AJ70))))^AN5)/(1-((AN5+EXP(AN6*(AN4-AN7)))/(AN5+EXP(AN6*(AN4-AN9))))^AN5)) -> 0 | AN70: =IF(OR(AJ70<=AN9,AJ70>100000),0,IF(AJ70<=AO7,AO8,AO8+(AO10-AO8)*(1-((AO5+EXP(AO6*(AO4-AO7)))/(AO5+EXP(AO6*(AO4-AJ70))))^AO5)/(1-((AO5+EXP(AO6*(AO4-AO7)))/(AO5+EXP(AO6*(AO4-AO9))))^AO5))) -> 0 | AO70: 0 | AP70: 0
A71: 60 | B71: ='daily uptake'!F154 -> 2010-12-30 | C71: =5/9*'daily uptake'!Q154 -> 7.222222222 | D71: =5/9*'daily uptake'!N154 -> 1.111111111 | E71: =IF(AND($A71>='daily uptake'!$C$9,$A71<='daily uptake'!$C$10),$C71+E70,0) -> 557.2222222 | F71: =IF(AND($A71>='daily uptake'!$C$18,$A71<='daily uptake'!$C$20),$D71+F70,0) -> 0 | G71: =IF(AND($A71>='daily uptake'!$C$24,$A71<='daily uptake'!$C$25),$C71+G70,0) -> 0 | H71: =IF(OR(F71<=I7,F71>I9),0,I8+(I10-I8)*(1-((I5+EXP(I6*(I4-I7)))/(I5+EXP(I6*(I4-F71))))^I5)/(1-((I5+EXP(I6*(I4-I7)))/(I5+EXP(I6*(I4-I9))))^I5)) -> 0 | I71: =IF(OR(F71<=J7,F71>J9),0,J8+(J10-J8)*(1-((J5+EXP(J6*(J4-J7)))/(J5+EXP(J6*(J4-F71))))^J5)/(1-((J5+EXP(J6*(J4-J7)))/(J5+EXP(J6*(J4-J9))))^J5)) -> 0 | J71: =IF(OR(F71<=J9,F71>100000),0,IF(F71<=K7,K8,K8+(K10-K8)*(1-((K5+EXP(K6*(K4-K7)))/(K5+EXP(K6*(K4-F71))))^K5)/(1-((K5+EXP(K6*(K4-K7)))/(K5+EXP(K6*(K4-K9))))^K5))) -> 0 | K71: 0 | L71: 0 | M71: 26.00595096 | N71: 0 | O71: 2010-12-30 | P71: =MAX(L$12:L71)+MAX(M$12:M71)+MAX(N$12:N71) -> 26.00595096 | Q71: 2010-12-30 | R71: 0.4968827468 | AJ71: 0 | AL71: =IF(OR(AJ71<=AM7,AJ71>AM9),0,AM8+(AM10-AM8)*(1-((AM5+EXP(AM6*(AM4-AM7)))/(AM5+EXP(AM6*(AM4-AJ71))))^AM5)/(1-((AM5+EXP(AM6*(AM4-AM7)))/(AM5+EXP(AM6*(AM4-AM9))))^AM5)) -> 0 | AM71: =IF(OR(AJ71<=AN7,AJ71>AN9),0,AN8+(AN10-AN8)*(1-((AN5+EXP(AN6*(AN4-AN7)))/(AN5+EXP(AN6*(AN4-AJ71))))^AN5)/(1-((AN5+EXP(AN6*(AN4-AN7)))/(AN5+EXP(AN6*(AN4-AN9))))^AN5)) -> 0 | AN71: =IF(OR(AJ71<=AN9,AJ71>100000),0,IF(AJ71<=AO7,AO8,AO8+(AO10-AO8)*(1-((AO5+EXP(AO6*(AO4-AO7)))/(AO5+EXP(AO6*(AO4-AJ71))))^AO5)/(1-((AO5+EXP(AO6*(AO4-AO7)))/(AO5+EXP(AO6*(AO4-AO9))))^AO5))) -> 0 | AO71: 0 | AP71: 0
A72: 61 | B72: ='daily uptake'!F155 -> 2010-12-31 | C72: =5/9*'daily uptake'!Q155 -> 7.777777778 | D72: =5/9*'daily uptake'!N155 -> 1.388888889 | E72: =IF(AND($A72>='daily uptake'!$C$9,$A72<='daily uptake'!$C$10),$C72+E71,0) -> 565 | F72: =IF(AND($A72>='daily uptake'!$C$18,$A72<='daily uptake'!$C$20),$D72+F71,0) -> 0 | G72: =IF(AND($A72>='daily uptake'!$C$24,$A72<='daily uptake'!$C$25),$C72+G71,0) -> 0 | H72: =IF(OR(F72<=I7,F72>I9),0,I8+(I10-I8)*(1-((I5+EXP(I6*(I4-I7)))/(I5+EXP(I6*(I4-F72))))^I5)/(1-((I5+EXP(I6*(I4-I7)))/(I5+EXP(I6*(I4-I9))))^I5)) -> 0 | I72: =IF(OR(F72<=J7,F72>J9),0,J8+(J10-J8)*(1-((J5+EXP(J6*(J4-J7)))/(J5+EXP(J6*(J4-F72))))^J5)/(1-((J5+EXP(J6*(J4-J7)))/(J5+EXP(J6*(J4-J9))))^J5)) -> 0 | J72: =IF(OR(F72<=J9,F72>100000),0,IF(F72<=K7,K8,K8+(K10-K8)*(1-((K5+EXP(K6*(K4-K7)))/(K5+EXP(K6*(K4-F72))))^K5)/(1-((K5+EXP(K6*(K4-K7)))/(K5+EXP(K6*(K4-K9))))^K5))) -> 0 | K72: 0 | L72: 0 | M72: 26.54651352 | N72: 0 | O72: 2010-12-31 | P72: =MAX(L$12:L72)+MAX(M$12:M72)+MAX(N$12:N72) -> 26.54651352 | Q72: 2010-12-31 | R72: 0.5405625518 | AJ72: 0 | AL72: =IF(OR(AJ72<=AM7,AJ72>AM9),0,AM8+(AM10-AM8)*(1-((AM5+EXP(AM6*(AM4-AM7)))/(AM5+EXP(AM6*(AM4-AJ72))))^AM5)/(1-((AM5+EXP(AM6*(AM4-AM7)))/(AM5+EXP(AM6*(AM4-AM9))))^AM5)) -> 0 | AM72: =IF(OR(AJ72<=AN7,AJ72>AN9),0,AN8+(AN10-AN8)*(1-((AN5+EXP(AN6*(AN4-AN7)))/(AN5+EXP(AN6*(AN4-AJ72))))^AN5)/(1-((AN5+EXP(AN6*(AN4-AN7)))/(AN5+EXP(AN6*(AN4-AN9))))^AN5)) -> 0 | AN72: =IF(OR(AJ72<=AN9,AJ72>100000),0,IF(AJ72<=AO7,AO8,AO8+(AO10-AO8)*(1-((AO5+EXP(AO6*(AO4-AO7)))/(AO5+EXP(AO6*(AO4-AJ72))))^AO5)/(1-((AO5+EXP(AO6*(AO4-AO7)))/(AO5+EXP(AO6*(AO4-AO9))))^AO5))) -> 0 | AO72: 0 | AP72: 0
A73: 62 | B73: ='daily uptake'!F156 -> 2011-01-01 | C73: =5/9*'daily uptake'!Q156 -> 7.5 | D73: =5/9*'daily uptake'!N156 -> 1.111111111 | E73: =IF(AND($A73>='daily uptake'!$C$9,$A73<='daily uptake'!$C$10),$C73+E72,0) -> 572.5 | F73: =IF(AND($A73>='daily uptake'!$C$18,$A73<='daily uptake'!$C$20),$D73+F72,0) -> 0 | G73: =IF(AND($A73>='daily uptake'!$C$24,$A73<='daily uptake'!$C$25),$C73+G72,0) -> 0 | H73: =IF(OR(F73<=I7,F73>I9),0,I8+(I10-I8)*(1-((I5+EXP(I6*(I4-I7)))/(I5+EXP(I6*(I4-F73))))^I5)/(1-((I5+EXP(I6*(I4-I7)))/(I5+EXP(I6*(I4-I9))))^I5)) -> 0 | I73: =IF(OR(F73<=J7,F73>J9),0,J8+(J10-J8)*(1-((J5+EXP(J6*(J4-J7)))/(J5+EXP(J6*(J4-F73))))^J5)/(1-((J5+EXP(J6*(J4-J7)))/(J5+EXP(J6*(J4-J9))))^J5)) -> 0 | J73: =IF(OR(F73<=J9,F73>100000),0,IF(F73<=K7,K8,K8+(K10-K8)*(1-((K5+EXP(K6*(K4-K7)))/(K5+EXP(K6*(K4-F73))))^K5)/(1-((K5+EXP(K6*(K4-K7)))/(K5+EXP(K6*(K4-K9))))^K5))) -> 0 | K73: 0 | L73: 0 | M73: 27.0731512 | N73: 0 | O73: 2011-01-01 | P73: =MAX(L$12:L73)+MAX(M$12:M73)+MAX(N$12:N73) -> 27.0731512 | Q73: 2011-01-01 | R73: 0.5266376804 | AJ73: 0 | AL73: =IF(OR(AJ73<=AM7,AJ73>AM9),0,AM8+(AM10-AM8)*(1-((AM5+EXP(AM6*(AM4-AM7)))/(AM5+EXP(AM6*(AM4-AJ73))))^AM5)/(1-((AM5+EXP(AM6*(AM4-AM7)))/(AM5+EXP(AM6*(AM4-AM9))))^AM5)) -> 0 | AM73: =IF(OR(AJ73<=AN7,AJ73>AN9),0,AN8+(AN10-AN8)*(1-((AN5+EXP(AN6*(AN4-AN7)))/(AN5+EXP(AN6*(AN4-AJ73))))^AN5)/(1-((AN5+EXP(AN6*(AN4-AN7)))/(AN5+EXP(AN6*(AN4-AN9))))^AN5)) -> 0 | AN73: =IF(OR(AJ73<=AN9,AJ73>100000),0,IF(AJ73<=AO7,AO8,AO8+(AO10-AO8)*(1-((AO5+EXP(AO6*(AO4-AO7)))/(AO5+EXP(AO6*(AO4-AJ73))))^AO5)/(1-((AO5+EXP(AO6*(AO4-AO7)))/(AO5+EXP(AO6*(AO4-AO9))))^AO5))) -> 0 | AO73: 0 | AP73: 0
A74: 63 | B74: ='daily uptake'!F157 -> 2011-01-02 | C74: =5/9*'daily uptake'!Q157 -> 7.5 | D74: =5/9*'daily uptake'!N157 -> 1.111111111 | E74: =IF(AND($A74>='daily uptake'!$C$9,$A74<='daily uptake'!$C$10),$C74+E73,0) -> 580 | F74: =IF(AND($A74>='daily uptake'!$C$18,$A74<='daily uptake'!$C$20),$D74+F73,0) -> 0 | G74: =IF(AND($A74>='daily uptake'!$C$24,$A74<='daily uptake'!$C$25),$C74+G73,0) -> 0 | H74: =IF(OR(F74<=I7,F74>I9),0,I8+(I10-I8)*(1-((I5+EXP(I6*(I4-I7)))/(I5+EXP(I6*(I4-F74))))^I5)/(1-((I5+EXP(I6*(I4-I7)))/(I5+EXP(I6*(I4-I9))))^I5)) -> 0 | I74: =IF(OR(F74<=J7,F74>J9),0,J8+(J10-J8)*(1-((J5+EXP(J6*(J4-J7)))/(J5+EXP(J6*(J4-F74))))^J5)/(1-((J5+EXP(J6*(J4-J7)))/(J5+EXP(J6*(J4-J9))))^J5)) -> 0 | J74: =IF(OR(F74<=J9,F74>100000),0,IF(F74<=K7,K8,K8+(K10-K8)*(1-((K5+EXP(K6*(K4-K7)))/(K5+EXP(K6*(K4-F74))))^K5)/(1-((K5+EXP(K6*(K4-K7)))/(K5+EXP(K6*(K4-K9))))^K5))) -> 0 | K74: 0 | L74: 0 | M74: 27.60509139 | N74: 0 | O74: 2011-01-02 | P74: =MAX(L$12:L74)+MAX(M$12:M74)+MAX(N$12:N74) -> 27.60509139 | Q74: 2011-01-02 | R74: 0.5319401928 | AJ74: 0 | AL74: =IF(OR(AJ74<=AM7,AJ74>AM9),0,AM8+(AM10-AM8)*(1-((AM5+EXP(AM6*(AM4-AM7)))/(AM5+EXP(AM6*(AM4-AJ74))))^AM5)/(1-((AM5+EXP(AM6*(AM4-AM7)))/(AM5+EXP(AM6*(AM4-AM9))))^AM5)) -> 0 | AM74: =IF(OR(AJ74<=AN7,AJ74>AN9),0,AN8+(AN10-AN8)*(1-((AN5+EXP(AN6*(AN4-AN7)))/(AN5+EXP(AN6*(AN4-AJ74))))^AN5)/(1-((AN5+EXP(AN6*(AN4-AN7)))/(AN5+EXP(AN6*(AN4-AN9))))^AN5)) -> 0 | AN74: =IF(OR(AJ74<=AN9,AJ74>100000),0,IF(AJ74<=AO7,AO8,AO8+(AO10-AO8)*(1-((AO5+EXP(AO6*(AO4-AO7)))/(AO5+EXP(AO6*(AO4-AJ74))))^AO5)/(1-((AO5+EXP(AO6*(AO4-AO7)))/(AO5+EXP(AO6*(AO4-AO9))))^AO5))) -> 0 | AO74: 0 | AP74: 0
A75: 64 | B75: ='daily uptake'!F158 -> 2011-01-03 | C75: =5/9*'daily uptake'!Q158 -> 7.222222222 | D75: =5/9*'daily uptake'!N158 -> 1.111111111 | E75: =IF(AND($A75>='daily uptake'!$C$9,$A75<='daily uptake'!$C$10),$C75+E74,0) -> 587.2222222 | F75: =IF(AND($A75>='daily uptake'!$C$18,$A75<='daily uptake'!$C$20),$D75+F74,0) -> 0 | G75: =IF(AND($A75>='daily uptake'!$C$24,$A75<='daily uptake'!$C$25),$C75+G74,0) -> 0 | H75: =IF(OR(F75<=I7,F75>I9),0,I8+(I10-I8)*(1-((I5+EXP(I6*(I4-I7)))/(I5+EXP(I6*(I4-F75))))^I5)/(1-((I5+EXP(I6*(I4-I7)))/(I5+EXP(I6*(I4-I9))))^I5)) -> 0 | I75: =IF(OR(F75<=J7,F75>J9),0,J8+(J10-J8)*(1-((J5+EXP(J6*(J4-J7)))/(J5+EXP(J6*(J4-F75))))^J5)/(1-((J5+EXP(J6*(J4-J7)))/(J5+EXP(J6*(J4-J9))))^J5)) -> 0 | J75: =IF(OR(F75<=J9,F75>100000),0,IF(F75<=K7,K8,K8+(K10-K8)*(1-((K5+EXP(K6*(K4-K7)))/(K5+EXP(K6*(K4-F75))))^K5)/(1-((K5+EXP(K6*(K4-K7)))/(K5+EXP(K6*(K4-K9))))^K5))) -> 0 | K75: 0 | L75: 0 | M75: 28.1223588 | N75: 0 | O75: =B75 -> 2011-01-03 | P75: =MAX(L$12:L75)+MAX(M$12:M75)+MAX(N$12:N75) -> 28.1223588 | Q75: =B75 -> 2011-01-03 | R75: 0.5172674056 | AJ75: 0 | AL75: =IF(OR(AJ75<=AM7,AJ75>AM9),0,AM8+(AM10-AM8)*(1-((AM5+EXP(AM6*(AM4-AM7)))/(AM5+EXP(AM6*(AM4-AJ75))))^AM5)/(1-((AM5+EXP(AM6*(AM4-AM7)))/(AM5+EXP(AM6*(AM4-AM9))))^AM5)) -> 0 | AM75: =IF(OR(AJ75<=AN7,AJ75>AN9),0,AN8+(AN10-AN8)*(1-((AN5+EXP(AN6*(AN4-AN7)))/(AN5+EXP(AN6*(AN4-AJ75))))^AN5)/(1-((AN5+EXP(AN6*(AN4-AN7)))/(AN5+EXP(AN6*(AN4-AN9))))^AN5)) -> 0 | AN75: =IF(OR(AJ75<=AN9,AJ75>100000),0,IF(AJ75<=AO7,AO8,AO8+(AO10-AO8)*(1-((AO5+EXP(AO6*(AO4-AO7)))/(AO5+EXP(AO6*(AO4-AJ75))))^AO5)/(1-((AO5+EXP(AO6*(AO4-AO7)))/(AO5+EXP(AO6*(AO4-AO9))))^AO5))) -> 0 | AO75: 0 | AP75: 0
A76: 65 | B76: ='daily uptake'!F159 -> 2011-01-04 | C76: =5/9*'daily uptake'!Q159 -> 6.666666667 | D76: =5/9*'daily uptake'!N159 -> 0.8333333333 | E76: =IF(AND($A76>='daily uptake'!$C$9,$A76<='daily uptake'!$C$10),$C76+E75,0) -> 593.8888889 | F76: =IF(AND($A76>='daily uptake'!$C$18,$A76<='daily uptake'!$C$20),$D76+F75,0) -> 0 | G76: =IF(AND($A76>='daily uptake'!$C$24,$A76<='daily uptake'!$C$25),$C76+G75,0) -> 0 | H76: =IF(OR(F76<=I7,F76>I9),0,I8+(I10-I8)*(1-((I5+EXP(I6*(I4-I7)))/(I5+EXP(I6*(I4-F76))))^I5)/(1-((I5+EXP(I6*(I4-I7)))/(I5+EXP(I6*(I4-I9))))^I5)) -> 0 | I76: =IF(OR(F76<=J7,F76>J9),0,J8+(J10-J8)*(1-((J5+EXP(J6*(J4-J7)))/(J5+EXP(J6*(J4-F76))))^J5)/(1-((J5+EXP(J6*(J4-J7)))/(J5+EXP(J6*(J4-J9))))^J5)) -> 0 | J76: =IF(OR(F76<=J9,F76>100000),0,IF(F76<=K7,K8,K8+(K10-K8)*(1-((K5+EXP(K6*(K4-K7)))/(K5+EXP(K6*(K4-F76))))^K5)/(1-((K5+EXP(K6*(K4-K7)))/(K5+EXP(K6*(K4-K9))))^K5))) -> 0 | K76: =H76+I76+J76 -> 0 | L76: 0 | M76: =M$10*(1-(($M$5+EXP($M$6*$M$4))/($M$5+EXP($M$6*($M$4-$E76))))^$M$5)/(1-(($M$5+EXP($M$6*$M$4))/($M$5+EXP($M$6*($M$4-M$9))))^$M$5) -> 28.60422926 | N76: 0 | O76: 2011-01-04 | P76: =MAX(L$12:L76)+MAX(M$12:M76)+MAX(N$12:N76) -> 28.60422926 | Q76: 2011-01-04 | R76: 0.4818704656 | AJ76: 0 | AL76: =IF(OR(AJ76<=AM7,AJ76>AM9),0,AM8+(AM10-AM8)*(1-((AM5+EXP(AM6*(AM4-AM7)))/(AM5+EXP(AM6*(AM4-AJ76))))^AM5)/(1-((AM5+EXP(AM6*(AM4-AM7)))/(AM5+EXP(AM6*(AM4-AM9))))^AM5)) -> 0 | AM76: =IF(OR(AJ76<=AN7,AJ76>AN9),0,AN8+(AN10-AN8)*(1-((AN5+EXP(AN6*(AN4-AN7)))/(AN5+EXP(AN6*(AN4-AJ76))))^AN5)/(1-((AN5+EXP(AN6*(AN4-AN7)))/(AN5+EXP(AN6*(AN4-AN9))))^AN5)) -> 0 | AN76: =IF(OR(AJ76<=AN9,AJ76>100000),0,IF(AJ76<=AO7,AO8,AO8+(AO10-AO8)*(1-((AO5+EXP(AO6*(AO4-AO7)))/(AO5+EXP(AO6*(AO4-AJ76))))^AO5)/(1-((AO5+EXP(AO6*(AO4-AO7)))/(AO5+EXP(AO6*(AO4-AO9))))^AO5))) -> 0 | AO76: =AL76+AM76+AN76 -> 0 | AP76: 0
A77: 66 | B77: ='daily uptake'!F160 -> 2011-01-05 | C77: =5/9*'daily uptake'!Q160 -> 6.666666667 | D77: =5/9*'daily uptake'!N160 -> 0.8333333333 | E77: =IF(AND($A77>='daily uptake'!$C$9,$A77<='daily uptake'!$C$10),$C77+E76,0) -> 600.5555556 | F77: =IF(AND($A77>='daily uptake'!$C$18,$A77<='daily uptake'!$C$20),$D77+F76,0) -> 0 | G77: =IF(AND($A77>='daily uptake'!$C$24,$A77<='daily uptake'!$C$25),$C77+G76,0) -> 0 | H77: =IF(OR(F77<=I7,F77>I9),0,I8+(I10-I8)*(1-((I5+EXP(I6*(I4-I7)))/(I5+EXP(I6*(I4-F77))))^I5)/(1-((I5+EXP(I6*(I4-I7)))/(I5+EXP(I6*(I4-I9))))^I5)) -> 0 | I77: =IF(OR(F77<=J7,F77>J9),0,J8+(J10-J8)*(1-((J5+EXP(J6*(J4-J7)))/(J5+EXP(J6*(J4-F77))))^J5)/(1-((J5+EXP(J6*(J4-J7)))/(J5+EXP(J6*(J4-J9))))^J5)) -> 0 | J77: =IF(OR(F77<=J9,F77>100000),0,IF(F77<=K7,K8,K8+(K10-K8)*(1-((K5+EXP(K6*(K4-K7)))/(K5+EXP(K6*(K4-F77))))^K5)/(1-((K5+EXP(K6*(K4-K7)))/(K5+EXP(K6*(K4-K9))))^K5))) -> 0 | K77: 0 | L77: =IF(L$8=0,0,K77*L$7/L$8) -> 0 | M77: 29.09032896 | N77: =N$10*(1-(($N$5+EXP($N$6*$N$4))/($N$5+EXP($N$6*($N$4-$G77))))^$N$5)/(1-(($N$5+EXP($N$6*$N$4))/($N$5+EXP($N$6*($N$4-N$9))))^$N$5) -> 0 | O77: 2011-01-05 | P77: =MAX(L$12:L77)+MAX(M$12:M77)+MAX(N$12:N77) -> 29.09032896 | Q77: 2011-01-05 | R77: =P77-P76 -> 0.4860996975 | AJ77: 0 | AL77: =IF(OR(AJ77<=AM7,AJ77>AM9),0,AM8+(AM10-AM8)*(1-((AM5+EXP(AM6*(AM4-AM7)))/(AM5+EXP(AM6*(AM4-AJ77))))^AM5)/(1-((AM5+EXP(AM6*(AM4-AM7)))/(AM5+EXP(AM6*(AM4-AM9))))^AM5)) -> 0 | AM77: =IF(OR(AJ77<=AN7,AJ77>AN9),0,AN8+(AN10-AN8)*(1-((AN5+EXP(AN6*(AN4-AN7)))/(AN5+EXP(AN6*(AN4-AJ77))))^AN5)/(1-((AN5+EXP(AN6*(AN4-AN7)))/(AN5+EXP(AN6*(AN4-AN9))))^AN5)) -> 0 | AN77: =IF(OR(AJ77<=AN9,AJ77>100000),0,IF(AJ77<=AO7,AO8,AO8+(AO10-AO8)*(1-((AO5+EXP(AO6*(AO4-AO7)))/(AO5+EXP(AO6*(AO4-AJ77))))^AO5)/(1-((AO5+EXP(AO6*(AO4-AO7)))/(AO5+EXP(AO6*(AO4-AO9))))^AO5))) -> 0 | AO77: 0 | AP77: =IF(AP$8=0,0,AO77*AP$7/AP$8) -> 0
A78: 67 | B78: ='daily uptake'!F161 -> 2011-01-06 | C78: =5/9*'daily uptake'!Q161 -> 6.111111111 | D78: =5/9*'daily uptake'!N161 -> 0.5555555556 | E78: =IF(AND($A78>='daily uptake'!$C$9,$A78<='daily uptake'!$C$10),$C78+E77,0) -> 606.6666667 | F78: =IF(AND($A78>='daily uptake'!$C$18,$A78<='daily uptake'!$C$20),$D78+F77,0) -> 0 | G78: =IF(AND($A78>='daily uptake'!$C$24,$A78<='daily uptake'!$C$25),$C78+G77,0) -> 0 | H78: =IF(OR(F78<=I7,F78>I9),0,I8+(I10-I8)*(1-((I5+EXP(I6*(I4-I7)))/(I5+EXP(I6*(I4-F78))))^I5)/(1-((I5+EXP(I6*(I4-I7)))/(I5+EXP(I6*(I4-I9))))^I5)) -> 0 | I78: =IF(OR(F78<=J7,F78>J9),0,J8+(J10-J8)*(1-((J5+EXP(J6*(J4-J7)))/(J5+EXP(J6*(J4-F78))))^J5)/(1-((J5+EXP(J6*(J4-J7)))/(J5+EXP(J6*(J4-J9))))^J5)) -> 0 | J78: =IF(OR(F78<=J9,F78>100000),0,IF(F78<=K7,K8,K8+(K10-K8)*(1-((K5+EXP(K6*(K4-K7)))/(K5+EXP(K6*(K4-F78))))^K5)/(1-((K5+EXP(K6*(K4-K7)))/(K5+EXP(K6*(K4-K9))))^K5))) -> 0 | K78: 0 | L78: 0 | M78: 29.53964518 | N78: 0 | O78: 2011-01-06 | P78: =MAX(L$12:L78)+MAX(M$12:M78)+MAX(N$12:N78) -> 29.53964518 | Q78: 2011-01-06 | R78: 0.4493162257 | AJ78: 0 | AL78: =IF(OR(AJ78<=AM7,AJ78>AM9),0,AM8+(AM10-AM8)*(1-((AM5+EXP(AM6*(AM4-AM7)))/(AM5+EXP(AM6*(AM4-AJ78))))^AM5)/(1-((AM5+EXP(AM6*(AM4-AM7)))/(AM5+EXP(AM6*(AM4-AM9))))^AM5)) -> 0 | AM78: =IF(OR(AJ78<=AN7,AJ78>AN9),0,AN8+(AN10-AN8)*(1-((AN5+EXP(AN6*(AN4-AN7)))/(AN5+EXP(AN6*(AN4-AJ78))))^AN5)/(1-((AN5+EXP(AN6*(AN4-AN7)))/(AN5+EXP(AN6*(AN4-AN9))))^AN5)) -> 0 | AN78: =IF(OR(AJ78<=AN9,AJ78>100000),0,IF(AJ78<=AO7,AO8,AO8+(AO10-AO8)*(1-((AO5+EXP(AO6*(AO4-AO7)))/(AO5+EXP(AO6*(AO4-AJ78))))^AO5)/(1-((AO5+EXP(AO6*(AO4-AO7)))/(AO5+EXP(AO6*(AO4-AO9))))^AO5))) -> 0 | AO78: 0 | AP78: 0
A79: 68 | B79: ='daily uptake'!F162 -> 2011-01-07 | C79: =5/9*'daily uptake'!Q162 -> 6.666666667 | D79: =5/9*'daily uptake'!N162 -> 0.5555555556 | E79: =IF(AND($A79>='daily uptake'!$C$9,$A79<='daily uptake'!$C$10),$C79+E78,0) -> 613.3333333 | F79: =IF(AND($A79>='daily uptake'!$C$18,$A79<='daily uptake'!$C$20),$D79+F78,0) -> 0 | G79: =IF(AND($A79>='daily uptake'!$C$24,$A79<='daily uptake'!$C$25),$C79+G78,0) -> 0 | H79: =IF(OR(F79<=I7,F79>I9),0,I8+(I10-I8)*(1-((I5+EXP(I6*(I4-I7)))/(I5+EXP(I6*(I4-F79))))^I5)/(1-((I5+EXP(I6*(I4-I7)))/(I5+EXP(I6*(I4-I9))))^I5)) -> 0 | I79: =IF(OR(F79<=J7,F79>J9),0,J8+(J10-J8)*(1-((J5+EXP(J6*(J4-J7)))/(J5+EXP(J6*(J4-F79))))^J5)/(1-((J5+EXP(J6*(J4-J7)))/(J5+EXP(J6*(J4-J9))))^J5)) -> 0 | J79: =IF(OR(F79<=J9,F79>100000),0,IF(F79<=K7,K8,K8+(K10-K8)*(1-((K5+EXP(K6*(K4-K7)))/(K5+EXP(K6*(K4-F79))))^K5)/(1-((K5+EXP(K6*(K4-K7)))/(K5+EXP(K6*(K4-K9))))^K5))) -> 0 | K79: 0 | L79: 0 | M79: 30.03388173 | N79: 0 | O79: 2011-01-07 | P79: =MAX(L$12:L79)+MAX(M$12:M79)+MAX(N$12:N79) -> 30.03388173 | Q79: 2011-01-07 | R79: 0.4942365441 | AJ79: 0 | AL79: =IF(OR(AJ79<=AM7,AJ79>AM9),0,AM8+(AM10-AM8)*(1-((AM5+EXP(AM6*(AM4-AM7)))/(AM5+EXP(AM6*(AM4-AJ79))))^AM5)/(1-((AM5+EXP(AM6*(AM4-AM7)))/(AM5+EXP(AM6*(AM4-AM9))))^AM5)) -> 0 | AM79: =IF(OR(AJ79<=AN7,AJ79>AN9),0,AN8+(AN10-AN8)*(1-((AN5+EXP(AN6*(AN4-AN7)))/(AN5+EXP(AN6*(AN4-AJ79))))^AN5)/(1-((AN5+EXP(AN6*(AN4-AN7)))/(AN5+EXP(AN6*(AN4-AN9))))^AN5)) -> 0 | AN79: =IF(OR(AJ79<=AN9,AJ79>100000),0,IF(AJ79<=AO7,AO8,AO8+(AO10-AO8)*(1-((AO5+EXP(AO6*(AO4-AO7)))/(AO5+EXP(AO6*(AO4-AJ79))))^AO5)/(1-((AO5+EXP(AO6*(AO4-AO7)))/(AO5+EXP(AO6*(AO4-AO9))))^AO5))) -> 0 | AO79: 0 | AP79: 0
A80: 69 | B80: ='daily uptake'!F163 -> 2011-01-08 | C80: =5/9*'daily uptake'!Q163 -> 7.5 | D80: =5/9*'daily uptake'!N163 -> 0.8333333333 | E80: =IF(AND($A80>='daily uptake'!$C$9,$A80<='daily uptake'!$C$10),$C80+E79,0) -> 620.8333333 | F80: =IF(AND($A80>='daily uptake'!$C$18,$A80<='daily uptake'!$C$20),$D80+F79,0) -> 0 | G80: =IF(AND($A80>='daily uptake'!$C$24,$A80<='daily uptake'!$C$25),$C80+G79,0) -> 0 | H80: =IF(OR(F80<=I7,F80>I9),0,I8+(I10-I8)*(1-((I5+EXP(I6*(I4-I7)))/(I5+EXP(I6*(I4-F80))))^I5)/(1-((I5+EXP(I6*(I4-I7)))/(I5+EXP(I6*(I4-I9))))^I5)) -> 0 | I80: =IF(OR(F80<=J7,F80>J9),0,J8+(J10-J8)*(1-((J5+EXP(J6*(J4-J7)))/(J5+EXP(J6*(J4-F80))))^J5)/(1-((J5+EXP(J6*(J4-J7)))/(J5+EXP(J6*(J4-J9))))^J5)) -> 0 | J80: =IF(OR(F80<=J9,F80>100000),0,IF(F80<=K7,K8,K8+(K10-K8)*(1-((K5+EXP(K6*(K4-K7)))/(K5+EXP(K6*(K4-F80))))^K5)/(1-((K5+EXP(K6*(K4-K7)))/(K5+EXP(K6*(K4-K9))))^K5))) -> 0 | K80: 0 | L80: 0 | M80: 30.59499072 | N80: 0 | O80: 2011-01-08 | P80: =MAX(L$12:L80)+MAX(M$12:M80)+MAX(N$12:N80) -> 30.59499072 | Q80: 2011-01-08 | R80: 0.5611089933 | AJ80: 0 | AL80: =IF(OR(AJ80<=AM7,AJ80>AM9),0,AM8+(AM10-AM8)*(1-((AM5+EXP(AM6*(AM4-AM7)))/(AM5+EXP(AM6*(AM4-AJ80))))^AM5)/(1-((AM5+EXP(AM6*(AM4-AM7)))/(AM5+EXP(AM6*(AM4-AM9))))^AM5)) -> 0 | AM80: =IF(OR(AJ80<=AN7,AJ80>AN9),0,AN8+(AN10-AN8)*(1-((AN5+EXP(AN6*(AN4-AN7)))/(AN5+EXP(AN6*(AN4-AJ80))))^AN5)/(1-((AN5+EXP(AN6*(AN4-AN7)))/(AN5+EXP(AN6*(AN4-AN9))))^AN5)) -> 0 | AN80: =IF(OR(AJ80<=AN9,AJ80>100000),0,IF(AJ80<=AO7,AO8,AO8+(AO10-AO8)*(1-((AO5+EXP(AO6*(AO4-AO7)))/(AO5+EXP(AO6*(AO4-AJ80))))^AO5)/(1-((AO5+EXP(AO6*(AO4-AO7)))/(AO5+EXP(AO6*(AO4-AO9))))^AO5))) -> 0 | AO80: 0 | AP80: 0
A81: 70 | B81: ='daily uptake'!F164 -> 2011-01-09 | C81: =5/9*'daily uptake'!Q164 -> 7.777777778 | D81: =5/9*'daily uptake'!N164 -> 1.111111111 | E81: =IF(AND($A81>='daily uptake'!$C$9,$A81<='daily uptake'!$C$10),$C81+E80,0) -> 628.6111111 | F81: =IF(AND($A81>='daily uptake'!$C$18,$A81<='daily uptake'!$C$20),$D81+F80,0) -> 0 | G81: =IF(AND($A81>='daily uptake'!$C$24,$A81<='daily uptake'!$C$25),$C81+G80,0) -> 0 | H81: =IF(OR(F81<=I7,F81>I9),0,I8+(I10-I8)*(1-((I5+EXP(I6*(I4-I7)))/(I5+EXP(I6*(I4-F81))))^I5)/(1-((I5+EXP(I6*(I4-I7)))/(I5+EXP(I6*(I4-I9))))^I5)) -> 0 | I81: =IF(OR(F81<=J7,F81>J9),0,J8+(J10-J8)*(1-((J5+EXP(J6*(J4-J7)))/(J5+EXP(J6*(J4-F81))))^J5)/(1-((J5+EXP(J6*(J4-J7)))/(J5+EXP(J6*(J4-J9))))^J5)) -> 0 | J81: =IF(OR(F81<=J9,F81>100000),0,IF(F81<=K7,K8,K8+(K10-K8)*(1-((K5+EXP(K6*(K4-K7)))/(K5+EXP(K6*(K4-F81))))^K5)/(1-((K5+EXP(K6*(K4-K7)))/(K5+EXP(K6*(K4-K9))))^K5))) -> 0 | K81: 0 | L81: 0 | M81: 31.18259115 | N81: 0 | O81: 2011-01-09 | P81: =MAX(L$12:L81)+MAX(M$12:M81)+MAX(N$12:N81) -> 31.18259115 | Q81: 2011-01-09 | R81: 0.5876004272 | AJ81: 0 | AL81: =IF(OR(AJ81<=AM7,AJ81>AM9),0,AM8+(AM10-AM8)*(1-((AM5+EXP(AM6*(AM4-AM7)))/(AM5+EXP(AM6*(AM4-AJ81))))^AM5)/(1-((AM5+EXP(AM6*(AM4-AM7)))/(AM5+EXP(AM6*(AM4-AM9))))^AM5)) -> 0 | AM81: =IF(OR(AJ81<=AN7,AJ81>AN9),0,AN8+(AN10-AN8)*(1-((AN5+EXP(AN6*(AN4-AN7)))/(AN5+EXP(AN6*(AN4-AJ81))))^AN5)/(1-((AN5+EXP(AN6*(AN4-AN7)))/(AN5+EXP(AN6*(AN4-AN9))))^AN5)) -> 0 | AN81: =IF(OR(AJ81<=AN9,AJ81>100000),0,IF(AJ81<=AO7,AO8,AO8+(AO10-AO8)*(1-((AO5+EXP(AO6*(AO4-AO7)))/(AO5+EXP(AO6*(AO4-AJ81))))^AO5)/(1-((AO5+EXP(AO6*(AO4-AO7)))/(AO5+EXP(AO6*(AO4-AO9))))^AO5))) -> 0 | AO81: 0 | AP81: 0
A82: 71 | B82: ='daily uptake'!F165 -> 2011-01-10 | C82: =5/9*'daily uptake'!Q165 -> 7.777777778 | D82: =5/9*'daily uptake'!N165 -> 1.111111111 | E82: =IF(AND($A82>='daily uptake'!$C$9,$A82<='daily uptake'!$C$10),$C82+E81,0) -> 636.3888889 | F82: =IF(AND($A82>='daily uptake'!$C$18,$A82<='daily uptake'!$C$20),$D82+F81,0) -> 0 | G82: =IF(AND($A82>='daily uptake'!$C$24,$A82<='daily uptake'!$C$25),$C82+G81,0) -> 0 | H82: =IF(OR(F82<=I7,F82>I9),0,I8+(I10-I8)*(1-((I5+EXP(I6*(I4-I7)))/(I5+EXP(I6*(I4-F82))))^I5)/(1-((I5+EXP(I6*(I4-I7)))/(I5+EXP(I6*(I4-I9))))^I5)) -> 0 | I82: =IF(OR(F82<=J7,F82>J9),0,J8+(J10-J8)*(1-((J5+EXP(J6*(J4-J7)))/(J5+EXP(J6*(J4-F82))))^J5)/(1-((J5+EXP(J6*(J4-J7)))/(J5+EXP(J6*(J4-J9))))^J5)) -> 0 | J82: =IF(OR(F82<=J9,F82>100000),0,IF(F82<=K7,K8,K8+(K10-K8)*(1-((K5+EXP(K6*(K4-K7)))/(K5+EXP(K6*(K4-F82))))^K5)/(1-((K5+EXP(K6*(K4-K7)))/(K5+EXP(K6*(K4-K9))))^K5))) -> 0 | K82: 0 | L82: 0 | M82: 31.7760188 | N82: 0 | O82: 2011-01-10 | P82: =MAX(L$12:L82)+MAX(M$12:M82)+MAX(N$12:N82) -> 31.7760188 | Q82: 2011-01-10 | R82: 0.5934276535 | AJ82: 0 | AL82: =IF(OR(AJ82<=AM7,AJ82>AM9),0,AM8+(AM10-AM8)*(1-((AM5+EXP(AM6*(AM4-AM7)))/(AM5+EXP(AM6*(AM4-AJ82))))^AM5)/(1-((AM5+EXP(AM6*(AM4-AM7)))/(AM5+EXP(AM6*(AM4-AM9))))^AM5)) -> 0 | AM82: =IF(OR(AJ82<=AN7,AJ82>AN9),0,AN8+(AN10-AN8)*(1-((AN5+EXP(AN6*(AN4-AN7)))/(AN5+EXP(AN6*(AN4-AJ82))))^AN5)/(1-((AN5+EXP(AN6*(AN4-AN7)))/(AN5+EXP(AN6*(AN4-AN9))))^AN5)) -> 0 | AN82: =IF(OR(AJ82<=AN9,AJ82>100000),0,IF(AJ82<=AO7,AO8,AO8+(AO10-AO8)*(1-((AO5+EXP(AO6*(AO4-AO7)))/(AO5+EXP(AO6*(AO4-AJ82))))^AO5)/(1-((AO5+EXP(AO6*(AO4-AO7)))/(AO5+EXP(AO6*(AO4-AO9))))^AO5))) -> 0 | AO82: 0 | AP82: 0
A83: 72 | B83: ='daily uptake'!F166 -> 2011-01-11 | C83: =5/9*'daily uptake'!Q166 -> 7.222222222 | D83: =5/9*'daily uptake'!N166 -> 0.5555555556 | E83: =IF(AND($A83>='daily uptake'!$C$9,$A83<='daily uptake'!$C$10),$C83+E82,0) -> 643.6111111 | F83: =IF(AND($A83>='daily uptake'!$C$18,$A83<='daily uptake'!$C$20),$D83+F82,0) -> 0 | G83: =IF(AND($A83>='daily uptake'!$C$24,$A83<='daily uptake'!$C$25),$C83+G82,0) -> 0 | H83: =IF(OR(F83<=I7,F83>I9),0,I8+(I10-I8)*(1-((I5+EXP(I6*(I4-I7)))/(I5+EXP(I6*(I4-F83))))^I5)/(1-((I5+EXP(I6*(I4-I7)))/(I5+EXP(I6*(I4-I9))))^I5)) -> 0 | I83: =IF(OR(F83<=J7,F83>J9),0,J8+(J10-J8)*(1-((J5+EXP(J6*(J4-J7)))/(J5+EXP(J6*(J4-F83))))^J5)/(1-((J5+EXP(J6*(J4-J7)))/(J5+EXP(J6*(J4-J9))))^J5)) -> 0 | J83: =IF(OR(F83<=J9,F83>100000),0,IF(F83<=K7,K8,K8+(K10-K8)*(1-((K5+EXP(K6*(K4-K7)))/(K5+EXP(K6*(K4-F83))))^K5)/(1-((K5+EXP(K6*(K4-K7)))/(K5+EXP(K6*(K4-K9))))^K5))) -> 0 | K83: 0 | L83: 0 | M83: 32.33228775 | N83: 0 | O83: 2011-01-11 | P83: =MAX(L$12:L83)+MAX(M$12:M83)+MAX(N$12:N83) -> 32.33228775 | Q83: 2011-01-11 | R83: 0.5562689476 | AJ83: 0 | AL83: =IF(OR(AJ83<=AM7,AJ83>AM9),0,AM8+(AM10-AM8)*(1-((AM5+EXP(AM6*(AM4-AM7)))/(AM5+EXP(AM6*(AM4-AJ83))))^AM5)/(1-((AM5+EXP(AM6*(AM4-AM7)))/(AM5+EXP(AM6*(AM4-AM9))))^AM5)) -> 0 | AM83: =IF(OR(AJ83<=AN7,AJ83>AN9),0,AN8+(AN10-AN8)*(1-((AN5+EXP(AN6*(AN4-AN7)))/(AN5+EXP(AN6*(AN4-AJ83))))^AN5)/(1-((AN5+EXP(AN6*(AN4-AN7)))/(AN5+EXP(AN6*(AN4-AN9))))^AN5)) -> 0 | AN83: =IF(OR(AJ83<=AN9,AJ83>100000),0,IF(AJ83<=AO7,AO8,AO8+(AO10-AO8)*(1-((AO5+EXP(AO6*(AO4-AO7)))/(AO5+EXP(AO6*(AO4-AJ83))))^AO5)/(1-((AO5+EXP(AO6*(AO4-AO7)))/(AO5+EXP(AO6*(AO4-AO9))))^AO5))) -> 0 | AO83: 0 | AP83: 0
A84: 73 | B84: ='daily uptake'!F167 -> 2011-01-12 | C84: =5/9*'daily uptake'!Q167 -> 7.5 | D84: =5/9*'daily uptake'!N167 -> 0.8333333333 | E84: =IF(AND($A84>='daily uptake'!$C$9,$A84<='daily uptake'!$C$10),$C84+E83,0) -> 651.1111111 | F84: =IF(AND($A84>='daily uptake'!$C$18,$A84<='daily uptake'!$C$20),$D84+F83,0) -> 0 | G84: =IF(AND($A84>='daily uptake'!$C$24,$A84<='daily uptake'!$C$25),$C84+G83,0) -> 0 | H84: =IF(OR(F84<=I7,F84>I9),0,I8+(I10-I8)*(1-((I5+EXP(I6*(I4-I7)))/(I5+EXP(I6*(I4-F84))))^I5)/(1-((I5+EXP(I6*(I4-I7)))/(I5+EXP(I6*(I4-I9))))^I5)) -> 0 | I84: =IF(OR(F84<=J7,F84>J9),0,J8+(J10-J8)*(1-((J5+EXP(J6*(J4-J7)))/(J5+EXP(J6*(J4-F84))))^J5)/(1-((J5+EXP(J6*(J4-J7)))/(J5+EXP(J6*(J4-J9))))^J5)) -> 0 | J84: =IF(OR(F84<=J9,F84>100000),0,IF(F84<=K7,K8,K8+(K10-K8)*(1-((K5+EXP(K6*(K4-K7)))/(K5+EXP(K6*(K4-F84))))^K5)/(1-((K5+EXP(K6*(K4-K7)))/(K5+EXP(K6*(K4-K9))))^K5))) -> 0 | K84: 0 | L84: 0 | M84: 32.91529152 | N84: 0 | O84: 2011-01-12 | P84: =MAX(L$12:L84)+MAX(M$12:M84)+MAX(N$12:N84) -> 32.91529152 | Q84: 2011-01-12 | R84: 0.5830037679 | AJ84: 0 | AL84: =IF(OR(AJ84<=AM7,AJ84>AM9),0,AM8+(AM10-AM8)*(1-((AM5+EXP(AM6*(AM4-AM7)))/(AM5+EXP(AM6*(AM4-AJ84))))^AM5)/(1-((AM5+EXP(AM6*(AM4-AM7)))/(AM5+EXP(AM6*(AM4-AM9))))^AM5)) -> 0 | AM84: =IF(OR(AJ84<=AN7,AJ84>AN9),0,AN8+(AN10-AN8)*(1-((AN5+EXP(AN6*(AN4-AN7)))/(AN5+EXP(AN6*(AN4-AJ84))))^AN5)/(1-((AN5+EXP(AN6*(AN4-AN7)))/(AN5+EXP(AN6*(AN4-AN9))))^AN5)) -> 0 | AN84: =IF(OR(AJ84<=AN9,AJ84>100000),0,IF(AJ84<=AO7,AO8,AO8+(AO10-AO8)*(1-((AO5+EXP(AO6*(AO4-AO7)))/(AO5+EXP(AO6*(AO4-AJ84))))^AO5)/(1-((AO5+EXP(AO6*(AO4-AO7)))/(AO5+EXP(AO6*(AO4-AO9))))^AO5))) -> 0 | AO84: 0 | AP84: 0
A85: 74 | B85: ='daily uptake'!F168 -> 2011-01-13 | C85: =5/9*'daily uptake'!Q168 -> 6.944444444 | D85: =5/9*'daily uptake'!N168 -> 1.111111111 | E85: =IF(AND($A85>='daily uptake'!$C$9,$A85<='daily uptake'!$C$10),$C85+E84,0) -> 658.0555556 | F85: =IF(AND($A85>='daily uptake'!$C$18,$A85<='daily uptake'!$C$20),$D85+F84,0) -> 0 | G85: =IF(AND($A85>='daily uptake'!$C$24,$A85<='daily uptake'!$C$25),$C85+G84,0) -> 0 | H85: =IF(OR(F85<=I7,F85>I9),0,I8+(I10-I8)*(1-((I5+EXP(I6*(I4-I7)))/(I5+EXP(I6*(I4-F85))))^I5)/(1-((I5+EXP(I6*(I4-I7)))/(I5+EXP(I6*(I4-I9))))^I5)) -> 0 | I85: =IF(OR(F85<=J7,F85>J9),0,J8+(J10-J8)*(1-((J5+EXP(J6*(J4-J7)))/(J5+EXP(J6*(J4-F85))))^J5)/(1-((J5+EXP(J6*(J4-J7)))/(J5+EXP(J6*(J4-J9))))^J5)) -> 0 | J85: =IF(OR(F85<=J9,F85>100000),0,IF(F85<=K7,K8,K8+(K10-K8)*(1-((K5+EXP(K6*(K4-K7)))/(K5+EXP(K6*(K4-F85))))^K5)/(1-((K5+EXP(K6*(K4-K7)))/(K5+EXP(K6*(K4-K9))))^K5))) -> 0 | K85: 0 | L85: 0 | M85: 33.45996901 | N85: 0 | O85: 2011-01-13 | P85: =MAX(L$12:L85)+MAX(M$12:M85)+MAX(N$12:N85) -> 33.45996901 | Q85: 2011-01-13 | R85: 0.5446774942 | AJ85: 0 | AL85: =IF(OR(AJ85<=AM7,AJ85>AM9),0,AM8+(AM10-AM8)*(1-((AM5+EXP(AM6*(AM4-AM7)))/(AM5+EXP(AM6*(AM4-AJ85))))^AM5)/(1-((AM5+EXP(AM6*(AM4-AM7)))/(AM5+EXP(AM6*(AM4-AM9))))^AM5)) -> 0 | AM85: =IF(OR(AJ85<=AN7,AJ85>AN9),0,AN8+(AN10-AN8)*(1-((AN5+EXP(AN6*(AN4-AN7)))/(AN5+EXP(AN6*(AN4-AJ85))))^AN5)/(1-((AN5+EXP(AN6*(AN4-AN7)))/(AN5+EXP(AN6*(AN4-AN9))))^AN5)) -> 0 | AN85: =IF(OR(AJ85<=AN9,AJ85>100000),0,IF(AJ85<=AO7,AO8,AO8+(AO10-AO8)*(1-((AO5+EXP(AO6*(AO4-AO7)))/(AO5+EXP(AO6*(AO4-AJ85))))^AO5)/(1-((AO5+EXP(AO6*(AO4-AO7)))/(AO5+EXP(AO6*(AO4-AO9))))^AO5))) -> 0 | AO85: 0 | AP85: 0
A86: 75 | B86: ='daily uptake'!F169 -> 2011-01-14 | C86: =5/9*'daily uptake'!Q169 -> 6.944444444 | D86: =5/9*'daily uptake'!N169 -> 0.8333333333 | E86: =IF(AND($A86>='daily uptake'!$C$9,$A86<='daily uptake'!$C$10),$C86+E85,0) -> 665 | F86: =IF(AND($A86>='daily uptake'!$C$18,$A86<='daily uptake'!$C$20),$D86+F85,0) -> 0 | G86: =IF(AND($A86>='daily uptake'!$C$24,$A86<='daily uptake'!$C$25),$C86+G85,0) -> 0 | H86: =IF(OR(F86<=I7,F86>I9),0,I8+(I10-I8)*(1-((I5+EXP(I6*(I4-I7)))/(I5+EXP(I6*(I4-F86))))^I5)/(1-((I5+EXP(I6*(I4-I7)))/(I5+EXP(I6*(I4-I9))))^I5)) -> 0 | I86: =IF(OR(F86<=J7,F86>J9),0,J8+(J10-J8)*(1-((J5+EXP(J6*(J4-J7)))/(J5+EXP(J6*(J4-F86))))^J5)/(1-((J5+EXP(J6*(J4-J7)))/(J5+EXP(J6*(J4-J9))))^J5)) -> 0 | J86: =IF(OR(F86<=J9,F86>100000),0,IF(F86<=K7,K8,K8+(K10-K8)*(1-((K5+EXP(K6*(K4-K7)))/(K5+EXP(K6*(K4-F86))))^K5)/(1-((K5+EXP(K6*(K4-K7)))/(K5+EXP(K6*(K4-K9))))^K5))) -> 0 | K86: 0 | L86: 0 | M86: 34.00932574 | N86: 0 | O86: 2011-01-14 | P86: =MAX(L$12:L86)+MAX(M$12:M86)+MAX(N$12:N86) -> 34.00932574 | Q86: 2011-01-14 | R86: 0.5493567294 | AJ86: 0 | AL86: =IF(OR(AJ86<=AM7,AJ86>AM9),0,AM8+(AM10-AM8)*(1-((AM5+EXP(AM6*(AM4-AM7)))/(AM5+EXP(AM6*(AM4-AJ86))))^AM5)/(1-((AM5+EXP(AM6*(AM4-AM7)))/(AM5+EXP(AM6*(AM4-AM9))))^AM5)) -> 0 | AM86: =IF(OR(AJ86<=AN7,AJ86>AN9),0,AN8+(AN10-AN8)*(1-((AN5+EXP(AN6*(AN4-AN7)))/(AN5+EXP(AN6*(AN4-AJ86))))^AN5)/(1-((AN5+EXP(AN6*(AN4-AN7)))/(AN5+EXP(AN6*(AN4-AN9))))^AN5)) -> 0 | AN86: =IF(OR(AJ86<=AN9,AJ86>100000),0,IF(AJ86<=AO7,AO8,AO8+(AO10-AO8)*(1-((AO5+EXP(AO6*(AO4-AO7)))/(AO5+EXP(AO6*(AO4-AJ86))))^AO5)/(1-((AO5+EXP(AO6*(AO4-AO7)))/(AO5+EXP(AO6*(AO4-AO9))))^AO5))) -> 0 | AO86: 0 | AP86: 0
A87: 76 | B87: ='daily uptake'!F170 -> 2011-01-15 | C87: =5/9*'daily uptake'!Q170 -> 6.944444444 | D87: =5/9*'daily uptake'!N170 -> 0.8333333333 | E87: =IF(AND($A87>='daily uptake'!$C$9,$A87<='daily uptake'!$C$10),$C87+E86,0) -> 671.9444444 | F87: =IF(AND($A87>='daily uptake'!$C$18,$A87<='daily uptake'!$C$20),$D87+F86,0) -> 0 | G87: =IF(AND($A87>='daily uptake'!$C$24,$A87<='daily uptake'!$C$25),$C87+G86,0) -> 0 | H87: =IF(OR(F87<=I7,F87>I9),0,I8+(I10-I8)*(1-((I5+EXP(I6*(I4-I7)))/(I5+EXP(I6*(I4-F87))))^I5)/(1-((I5+EXP(I6*(I4-I7)))/(I5+EXP(I6*(I4-I9))))^I5)) -> 0 | I87: =IF(OR(F87<=J7,F87>J9),0,J8+(J10-J8)*(1-((J5+EXP(J6*(J4-J7)))/(J5+EXP(J6*(J4-F87))))^J5)/(1-((J5+EXP(J6*(J4-J7)))/(J5+EXP(J6*(J4-J9))))^J5)) -> 0 | J87: =IF(OR(F87<=J9,F87>100000),0,IF(F87<=K7,K8,K8+(K10-K8)*(1-((K5+EXP(K6*(K4-K7)))/(K5+EXP(K6*(K4-F87))))^K5)/(1-((K5+EXP(K6*(K4-K7)))/(K5+EXP(K6*(K4-K9))))^K5))) -> 0 | K87: 0 | L87: 0 | M87: 34.56336766 | N87: 0 | O87: 2011-01-15 | P87: =MAX(L$12:L87)+MAX(M$12:M87)+MAX(N$12:N87) -> 34.56336766 | Q87: 2011-01-15 | R87: 0.5540419223 | AJ87: 0 | AL87: =IF(OR(AJ87<=AM7,AJ87>AM9),0,AM8+(AM10-AM8)*(1-((AM5+EXP(AM6*(AM4-AM7)))/(AM5+EXP(AM6*(AM4-AJ87))))^AM5)/(1-((AM5+EXP(AM6*(AM4-AM7)))/(AM5+EXP(AM6*(AM4-AM9))))^AM5)) -> 0 | AM87: =IF(OR(AJ87<=AN7,AJ87>AN9),0,AN8+(AN10-AN8)*(1-((AN5+EXP(AN6*(AN4-AN7)))/(AN5+EXP(AN6*(AN4-AJ87))))^AN5)/(1-((AN5+EXP(AN6*(AN4-AN7)))/(AN5+EXP(AN6*(AN4-AN9))))^AN5)) -> 0 | AN87: =IF(OR(AJ87<=AN9,AJ87>100000),0,IF(AJ87<=AO7,AO8,AO8+(AO10-AO8)*(1-((AO5+EXP(AO6*(AO4-AO7)))/(AO5+EXP(AO6*(AO4-AJ87))))^AO5)/(1-((AO5+EXP(AO6*(AO4-AO7)))/(AO5+EXP(AO6*(AO4-AO9))))^AO5))) -> 0 | AO87: 0 | AP87: 0
A88: 77 | B88: ='daily uptake'!F171 -> 2011-01-16 | C88: =5/9*'daily uptake'!Q171 -> 7.5 | D88: =5/9*'daily uptake'!N171 -> 1.388888889 | E88: =IF(AND($A88>='daily uptake'!$C$9,$A88<='daily uptake'!$C$10),$C88+E87,0) -> 679.4444444 | F88: =IF(AND($A88>='daily uptake'!$C$18,$A88<='daily uptake'!$C$20),$D88+F87,0) -> 0 | G88: =IF(AND($A88>='daily uptake'!$C$24,$A88<='daily uptake'!$C$25),$C88+G87,0) -> 0 | H88: =IF(OR(F88<=I7,F88>I9),0,I8+(I10-I8)*(1-((I5+EXP(I6*(I4-I7)))/(I5+EXP(I6*(I4-F88))))^I5)/(1-((I5+EXP(I6*(I4-I7)))/(I5+EXP(I6*(I4-I9))))^I5)) -> 0 | I88: =IF(OR(F88<=J7,F88>J9),0,J8+(J10-J8)*(1-((J5+EXP(J6*(J4-J7)))/(J5+EXP(J6*(J4-F88))))^J5)/(1-((J5+EXP(J6*(J4-J7)))/(J5+EXP(J6*(J4-J9))))^J5)) -> 0 | J88: =IF(OR(F88<=J9,F88>100000),0,IF(F88<=K7,K8,K8+(K10-K8)*(1-((K5+EXP(K6*(K4-K7)))/(K5+EXP(K6*(K4-F88))))^K5)/(1-((K5+EXP(K6*(K4-K7)))/(K5+EXP(K6*(K4-K9))))^K5))) -> 0 | K88: 0 | L88: 0 | M88: 35.16700128 | N88: 0 | O88: 2011-01-16 | P88: =MAX(L$12:L88)+MAX(M$12:M88)+MAX(N$12:N88) -> 35.16700128 | Q88: 2011-01-16 | R88: 0.6036336163 | AJ88: 0 | AL88: =IF(OR(AJ88<=AM7,AJ88>AM9),0,AM8+(AM10-AM8)*(1-((AM5+EXP(AM6*(AM4-AM7)))/(AM5+EXP(AM6*(AM4-AJ88))))^AM5)/(1-((AM5+EXP(AM6*(AM4-AM7)))/(AM5+EXP(AM6*(AM4-AM9))))^AM5)) -> 0 | AM88: =IF(OR(AJ88<=AN7,AJ88>AN9),0,AN8+(AN10-AN8)*(1-((AN5+EXP(AN6*(AN4-AN7)))/(AN5+EXP(AN6*(AN4-AJ88))))^AN5)/(1-((AN5+EXP(AN6*(AN4-AN7)))/(AN5+EXP(AN6*(AN4-AN9))))^AN5)) -> 0 | AN88: =IF(OR(AJ88<=AN9,AJ88>100000),0,IF(AJ88<=AO7,AO8,AO8+(AO10-AO8)*(1-((AO5+EXP(AO6*(AO4-AO7)))/(AO5+EXP(AO6*(AO4-AJ88))))^AO5)/(1-((AO5+EXP(AO6*(AO4-AO7)))/(AO5+EXP(AO6*(AO4-AO9))))^AO5))) -> 0 | AO88: 0 | AP88: 0
A89: 78 | B89: ='daily uptake'!F172 -> 2011-01-17 | C89: =5/9*'daily uptake'!Q172 -> 7.5 | D89: =5/9*'daily uptake'!N172 -> 1.111111111 | E89: =IF(AND($A89>='daily uptake'!$C$9,$A89<='daily uptake'!$C$10),$C89+E88,0) -> 686.9444444 | F89: =IF(AND($A89>='daily uptake'!$C$18,$A89<='daily uptake'!$C$20),$D89+F88,0) -> 0 | G89: =IF(AND($A89>='daily uptake'!$C$24,$A89<='daily uptake'!$C$25),$C89+G88,0) -> 0 | H89: =IF(OR(F89<=I7,F89>I9),0,I8+(I10-I8)*(1-((I5+EXP(I6*(I4-I7)))/(I5+EXP(I6*(I4-F89))))^I5)/(1-((I5+EXP(I6*(I4-I7)))/(I5+EXP(I6*(I4-I9))))^I5)) -> 0 | I89: =IF(OR(F89<=J7,F89>J9),0,J8+(J10-J8)*(1-((J5+EXP(J6*(J4-J7)))/(J5+EXP(J6*(J4-F89))))^J5)/(1-((J5+EXP(J6*(J4-J7)))/(J5+EXP(J6*(J4-J9))))^J5)) -> 0 | J89: =IF(OR(F89<=J9,F89>100000),0,IF(F89<=K7,K8,K8+(K10-K8)*(1-((K5+EXP(K6*(K4-K7)))/(K5+EXP(K6*(K4-F89))))^K5)/(1-((K5+EXP(K6*(K4-K7)))/(K5+EXP(K6*(K4-K9))))^K5))) -> 0 | K89: 0 | L89: 0 | M89: 35.77611115 | N89: 0 | O89: 2011-01-17 | P89: =MAX(L$12:L89)+MAX(M$12:M89)+MAX(N$12:N89) -> 35.77611115 | Q89: 2011-01-17 | R89: 0.6091098666 | AJ89: 0 | AL89: =IF(OR(AJ89<=AM7,AJ89>AM9),0,AM8+(AM10-AM8)*(1-((AM5+EXP(AM6*(AM4-AM7)))/(AM5+EXP(AM6*(AM4-AJ89))))^AM5)/(1-((AM5+EXP(AM6*(AM4-AM7)))/(AM5+EXP(AM6*(AM4-AM9))))^AM5)) -> 0 | AM89: =IF(OR(AJ89<=AN7,AJ89>AN9),0,AN8+(AN10-AN8)*(1-((AN5+EXP(AN6*(AN4-AN7)))/(AN5+EXP(AN6*(AN4-AJ89))))^AN5)/(1-((AN5+EXP(AN6*(AN4-AN7)))/(AN5+EXP(AN6*(AN4-AN9))))^AN5)) -> 0 | AN89: =IF(OR(AJ89<=AN9,AJ89>100000),0,IF(AJ89<=AO7,AO8,AO8+(AO10-AO8)*(1-((AO5+EXP(AO6*(AO4-AO7)))/(AO5+EXP(AO6*(AO4-AJ89))))^AO5)/(1-((AO5+EXP(AO6*(AO4-AO7)))/(AO5+EXP(AO6*(AO4-AO9))))^AO5))) -> 0 | AO89: 0 | AP89: 0
A90: 79 | B90: ='daily uptake'!F173 -> 2011-01-18 | C90: =5/9*'daily uptake'!Q173 -> 7.777777778 | D90: =5/9*'daily uptake'!N173 -> 1.388888889 | E90: =IF(AND($A90>='daily uptake'!$C$9,$A90<='daily uptake'!$C$10),$C90+E89,0) -> 694.7222222 | F90: =IF(AND($A90>='daily uptake'!$C$18,$A90<='daily uptake'!$C$20),$D90+F89,0) -> 0 | G90: =IF(AND($A90>='daily uptake'!$C$24,$A90<='daily uptake'!$C$25),$C90+G89,0) -> 0 | H90: =IF(OR(F90<=I7,F90>I9),0,I8+(I10-I8)*(1-((I5+EXP(I6*(I4-I7)))/(I5+EXP(I6*(I4-F90))))^I5)/(1-((I5+EXP(I6*(I4-I7)))/(I5+EXP(I6*(I4-I9))))^I5)) -> 0 | I90: =IF(OR(F90<=J7,F90>J9),0,J8+(J10-J8)*(1-((J5+EXP(J6*(J4-J7)))/(J5+EXP(J6*(J4-F90))))^J5)/(1-((J5+EXP(J6*(J4-J7)))/(J5+EXP(J6*(J4-J9))))^J5)) -> 0 | J90: =IF(OR(F90<=J9,F90>100000),0,IF(F90<=K7,K8,K8+(K10-K8)*(1-((K5+EXP(K6*(K4-K7)))/(K5+EXP(K6*(K4-F90))))^K5)/(1-((K5+EXP(K6*(K4-K7)))/(K5+EXP(K6*(K4-K9))))^K5))) -> 0 | K90: 0 | L90: 0 | M90: 36.41356948 | N90: 0 | O90: 2011-01-18 | P90: =MAX(L$12:L90)+MAX(M$12:M90)+MAX(N$12:N90) -> 36.41356948 | Q90: 2011-01-18 | R90: 0.6374583323 | AJ90: 0 | AL90: =IF(OR(AJ90<=AM7,AJ90>AM9),0,AM8+(AM10-AM8)*(1-((AM5+EXP(AM6*(AM4-AM7)))/(AM5+EXP(AM6*(AM4-AJ90))))^AM5)/(1-((AM5+EXP(AM6*(AM4-AM7)))/(AM5+EXP(AM6*(AM4-AM9))))^AM5)) -> 0 | AM90: =IF(OR(AJ90<=AN7,AJ90>AN9),0,AN8+(AN10-AN8)*(1-((AN5+EXP(AN6*(AN4-AN7)))/(AN5+EXP(AN6*(AN4-AJ90))))^AN5)/(1-((AN5+EXP(AN6*(AN4-AN7)))/(AN5+EXP(AN6*(AN4-AN9))))^AN5)) -> 0 | AN90: =IF(OR(AJ90<=AN9,AJ90>100000),0,IF(AJ90<=AO7,AO8,AO8+(AO10-AO8)*(1-((AO5+EXP(AO6*(AO4-AO7)))/(AO5+EXP(AO6*(AO4-AJ90))))^AO5)/(1-((AO5+EXP(AO6*(AO4-AO7)))/(AO5+EXP(AO6*(AO4-AO9))))^AO5))) -> 0 | AO90: 0 | AP90: 0
A91: 80 | B91: ='daily uptake'!F174 -> 2011-01-19 | C91: =5/9*'daily uptake'!Q174 -> 7.5 | D91: =5/9*'daily uptake'!N174 -> 1.388888889 | E91: =IF(AND($A91>='daily uptake'!$C$9,$A91<='daily uptake'!$C$10),$C91+E90,0) -> 702.2222222 | F91: =IF(AND($A91>='daily uptake'!$C$18,$A91<='daily uptake'!$C$20),$D91+F90,0) -> 0 | G91: =IF(AND($A91>='daily uptake'!$C$24,$A91<='daily uptake'!$C$25),$C91+G90,0) -> 0 | H91: =IF(OR(F91<=I7,F91>I9),0,I8+(I10-I8)*(1-((I5+EXP(I6*(I4-I7)))/(I5+EXP(I6*(I4-F91))))^I5)/(1-((I5+EXP(I6*(I4-I7)))/(I5+EXP(I6*(I4-I9))))^I5)) -> 0 | I91: =IF(OR(F91<=J7,F91>J9),0,J8+(J10-J8)*(1-((J5+EXP(J6*(J4-J7)))/(J5+EXP(J6*(J4-F91))))^J5)/(1-((J5+EXP(J6*(J4-J7)))/(J5+EXP(J6*(J4-J9))))^J5)) -> 0 | J91: =IF(OR(F91<=J9,F91>100000),0,IF(F91<=K7,K8,K8+(K10-K8)*(1-((K5+EXP(K6*(K4-K7)))/(K5+EXP(K6*(K4-F91))))^K5)/(1-((K5+EXP(K6*(K4-K7)))/(K5+EXP(K6*(K4-K9))))^K5))) -> 0 | K91: 0 | L91: 0 | M91: 37.03384678 | N91: 0 | O91: 2011-01-19 | P91: =MAX(L$12:L91)+MAX(M$12:M91)+MAX(N$12:N91) -> 37.03384678 | Q91: 2011-01-19 | R91: 0.6202773026 | AJ91: 0 | AL91: =IF(OR(AJ91<=AM7,AJ91>AM9),0,AM8+(AM10-AM8)*(1-((AM5+EXP(AM6*(AM4-AM7)))/(AM5+EXP(AM6*(AM4-AJ91))))^AM5)/(1-((AM5+EXP(AM6*(AM4-AM7)))/(AM5+EXP(AM6*(AM4-AM9))))^AM5)) -> 0 | AM91: =IF(OR(AJ91<=AN7,AJ91>AN9),0,AN8+(AN10-AN8)*(1-((AN5+EXP(AN6*(AN4-AN7)))/(AN5+EXP(AN6*(AN4-AJ91))))^AN5)/(1-((AN5+EXP(AN6*(AN4-AN7)))/(AN5+EXP(AN6*(AN4-AN9))))^AN5)) -> 0 | AN91: =IF(OR(AJ91<=AN9,AJ91>100000),0,IF(AJ91<=AO7,AO8,AO8+(AO10-AO8)*(1-((AO5+EXP(AO6*(AO4-AO7)))/(AO5+EXP(AO6*(AO4-AJ91))))^AO5)/(1-((AO5+EXP(AO6*(AO4-AO7)))/(AO5+EXP(AO6*(AO4-AO9))))^AO5))) -> 0 | AO91: 0 | AP91: 0
A92: 81 | B92: ='daily uptake'!F175 -> 2011-01-20 | C92: =5/9*'daily uptake'!Q175 -> 6.944444444 | D92: =5/9*'daily uptake'!N175 -> 1.111111111 | E92: =IF(AND($A92>='daily uptake'!$C$9,$A92<='daily uptake'!$C$10),$C92+E91,0) -> 709.1666667 | F92: =IF(AND($A92>='daily uptake'!$C$18,$A92<='daily uptake'!$C$20),$D92+F91,0) -> 0 | G92: =IF(AND($A92>='daily uptake'!$C$24,$A92<='daily uptake'!$C$25),$C92+G91,0) -> 0 | H92: =IF(OR(F92<=I7,F92>I9),0,I8+(I10-I8)*(1-((I5+EXP(I6*(I4-I7)))/(I5+EXP(I6*(I4-F92))))^I5)/(1-((I5+EXP(I6*(I4-I7)))/(I5+EXP(I6*(I4-I9))))^I5)) -> 0 | I92: =IF(OR(F92<=J7,F92>J9),0,J8+(J10-J8)*(1-((J5+EXP(J6*(J4-J7)))/(J5+EXP(J6*(J4-F92))))^J5)/(1-((J5+EXP(J6*(J4-J7)))/(J5+EXP(J6*(J4-J9))))^J5)) -> 0 | J92: =IF(OR(F92<=J9,F92>100000),0,IF(F92<=K7,K8,K8+(K10-K8)*(1-((K5+EXP(K6*(K4-K7)))/(K5+EXP(K6*(K4-F92))))^K5)/(1-((K5+EXP(K6*(K4-K7)))/(K5+EXP(K6*(K4-K9))))^K5))) -> 0 | K92: 0 | L92: 0 | M92: 37.61306889 | N92: 0 | O92: 2011-01-20 | P92: =MAX(L$12:L92)+MAX(M$12:M92)+MAX(N$12:N92) -> 37.61306889 | Q92: 2011-01-20 | R92: 0.5792221114 | AJ92: 0 | AL92: =IF(OR(AJ92<=AM7,AJ92>AM9),0,AM8+(AM10-AM8)*(1-((AM5+EXP(AM6*(AM4-AM7)))/(AM5+EXP(AM6*(AM4-AJ92))))^AM5)/(1-((AM5+EXP(AM6*(AM4-AM7)))/(AM5+EXP(AM6*(AM4-AM9))))^AM5)) -> 0 | AM92: =IF(OR(AJ92<=AN7,AJ92>AN9),0,AN8+(AN10-AN8)*(1-((AN5+EXP(AN6*(AN4-AN7)))/(AN5+EXP(AN6*(AN4-AJ92))))^AN5)/(1-((AN5+EXP(AN6*(AN4-AN7)))/(AN5+EXP(AN6*(AN4-AN9))))^AN5)) -> 0 | AN92: =IF(OR(AJ92<=AN9,AJ92>100000),0,IF(AJ92<=AO7,AO8,AO8+(AO10-AO8)*(1-((AO5+EXP(AO6*(AO4-AO7)))/(AO5+EXP(AO6*(AO4-AJ92))))^AO5)/(1-((AO5+EXP(AO6*(AO4-AO7)))/(AO5+EXP(AO6*(AO4-AO9))))^AO5))) -> 0 | AO92: 0 | AP92: 0
A93: 82 | B93: ='daily uptake'!F176 -> 2011-01-21 | C93: =5/9*'daily uptake'!Q176 -> 7.5 | D93: =5/9*'daily uptake'!N176 -> 1.388888889 | E93: =IF(AND($A93>='daily uptake'!$C$9,$A93<='daily uptake'!$C$10),$C93+E92,0) -> 716.6666667 | F93: =IF(AND($A93>='daily uptake'!$C$18,$A93<='daily uptake'!$C$20),$D93+F92,0) -> 0 | G93: =IF(AND($A93>='daily uptake'!$C$24,$A93<='daily uptake'!$C$25),$C93+G92,0) -> 0 | H93: =IF(OR(F93<=I7,F93>I9),0,I8+(I10-I8)*(1-((I5+EXP(I6*(I4-I7)))/(I5+EXP(I6*(I4-F93))))^I5)/(1-((I5+EXP(I6*(I4-I7)))/(I5+EXP(I6*(I4-I9))))^I5)) -> 0 | I93: =IF(OR(F93<=J7,F93>J9),0,J8+(J10-J8)*(1-((J5+EXP(J6*(J4-J7)))/(J5+EXP(J6*(J4-F93))))^J5)/(1-((J5+EXP(J6*(J4-J7)))/(J5+EXP(J6*(J4-J9))))^J5)) -> 0 | J93: =IF(OR(F93<=J9,F93>100000),0,IF(F93<=K7,K8,K8+(K10-K8)*(1-((K5+EXP(K6*(K4-K7)))/(K5+EXP(K6*(K4-F93))))^K5)/(1-((K5+EXP(K6*(K4-K7)))/(K5+EXP(K6*(K4-K9))))^K5))) -> 0 | K93: 0 | L93: 0 | M93: 38.24391212 | N93: 0 | O93: 2011-01-21 | P93: =MAX(L$12:L93)+MAX(M$12:M93)+MAX(N$12:N93) -> 38.24391212 | Q93: 2011-01-21 | R93: 0.6308432254 | AJ93: 0 | AL93: =IF(OR(AJ93<=AM7,AJ93>AM9),0,AM8+(AM10-AM8)*(1-((AM5+EXP(AM6*(AM4-AM7)))/(AM5+EXP(AM6*(AM4-AJ93))))^AM5)/(1-((AM5+EXP(AM6*(AM4-AM7)))/(AM5+EXP(AM6*(AM4-AM9))))^AM5)) -> 0 | AM93: =IF(OR(AJ93<=AN7,AJ93>AN9),0,AN8+(AN10-AN8)*(1-((AN5+EXP(AN6*(AN4-AN7)))/(AN5+EXP(AN6*(AN4-AJ93))))^AN5)/(1-((AN5+EXP(AN6*(AN4-AN7)))/(AN5+EXP(AN6*(AN4-AN9))))^AN5)) -> 0 | AN93: =IF(OR(AJ93<=AN9,AJ93>100000),0,IF(AJ93<=AO7,AO8,AO8+(AO10-AO8)*(1-((AO5+EXP(AO6*(AO4-AO7)))/(AO5+EXP(AO6*(AO4-AJ93))))^AO5)/(1-((AO5+EXP(AO6*(AO4-AO7)))/(AO5+EXP(AO6*(AO4-AO9))))^AO5))) -> 0 | AO93: 0 | AP93: 0
A94: 83 | B94: ='daily uptake'!F177 -> 2011-01-22 | C94: =5/9*'daily uptake'!Q177 -> 7.5 | D94: =5/9*'daily uptake'!N177 -> 1.111111111 | E94: =IF(AND($A94>='daily uptake'!$C$9,$A94<='daily uptake'!$C$10),$C94+E93,0) -> 724.1666667 | F94: =IF(AND($A94>='daily uptake'!$C$18,$A94<='daily uptake'!$C$20),$D94+F93,0) -> 0 | G94: =IF(AND($A94>='daily uptake'!$C$24,$A94<='daily uptake'!$C$25),$C94+G93,0) -> 0 | H94: =IF(OR(F94<=I7,F94>I9),0,I8+(I10-I8)*(1-((I5+EXP(I6*(I4-I7)))/(I5+EXP(I6*(I4-F94))))^I5)/(1-((I5+EXP(I6*(I4-I7)))/(I5+EXP(I6*(I4-I9))))^I5)) -> 0 | I94: =IF(OR(F94<=J7,F94>J9),0,J8+(J10-J8)*(1-((J5+EXP(J6*(J4-J7)))/(J5+EXP(J6*(J4-F94))))^J5)/(1-((J5+EXP(J6*(J4-J7)))/(J5+EXP(J6*(J4-J9))))^J5)) -> 0 | J94: =IF(OR(F94<=J9,F94>100000),0,IF(F94<=K7,K8,K8+(K10-K8)*(1-((K5+EXP(K6*(K4-K7)))/(K5+EXP(K6*(K4-F94))))^K5)/(1-((K5+EXP(K6*(K4-K7)))/(K5+EXP(K6*(K4-K9))))^K5))) -> 0 | K94: 0 | L94: 0 | M94: 38.88024154 | N94: 0 | O94: 2011-01-22 | P94: =MAX(L$12:L94)+MAX(M$12:M94)+MAX(N$12:N94) -> 38.88024154 | Q94: 2011-01-22 | R94: 0.636329421 | AJ94: 0 | AL94: =IF(OR(AJ94<=AM7,AJ94>AM9),0,AM8+(AM10-AM8)*(1-((AM5+EXP(AM6*(AM4-AM7)))/(AM5+EXP(AM6*(AM4-AJ94))))^AM5)/(1-((AM5+EXP(AM6*(AM4-AM7)))/(AM5+EXP(AM6*(AM4-AM9))))^AM5)) -> 0 | AM94: =IF(OR(AJ94<=AN7,AJ94>AN9),0,AN8+(AN10-AN8)*(1-((AN5+EXP(AN6*(AN4-AN7)))/(AN5+EXP(AN6*(AN4-AJ94))))^AN5)/(1-((AN5+EXP(AN6*(AN4-AN7)))/(AN5+EXP(AN6*(AN4-AN9))))^AN5)) -> 0 | AN94: =IF(OR(AJ94<=AN9,AJ94>100000),0,IF(AJ94<=AO7,AO8,AO8+(AO10-AO8)*(1-((AO5+EXP(AO6*(AO4-AO7)))/(AO5+EXP(AO6*(AO4-AJ94))))^AO5)/(1-((AO5+EXP(AO6*(AO4-AO7)))/(AO5+EXP(AO6*(AO4-AO9))))^AO5))) -> 0 | AO94: 0 | AP94: 0
A95: 84 | B95: ='daily uptake'!F178 -> 2011-01-23 | C95: =5/9*'daily uptake'!Q178 -> 7.777777778 | D95: =5/9*'daily uptake'!N178 -> 1.111111111 | E95: =IF(AND($A95>='daily uptake'!$C$9,$A95<='daily uptake'!$C$10),$C95+E94,0) -> 731.9444444 | F95: =IF(AND($A95>='daily uptake'!$C$18,$A95<='daily uptake'!$C$20),$D95+F94,0) -> 0 | G95: =IF(AND($A95>='daily uptake'!$C$24,$A95<='daily uptake'!$C$25),$C95+G94,0) -> 0 | H95: =IF(OR(F95<=I7,F95>I9),0,I8+(I10-I8)*(1-((I5+EXP(I6*(I4-I7)))/(I5+EXP(I6*(I4-F95))))^I5)/(1-((I5+EXP(I6*(I4-I7)))/(I5+EXP(I6*(I4-I9))))^I5)) -> 0 | I95: =IF(OR(F95<=J7,F95>J9),0,J8+(J10-J8)*(1-((J5+EXP(J6*(J4-J7)))/(J5+EXP(J6*(J4-F95))))^J5)/(1-((J5+EXP(J6*(J4-J7)))/(J5+EXP(J6*(J4-J9))))^J5)) -> 0 | J95: =IF(OR(F95<=J9,F95>100000),0,IF(F95<=K7,K8,K8+(K10-K8)*(1-((K5+EXP(K6*(K4-K7)))/(K5+EXP(K6*(K4-F95))))^K5)/(1-((K5+EXP(K6*(K4-K7)))/(K5+EXP(K6*(K4-K9))))^K5))) -> 0 | K95: 0 | L95: 0 | M95: 39.54593178 | N95: 0 | O95: 2011-01-23 | P95: =MAX(L$12:L95)+MAX(M$12:M95)+MAX(N$12:N95) -> 39.54593178 | Q95: 2011-01-23 | R95: 0.66569024 | AJ95: 0 | AL95: =IF(OR(AJ95<=AM7,AJ95>AM9),0,AM8+(AM10-AM8)*(1-((AM5+EXP(AM6*(AM4-AM7)))/(AM5+EXP(AM6*(AM4-AJ95))))^AM5)/(1-((AM5+EXP(AM6*(AM4-AM7)))/(AM5+EXP(AM6*(AM4-AM9))))^AM5)) -> 0 | AM95: =IF(OR(AJ95<=AN7,AJ95>AN9),0,AN8+(AN10-AN8)*(1-((AN5+EXP(AN6*(AN4-AN7)))/(AN5+EXP(AN6*(AN4-AJ95))))^AN5)/(1-((AN5+EXP(AN6*(AN4-AN7)))/(AN5+EXP(AN6*(AN4-AN9))))^AN5)) -> 0 | AN95: =IF(OR(AJ95<=AN9,AJ95>100000),0,IF(AJ95<=AO7,AO8,AO8+(AO10-AO8)*(1-((AO5+EXP(AO6*(AO4-AO7)))/(AO5+EXP(AO6*(AO4-AJ95))))^AO5)/(1-((AO5+EXP(AO6*(AO4-AO7)))/(AO5+EXP(AO6*(AO4-AO9))))^AO5))) -> 0 | AO95: 0 | AP95: 0
A96: 85 | B96: ='daily uptake'!F179 -> 2011-01-24 | C96: =5/9*'daily uptake'!Q179 -> 7.777777778 | D96: =5/9*'daily uptake'!N179 -> 1.111111111 | E96: =IF(AND($A96>='daily uptake'!$C$9,$A96<='daily uptake'!$C$10),$C96+E95,0) -> 739.7222222 | F96: =IF(AND($A96>='daily uptake'!$C$18,$A96<='daily uptake'!$C$20),$D96+F95,0) -> 0 | G96: =IF(AND($A96>='daily uptake'!$C$24,$A96<='daily uptake'!$C$25),$C96+G95,0) -> 0 | H96: =IF(OR(F96<=I7,F96>I9),0,I8+(I10-I8)*(1-((I5+EXP(I6*(I4-I7)))/(I5+EXP(I6*(I4-F96))))^I5)/(1-((I5+EXP(I6*(I4-I7)))/(I5+EXP(I6*(I4-I9))))^I5)) -> 0 | I96: =IF(OR(F96<=J7,F96>J9),0,J8+(J10-J8)*(1-((J5+EXP(J6*(J4-J7)))/(J5+EXP(J6*(J4-F96))))^J5)/(1-((J5+EXP(J6*(J4-J7)))/(J5+EXP(J6*(J4-J9))))^J5)) -> 0 | J96: =IF(OR(F96<=J9,F96>100000),0,IF(F96<=K7,K8,K8+(K10-K8)*(1-((K5+EXP(K6*(K4-K7)))/(K5+EXP(K6*(K4-F96))))^K5)/(1-((K5+EXP(K6*(K4-K7)))/(K5+EXP(K6*(K4-K9))))^K5))) -> 0 | K96: 0 | L96: 0 | M96: 40.21751728 | N96: 0 | O96: 2011-01-24 | P96: =MAX(L$12:L96)+MAX(M$12:M96)+MAX(N$12:N96) -> 40.21751728 | Q96: 2011-01-24 | R96: 0.6715855025 | AJ96: 0 | AL96: =IF(OR(AJ96<=AM7,AJ96>AM9),0,AM8+(AM10-AM8)*(1-((AM5+EXP(AM6*(AM4-AM7)))/(AM5+EXP(AM6*(AM4-AJ96))))^AM5)/(1-((AM5+EXP(AM6*(AM4-AM7)))/(AM5+EXP(AM6*(AM4-AM9))))^AM5)) -> 0 | AM96: =IF(OR(AJ96<=AN7,AJ96>AN9),0,AN8+(AN10-AN8)*(1-((AN5+EXP(AN6*(AN4-AN7)))/(AN5+EXP(AN6*(AN4-AJ96))))^AN5)/(1-((AN5+EXP(AN6*(AN4-AN7)))/(AN5+EXP(AN6*(AN4-AN9))))^AN5)) -> 0 | AN96: =IF(OR(AJ96<=AN9,AJ96>100000),0,IF(AJ96<=AO7,AO8,AO8+(AO10-AO8)*(1-((AO5+EXP(AO6*(AO4-AO7)))/(AO5+EXP(AO6*(AO4-AJ96))))^AO5)/(1-((AO5+EXP(AO6*(AO4-AO7)))/(AO5+EXP(AO6*(AO4-AO9))))^AO5))) -> 0 | AO96: 0 | AP96: 0
A97: 86 | B97: ='daily uptake'!F180 -> 2011-01-25 | C97: =5/9*'daily uptake'!Q180 -> 8.888888889 | D97: =5/9*'daily uptake'!N180 -> 1.944444444 | E97: =IF(AND($A97>='daily uptake'!$C$9,$A97<='daily uptake'!$C$10),$C97+E96,0) -> 748.6111111 | F97: =IF(AND($A97>='daily uptake'!$C$18,$A97<='daily uptake'!$C$20),$D97+F96,0) -> 0 | G97: =IF(AND($A97>='daily uptake'!$C$24,$A97<='daily uptake'!$C$25),$C97+G96,0) -> 0 | H97: =IF(OR(F97<=I7,F97>I9),0,I8+(I10-I8)*(1-((I5+EXP(I6*(I4-I7)))/(I5+EXP(I6*(I4-F97))))^I5)/(1-((I5+EXP(I6*(I4-I7)))/(I5+EXP(I6*(I4-I9))))^I5)) -> 0 | I97: =IF(OR(F97<=J7,F97>J9),0,J8+(J10-J8)*(1-((J5+EXP(J6*(J4-J7)))/(J5+EXP(J6*(J4-F97))))^J5)/(1-((J5+EXP(J6*(J4-J7)))/(J5+EXP(J6*(J4-J9))))^J5)) -> 0 | J97: =IF(OR(F97<=J9,F97>100000),0,IF(F97<=K7,K8,K8+(K10-K8)*(1-((K5+EXP(K6*(K4-K7)))/(K5+EXP(K6*(K4-F97))))^K5)/(1-((K5+EXP(K6*(K4-K7)))/(K5+EXP(K6*(K4-K9))))^K5))) -> 0 | K97: 0 | L97: 0 | M97: 40.99225628 | N97: 0 | O97: 2011-01-25 | P97: =MAX(L$12:L97)+MAX(M$12:M97)+MAX(N$12:N97) -> 40.99225628 | Q97: 2011-01-25 | R97: 0.774738996 | AJ97: 0 | AL97: =IF(OR(AJ97<=AM7,AJ97>AM9),0,AM8+(AM10-AM8)*(1-((AM5+EXP(AM6*(AM4-AM7)))/(AM5+EXP(AM6*(AM4-AJ97))))^AM5)/(1-((AM5+EXP(AM6*(AM4-AM7)))/(AM5+EXP(AM6*(AM4-AM9))))^AM5)) -> 0 | AM97: =IF(OR(AJ97<=AN7,AJ97>AN9),0,AN8+(AN10-AN8)*(1-((AN5+EXP(AN6*(AN4-AN7)))/(AN5+EXP(AN6*(AN4-AJ97))))^AN5)/(1-((AN5+EXP(AN6*(AN4-AN7)))/(AN5+EXP(AN6*(AN4-AN9))))^AN5)) -> 0 | AN97: =IF(OR(AJ97<=AN9,AJ97>100000),0,IF(AJ97<=AO7,AO8,AO8+(AO10-AO8)*(1-((AO5+EXP(AO6*(AO4-AO7)))/(AO5+EXP(AO6*(AO4-AJ97))))^AO5)/(1-((AO5+EXP(AO6*(AO4-AO7)))/(AO5+EXP(AO6*(AO4-AO9))))^AO5))) -> 0 | AO97: 0 | AP97: 0
A98: 87 | B98: ='daily uptake'!F181 -> 2011-01-26 | C98: =5/9*'daily uptake'!Q181 -> 8.333333333 | D98: =5/9*'daily uptake'!N181 -> 1.388888889 | E98: =IF(AND($A98>='daily uptake'!$C$9,$A98<='daily uptake'!$C$10),$C98+E97,0) -> 756.9444444 | F98: =IF(AND($A98>='daily uptake'!$C$18,$A98<='daily uptake'!$C$20),$D98+F97,0) -> 0 | G98: =IF(AND($A98>='daily uptake'!$C$24,$A98<='daily uptake'!$C$25),$C98+G97,0) -> 0 | H98: =IF(OR(F98<=I7,F98>I9),0,I8+(I10-I8)*(1-((I5+EXP(I6*(I4-I7)))/(I5+EXP(I6*(I4-F98))))^I5)/(1-((I5+EXP(I6*(I4-I7)))/(I5+EXP(I6*(I4-I9))))^I5)) -> 0 | I98: =IF(OR(F98<=J7,F98>J9),0,J8+(J10-J8)*(1-((J5+EXP(J6*(J4-J7)))/(J5+EXP(J6*(J4-F98))))^J5)/(1-((J5+EXP(J6*(J4-J7)))/(J5+EXP(J6*(J4-J9))))^J5)) -> 0 | J98: =IF(OR(F98<=J9,F98>100000),0,IF(F98<=K7,K8,K8+(K10-K8)*(1-((K5+EXP(K6*(K4-K7)))/(K5+EXP(K6*(K4-F98))))^K5)/(1-((K5+EXP(K6*(K4-K7)))/(K5+EXP(K6*(K4-K9))))^K5))) -> 0 | K98: 0 | L98: 0 | M98: 41.72555349 | N98: 0 | O98: 2011-01-26 | P98: =MAX(L$12:L98)+MAX(M$12:M98)+MAX(N$12:N98) -> 41.72555349 | Q98: 2011-01-26 | R98: 0.733297212 | AJ98: 0 | AL98: =IF(OR(AJ98<=AM7,AJ98>AM9),0,AM8+(AM10-AM8)*(1-((AM5+EXP(AM6*(AM4-AM7)))/(AM5+EXP(AM6*(AM4-AJ98))))^AM5)/(1-((AM5+EXP(AM6*(AM4-AM7)))/(AM5+EXP(AM6*(AM4-AM9))))^AM5)) -> 0 | AM98: =IF(OR(AJ98<=AN7,AJ98>AN9),0,AN8+(AN10-AN8)*(1-((AN5+EXP(AN6*(AN4-AN7)))/(AN5+EXP(AN6*(AN4-AJ98))))^AN5)/(1-((AN5+EXP(AN6*(AN4-AN7)))/(AN5+EXP(AN6*(AN4-AN9))))^AN5)) -> 0 | AN98: =IF(OR(AJ98<=AN9,AJ98>100000),0,IF(AJ98<=AO7,AO8,AO8+(AO10-AO8)*(1-((AO5+EXP(AO6*(AO4-AO7)))/(AO5+EXP(AO6*(AO4-AJ98))))^AO5)/(1-((AO5+EXP(AO6*(AO4-AO7)))/(AO5+EXP(AO6*(AO4-AO9))))^AO5))) -> 0 | AO98: 0 | AP98: 0
A99: 88 | B99: ='daily uptake'!F182 -> 2011-01-27 | C99: =5/9*'daily uptake'!Q182 -> 8.611111111 | D99: =5/9*'daily uptake'!N182 -> 1.944444444 | E99: =IF(AND($A99>='daily uptake'!$C$9,$A99<='daily uptake'!$C$10),$C99+E98,0) -> 765.5555556 | F99: =IF(AND($A99>='daily uptake'!$C$18,$A99<='daily uptake'!$C$20),$D99+F98,0) -> 0 | G99: =IF(AND($A99>='daily uptake'!$C$24,$A99<='daily uptake'!$C$25),$C99+G98,0) -> 0 | H99: =IF(OR(F99<=I7,F99>I9),0,I8+(I10-I8)*(1-((I5+EXP(I6*(I4-I7)))/(I5+EXP(I6*(I4-F99))))^I5)/(1-((I5+EXP(I6*(I4-I7)))/(I5+EXP(I6*(I4-I9))))^I5)) -> 0 | I99: =IF(OR(F99<=J7,F99>J9),0,J8+(J10-J8)*(1-((J5+EXP(J6*(J4-J7)))/(J5+EXP(J6*(J4-F99))))^J5)/(1-((J5+EXP(J6*(J4-J7)))/(J5+EXP(J6*(J4-J9))))^J5)) -> 0 | J99: =IF(OR(F99<=J9,F99>100000),0,IF(F99<=K7,K8,K8+(K10-K8)*(1-((K5+EXP(K6*(K4-K7)))/(K5+EXP(K6*(K4-F99))))^K5)/(1-((K5+EXP(K6*(K4-K7)))/(K5+EXP(K6*(K4-K9))))^K5))) -> 0 | K99: 0 | L99: 0 | M99: 42.4903792 | N99: 0 | O99: 2011-01-27 | P99: =MAX(L$12:L99)+MAX(M$12:M99)+MAX(N$12:N99) -> 42.4903792 | Q99: 2011-01-27 | R99: 0.7648257067 | AJ99: 0 | AL99: =IF(OR(AJ99<=AM7,AJ99>AM9),0,AM8+(AM10-AM8)*(1-((AM5+EXP(AM6*(AM4-AM7)))/(AM5+EXP(AM6*(AM4-AJ99))))^AM5)/(1-((AM5+EXP(AM6*(AM4-AM7)))/(AM5+EXP(AM6*(AM4-AM9))))^AM5)) -> 0 | AM99: =IF(OR(AJ99<=AN7,AJ99>AN9),0,AN8+(AN10-AN8)*(1-((AN5+EXP(AN6*(AN4-AN7)))/(AN5+EXP(AN6*(AN4-AJ99))))^AN5)/(1-((AN5+EXP(AN6*(AN4-AN7)))/(AN5+EXP(AN6*(AN4-AN9))))^AN5)) -> 0 | AN99: =IF(OR(AJ99<=AN9,AJ99>100000),0,IF(AJ99<=AO7,AO8,AO8+(AO10-AO8)*(1-((AO5+EXP(AO6*(AO4-AO7)))/(AO5+EXP(AO6*(AO4-AJ99))))^AO5)/(1-((AO5+EXP(AO6*(AO4-AO7)))/(AO5+EXP(AO6*(AO4-AO9))))^AO5))) -> 0 | AO99: 0 | AP99: 0
A100: 89 | B100: ='daily uptake'!F183 -> 2011-01-28 | C100: =5/9*'daily uptake'!Q183 -> 7.777777778 | D100: =5/9*'daily uptake'!N183 -> 1.666666667 | E100: =IF(AND($A100>='daily uptake'!$C$9,$A100<='daily uptake'!$C$10),$C100+E99,0) -> 773.3333333 | F100: =IF(AND($A100>='daily uptake'!$C$18,$A100<='daily uptake'!$C$20),$D100+F99,0) -> 0 | G100: =IF(AND($A100>='daily uptake'!$C$24,$A100<='daily uptake'!$C$25),$C100+G99,0) -> 0 | H100: =IF(OR(F100<=I7,F100>I9),0,I8+(I10-I8)*(1-((I5+EXP(I6*(I4-I7)))/(I5+EXP(I6*(I4-F100))))^I5)/(1-((I5+EXP(I6*(I4-I7)))/(I5+EXP(I6*(I4-I9))))^I5)) -> 0 | I100: =IF(OR(F100<=J7,F100>J9),0,J8+(J10-J8)*(1-((J5+EXP(J6*(J4-J7)))/(J5+EXP(J6*(J4-F100))))^J5)/(1-((J5+EXP(J6*(J4-J7)))/(J5+EXP(J6*(J4-J9))))^J5)) -> 0 | J100: =IF(OR(F100<=J9,F100>100000),0,IF(F100<=K7,K8,K8+(K10-K8)*(1-((K5+EXP(K6*(K4-K7)))/(K5+EXP(K6*(K4-F100))))^K5)/(1-((K5+EXP(K6*(K4-K7)))/(K5+EXP(K6*(K4-K9))))^K5))) -> 0 | K100: 0 | L100: 0 | M100: 43.18736868 | N100: 0 | O100: 2011-01-28 | P100: =MAX(L$12:L100)+MAX(M$12:M100)+MAX(N$12:N100) -> 43.18736868 | Q100: 2011-01-28 | R100: 0.696989486 | AJ100: 0 | AL100: =IF(OR(AJ100<=AM7,AJ100>AM9),0,AM8+(AM10-AM8)*(1-((AM5+EXP(AM6*(AM4-AM7)))/(AM5+EXP(AM6*(AM4-AJ100))))^AM5)/(1-((AM5+EXP(AM6*(AM4-AM7)))/(AM5+EXP(AM6*(AM4-AM9))))^AM5)) -> 0 | AM100: =IF(OR(AJ100<=AN7,AJ100>AN9),0,AN8+(AN10-AN8)*(1-((AN5+EXP(AN6*(AN4-AN7)))/(AN5+EXP(AN6*(AN4-AJ100))))^AN5)/(1-((AN5+EXP(AN6*(AN4-AN7)))/(AN5+EXP(AN6*(AN4-AN9))))^AN5)) -> 0 | AN100: =IF(OR(AJ100<=AN9,AJ100>100000),0,IF(AJ100<=AO7,AO8,AO8+(AO10-AO8)*(1-((AO5+EXP(AO6*(AO4-AO7)))/(AO5+EXP(AO6*(AO4-AJ100))))^AO5)/(1-((AO5+EXP(AO6*(AO4-AO7)))/(AO5+EXP(AO6*(AO4-AO9))))^AO5))) -> 0 | AO100: 0 | AP100: 0
A101: 90 | B101: ='daily uptake'!F184 -> 2011-01-29 | C101: =5/9*'daily uptake'!Q184 -> 8.055555556 | D101: =5/9*'daily uptake'!N184 -> 2.222222222 | E101: =IF(AND($A101>='daily uptake'!$C$9,$A101<='daily uptake'!$C$10),$C101+E100,0) -> 781.3888889 | F101: =IF(AND($A101>='daily uptake'!$C$18,$A101<='daily uptake'!$C$20),$D101+F100,0) -> 0 | G101: =IF(AND($A101>='daily uptake'!$C$24,$A101<='daily uptake'!$C$25),$C101+G100,0) -> 0 | H101: =IF(OR(F101<=I7,F101>I9),0,I8+(I10-I8)*(1-((I5+EXP(I6*(I4-I7)))/(I5+EXP(I6*(I4-F101))))^I5)/(1-((I5+EXP(I6*(I4-I7)))/(I5+EXP(I6*(I4-I9))))^I5)) -> 0 | I101: =IF(OR(F101<=J7,F101>J9),0,J8+(J10-J8)*(1-((J5+EXP(J6*(J4-J7)))/(J5+EXP(J6*(J4-F101))))^J5)/(1-((J5+EXP(J6*(J4-J7)))/(J5+EXP(J6*(J4-J9))))^J5)) -> 0 | J101: =IF(OR(F101<=J9,F101>100000),0,IF(F101<=K7,K8,K8+(K10-K8)*(1-((K5+EXP(K6*(K4-K7)))/(K5+EXP(K6*(K4-F101))))^K5)/(1-((K5+EXP(K6*(K4-K7)))/(K5+EXP(K6*(K4-K9))))^K5))) -> 0 | K101: 0 | L101: 0 | M101: 43.91542129 | N101: 0 | O101: 2011-01-29 | P101: =MAX(L$12:L101)+MAX(M$12:M101)+MAX(N$12:N101) -> 43.91542129 | Q101: 2011-01-29 | R101: 0.7280526034 | AJ101: 0 | AL101: =IF(OR(AJ101<=AM7,AJ101>AM9),0,AM8+(AM10-AM8)*(1-((AM5+EXP(AM6*(AM4-AM7)))/(AM5+EXP(AM6*(AM4-AJ101))))^AM5)/(1-((AM5+EXP(AM6*(AM4-AM7)))/(AM5+EXP(AM6*(AM4-AM9))))^AM5)) -> 0 | AM101: =IF(OR(AJ101<=AN7,AJ101>AN9),0,AN8+(AN10-AN8)*(1-((AN5+EXP(AN6*(AN4-AN7)))/(AN5+EXP(AN6*(AN4-AJ101))))^AN5)/(1-((AN5+EXP(AN6*(AN4-AN7)))/(AN5+EXP(AN6*(AN4-AN9))))^AN5)) -> 0 | AN101: =IF(OR(AJ101<=AN9,AJ101>100000),0,IF(AJ101<=AO7,AO8,AO8+(AO10-AO8)*(1-((AO5+EXP(AO6*(AO4-AO7)))/(AO5+EXP(AO6*(AO4-AJ101))))^AO5)/(1-((AO5+EXP(AO6*(AO4-AO7)))/(AO5+EXP(AO6*(AO4-AO9))))^AO5))) -> 0 | AO101: 0 | AP101: 0
A102: 91 | B102: ='daily uptake'!F185 -> 2011-01-30 | C102: =5/9*'daily uptake'!Q185 -> 7.777777778 | D102: =5/9*'daily uptake'!N185 -> 1.388888889 | E102: =IF(AND($A102>='daily uptake'!$C$9,$A102<='daily uptake'!$C$10),$C102+E101,0) -> 789.1666667 | F102: =IF(AND($A102>='daily uptake'!$C$18,$A102<='daily uptake'!$C$20),$D102+F101,0) -> 0 | G102: =IF(AND($A102>='daily uptake'!$C$24,$A102<='daily uptake'!$C$25),$C102+G101,0) -> 0 | H102: =IF(OR(F102<=I7,F102>I9),0,I8+(I10-I8)*(1-((I5+EXP(I6*(I4-I7)))/(I5+EXP(I6*(I4-F102))))^I5)/(1-((I5+EXP(I6*(I4-I7)))/(I5+EXP(I6*(I4-I9))))^I5)) -> 0 | I102: =IF(OR(F102<=J7,F102>J9),0,J8+(J10-J8)*(1-((J5+EXP(J6*(J4-J7)))/(J5+EXP(J6*(J4-F102))))^J5)/(1-((J5+EXP(J6*(J4-J7)))/(J5+EXP(J6*(J4-J9))))^J5)) -> 0 | J102: =IF(OR(F102<=J9,F102>100000),0,IF(F102<=K7,K8,K8+(K10-K8)*(1-((K5+EXP(K6*(K4-K7)))/(K5+EXP(K6*(K4-F102))))^K5)/(1-((K5+EXP(K6*(K4-K7)))/(K5+EXP(K6*(K4-K9))))^K5))) -> 0 | K102: 0 | L102: 0 | M102: 44.62431337 | N102: 0 | O102: 2011-01-30 | P102: =MAX(L$12:L102)+MAX(M$12:M102)+MAX(N$12:N102) -> 44.62431337 | Q102: 2011-01-30 | R102: 0.7088920815 | AJ102: 0 | AL102: =IF(OR(AJ102<=AM7,AJ102>AM9),0,AM8+(AM10-AM8)*(1-((AM5+EXP(AM6*(AM4-AM7)))/(AM5+EXP(AM6*(AM4-AJ102))))^AM5)/(1-((AM5+EXP(AM6*(AM4-AM7)))/(AM5+EXP(AM6*(AM4-AM9))))^AM5)) -> 0 | AM102: =IF(OR(AJ102<=AN7,AJ102>AN9),0,AN8+(AN10-AN8)*(1-((AN5+EXP(AN6*(AN4-AN7)))/(AN5+EXP(AN6*(AN4-AJ102))))^AN5)/(1-((AN5+EXP(AN6*(AN4-AN7)))/(AN5+EXP(AN6*(AN4-AN9))))^AN5)) -> 0 | AN102: =IF(OR(AJ102<=AN9,AJ102>100000),0,IF(AJ102<=AO7,AO8,AO8+(AO10-AO8)*(1-((AO5+EXP(AO6*(AO4-AO7)))/(AO5+EXP(AO6*(AO4-AJ102))))^AO5)/(1-((AO5+EXP(AO6*(AO4-AO7)))/(AO5+EXP(AO6*(AO4-AO9))))^AO5))) -> 0 | AO102: 0 | AP102: 0
A103: 92 | B103: ='daily uptake'!F186 -> 2011-01-31 | C103: =5/9*'daily uptake'!Q186 -> 8.611111111 | D103: =5/9*'daily uptake'!N186 -> 1.944444444 | E103: =IF(AND($A103>='daily uptake'!$C$9,$A103<='daily uptake'!$C$10),$C103+E102,0) -> 797.7777778 | F103: =IF(AND($A103>='daily uptake'!$C$18,$A103<='daily uptake'!$C$20),$D103+F102,0) -> 0 | G103: =IF(AND($A103>='daily uptake'!$C$24,$A103<='daily uptake'!$C$25),$C103+G102,0) -> 0 | H103: =IF(OR(F103<=I7,F103>I9),0,I8+(I10-I8)*(1-((I5+EXP(I6*(I4-I7)))/(I5+EXP(I6*(I4-F103))))^I5)/(1-((I5+EXP(I6*(I4-I7)))/(I5+EXP(I6*(I4-I9))))^I5)) -> 0 | I103: =IF(OR(F103<=J7,F103>J9),0,J8+(J10-J8)*(1-((J5+EXP(J6*(J4-J7)))/(J5+EXP(J6*(J4-F103))))^J5)/(1-((J5+EXP(J6*(J4-J7)))/(J5+EXP(J6*(J4-J9))))^J5)) -> 0 | J103: =IF(OR(F103<=J9,F103>100000),0,IF(F103<=K7,K8,K8+(K10-K8)*(1-((K5+EXP(K6*(K4-K7)))/(K5+EXP(K6*(K4-F103))))^K5)/(1-((K5+EXP(K6*(K4-K7)))/(K5+EXP(K6*(K4-K9))))^K5))) -> 0 | K103: 0 | L103: 0 | M103: 45.41595322 | N103: 0 | O103: 2011-01-31 | P103: =MAX(L$12:L103)+MAX(M$12:M103)+MAX(N$12:N103) -> 45.41595322 | Q103: 2011-01-31 | R103: 0.7916398549 | AJ103: 0 | AL103: =IF(OR(AJ103<=AM7,AJ103>AM9),0,AM8+(AM10-AM8)*(1-((AM5+EXP(AM6*(AM4-AM7)))/(AM5+EXP(AM6*(AM4-AJ103))))^AM5)/(1-((AM5+EXP(AM6*(AM4-AM7)))/(AM5+EXP(AM6*(AM4-AM9))))^AM5)) -> 0 | AM103: =IF(OR(AJ103<=AN7,AJ103>AN9),0,AN8+(AN10-AN8)*(1-((AN5+EXP(AN6*(AN4-AN7)))/(AN5+EXP(AN6*(AN4-AJ103))))^AN5)/(1-((AN5+EXP(AN6*(AN4-AN7)))/(AN5+EXP(AN6*(AN4-AN9))))^AN5)) -> 0 | AN103: =IF(OR(AJ103<=AN9,AJ103>100000),0,IF(AJ103<=AO7,AO8,AO8+(AO10-AO8)*(1-((AO5+EXP(AO6*(AO4-AO7)))/(AO5+EXP(AO6*(AO4-AJ103))))^AO5)/(1-((AO5+EXP(AO6*(AO4-AO7)))/(AO5+EXP(AO6*(AO4-AO9))))^AO5))) -> 0 | AO103: 0 | AP103: 0
A104: 93 | B104: ='daily uptake'!F187 -> 2011-02-01 | C104: =5/9*'daily uptake'!Q187 -> 8.888888889 | D104: =5/9*'daily uptake'!N187 -> 2.222222222 | E104: =IF(AND($A104>='daily uptake'!$C$9,$A104<='daily uptake'!$C$10),$C104+E103,0) -> 806.6666667 | F104: =IF(AND($A104>='daily uptake'!$C$18,$A104<='daily uptake'!$C$20),$D104+F103,0) -> 0 | G104: =IF(AND($A104>='daily uptake'!$C$24,$A104<='daily uptake'!$C$25),$C104+G103,0) -> 0 | H104: =IF(OR(F104<=I7,F104>I9),0,I8+(I10-I8)*(1-((I5+EXP(I6*(I4-I7)))/(I5+EXP(I6*(I4-F104))))^I5)/(1-((I5+EXP(I6*(I4-I7)))/(I5+EXP(I6*(I4-I9))))^I5)) -> 0 | I104: =IF(OR(F104<=J7,F104>J9),0,J8+(J10-J8)*(1-((J5+EXP(J6*(J4-J7)))/(J5+EXP(J6*(J4-F104))))^J5)/(1-((J5+EXP(J6*(J4-J7)))/(J5+EXP(J6*(J4-J9))))^J5)) -> 0 | J104: =IF(OR(F104<=J9,F104>100000),0,IF(F104<=K7,K8,K8+(K10-K8)*(1-((K5+EXP(K6*(K4-K7)))/(K5+EXP(K6*(K4-F104))))^K5)/(1-((K5+EXP(K6*(K4-K7)))/(K5+EXP(K6*(K4-K9))))^K5))) -> 0 | K104: 0 | L104: 0 | M104: 46.24059723 | N104: 0 | O104: 2011-02-01 | P104: =MAX(L$12:L104)+MAX(M$12:M104)+MAX(N$12:N104) -> 46.24059723 | Q104: 2011-02-01 | R104: 0.8246440065 | AJ104: 0 | AL104: =IF(OR(AJ104<=AM7,AJ104>AM9),0,AM8+(AM10-AM8)*(1-((AM5+EXP(AM6*(AM4-AM7)))/(AM5+EXP(AM6*(AM4-AJ104))))^AM5)/(1-((AM5+EXP(AM6*(AM4-AM7)))/(AM5+EXP(AM6*(AM4-AM9))))^AM5)) -> 0 | AM104: =IF(OR(AJ104<=AN7,AJ104>AN9),0,AN8+(AN10-AN8)*(1-((AN5+EXP(AN6*(AN4-AN7)))/(AN5+EXP(AN6*(AN4-AJ104))))^AN5)/(1-((AN5+EXP(AN6*(AN4-AN7)))/(AN5+EXP(AN6*(AN4-AN9))))^AN5)) -> 0 | AN104: =IF(OR(AJ104<=AN9,AJ104>100000),0,IF(AJ104<=AO7,AO8,AO8+(AO10-AO8)*(1-((AO5+EXP(AO6*(AO4-AO7)))/(AO5+EXP(AO6*(AO4-AJ104))))^AO5)/(1-((AO5+EXP(AO6*(AO4-AO7)))/(AO5+EXP(AO6*(AO4-AO9))))^AO5))) -> 0 | AO104: 0 | AP104: 0
A105: 94 | B105: ='daily uptake'!F188 -> 2011-02-02 | C105: =5/9*'daily uptake'!Q188 -> 9.166666667 | D105: =5/9*'daily uptake'!N188 -> 2.5 | E105: =IF(AND($A105>='daily uptake'!$C$9,$A105<='daily uptake'!$C$10),$C105+E104,0) -> 815.8333333 | F105: =IF(AND($A105>='daily uptake'!$C$18,$A105<='daily uptake'!$C$20),$D105+F104,0) -> 0 | G105: =IF(AND($A105>='daily uptake'!$C$24,$A105<='daily uptake'!$C$25),$C105+G104,0) -> 0 | H105: =IF(OR(F105<=I7,F105>I9),0,I8+(I10-I8)*(1-((I5+EXP(I6*(I4-I7)))/(I5+EXP(I6*(I4-F105))))^I5)/(1-((I5+EXP(I6*(I4-I7)))/(I5+EXP(I6*(I4-I9))))^I5)) -> 0 | I105: =IF(OR(F105<=J7,F105>J9),0,J8+(J10-J8)*(1-((J5+EXP(J6*(J4-J7)))/(J5+EXP(J6*(J4-F105))))^J5)/(1-((J5+EXP(J6*(J4-J7)))/(J5+EXP(J6*(J4-J9))))^J5)) -> 0 | J105: =IF(OR(F105<=J9,F105>100000),0,IF(F105<=K7,K8,K8+(K10-K8)*(1-((K5+EXP(K6*(K4-K7)))/(K5+EXP(K6*(K4-F105))))^K5)/(1-((K5+EXP(K6*(K4-K7)))/(K5+EXP(K6*(K4-K9))))^K5))) -> 0 | K105: 0 | L105: 0 | M105: 47.09892862 | N105: 0 | O105: 2011-02-02 | P105: =MAX(L$12:L105)+MAX(M$12:M105)+MAX(N$12:N105) -> 47.09892862 | Q105: 2011-02-02 | R105: 0.8583313874 | AJ105: 0 | AL105: =IF(OR(AJ105<=AM7,AJ105>AM9),0,AM8+(AM10-AM8)*(1-((AM5+EXP(AM6*(AM4-AM7)))/(AM5+EXP(AM6*(AM4-AJ105))))^AM5)/(1-((AM5+EXP(AM6*(AM4-AM7)))/(AM5+EXP(AM6*(AM4-AM9))))^AM5)) -> 0 | AM105: =IF(OR(AJ105<=AN7,AJ105>AN9),0,AN8+(AN10-AN8)*(1-((AN5+EXP(AN6*(AN4-AN7)))/(AN5+EXP(AN6*(AN4-AJ105))))^AN5)/(1-((AN5+EXP(AN6*(AN4-AN7)))/(AN5+EXP(AN6*(AN4-AN9))))^AN5)) -> 0 | AN105: =IF(OR(AJ105<=AN9,AJ105>100000),0,IF(AJ105<=AO7,AO8,AO8+(AO10-AO8)*(1-((AO5+EXP(AO6*(AO4-AO7)))/(AO5+EXP(AO6*(AO4-AJ105))))^AO5)/(1-((AO5+EXP(AO6*(AO4-AO7)))/(AO5+EXP(AO6*(AO4-AO9))))^AO5))) -> 0 | AO105: 0 | AP105: 0
A106: 95 | B106: ='daily uptake'!F189 -> 2011-02-03 | C106: =5/9*'daily uptake'!Q189 -> 9.444444444 | D106: =5/9*'daily uptake'!N189 -> 2.777777778 | E106: =IF(AND($A106>='daily uptake'!$C$9,$A106<='daily uptake'!$C$10),$C106+E105,0) -> 825.2777778 | F106: =IF(AND($A106>='daily uptake'!$C$18,$A106<='daily uptake'!$C$20),$D106+F105,0) -> 0 | G106: =IF(AND($A106>='daily uptake'!$C$24,$A106<='daily uptake'!$C$25),$C106+G105,0) -> 0 | H106: =IF(OR(F106<=I7,F106>I9),0,I8+(I10-I8)*(1-((I5+EXP(I6*(I4-I7)))/(I5+EXP(I6*(I4-F106))))^I5)/(1-((I5+EXP(I6*(I4-I7)))/(I5+EXP(I6*(I4-I9))))^I5)) -> 0 | I106: =IF(OR(F106<=J7,F106>J9),0,J8+(J10-J8)*(1-((J5+EXP(J6*(J4-J7)))/(J5+EXP(J6*(J4-F106))))^J5)/(1-((J5+EXP(J6*(J4-J7)))/(J5+EXP(J6*(J4-J9))))^J5)) -> 0 | J106: =IF(OR(F106<=J9,F106>100000),0,IF(F106<=K7,K8,K8+(K10-K8)*(1-((K5+EXP(K6*(K4-K7)))/(K5+EXP(K6*(K4-F106))))^K5)/(1-((K5+EXP(K6*(K4-K7)))/(K5+EXP(K6*(K4-K9))))^K5))) -> 0 | K106: 0 | L106: 0 | M106: 47.99164435 | N106: 0 | O106: 2011-02-03 | P106: =MAX(L$12:L106)+MAX(M$12:M106)+MAX(N$12:N106) -> 47.99164435 | Q106: 2011-02-03 | R106: 0.8927157305 | AJ106: 0 | AL106: =IF(OR(AJ106<=AM7,AJ106>AM9),0,AM8+(AM10-AM8)*(1-((AM5+EXP(AM6*(AM4-AM7)))/(AM5+EXP(AM6*(AM4-AJ106))))^AM5)/(1-((AM5+EXP(AM6*(AM4-AM7)))/(AM5+EXP(AM6*(AM4-AM9))))^AM5)) -> 0 | AM106: =IF(OR(AJ106<=AN7,AJ106>AN9),0,AN8+(AN10-AN8)*(1-((AN5+EXP(AN6*(AN4-AN7)))/(AN5+EXP(AN6*(AN4-AJ106))))^AN5)/(1-((AN5+EXP(AN6*(AN4-AN7)))/(AN5+EXP(AN6*(AN4-AN9))))^AN5)) -> 0 | AN106: =IF(OR(AJ106<=AN9,AJ106>100000),0,IF(AJ106<=AO7,AO8,AO8+(AO10-AO8)*(1-((AO5+EXP(AO6*(AO4-AO7)))/(AO5+EXP(AO6*(AO4-AJ106))))^AO5)/(1-((AO5+EXP(AO6*(AO4-AO7)))/(AO5+EXP(AO6*(AO4-AO9))))^AO5))) -> 0 | AO106: 0 | AP106: 0
A107: 96 | B107: ='daily uptake'!F190 -> 2011-02-04 | C107: =5/9*'daily uptake'!Q190 -> 9.722222222 | D107: =5/9*'daily uptake'!N190 -> 3.055555556 | E107: =IF(AND($A107>='daily uptake'!$C$9,$A107<='daily uptake'!$C$10),$C107+E106,0) -> 835 | F107: =IF(AND($A107>='daily uptake'!$C$18,$A107<='daily uptake'!$C$20),$D107+F106,0) -> 0 | G107: =IF(AND($A107>='daily uptake'!$C$24,$A107<='daily uptake'!$C$25),$C107+G106,0) -> 0 | H107: =IF(OR(F107<=I7,F107>I9),0,I8+(I10-I8)*(1-((I5+EXP(I6*(I4-I7)))/(I5+EXP(I6*(I4-F107))))^I5)/(1-((I5+EXP(I6*(I4-I7)))/(I5+EXP(I6*(I4-I9))))^I5)) -> 0 | I107: =IF(OR(F107<=J7,F107>J9),0,J8+(J10-J8)*(1-((J5+EXP(J6*(J4-J7)))/(J5+EXP(J6*(J4-F107))))^J5)/(1-((J5+EXP(J6*(J4-J7)))/(J5+EXP(J6*(J4-J9))))^J5)) -> 0 | J107: =IF(OR(F107<=J9,F107>100000),0,IF(F107<=K7,K8,K8+(K10-K8)*(1-((K5+EXP(K6*(K4-K7)))/(K5+EXP(K6*(K4-F107))))^K5)/(1-((K5+EXP(K6*(K4-K7)))/(K5+EXP(K6*(K4-K9))))^K5))) -> 0 | K107: 0 | L107: 0 | M107: 48.91945367 | N107: 0 | O107: 2011-02-04 | P107: =MAX(L$12:L107)+MAX(M$12:M107)+MAX(N$12:N107) -> 48.91945367 | Q107: 2011-02-04 | R107: 0.9278093271 | AJ107: 0 | AL107: =IF(OR(AJ107<=AM7,AJ107>AM9),0,AM8+(AM10-AM8)*(1-((AM5+EXP(AM6*(AM4-AM7)))/(AM5+EXP(AM6*(AM4-AJ107))))^AM5)/(1-((AM5+EXP(AM6*(AM4-AM7)))/(AM5+EXP(AM6*(AM4-AM9))))^AM5)) -> 0 | AM107: =IF(OR(AJ107<=AN7,AJ107>AN9),0,AN8+(AN10-AN8)*(1-((AN5+EXP(AN6*(AN4-AN7)))/(AN5+EXP(AN6*(AN4-AJ107))))^AN5)/(1-((AN5+EXP(AN6*(AN4-AN7)))/(AN5+EXP(AN6*(AN4-AN9))))^AN5)) -> 0 | AN107: =IF(OR(AJ107<=AN9,AJ107>100000),0,IF(AJ107<=AO7,AO8,AO8+(AO10-AO8)*(1-((AO5+EXP(AO6*(AO4-AO7)))/(AO5+EXP(AO6*(AO4-AJ107))))^AO5)/(1-((AO5+EXP(AO6*(AO4-AO7)))/(AO5+EXP(AO6*(AO4-AO9))))^AO5))) -> 0 | AO107: 0 | AP107: 0
A108: 97 | B108: ='daily uptake'!F191 -> 2011-02-05 | C108: =5/9*'daily uptake'!Q191 -> 9.444444444 | D108: =5/9*'daily uptake'!N191 -> 2.777777778 | E108: =IF(AND($A108>='daily uptake'!$C$9,$A108<='daily uptake'!$C$10),$C108+E107,0) -> 844.4444444 | F108: =IF(AND($A108>='daily uptake'!$C$18,$A108<='daily uptake'!$C$20),$D108+F107,0) -> 0 | G108: =IF(AND($A108>='daily uptake'!$C$24,$A108<='daily uptake'!$C$25),$C108+G107,0) -> 0 | H108: =IF(OR(F108<=I7,F108>I9),0,I8+(I10-I8)*(1-((I5+EXP(I6*(I4-I7)))/(I5+EXP(I6*(I4-F108))))^I5)/(1-((I5+EXP(I6*(I4-I7)))/(I5+EXP(I6*(I4-I9))))^I5)) -> 0 | I108: =IF(OR(F108<=J7,F108>J9),0,J8+(J10-J8)*(1-((J5+EXP(J6*(J4-J7)))/(J5+EXP(J6*(J4-F108))))^J5)/(1-((J5+EXP(J6*(J4-J7)))/(J5+EXP(J6*(J4-J9))))^J5)) -> 0 | J108: =IF(OR(F108<=J9,F108>100000),0,IF(F108<=K7,K8,K8+(K10-K8)*(1-((K5+EXP(K6*(K4-K7)))/(K5+EXP(K6*(K4-F108))))^K5)/(1-((K5+EXP(K6*(K4-K7)))/(K5+EXP(K6*(K4-K9))))^K5))) -> 0 | K108: 0 | L108: 0 | M108: 49.82929529 | N108: 0 | O108: 2011-02-05 | P108: =MAX(L$12:L108)+MAX(M$12:M108)+MAX(N$12:N108) -> 49.82929529 | Q108: 2011-02-05 | R108: 0.9098416201 | AJ108: 0 | AL108: =IF(OR(AJ108<=AM7,AJ108>AM9),0,AM8+(AM10-AM8)*(1-((AM5+EXP(AM6*(AM4-AM7)))/(AM5+EXP(AM6*(AM4-AJ108))))^AM5)/(1-((AM5+EXP(AM6*(AM4-AM7)))/(AM5+EXP(AM6*(AM4-AM9))))^AM5)) -> 0 | AM108: =IF(OR(AJ108<=AN7,AJ108>AN9),0,AN8+(AN10-AN8)*(1-((AN5+EXP(AN6*(AN4-AN7)))/(AN5+EXP(AN6*(AN4-AJ108))))^AN5)/(1-((AN5+EXP(AN6*(AN4-AN7)))/(AN5+EXP(AN6*(AN4-AN9))))^AN5)) -> 0 | AN108: =IF(OR(AJ108<=AN9,AJ108>100000),0,IF(AJ108<=AO7,AO8,AO8+(AO10-AO8)*(1-((AO5+EXP(AO6*(AO4-AO7)))/(AO5+EXP(AO6*(AO4-AJ108))))^AO5)/(1-((AO5+EXP(AO6*(AO4-AO7)))/(AO5+EXP(AO6*(AO4-AO9))))^AO5))) -> 0 | AO108: 0 | AP108: 0
A109: 98 | B109: ='daily uptake'!F192 -> 2011-02-06 | C109: =5/9*'daily uptake'!Q192 -> 9.166666667 | D109: =5/9*'daily uptake'!N192 -> 2.5 | E109: =IF(AND($A109>='daily uptake'!$C$9,$A109<='daily uptake'!$C$10),$C109+E108,0) -> 853.6111111 | F109: =IF(AND($A109>='daily uptake'!$C$18,$A109<='daily uptake'!$C$20),$D109+F108,0) -> 0 | G109: =IF(AND($A109>='daily uptake'!$C$24,$A109<='daily uptake'!$C$25),$C109+G108,0) -> 0 | H109: =IF(OR(F109<=I7,F109>I9),0,I8+(I10-I8)*(1-((I5+EXP(I6*(I4-I7)))/(I5+EXP(I6*(I4-F109))))^I5)/(1-((I5+EXP(I6*(I4-I7)))/(I5+EXP(I6*(I4-I9))))^I5)) -> 0 | I109: =IF(OR(F109<=J7,F109>J9),0,J8+(J10-J8)*(1-((J5+EXP(J6*(J4-J7)))/(J5+EXP(J6*(J4-F109))))^J5)/(1-((J5+EXP(J6*(J4-J7)))/(J5+EXP(J6*(J4-J9))))^J5)) -> 0 | J109: =IF(OR(F109<=J9,F109>100000),0,IF(F109<=K7,K8,K8+(K10-K8)*(1-((K5+EXP(K6*(K4-K7)))/(K5+EXP(K6*(K4-F109))))^K5)/(1-((K5+EXP(K6*(K4-K7)))/(K5+EXP(K6*(K4-K9))))^K5))) -> 0 | K109: 0 | L109: 0 | M109: 50.72038228 | N109: 0 | O109: 2011-02-06 | P109: =MAX(L$12:L109)+MAX(M$12:M109)+MAX(N$12:N109) -> 50.72038228 | Q109: 2011-02-06 | R109: 0.891086986 | AJ109: 0 | AL109: =IF(OR(AJ109<=AM7,AJ109>AM9),0,AM8+(AM10-AM8)*(1-((AM5+EXP(AM6*(AM4-AM7)))/(AM5+EXP(AM6*(AM4-AJ109))))^AM5)/(1-((AM5+EXP(AM6*(AM4-AM7)))/(AM5+EXP(AM6*(AM4-AM9))))^AM5)) -> 0 | AM109: =IF(OR(AJ109<=AN7,AJ109>AN9),0,AN8+(AN10-AN8)*(1-((AN5+EXP(AN6*(AN4-AN7)))/(AN5+EXP(AN6*(AN4-AJ109))))^AN5)/(1-((AN5+EXP(AN6*(AN4-AN7)))/(AN5+EXP(AN6*(AN4-AN9))))^AN5)) -> 0 | AN109: =IF(OR(AJ109<=AN9,AJ109>100000),0,IF(AJ109<=AO7,AO8,AO8+(AO10-AO8)*(1-((AO5+EXP(AO6*(AO4-AO7)))/(AO5+EXP(AO6*(AO4-AJ109))))^AO5)/(1-((AO5+EXP(AO6*(AO4-AO7)))/(AO5+EXP(AO6*(AO4-AO9))))^AO5))) -> 0 | AO109: 0 | AP109: 0
A110: 99 | B110: ='daily uptake'!F193 -> 2011-02-07 | C110: =5/9*'daily uptake'!Q193 -> 10 | D110: =5/9*'daily uptake'!N193 -> 2.5 | E110: =IF(AND($A110>='daily uptake'!$C$9,$A110<='daily uptake'!$C$10),$C110+E109,0) -> 863.6111111 | F110: =IF(AND($A110>='daily uptake'!$C$18,$A110<='daily uptake'!$C$20),$D110+F109,0) -> 0 | G110: =IF(AND($A110>='daily uptake'!$C$24,$A110<='daily uptake'!$C$25),$C110+G109,0) -> 0 | H110: =IF(OR(F110<=I7,F110>I9),0,I8+(I10-I8)*(1-((I5+EXP(I6*(I4-I7)))/(I5+EXP(I6*(I4-F110))))^I5)/(1-((I5+EXP(I6*(I4-I7)))/(I5+EXP(I6*(I4-I9))))^I5)) -> 0 | I110: =IF(OR(F110<=J7,F110>J9),0,J8+(J10-J8)*(1-((J5+EXP(J6*(J4-J7)))/(J5+EXP(J6*(J4-F110))))^J5)/(1-((J5+EXP(J6*(J4-J7)))/(J5+EXP(J6*(J4-J9))))^J5)) -> 0 | J110: =IF(OR(F110<=J9,F110>100000),0,IF(F110<=K7,K8,K8+(K10-K8)*(1-((K5+EXP(K6*(K4-K7)))/(K5+EXP(K6*(K4-F110))))^K5)/(1-((K5+EXP(K6*(K4-K7)))/(K5+EXP(K6*(K4-K9))))^K5))) -> 0 | K110: 0 | L110: 0 | M110: 51.70141681 | N110: 0 | O110: 2011-02-07 | P110: =MAX(L$12:L110)+MAX(M$12:M110)+MAX(N$12:N110) -> 51.70141681 | Q110: 2011-02-07 | R110: 0.9810345316 | AJ110: 0 | AL110: =IF(OR(AJ110<=AM7,AJ110>AM9),0,AM8+(AM10-AM8)*(1-((AM5+EXP(AM6*(AM4-AM7)))/(AM5+EXP(AM6*(AM4-AJ110))))^AM5)/(1-((AM5+EXP(AM6*(AM4-AM7)))/(AM5+EXP(AM6*(AM4-AM9))))^AM5)) -> 0 | AM110: =IF(OR(AJ110<=AN7,AJ110>AN9),0,AN8+(AN10-AN8)*(1-((AN5+EXP(AN6*(AN4-AN7)))/(AN5+EXP(AN6*(AN4-AJ110))))^AN5)/(1-((AN5+EXP(AN6*(AN4-AN7)))/(AN5+EXP(AN6*(AN4-AN9))))^AN5)) -> 0 | AN110: =IF(OR(AJ110<=AN9,AJ110>100000),0,IF(AJ110<=AO7,AO8,AO8+(AO10-AO8)*(1-((AO5+EXP(AO6*(AO4-AO7)))/(AO5+EXP(AO6*(AO4-AJ110))))^AO5)/(1-((AO5+EXP(AO6*(AO4-AO7)))/(AO5+EXP(AO6*(AO4-AO9))))^AO5))) -> 0 | AO110: 0 | AP110: 0
A111: 100 | B111: ='daily uptake'!F194 -> 2011-02-08 | C111: =5/9*'daily uptake'!Q194 -> 9.444444444 | D111: =5/9*'daily uptake'!N194 -> 2.5 | E111: =IF(AND($A111>='daily uptake'!$C$9,$A111<='daily uptake'!$C$10),$C111+E110,0) -> 873.0555556 | F111: =IF(AND($A111>='daily uptake'!$C$18,$A111<='daily uptake'!$C$20),$D111+F110,0) -> 0 | G111: =IF(AND($A111>='daily uptake'!$C$24,$A111<='daily uptake'!$C$25),$C111+G110,0) -> 0 | H111: =IF(OR(F111<=I7,F111>I9),0,I8+(I10-I8)*(1-((I5+EXP(I6*(I4-I7)))/(I5+EXP(I6*(I4-F111))))^I5)/(1-((I5+EXP(I6*(I4-I7)))/(I5+EXP(I6*(I4-I9))))^I5)) -> 0 | I111: =IF(OR(F111<=J7,F111>J9),0,J8+(J10-J8)*(1-((J5+EXP(J6*(J4-J7)))/(J5+EXP(J6*(J4-F111))))^J5)/(1-((J5+EXP(J6*(J4-J7)))/(J5+EXP(J6*(J4-J9))))^J5)) -> 0 | J111: =IF(OR(F111<=J9,F111>100000),0,IF(F111<=K7,K8,K8+(K10-K8)*(1-((K5+EXP(K6*(K4-K7)))/(K5+EXP(K6*(K4-F111))))^K5)/(1-((K5+EXP(K6*(K4-K7)))/(K5+EXP(K6*(K4-K9))))^K5))) -> 0 | K111: 0 | L111: 0 | M111: 52.63645892 | N111: 0 | O111: 2011-02-08 | P111: =MAX(L$12:L111)+MAX(M$12:M111)+MAX(N$12:N111) -> 52.63645892 | Q111: 2011-02-08 | R111: 0.9350421091 | AJ111: 0 | AL111: =IF(OR(AJ111<=AM7,AJ111>AM9),0,AM8+(AM10-AM8)*(1-((AM5+EXP(AM6*(AM4-AM7)))/(AM5+EXP(AM6*(AM4-AJ111))))^AM5)/(1-((AM5+EXP(AM6*(AM4-AM7)))/(AM5+EXP(AM6*(AM4-AM9))))^AM5)) -> 0 | AM111: =IF(OR(AJ111<=AN7,AJ111>AN9),0,AN8+(AN10-AN8)*(1-((AN5+EXP(AN6*(AN4-AN7)))/(AN5+EXP(AN6*(AN4-AJ111))))^AN5)/(1-((AN5+EXP(AN6*(AN4-AN7)))/(AN5+EXP(AN6*(AN4-AN9))))^AN5)) -> 0 | AN111: =IF(OR(AJ111<=AN9,AJ111>100000),0,IF(AJ111<=AO7,AO8,AO8+(AO10-AO8)*(1-((AO5+EXP(AO6*(AO4-AO7)))/(AO5+EXP(AO6*(AO4-AJ111))))^AO5)/(1-((AO5+EXP(AO6*(AO4-AO7)))/(AO5+EXP(AO6*(AO4-AO9))))^AO5))) -> 0 | AO111: 0 | AP111: 0
A112: 101 | B112: ='daily uptake'!F195 -> 2011-02-09 | C112: =5/9*'daily uptake'!Q195 -> 9.166666667 | D112: =5/9*'daily uptake'!N195 -> 2.777777778 | E112: =IF(AND($A112>='daily uptake'!$C$9,$A112<='daily uptake'!$C$10),$C112+E111,0) -> 882.2222222 | F112: =IF(AND($A112>='daily uptake'!$C$18,$A112<='daily uptake'!$C$20),$D112+F111,0) -> 0 | G112: =IF(AND($A112>='daily uptake'!$C$24,$A112<='daily uptake'!$C$25),$C112+G111,0) -> 0 | H112: =IF(OR(F112<=I7,F112>I9),0,I8+(I10-I8)*(1-((I5+EXP(I6*(I4-I7)))/(I5+EXP(I6*(I4-F112))))^I5)/(1-((I5+EXP(I6*(I4-I7)))/(I5+EXP(I6*(I4-I9))))^I5)) -> 0 | I112: =IF(OR(F112<=J7,F112>J9),0,J8+(J10-J8)*(1-((J5+EXP(J6*(J4-J7)))/(J5+EXP(J6*(J4-F112))))^J5)/(1-((J5+EXP(J6*(J4-J7)))/(J5+EXP(J6*(J4-J9))))^J5)) -> 0 | J112: =IF(OR(F112<=J9,F112>100000),0,IF(F112<=K7,K8,K8+(K10-K8)*(1-((K5+EXP(K6*(K4-K7)))/(K5+EXP(K6*(K4-F112))))^K5)/(1-((K5+EXP(K6*(K4-K7)))/(K5+EXP(K6*(K4-K9))))^K5))) -> 0 | K112: 0 | L112: 0 | M112: 53.55184953 | N112: 0 | O112: 2011-02-09 | P112: =MAX(L$12:L112)+MAX(M$12:M112)+MAX(N$12:N112) -> 53.55184953 | Q112: 2011-02-09 | R112: 0.9153906137 | AJ112: 0 | AL112: =IF(OR(AJ112<=AM7,AJ112>AM9),0,AM8+(AM10-AM8)*(1-((AM5+EXP(AM6*(AM4-AM7)))/(AM5+EXP(AM6*(AM4-AJ112))))^AM5)/(1-((AM5+EXP(AM6*(AM4-AM7)))/(AM5+EXP(AM6*(AM4-AM9))))^AM5)) -> 0 | AM112: =IF(OR(AJ112<=AN7,AJ112>AN9),0,AN8+(AN10-AN8)*(1-((AN5+EXP(AN6*(AN4-AN7)))/(AN5+EXP(AN6*(AN4-AJ112))))^AN5)/(1-((AN5+EXP(AN6*(AN4-AN7)))/(AN5+EXP(AN6*(AN4-AN9))))^AN5)) -> 0 | AN112: =IF(OR(AJ112<=AN9,AJ112>100000),0,IF(AJ112<=AO7,AO8,AO8+(AO10-AO8)*(1-((AO5+EXP(AO6*(AO4-AO7)))/(AO5+EXP(AO6*(AO4-AJ112))))^AO5)/(1-((AO5+EXP(AO6*(AO4-AO7)))/(AO5+EXP(AO6*(AO4-AO9))))^AO5))) -> 0 | AO112: 0 | AP112: 0
A113: 102 | B113: ='daily uptake'!F196 -> 2011-02-10 | C113: =5/9*'daily uptake'!Q196 -> 9.166666667 | D113: =5/9*'daily uptake'!N196 -> 2.777777778 | E113: =IF(AND($A113>='daily uptake'!$C$9,$A113<='daily uptake'!$C$10),$C113+E112,0) -> 891.3888889 | F113: =IF(AND($A113>='daily uptake'!$C$18,$A113<='daily uptake'!$C$20),$D113+F112,0) -> 0 | G113: =IF(AND($A113>='daily uptake'!$C$24,$A113<='daily uptake'!$C$25),$C113+G112,0) -> 0 | H113: =IF(OR(F113<=I7,F113>I9),0,I8+(I10-I8)*(1-((I5+EXP(I6*(I4-I7)))/(I5+EXP(I6*(I4-F113))))^I5)/(1-((I5+EXP(I6*(I4-I7)))/(I5+EXP(I6*(I4-I9))))^I5)) -> 0 | I113: =IF(OR(F113<=J7,F113>J9),0,J8+(J10-J8)*(1-((J5+EXP(J6*(J4-J7)))/(J5+EXP(J6*(J4-F113))))^J5)/(1-((J5+EXP(J6*(J4-J7)))/(J5+EXP(J6*(J4-J9))))^J5)) -> 0 | J113: =IF(OR(F113<=J9,F113>100000),0,IF(F113<=K7,K8,K8+(K10-K8)*(1-((K5+EXP(K6*(K4-K7)))/(K5+EXP(K6*(K4-F113))))^K5)/(1-((K5+EXP(K6*(K4-K7)))/(K5+EXP(K6*(K4-K9))))^K5))) -> 0 | K113: 0 | L113: 0 | M113: 54.47491617 | N113: 0 | O113: 2011-02-10 | P113: =MAX(L$12:L113)+MAX(M$12:M113)+MAX(N$12:N113) -> 54.47491617 | Q113: 2011-02-10 | R113: 0.9230666333 | AJ113: 0 | AL113: =IF(OR(AJ113<=AM7,AJ113>AM9),0,AM8+(AM10-AM8)*(1-((AM5+EXP(AM6*(AM4-AM7)))/(AM5+EXP(AM6*(AM4-AJ113))))^AM5)/(1-((AM5+EXP(AM6*(AM4-AM7)))/(AM5+EXP(AM6*(AM4-AM9))))^AM5)) -> 0 | AM113: =IF(OR(AJ113<=AN7,AJ113>AN9),0,AN8+(AN10-AN8)*(1-((AN5+EXP(AN6*(AN4-AN7)))/(AN5+EXP(AN6*(AN4-AJ113))))^AN5)/(1-((AN5+EXP(AN6*(AN4-AN7)))/(AN5+EXP(AN6*(AN4-AN9))))^AN5)) -> 0 | AN113: =IF(OR(AJ113<=AN9,AJ113>100000),0,IF(AJ113<=AO7,AO8,AO8+(AO10-AO8)*(1-((AO5+EXP(AO6*(AO4-AO7)))/(AO5+EXP(AO6*(AO4-AJ113))))^AO5)/(1-((AO5+EXP(AO6*(AO4-AO7)))/(AO5+EXP(AO6*(AO4-AO9))))^AO5))) -> 0 | AO113: 0 | AP113: 0
A114: 103 | B114: ='daily uptake'!F197 -> 2011-02-11 | C114: =5/9*'daily uptake'!Q197 -> 9.722222222 | D114: =5/9*'daily uptake'!N197 -> 2.777777778 | E114: =IF(AND($A114>='daily uptake'!$C$9,$A114<='daily uptake'!$C$10),$C114+E113,0) -> 901.1111111 | F114: =IF(AND($A114>='daily uptake'!$C$18,$A114<='daily uptake'!$C$20),$D114+F113,0) -> 0 | G114: =IF(AND($A114>='daily uptake'!$C$24,$A114<='daily uptake'!$C$25),$C114+G113,0) -> 0 | H114: =IF(OR(F114<=I7,F114>I9),0,I8+(I10-I8)*(1-((I5+EXP(I6*(I4-I7)))/(I5+EXP(I6*(I4-F114))))^I5)/(1-((I5+EXP(I6*(I4-I7)))/(I5+EXP(I6*(I4-I9))))^I5)) -> 0 | I114: =IF(OR(F114<=J7,F114>J9),0,J8+(J10-J8)*(1-((J5+EXP(J6*(J4-J7)))/(J5+EXP(J6*(J4-F114))))^J5)/(1-((J5+EXP(J6*(J4-J7)))/(J5+EXP(J6*(J4-J9))))^J5)) -> 0 | J114: =IF(OR(F114<=J9,F114>100000),0,IF(F114<=K7,K8,K8+(K10-K8)*(1-((K5+EXP(K6*(K4-K7)))/(K5+EXP(K6*(K4-F114))))^K5)/(1-((K5+EXP(K6*(K4-K7)))/(K5+EXP(K6*(K4-K9))))^K5))) -> 0 | K114: 0 | L114: 0 | M114: 55.46224792 | N114: 0 | O114: 2011-02-11 | P114: =MAX(L$12:L114)+MAX(M$12:M114)+MAX(N$12:N114) -> 55.46224792 | Q114: 2011-02-11 | R114: 0.9873317479 | AJ114: 0 | AL114: =IF(OR(AJ114<=AM7,AJ114>AM9),0,AM8+(AM10-AM8)*(1-((AM5+EXP(AM6*(AM4-AM7)))/(AM5+EXP(AM6*(AM4-AJ114))))^AM5)/(1-((AM5+EXP(AM6*(AM4-AM7)))/(AM5+EXP(AM6*(AM4-AM9))))^AM5)) -> 0 | AM114: =IF(OR(AJ114<=AN7,AJ114>AN9),0,AN8+(AN10-AN8)*(1-((AN5+EXP(AN6*(AN4-AN7)))/(AN5+EXP(AN6*(AN4-AJ114))))^AN5)/(1-((AN5+EXP(AN6*(AN4-AN7)))/(AN5+EXP(AN6*(AN4-AN9))))^AN5)) -> 0 | AN114: =IF(OR(AJ114<=AN9,AJ114>100000),0,IF(AJ114<=AO7,AO8,AO8+(AO10-AO8)*(1-((AO5+EXP(AO6*(AO4-AO7)))/(AO5+EXP(AO6*(AO4-AJ114))))^AO5)/(1-((AO5+EXP(AO6*(AO4-AO7)))/(AO5+EXP(AO6*(AO4-AO9))))^AO5))) -> 0 | AO114: 0 | AP114: 0
A115: 104 | B115: ='daily uptake'!F198 -> 2011-02-12 | C115: =5/9*'daily uptake'!Q198 -> 9.722222222 | D115: =5/9*'daily uptake'!N198 -> 3.055555556 | E115: =IF(AND($A115>='daily uptake'!$C$9,$A115<='daily uptake'!$C$10),$C115+E114,0) -> 910.8333333 | F115: =IF(AND($A115>='daily uptake'!$C$18,$A115<='daily uptake'!$C$20),$D115+F114,0) -> 0 | G115: =IF(AND($A115>='daily uptake'!$C$24,$A115<='daily uptake'!$C$25),$C115+G114,0) -> 0 | H115: =IF(OR(F115<=I7,F115>I9),0,I8+(I10-I8)*(1-((I5+EXP(I6*(I4-I7)))/(I5+EXP(I6*(I4-F115))))^I5)/(1-((I5+EXP(I6*(I4-I7)))/(I5+EXP(I6*(I4-I9))))^I5)) -> 0 | I115: =IF(OR(F115<=J7,F115>J9),0,J8+(J10-J8)*(1-((J5+EXP(J6*(J4-J7)))/(J5+EXP(J6*(J4-F115))))^J5)/(1-((J5+EXP(J6*(J4-J7)))/(J5+EXP(J6*(J4-J9))))^J5)) -> 0 | J115: =IF(OR(F115<=J9,F115>100000),0,IF(F115<=K7,K8,K8+(K10-K8)*(1-((K5+EXP(K6*(K4-K7)))/(K5+EXP(K6*(K4-F115))))^K5)/(1-((K5+EXP(K6*(K4-K7)))/(K5+EXP(K6*(K4-K9))))^K5))) -> 0 | K115: 0 | L115: 0 | M115: 56.45807248 | N115: 0 | O115: 2011-02-12 | P115: =MAX(L$12:L115)+MAX(M$12:M115)+MAX(N$12:N115) -> 56.45807248 | Q115: 2011-02-12 | R115: 0.9958245691 | AJ115: 0 | AL115: =IF(OR(AJ115<=AM7,AJ115>AM9),0,AM8+(AM10-AM8)*(1-((AM5+EXP(AM6*(AM4-AM7)))/(AM5+EXP(AM6*(AM4-AJ115))))^AM5)/(1-((AM5+EXP(AM6*(AM4-AM7)))/(AM5+EXP(AM6*(AM4-AM9))))^AM5)) -> 0 | AM115: =IF(OR(AJ115<=AN7,AJ115>AN9),0,AN8+(AN10-AN8)*(1-((AN5+EXP(AN6*(AN4-AN7)))/(AN5+EXP(AN6*(AN4-AJ115))))^AN5)/(1-((AN5+EXP(AN6*(AN4-AN7)))/(AN5+EXP(AN6*(AN4-AN9))))^AN5)) -> 0 | AN115: =IF(OR(AJ115<=AN9,AJ115>100000),0,IF(AJ115<=AO7,AO8,AO8+(AO10-AO8)*(1-((AO5+EXP(AO6*(AO4-AO7)))/(AO5+EXP(AO6*(AO4-AJ115))))^AO5)/(1-((AO5+EXP(AO6*(AO4-AO7)))/(AO5+EXP(AO6*(AO4-AO9))))^AO5))) -> 0 | AO115: 0 | AP115: 0
A116: 105 | B116: ='daily uptake'!F199 -> 2011-02-13 | C116: =5/9*'daily uptake'!Q199 -> 10 | D116: =5/9*'daily uptake'!N199 -> 2.777777778 | E116: =IF(AND($A116>='daily uptake'!$C$9,$A116<='daily uptake'!$C$10),$C116+E115,0) -> 920.8333333 | F116: =IF(AND($A116>='daily uptake'!$C$18,$A116<='daily uptake'!$C$20),$D116+F115,0) -> 0 | G116: =IF(AND($A116>='daily uptake'!$C$24,$A116<='daily uptake'!$C$25),$C116+G115,0) -> 0 | H116: =IF(OR(F116<=I7,F116>I9),0,I8+(I10-I8)*(1-((I5+EXP(I6*(I4-I7)))/(I5+EXP(I6*(I4-F116))))^I5)/(1-((I5+EXP(I6*(I4-I7)))/(I5+EXP(I6*(I4-I9))))^I5)) -> 0 | I116: =IF(OR(F116<=J7,F116>J9),0,J8+(J10-J8)*(1-((J5+EXP(J6*(J4-J7)))/(J5+EXP(J6*(J4-F116))))^J5)/(1-((J5+EXP(J6*(J4-J7)))/(J5+EXP(J6*(J4-J9))))^J5)) -> 0 | J116: =IF(OR(F116<=J9,F116>100000),0,IF(F116<=K7,K8,K8+(K10-K8)*(1-((K5+EXP(K6*(K4-K7)))/(K5+EXP(K6*(K4-F116))))^K5)/(1-((K5+EXP(K6*(K4-K7)))/(K5+EXP(K6*(K4-K9))))^K5))) -> 0 | K116: 0 | L116: 0 | M116: 57.49112594 | N116: 0 | O116: 2011-02-13 | P116: =MAX(L$12:L116)+MAX(M$12:M116)+MAX(N$12:N116) -> 57.49112594 | Q116: 2011-02-13 | R116: 1.033053457 | AJ116: 0 | AL116: =IF(OR(AJ116<=AM7,AJ116>AM9),0,AM8+(AM10-AM8)*(1-((AM5+EXP(AM6*(AM4-AM7)))/(AM5+EXP(AM6*(AM4-AJ116))))^AM5)/(1-((AM5+EXP(AM6*(AM4-AM7)))/(AM5+EXP(AM6*(AM4-AM9))))^AM5)) -> 0 | AM116: =IF(OR(AJ116<=AN7,AJ116>AN9),0,AN8+(AN10-AN8)*(1-((AN5+EXP(AN6*(AN4-AN7)))/(AN5+EXP(AN6*(AN4-AJ116))))^AN5)/(1-((AN5+EXP(AN6*(AN4-AN7)))/(AN5+EXP(AN6*(AN4-AN9))))^AN5)) -> 0 | AN116: =IF(OR(AJ116<=AN9,AJ116>100000),0,IF(AJ116<=AO7,AO8,AO8+(AO10-AO8)*(1-((AO5+EXP(AO6*(AO4-AO7)))/(AO5+EXP(AO6*(AO4-AJ116))))^AO5)/(1-((AO5+EXP(AO6*(AO4-AO7)))/(AO5+EXP(AO6*(AO4-AO9))))^AO5))) -> 0 | AO116: 0 | AP116: 0
A117: 106 | B117: ='daily uptake'!F200 -> 2011-02-14 | C117: =5/9*'daily uptake'!Q200 -> 10 | D117: =5/9*'daily uptake'!N200 -> 3.333333333 | E117: =IF(AND($A117>='daily uptake'!$C$9,$A117<='daily uptake'!$C$10),$C117+E116,0) -> 930.8333333 | F117: =IF(AND($A117>='daily uptake'!$C$18,$A117<='daily uptake'!$C$20),$D117+F116,0) -> 0 | G117: =IF(AND($A117>='daily uptake'!$C$24,$A117<='daily uptake'!$C$25),$C117+G116,0) -> 0 | H117: =IF(OR(F117<=I7,F117>I9),0,I8+(I10-I8)*(1-((I5+EXP(I6*(I4-I7)))/(I5+EXP(I6*(I4-F117))))^I5)/(1-((I5+EXP(I6*(I4-I7)))/(I5+EXP(I6*(I4-I9))))^I5)) -> 0 | I117: =IF(OR(F117<=J7,F117>J9),0,J8+(J10-J8)*(1-((J5+EXP(J6*(J4-J7)))/(J5+EXP(J6*(J4-F117))))^J5)/(1-((J5+EXP(J6*(J4-J7)))/(J5+EXP(J6*(J4-J9))))^J5)) -> 0 | J117: =IF(OR(F117<=J9,F117>100000),0,IF(F117<=K7,K8,K8+(K10-K8)*(1-((K5+EXP(K6*(K4-K7)))/(K5+EXP(K6*(K4-F117))))^K5)/(1-((K5+EXP(K6*(K4-K7)))/(K5+EXP(K6*(K4-K9))))^K5))) -> 0 | K117: 0 | L117: 0 | M117: 58.5329896 | N117: 0 | O117: 2011-02-14 | P117: =MAX(L$12:L117)+MAX(M$12:M117)+MAX(N$12:N117) -> 58.5329896 | Q117: 2011-02-14 | R117: 1.041863662 | AJ117: 0 | AL117: =IF(OR(AJ117<=AM7,AJ117>AM9),0,AM8+(AM10-AM8)*(1-((AM5+EXP(AM6*(AM4-AM7)))/(AM5+EXP(AM6*(AM4-AJ117))))^AM5)/(1-((AM5+EXP(AM6*(AM4-AM7)))/(AM5+EXP(AM6*(AM4-AM9))))^AM5)) -> 0 | AM117: =IF(OR(AJ117<=AN7,AJ117>AN9),0,AN8+(AN10-AN8)*(1-((AN5+EXP(AN6*(AN4-AN7)))/(AN5+EXP(AN6*(AN4-AJ117))))^AN5)/(1-((AN5+EXP(AN6*(AN4-AN7)))/(AN5+EXP(AN6*(AN4-AN9))))^AN5)) -> 0 | AN117: =IF(OR(AJ117<=AN9,AJ117>100000),0,IF(AJ117<=AO7,AO8,AO8+(AO10-AO8)*(1-((AO5+EXP(AO6*(AO4-AO7)))/(AO5+EXP(AO6*(AO4-AJ117))))^AO5)/(1-((AO5+EXP(AO6*(AO4-AO7)))/(AO5+EXP(AO6*(AO4-AO9))))^AO5))) -> 0 | AO117: 0 | AP117: 0
A118: 107 | B118: ='daily uptake'!F201 -> 2011-02-15 | C118: =5/9*'daily uptake'!Q201 -> 9.166666667 | D118: =5/9*'daily uptake'!N201 -> 2.777777778 | E118: =IF(AND($A118>='daily uptake'!$C$9,$A118<='daily uptake'!$C$10),$C118+E117,0) -> 940 | F118: =IF(AND($A118>='daily uptake'!$C$18,$A118<='daily uptake'!$C$20),$D118+F117,0) -> 0 | G118: =IF(AND($A118>='daily uptake'!$C$24,$A118<='daily uptake'!$C$25),$C118+G117,0) -> 0 | H118: =IF(OR(F118<=I7,F118>I9),0,I8+(I10-I8)*(1-((I5+EXP(I6*(I4-I7)))/(I5+EXP(I6*(I4-F118))))^I5)/(1-((I5+EXP(I6*(I4-I7)))/(I5+EXP(I6*(I4-I9))))^I5)) -> 0 | I118: =IF(OR(F118<=J7,F118>J9),0,J8+(J10-J8)*(1-((J5+EXP(J6*(J4-J7)))/(J5+EXP(J6*(J4-F118))))^J5)/(1-((J5+EXP(J6*(J4-J7)))/(J5+EXP(J6*(J4-J9))))^J5)) -> 0 | J118: =IF(OR(F118<=J9,F118>100000),0,IF(F118<=K7,K8,K8+(K10-K8)*(1-((K5+EXP(K6*(K4-K7)))/(K5+EXP(K6*(K4-F118))))^K5)/(1-((K5+EXP(K6*(K4-K7)))/(K5+EXP(K6*(K4-K9))))^K5))) -> 0 | K118: 0 | L118: 0 | M118: 59.4956891 | N118: 0 | O118: 2011-02-15 | P118: =MAX(L$12:L118)+MAX(M$12:M118)+MAX(N$12:N118) -> 59.4956891 | Q118: 2011-02-15 | R118: 0.9626994988 | AJ118: 0 | AL118: =IF(OR(AJ118<=AM7,AJ118>AM9),0,AM8+(AM10-AM8)*(1-((AM5+EXP(AM6*(AM4-AM7)))/(AM5+EXP(AM6*(AM4-AJ118))))^AM5)/(1-((AM5+EXP(AM6*(AM4-AM7)))/(AM5+EXP(AM6*(AM4-AM9))))^AM5)) -> 0 | AM118: =IF(OR(AJ118<=AN7,AJ118>AN9),0,AN8+(AN10-AN8)*(1-((AN5+EXP(AN6*(AN4-AN7)))/(AN5+EXP(AN6*(AN4-AJ118))))^AN5)/(1-((AN5+EXP(AN6*(AN4-AN7)))/(AN5+EXP(AN6*(AN4-AN9))))^AN5)) -> 0 | AN118: =IF(OR(AJ118<=AN9,AJ118>100000),0,IF(AJ118<=AO7,AO8,AO8+(AO10-AO8)*(1-((AO5+EXP(AO6*(AO4-AO7)))/(AO5+EXP(AO6*(AO4-AJ118))))^AO5)/(1-((AO5+EXP(AO6*(AO4-AO7)))/(AO5+EXP(AO6*(AO4-AO9))))^AO5))) -> 0 | AO118: 0 | AP118: 0
A119: 108 | B119: ='daily uptake'!F202 -> 2011-02-16 | C119: =5/9*'daily uptake'!Q202 -> 10.27777778 | D119: =5/9*'daily uptake'!N202 -> 3.055555556 | E119: =IF(AND($A119>='daily uptake'!$C$9,$A119<='daily uptake'!$C$10),$C119+E118,0) -> 950.2777778 | F119: =IF(AND($A119>='daily uptake'!$C$18,$A119<='daily uptake'!$C$20),$D119+F118,0) -> 0 | G119: =IF(AND($A119>='daily uptake'!$C$24,$A119<='daily uptake'!$C$25),$C119+G118,0) -> 0 | H119: =IF(OR(F119<=I7,F119>I9),0,I8+(I10-I8)*(1-((I5+EXP(I6*(I4-I7)))/(I5+EXP(I6*(I4-F119))))^I5)/(1-((I5+EXP(I6*(I4-I7)))/(I5+EXP(I6*(I4-I9))))^I5)) -> 0 | I119: =IF(OR(F119<=J7,F119>J9),0,J8+(J10-J8)*(1-((J5+EXP(J6*(J4-J7)))/(J5+EXP(J6*(J4-F119))))^J5)/(1-((J5+EXP(J6*(J4-J7)))/(J5+EXP(J6*(J4-J9))))^J5)) -> 0 | J119: =IF(OR(F119<=J9,F119>100000),0,IF(F119<=K7,K8,K8+(K10-K8)*(1-((K5+EXP(K6*(K4-K7)))/(K5+EXP(K6*(K4-F119))))^K5)/(1-((K5+EXP(K6*(K4-K7)))/(K5+EXP(K6*(K4-K9))))^K5))) -> 0 | K119: 0 | L119: 0 | M119: 60.58369144 | N119: 0 | O119: 2011-02-16 | P119: =MAX(L$12:L119)+MAX(M$12:M119)+MAX(N$12:N119) -> 60.58369144 | Q119: 2011-02-16 | R119: 1.088002341 | AJ119: 0 | AL119: =IF(OR(AJ119<=AM7,AJ119>AM9),0,AM8+(AM10-AM8)*(1-((AM5+EXP(AM6*(AM4-AM7)))/(AM5+EXP(AM6*(AM4-AJ119))))^AM5)/(1-((AM5+EXP(AM6*(AM4-AM7)))/(AM5+EXP(AM6*(AM4-AM9))))^AM5)) -> 0 | AM119: =IF(OR(AJ119<=AN7,AJ119>AN9),0,AN8+(AN10-AN8)*(1-((AN5+EXP(AN6*(AN4-AN7)))/(AN5+EXP(AN6*(AN4-AJ119))))^AN5)/(1-((AN5+EXP(AN6*(AN4-AN7)))/(AN5+EXP(AN6*(AN4-AN9))))^AN5)) -> 0 | AN119: =IF(OR(AJ119<=AN9,AJ119>100000),0,IF(AJ119<=AO7,AO8,AO8+(AO10-AO8)*(1-((AO5+EXP(AO6*(AO4-AO7)))/(AO5+EXP(AO6*(AO4-AJ119))))^AO5)/(1-((AO5+EXP(AO6*(AO4-AO7)))/(AO5+EXP(AO6*(AO4-AO9))))^AO5))) -> 0 | AO119: 0 | AP119: 0
A120: 109 | B120: ='daily uptake'!F203 -> 2011-02-17 | C120: =5/9*'daily uptake'!Q203 -> 11.11111111 | D120: =5/9*'daily uptake'!N203 -> 3.333333333 | E120: =IF(AND($A120>='daily uptake'!$C$9,$A120<='daily uptake'!$C$10),$C120+E119,0) -> 961.3888889 | F120: =IF(AND($A120>='daily uptake'!$C$18,$A120<='daily uptake'!$C$20),$D120+F119,0) -> 0 | G120: =IF(AND($A120>='daily uptake'!$C$24,$A120<='daily uptake'!$C$25),$C120+G119,0) -> 0 | H120: =IF(OR(F120<=I7,F120>I9),0,I8+(I10-I8)*(1-((I5+EXP(I6*(I4-I7)))/(I5+EXP(I6*(I4-F120))))^I5)/(1-((I5+EXP(I6*(I4-I7)))/(I5+EXP(I6*(I4-I9))))^I5)) -> 0 | I120: =IF(OR(F120<=J7,F120>J9),0,J8+(J10-J8)*(1-((J5+EXP(J6*(J4-J7)))/(J5+EXP(J6*(J4-F120))))^J5)/(1-((J5+EXP(J6*(J4-J7)))/(J5+EXP(J6*(J4-J9))))^J5)) -> 0 | J120: =IF(OR(F120<=J9,F120>100000),0,IF(F120<=K7,K8,K8+(K10-K8)*(1-((K5+EXP(K6*(K4-K7)))/(K5+EXP(K6*(K4-F120))))^K5)/(1-((K5+EXP(K6*(K4-K7)))/(K5+EXP(K6*(K4-K9))))^K5))) -> 0 | K120: 0 | L120: 0 | M120: 61.77002408 | N120: 0 | O120: 2011-02-17 | P120: =MAX(L$12:L120)+MAX(M$12:M120)+MAX(N$12:N120) -> 61.77002408 | Q120: 2011-02-17 | R120: 1.186332642 | AJ120: 0 | AL120: =IF(OR(AJ120<=AM7,AJ120>AM9),0,AM8+(AM10-AM8)*(1-((AM5+EXP(AM6*(AM4-AM7)))/(AM5+EXP(AM6*(AM4-AJ120))))^AM5)/(1-((AM5+EXP(AM6*(AM4-AM7)))/(AM5+EXP(AM6*(AM4-AM9))))^AM5)) -> 0 | AM120: =IF(OR(AJ120<=AN7,AJ120>AN9),0,AN8+(AN10-AN8)*(1-((AN5+EXP(AN6*(AN4-AN7)))/(AN5+EXP(AN6*(AN4-AJ120))))^AN5)/(1-((AN5+EXP(AN6*(AN4-AN7)))/(AN5+EXP(AN6*(AN4-AN9))))^AN5)) -> 0 | AN120: =IF(OR(AJ120<=AN9,AJ120>100000),0,IF(AJ120<=AO7,AO8,AO8+(AO10-AO8)*(1-((AO5+EXP(AO6*(AO4-AO7)))/(AO5+EXP(AO6*(AO4-AJ120))))^AO5)/(1-((AO5+EXP(AO6*(AO4-AO7)))/(AO5+EXP(AO6*(AO4-AO9))))^AO5))) -> 0 | AO120: 0 | AP120: 0
A121: 110 | B121: ='daily uptake'!F204 -> 2011-02-18 | C121: =5/9*'daily uptake'!Q204 -> 10.55555556 | D121: =5/9*'daily uptake'!N204 -> 3.333333333 | E121: =IF(AND($A121>='daily uptake'!$C$9,$A121<='daily uptake'!$C$10),$C121+E120,0) -> 971.9444444 | F121: =IF(AND($A121>='daily uptake'!$C$18,$A121<='daily uptake'!$C$20),$D121+F120,0) -> 0 | G121: =IF(AND($A121>='daily uptake'!$C$24,$A121<='daily uptake'!$C$25),$C121+G120,0) -> 0 | H121: =IF(OR(F121<=I7,F121>I9),0,I8+(I10-I8)*(1-((I5+EXP(I6*(I4-I7)))/(I5+EXP(I6*(I4-F121))))^I5)/(1-((I5+EXP(I6*(I4-I7)))/(I5+EXP(I6*(I4-I9))))^I5)) -> 0 | I121: =IF(OR(F121<=J7,F121>J9),0,J8+(J10-J8)*(1-((J5+EXP(J6*(J4-J7)))/(J5+EXP(J6*(J4-F121))))^J5)/(1-((J5+EXP(J6*(J4-J7)))/(J5+EXP(J6*(J4-J9))))^J5)) -> 0 | J121: =IF(OR(F121<=J9,F121>100000),0,IF(F121<=K7,K8,K8+(K10-K8)*(1-((K5+EXP(K6*(K4-K7)))/(K5+EXP(K6*(K4-F121))))^K5)/(1-((K5+EXP(K6*(K4-K7)))/(K5+EXP(K6*(K4-K9))))^K5))) -> 0 | K121: 0 | L121: 0 | M121: 62.90663893 | N121: 0 | O121: 2011-02-18 | P121: =MAX(L$12:L121)+MAX(M$12:M121)+MAX(N$12:N121) -> 62.90663893 | Q121: 2011-02-18 | R121: 1.136614844 | AJ121: 0 | AL121: =IF(OR(AJ121<=AM7,AJ121>AM9),0,AM8+(AM10-AM8)*(1-((AM5+EXP(AM6*(AM4-AM7)))/(AM5+EXP(AM6*(AM4-AJ121))))^AM5)/(1-((AM5+EXP(AM6*(AM4-AM7)))/(AM5+EXP(AM6*(AM4-AM9))))^AM5)) -> 0 | AM121: =IF(OR(AJ121<=AN7,AJ121>AN9),0,AN8+(AN10-AN8)*(1-((AN5+EXP(AN6*(AN4-AN7)))/(AN5+EXP(AN6*(AN4-AJ121))))^AN5)/(1-((AN5+EXP(AN6*(AN4-AN7)))/(AN5+EXP(AN6*(AN4-AN9))))^AN5)) -> 0 | AN121: =IF(OR(AJ121<=AN9,AJ121>100000),0,IF(AJ121<=AO7,AO8,AO8+(AO10-AO8)*(1-((AO5+EXP(AO6*(AO4-AO7)))/(AO5+EXP(AO6*(AO4-AJ121))))^AO5)/(1-((AO5+EXP(AO6*(AO4-AO7)))/(AO5+EXP(AO6*(AO4-AO9))))^AO5))) -> 0 | AO121: 0 | AP121: 0
A122: 111 | B122: ='daily uptake'!F205 -> 2011-02-19 | C122: =5/9*'daily uptake'!Q205 -> 9.722222222 | D122: =5/9*'daily uptake'!N205 -> 2.5 | E122: =IF(AND($A122>='daily uptake'!$C$9,$A122<='daily uptake'!$C$10),$C122+E121,0) -> 981.6666667 | F122: =IF(AND($A122>='daily uptake'!$C$18,$A122<='daily uptake'!$C$20),$D122+F121,0) -> 0 | G122: =IF(AND($A122>='daily uptake'!$C$24,$A122<='daily uptake'!$C$25),$C122+G121,0) -> 0 | H122: =IF(OR(F122<=I7,F122>I9),0,I8+(I10-I8)*(1-((I5+EXP(I6*(I4-I7)))/(I5+EXP(I6*(I4-F122))))^I5)/(1-((I5+EXP(I6*(I4-I7)))/(I5+EXP(I6*(I4-I9))))^I5)) -> 0 | I122: =IF(OR(F122<=J7,F122>J9),0,J8+(J10-J8)*(1-((J5+EXP(J6*(J4-J7)))/(J5+EXP(J6*(J4-F122))))^J5)/(1-((J5+EXP(J6*(J4-J7)))/(J5+EXP(J6*(J4-J9))))^J5)) -> 0 | J122: =IF(OR(F122<=J9,F122>100000),0,IF(F122<=K7,K8,K8+(K10-K8)*(1-((K5+EXP(K6*(K4-K7)))/(K5+EXP(K6*(K4-F122))))^K5)/(1-((K5+EXP(K6*(K4-K7)))/(K5+EXP(K6*(K4-K9))))^K5))) -> 0 | K122: 0 | L122: 0 | M122: 63.96167658 | N122: 0 | O122: 2011-02-19 | P122: =MAX(L$12:L122)+MAX(M$12:M122)+MAX(N$12:N122) -> 63.96167658 | Q122: 2011-02-19 | R122: 1.055037653 | AJ122: 0 | AL122: =IF(OR(AJ122<=AM7,AJ122>AM9),0,AM8+(AM10-AM8)*(1-((AM5+EXP(AM6*(AM4-AM7)))/(AM5+EXP(AM6*(AM4-AJ122))))^AM5)/(1-((AM5+EXP(AM6*(AM4-AM7)))/(AM5+EXP(AM6*(AM4-AM9))))^AM5)) -> 0 | AM122: =IF(OR(AJ122<=AN7,AJ122>AN9),0,AN8+(AN10-AN8)*(1-((AN5+EXP(AN6*(AN4-AN7)))/(AN5+EXP(AN6*(AN4-AJ122))))^AN5)/(1-((AN5+EXP(AN6*(AN4-AN7)))/(AN5+EXP(AN6*(AN4-AN9))))^AN5)) -> 0 | AN122: =IF(OR(AJ122<=AN9,AJ122>100000),0,IF(AJ122<=AO7,AO8,AO8+(AO10-AO8)*(1-((AO5+EXP(AO6*(AO4-AO7)))/(AO5+EXP(AO6*(AO4-AJ122))))^AO5)/(1-((AO5+EXP(AO6*(AO4-AO7)))/(AO5+EXP(AO6*(AO4-AO9))))^AO5))) -> 0 | AO122: 0 | AP122: 0
A123: 112 | B123: ='daily uptake'!F206 -> 2011-02-20 | C123: =5/9*'daily uptake'!Q206 -> 10.27777778 | D123: =5/9*'daily uptake'!N206 -> 2.777777778 | E123: =IF(AND($A123>='daily uptake'!$C$9,$A123<='daily uptake'!$C$10),$C123+E122,0) -> 991.9444444 | F123: =IF(AND($A123>='daily uptake'!$C$18,$A123<='daily uptake'!$C$20),$D123+F122,0) -> 0 | G123: =IF(AND($A123>='daily uptake'!$C$24,$A123<='daily uptake'!$C$25),$C123+G122,0) -> 0 | H123: =IF(OR(F123<=I7,F123>I9),0,I8+(I10-I8)*(1-((I5+EXP(I6*(I4-I7)))/(I5+EXP(I6*(I4-F123))))^I5)/(1-((I5+EXP(I6*(I4-I7)))/(I5+EXP(I6*(I4-I9))))^I5)) -> 0 | I123: =IF(OR(F123<=J7,F123>J9),0,J8+(J10-J8)*(1-((J5+EXP(J6*(J4-J7)))/(J5+EXP(J6*(J4-F123))))^J5)/(1-((J5+EXP(J6*(J4-J7)))/(J5+EXP(J6*(J4-J9))))^J5)) -> 0 | J123: =IF(OR(F123<=J9,F123>100000),0,IF(F123<=K7,K8,K8+(K10-K8)*(1-((K5+EXP(K6*(K4-K7)))/(K5+EXP(K6*(K4-F123))))^K5)/(1-((K5+EXP(K6*(K4-K7)))/(K5+EXP(K6*(K4-K9))))^K5))) -> 0 | K123: 0 | L123: 0 | M123: 65.08537991 | N123: 0 | O123: 2011-02-20 | P123: =MAX(L$12:L123)+MAX(M$12:M123)+MAX(N$12:N123) -> 65.08537991 | Q123: 2011-02-20 | R123: 1.123703327 | AJ123: 0 | AL123: =IF(OR(AJ123<=AM7,AJ123>AM9),0,AM8+(AM10-AM8)*(1-((AM5+EXP(AM6*(AM4-AM7)))/(AM5+EXP(AM6*(AM4-AJ123))))^AM5)/(1-((AM5+EXP(AM6*(AM4-AM7)))/(AM5+EXP(AM6*(AM4-AM9))))^AM5)) -> 0 | AM123: =IF(OR(AJ123<=AN7,AJ123>AN9),0,AN8+(AN10-AN8)*(1-((AN5+EXP(AN6*(AN4-AN7)))/(AN5+EXP(AN6*(AN4-AJ123))))^AN5)/(1-((AN5+EXP(AN6*(AN4-AN7)))/(AN5+EXP(AN6*(AN4-AN9))))^AN5)) -> 0 | AN123: =IF(OR(AJ123<=AN9,AJ123>100000),0,IF(AJ123<=AO7,AO8,AO8+(AO10-AO8)*(1-((AO5+EXP(AO6*(AO4-AO7)))/(AO5+EXP(AO6*(AO4-AJ123))))^AO5)/(1-((AO5+EXP(AO6*(AO4-AO7)))/(AO5+EXP(AO6*(AO4-AO9))))^AO5))) -> 0 | AO123: 0 | AP123: 0
A124: 113 | B124: ='daily uptake'!F207 -> 2011-02-21 | C124: =5/9*'daily uptake'!Q207 -> 9.166666667 | D124: =5/9*'daily uptake'!N207 -> 2.5 | E124: =IF(AND($A124>='daily uptake'!$C$9,$A124<='daily uptake'!$C$10),$C124+E123,0) -> 1001.111111 | F124: =IF(AND($A124>='daily uptake'!$C$18,$A124<='daily uptake'!$C$20),$D124+F123,0) -> 0 | G124: =IF(AND($A124>='daily uptake'!$C$24,$A124<='daily uptake'!$C$25),$C124+G123,0) -> 0 | H124: =IF(OR(F124<=I7,F124>I9),0,I8+(I10-I8)*(1-((I5+EXP(I6*(I4-I7)))/(I5+EXP(I6*(I4-F124))))^I5)/(1-((I5+EXP(I6*(I4-I7)))/(I5+EXP(I6*(I4-I9))))^I5)) -> 0 | I124: =IF(OR(F124<=J7,F124>J9),0,J8+(J10-J8)*(1-((J5+EXP(J6*(J4-J7)))/(J5+EXP(J6*(J4-F124))))^J5)/(1-((J5+EXP(J6*(J4-J7)))/(J5+EXP(J6*(J4-J9))))^J5)) -> 0 | J124: =IF(OR(F124<=J9,F124>100000),0,IF(F124<=K7,K8,K8+(K10-K8)*(1-((K5+EXP(K6*(K4-K7)))/(K5+EXP(K6*(K4-F124))))^K5)/(1-((K5+EXP(K6*(K4-K7)))/(K5+EXP(K6*(K4-K9))))^K5))) -> 0 | K124: 0 | L124: 0 | M124: 66.09475826 | N124: 0 | O124: 2011-02-21 | P124: =MAX(L$12:L124)+MAX(M$12:M124)+MAX(N$12:N124) -> 66.09475826 | Q124: 2011-02-21 | R124: 1.009378353 | AJ124: 0 | AL124: =IF(OR(AJ124<=AM7,AJ124>AM9),0,AM8+(AM10-AM8)*(1-((AM5+EXP(AM6*(AM4-AM7)))/(AM5+EXP(AM6*(AM4-AJ124))))^AM5)/(1-((AM5+EXP(AM6*(AM4-AM7)))/(AM5+EXP(AM6*(AM4-AM9))))^AM5)) -> 0 | AM124: =IF(OR(AJ124<=AN7,AJ124>AN9),0,AN8+(AN10-AN8)*(1-((AN5+EXP(AN6*(AN4-AN7)))/(AN5+EXP(AN6*(AN4-AJ124))))^AN5)/(1-((AN5+EXP(AN6*(AN4-AN7)))/(AN5+EXP(AN6*(AN4-AN9))))^AN5)) -> 0 | AN124: =IF(OR(AJ124<=AN9,AJ124>100000),0,IF(AJ124<=AO7,AO8,AO8+(AO10-AO8)*(1-((AO5+EXP(AO6*(AO4-AO7)))/(AO5+EXP(AO6*(AO4-AJ124))))^AO5)/(1-((AO5+EXP(AO6*(AO4-AO7)))/(AO5+EXP(AO6*(AO4-AO9))))^AO5))) -> 0 | AO124: 0 | AP124: 0
A125: 114 | B125: ='daily uptake'!F208 -> 2011-02-22 | C125: =5/9*'daily uptake'!Q208 -> 9.722222222 | D125: =5/9*'daily uptake'!N208 -> 2.5 | E125: =IF(AND($A125>='daily uptake'!$C$9,$A125<='daily uptake'!$C$10),$C125+E124,0) -> 1010.833333 | F125: =IF(AND($A125>='daily uptake'!$C$18,$A125<='daily uptake'!$C$20),$D125+F124,0) -> 0 | G125: =IF(AND($A125>='daily uptake'!$C$24,$A125<='daily uptake'!$C$25),$C125+G124,0) -> 0 | H125: =IF(OR(F125<=I7,F125>I9),0,I8+(I10-I8)*(1-((I5+EXP(I6*(I4-I7)))/(I5+EXP(I6*(I4-F125))))^I5)/(1-((I5+EXP(I6*(I4-I7)))/(I5+EXP(I6*(I4-I9))))^I5)) -> 0 | I125: =IF(OR(F125<=J7,F125>J9),0,J8+(J10-J8)*(1-((J5+EXP(J6*(J4-J7)))/(J5+EXP(J6*(J4-F125))))^J5)/(1-((J5+EXP(J6*(J4-J7)))/(J5+EXP(J6*(J4-J9))))^J5)) -> 0 | J125: =IF(OR(F125<=J9,F125>100000),0,IF(F125<=K7,K8,K8+(K10-K8)*(1-((K5+EXP(K6*(K4-K7)))/(K5+EXP(K6*(K4-F125))))^K5)/(1-((K5+EXP(K6*(K4-K7)))/(K5+EXP(K6*(K4-K9))))^K5))) -> 0 | K125: 0 | L125: 0 | M125: 67.17256899 | N125: 0 | O125: 2011-02-22 | P125: =MAX(L$12:L125)+MAX(M$12:M125)+MAX(N$12:N125) -> 67.17256899 | Q125: 2011-02-22 | R125: 1.077810726 | AJ125: 0 | AL125: =IF(OR(AJ125<=AM7,AJ125>AM9),0,AM8+(AM10-AM8)*(1-((AM5+EXP(AM6*(AM4-AM7)))/(AM5+EXP(AM6*(AM4-AJ125))))^AM5)/(1-((AM5+EXP(AM6*(AM4-AM7)))/(AM5+EXP(AM6*(AM4-AM9))))^AM5)) -> 0 | AM125: =IF(OR(AJ125<=AN7,AJ125>AN9),0,AN8+(AN10-AN8)*(1-((AN5+EXP(AN6*(AN4-AN7)))/(AN5+EXP(AN6*(AN4-AJ125))))^AN5)/(1-((AN5+EXP(AN6*(AN4-AN7)))/(AN5+EXP(AN6*(AN4-AN9))))^AN5)) -> 0 | AN125: =IF(OR(AJ125<=AN9,AJ125>100000),0,IF(AJ125<=AO7,AO8,AO8+(AO10-AO8)*(1-((AO5+EXP(AO6*(AO4-AO7)))/(AO5+EXP(AO6*(AO4-AJ125))))^AO5)/(1-((AO5+EXP(AO6*(AO4-AO7)))/(AO5+EXP(AO6*(AO4-AO9))))^AO5))) -> 0 | AO125: 0 | AP125: 0
A126: 115 | B126: ='daily uptake'!F209 -> 2011-02-23 | C126: =5/9*'daily uptake'!Q209 -> 9.444444444 | D126: =5/9*'daily uptake'!N209 -> 2.777777778 | E126: =IF(AND($A126>='daily uptake'!$C$9,$A126<='daily uptake'!$C$10),$C126+E125,0) -> 1020.277778 | F126: =IF(AND($A126>='daily uptake'!$C$18,$A126<='daily uptake'!$C$20),$D126+F125,0) -> 0 | G126: =IF(AND($A126>='daily uptake'!$C$24,$A126<='daily uptake'!$C$25),$C126+G125,0) -> 0 | H126: =IF(OR(F126<=I7,F126>I9),0,I8+(I10-I8)*(1-((I5+EXP(I6*(I4-I7)))/(I5+EXP(I6*(I4-F126))))^I5)/(1-((I5+EXP(I6*(I4-I7)))/(I5+EXP(I6*(I4-I9))))^I5)) -> 0 | I126: =IF(OR(F126<=J7,F126>J9),0,J8+(J10-J8)*(1-((J5+EXP(J6*(J4-J7)))/(J5+EXP(J6*(J4-F126))))^J5)/(1-((J5+EXP(J6*(J4-J7)))/(J5+EXP(J6*(J4-J9))))^J5)) -> 0 | J126: =IF(OR(F126<=J9,F126>100000),0,IF(F126<=K7,K8,K8+(K10-K8)*(1-((K5+EXP(K6*(K4-K7)))/(K5+EXP(K6*(K4-F126))))^K5)/(1-((K5+EXP(K6*(K4-K7)))/(K5+EXP(K6*(K4-K9))))^K5))) -> 0 | K126: 0 | L126: 0 | M126: 68.22662504 | N126: 0 | O126: 2011-02-23 | P126: =MAX(L$12:L126)+MAX(M$12:M126)+MAX(N$12:N126) -> 68.22662504 | Q126: 2011-02-23 | R126: 1.054056053 | AJ126: 0 | AL126: =IF(OR(AJ126<=AM7,AJ126>AM9),0,AM8+(AM10-AM8)*(1-((AM5+EXP(AM6*(AM4-AM7)))/(AM5+EXP(AM6*(AM4-AJ126))))^AM5)/(1-((AM5+EXP(AM6*(AM4-AM7)))/(AM5+EXP(AM6*(AM4-AM9))))^AM5)) -> 0 | AM126: =IF(OR(AJ126<=AN7,AJ126>AN9),0,AN8+(AN10-AN8)*(1-((AN5+EXP(AN6*(AN4-AN7)))/(AN5+EXP(AN6*(AN4-AJ126))))^AN5)/(1-((AN5+EXP(AN6*(AN4-AN7)))/(AN5+EXP(AN6*(AN4-AN9))))^AN5)) -> 0 | AN126: =IF(OR(AJ126<=AN9,AJ126>100000),0,IF(AJ126<=AO7,AO8,AO8+(AO10-AO8)*(1-((AO5+EXP(AO6*(AO4-AO7)))/(AO5+EXP(AO6*(AO4-AJ126))))^AO5)/(1-((AO5+EXP(AO6*(AO4-AO7)))/(AO5+EXP(AO6*(AO4-AO9))))^AO5))) -> 0 | AO126: 0 | AP126: 0
A127: 116 | B127: ='daily uptake'!F210 -> 2011-02-24 | C127: =5/9*'daily uptake'!Q210 -> 9.722222222 | D127: =5/9*'daily uptake'!N210 -> 2.777777778 | E127: =IF(AND($A127>='daily uptake'!$C$9,$A127<='daily uptake'!$C$10),$C127+E126,0) -> 1030 | F127: =IF(AND($A127>='daily uptake'!$C$18,$A127<='daily uptake'!$C$20),$D127+F126,0) -> 0 | G127: =IF(AND($A127>='daily uptake'!$C$24,$A127<='daily uptake'!$C$25),$C127+G126,0) -> 0 | H127: =IF(OR(F127<=I7,F127>I9),0,I8+(I10-I8)*(1-((I5+EXP(I6*(I4-I7)))/(I5+EXP(I6*(I4-F127))))^I5)/(1-((I5+EXP(I6*(I4-I7)))/(I5+EXP(I6*(I4-I9))))^I5)) -> 0 | I127: =IF(OR(F127<=J7,F127>J9),0,J8+(J10-J8)*(1-((J5+EXP(J6*(J4-J7)))/(J5+EXP(J6*(J4-F127))))^J5)/(1-((J5+EXP(J6*(J4-J7)))/(J5+EXP(J6*(J4-J9))))^J5)) -> 0 | J127: =IF(OR(F127<=J9,F127>100000),0,IF(F127<=K7,K8,K8+(K10-K8)*(1-((K5+EXP(K6*(K4-K7)))/(K5+EXP(K6*(K4-F127))))^K5)/(1-((K5+EXP(K6*(K4-K7)))/(K5+EXP(K6*(K4-K9))))^K5))) -> 0 | K127: 0 | L127: 0 | M127: 69.31880581 | N127: 0 | O127: 2011-02-24 | P127: =MAX(L$12:L127)+MAX(M$12:M127)+MAX(N$12:N127) -> 69.31880581 | Q127: 2011-02-24 | R127: 1.092180771 | AJ127: 0 | AL127: =IF(OR(AJ127<=AM7,AJ127>AM9),0,AM8+(AM10-AM8)*(1-((AM5+EXP(AM6*(AM4-AM7)))/(AM5+EXP(AM6*(AM4-AJ127))))^AM5)/(1-((AM5+EXP(AM6*(AM4-AM7)))/(AM5+EXP(AM6*(AM4-AM9))))^AM5)) -> 0 | AM127: =IF(OR(AJ127<=AN7,AJ127>AN9),0,AN8+(AN10-AN8)*(1-((AN5+EXP(AN6*(AN4-AN7)))/(AN5+EXP(AN6*(AN4-AJ127))))^AN5)/(1-((AN5+EXP(AN6*(AN4-AN7)))/(AN5+EXP(AN6*(AN4-AN9))))^AN5)) -> 0 | AN127: =IF(OR(AJ127<=AN9,AJ127>100000),0,IF(AJ127<=AO7,AO8,AO8+(AO10-AO8)*(1-((AO5+EXP(AO6*(AO4-AO7)))/(AO5+EXP(AO6*(AO4-AJ127))))^AO5)/(1-((AO5+EXP(AO6*(AO4-AO7)))/(AO5+EXP(AO6*(AO4-AO9))))^AO5))) -> 0 | AO127: 0 | AP127: 0
A128: 117 | B128: ='daily uptake'!F211 -> 2011-02-25 | C128: =5/9*'daily uptake'!Q211 -> 10.27777778 | D128: =5/9*'daily uptake'!N211 -> 3.055555556 | E128: =IF(AND($A128>='daily uptake'!$C$9,$A128<='daily uptake'!$C$10),$C128+E127,0) -> 1040.277778 | F128: =IF(AND($A128>='daily uptake'!$C$18,$A128<='daily uptake'!$C$20),$D128+F127,0) -> 0 | G128: =IF(AND($A128>='daily uptake'!$C$24,$A128<='daily uptake'!$C$25),$C128+G127,0) -> 0 | H128: =IF(OR(F128<=I7,F128>I9),0,I8+(I10-I8)*(1-((I5+EXP(I6*(I4-I7)))/(I5+EXP(I6*(I4-F128))))^I5)/(1-((I5+EXP(I6*(I4-I7)))/(I5+EXP(I6*(I4-I9))))^I5)) -> 0 | I128: =IF(OR(F128<=J7,F128>J9),0,J8+(J10-J8)*(1-((J5+EXP(J6*(J4-J7)))/(J5+EXP(J6*(J4-F128))))^J5)/(1-((J5+EXP(J6*(J4-J7)))/(J5+EXP(J6*(J4-J9))))^J5)) -> 0 | J128: =IF(OR(F128<=J9,F128>100000),0,IF(F128<=K7,K8,K8+(K10-K8)*(1-((K5+EXP(K6*(K4-K7)))/(K5+EXP(K6*(K4-F128))))^K5)/(1-((K5+EXP(K6*(K4-K7)))/(K5+EXP(K6*(K4-K9))))^K5))) -> 0 | K128: 0 | L128: 0 | M128: 70.48111062 | N128: 0 | O128: 2011-02-25 | P128: =MAX(L$12:L128)+MAX(M$12:M128)+MAX(N$12:N128) -> 70.48111062 | Q128: 2011-02-25 | R128: 1.162304807 | AJ128: 0 | AL128: =IF(OR(AJ128<=AM7,AJ128>AM9),0,AM8+(AM10-AM8)*(1-((AM5+EXP(AM6*(AM4-AM7)))/(AM5+EXP(AM6*(AM4-AJ128))))^AM5)/(1-((AM5+EXP(AM6*(AM4-AM7)))/(AM5+EXP(AM6*(AM4-AM9))))^AM5)) -> 0 | AM128: =IF(OR(AJ128<=AN7,AJ128>AN9),0,AN8+(AN10-AN8)*(1-((AN5+EXP(AN6*(AN4-AN7)))/(AN5+EXP(AN6*(AN4-AJ128))))^AN5)/(1-((AN5+EXP(AN6*(AN4-AN7)))/(AN5+EXP(AN6*(AN4-AN9))))^AN5)) -> 0 | AN128: =IF(OR(AJ128<=AN9,AJ128>100000),0,IF(AJ128<=AO7,AO8,AO8+(AO10-AO8)*(1-((AO5+EXP(AO6*(AO4-AO7)))/(AO5+EXP(AO6*(AO4-AJ128))))^AO5)/(1-((AO5+EXP(AO6*(AO4-AO7)))/(AO5+EXP(AO6*(AO4-AO9))))^AO5))) -> 0 | AO128: 0 | AP128: 0
A129: 118 | B129: ='daily uptake'!F212 -> 2011-02-26 | C129: =5/9*'daily uptake'!Q212 -> 10.27777778 | D129: =5/9*'daily uptake'!N212 -> 3.055555556 | E129: =IF(AND($A129>='daily uptake'!$C$9,$A129<='daily uptake'!$C$10),$C129+E128,0) -> 1050.555556 | F129: =IF(AND($A129>='daily uptake'!$C$18,$A129<='daily uptake'!$C$20),$D129+F128,0) -> 0 | G129: =IF(AND($A129>='daily uptake'!$C$24,$A129<='daily uptake'!$C$25),$C129+G128,0) -> 0 | H129: =IF(OR(F129<=I7,F129>I9),0,I8+(I10-I8)*(1-((I5+EXP(I6*(I4-I7)))/(I5+EXP(I6*(I4-F129))))^I5)/(1-((I5+EXP(I6*(I4-I7)))/(I5+EXP(I6*(I4-I9))))^I5)) -> 0 | I129: =IF(OR(F129<=J7,F129>J9),0,J8+(J10-J8)*(1-((J5+EXP(J6*(J4-J7)))/(J5+EXP(J6*(J4-F129))))^J5)/(1-((J5+EXP(J6*(J4-J7)))/(J5+EXP(J6*(J4-J9))))^J5)) -> 0 | J129: =IF(OR(F129<=J9,F129>100000),0,IF(F129<=K7,K8,K8+(K10-K8)*(1-((K5+EXP(K6*(K4-K7)))/(K5+EXP(K6*(K4-F129))))^K5)/(1-((K5+EXP(K6*(K4-K7)))/(K5+EXP(K6*(K4-K9))))^K5))) -> 0 | K129: 0 | L129: 0 | M129: 71.65118669 | N129: 0 | O129: 2011-02-26 | P129: =MAX(L$12:L129)+MAX(M$12:M129)+MAX(N$12:N129) -> 71.65118669 | Q129: 2011-02-26 | R129: 1.170076076 | AJ129: 0 | AL129: =IF(OR(AJ129<=AM7,AJ129>AM9),0,AM8+(AM10-AM8)*(1-((AM5+EXP(AM6*(AM4-AM7)))/(AM5+EXP(AM6*(AM4-AJ129))))^AM5)/(1-((AM5+EXP(AM6*(AM4-AM7)))/(AM5+EXP(AM6*(AM4-AM9))))^AM5)) -> 0 | AM129: =IF(OR(AJ129<=AN7,AJ129>AN9),0,AN8+(AN10-AN8)*(1-((AN5+EXP(AN6*(AN4-AN7)))/(AN5+EXP(AN6*(AN4-AJ129))))^AN5)/(1-((AN5+EXP(AN6*(AN4-AN7)))/(AN5+EXP(AN6*(AN4-AN9))))^AN5)) -> 0 | AN129: =IF(OR(AJ129<=AN9,AJ129>100000),0,IF(AJ129<=AO7,AO8,AO8+(AO10-AO8)*(1-((AO5+EXP(AO6*(AO4-AO7)))/(AO5+EXP(AO6*(AO4-AJ129))))^AO5)/(1-((AO5+EXP(AO6*(AO4-AO7)))/(AO5+EXP(AO6*(AO4-AO9))))^AO5))) -> 0 | AO129: 0 | AP129: 0
A130: 119 | B130: ='daily uptake'!F213 -> 2011-02-27 | C130: =5/9*'daily uptake'!Q213 -> 10.55555556 | D130: =5/9*'daily uptake'!N213 -> 3.055555556 | E130: =IF(AND($A130>='daily uptake'!$C$9,$A130<='daily uptake'!$C$10),$C130+E129,0) -> 1061.111111 | F130: =IF(AND($A130>='daily uptake'!$C$18,$A130<='daily uptake'!$C$20),$D130+F129,0) -> 0 | G130: =IF(AND($A130>='daily uptake'!$C$24,$A130<='daily uptake'!$C$25),$C130+G129,0) -> 0 | H130: =IF(OR(F130<=I7,F130>I9),0,I8+(I10-I8)*(1-((I5+EXP(I6*(I4-I7)))/(I5+EXP(I6*(I4-F130))))^I5)/(1-((I5+EXP(I6*(I4-I7)))/(I5+EXP(I6*(I4-I9))))^I5)) -> 0 | I130: =IF(OR(F130<=J7,F130>J9),0,J8+(J10-J8)*(1-((J5+EXP(J6*(J4-J7)))/(J5+EXP(J6*(J4-F130))))^J5)/(1-((J5+EXP(J6*(J4-J7)))/(J5+EXP(J6*(J4-J9))))^J5)) -> 0 | J130: =IF(OR(F130<=J9,F130>100000),0,IF(F130<=K7,K8,K8+(K10-K8)*(1-((K5+EXP(K6*(K4-K7)))/(K5+EXP(K6*(K4-F130))))^K5)/(1-((K5+EXP(K6*(K4-K7)))/(K5+EXP(K6*(K4-K9))))^K5))) -> 0 | K130: 0 | L130: 0 | M130: 72.86080286 | N130: 0 | O130: 2011-02-27 | P130: =MAX(L$12:L130)+MAX(M$12:M130)+MAX(N$12:N130) -> 72.86080286 | Q130: 2011-02-27 | R130: 1.209616168 | AJ130: 0 | AL130: =IF(OR(AJ130<=AM7,AJ130>AM9),0,AM8+(AM10-AM8)*(1-((AM5+EXP(AM6*(AM4-AM7)))/(AM5+EXP(AM6*(AM4-AJ130))))^AM5)/(1-((AM5+EXP(AM6*(AM4-AM7)))/(AM5+EXP(AM6*(AM4-AM9))))^AM5)) -> 0 | AM130: =IF(OR(AJ130<=AN7,AJ130>AN9),0,AN8+(AN10-AN8)*(1-((AN5+EXP(AN6*(AN4-AN7)))/(AN5+EXP(AN6*(AN4-AJ130))))^AN5)/(1-((AN5+EXP(AN6*(AN4-AN7)))/(AN5+EXP(AN6*(AN4-AN9))))^AN5)) -> 0 | AN130: =IF(OR(AJ130<=AN9,AJ130>100000),0,IF(AJ130<=AO7,AO8,AO8+(AO10-AO8)*(1-((AO5+EXP(AO6*(AO4-AO7)))/(AO5+EXP(AO6*(AO4-AJ130))))^AO5)/(1-((AO5+EXP(AO6*(AO4-AO7)))/(AO5+EXP(AO6*(AO4-AO9))))^AO5))) -> 0 | AO130: 0 | AP130: 0
A131: 120 | B131: ='daily uptake'!F214 -> 2011-02-28 | C131: =5/9*'daily uptake'!Q214 -> 10.55555556 | D131: =5/9*'daily uptake'!N214 -> 3.611111111 | E131: =IF(AND($A131>='daily uptake'!$C$9,$A131<='daily uptake'!$C$10),$C131+E130,0) -> 1071.666667 | F131: =IF(AND($A131>='daily uptake'!$C$18,$A131<='daily uptake'!$C$20),$D131+F130,0) -> 0 | G131: =IF(AND($A131>='daily uptake'!$C$24,$A131<='daily uptake'!$C$25),$C131+G130,0) -> 0 | H131: =IF(OR(F131<=I7,F131>I9),0,I8+(I10-I8)*(1-((I5+EXP(I6*(I4-I7)))/(I5+EXP(I6*(I4-F131))))^I5)/(1-((I5+EXP(I6*(I4-I7)))/(I5+EXP(I6*(I4-I9))))^I5)) -> 0 | I131: =IF(OR(F131<=J7,F131>J9),0,J8+(J10-J8)*(1-((J5+EXP(J6*(J4-J7)))/(J5+EXP(J6*(J4-F131))))^J5)/(1-((J5+EXP(J6*(J4-J7)))/(J5+EXP(J6*(J4-J9))))^J5)) -> 0 | J131: =IF(OR(F131<=J9,F131>100000),0,IF(F131<=K7,K8,K8+(K10-K8)*(1-((K5+EXP(K6*(K4-K7)))/(K5+EXP(K6*(K4-F131))))^K5)/(1-((K5+EXP(K6*(K4-K7)))/(K5+EXP(K6*(K4-K9))))^K5))) -> 0 | K131: 0 | L131: 0 | M131: 74.07825911 | N131: 0 | O131: 2011-02-28 | P131: =MAX(L$12:L131)+MAX(M$12:M131)+MAX(N$12:N131) -> 74.07825911 | Q131: 2011-02-28 | R131: 1.217456251 | AJ131: 6.388888889 | AL131: =IF(OR(AJ131<=AM7,AJ131>AM9),0,AM8+(AM10-AM8)*(1-((AM5+EXP(AM6*(AM4-AM7)))/(AM5+EXP(AM6*(AM4-AJ131))))^AM5)/(1-((AM5+EXP(AM6*(AM4-AM7)))/(AM5+EXP(AM6*(AM4-AM9))))^AM5)) -> 0 | AM131: =IF(OR(AJ131<=AN7,AJ131>AN9),0,AN8+(AN10-AN8)*(1-((AN5+EXP(AN6*(AN4-AN7)))/(AN5+EXP(AN6*(AN4-AJ131))))^AN5)/(1-((AN5+EXP(AN6*(AN4-AN7)))/(AN5+EXP(AN6*(AN4-AN9))))^AN5)) -> 0 | AN131: =IF(OR(AJ131<=AN9,AJ131>100000),0,IF(AJ131<=AO7,AO8,AO8+(AO10-AO8)*(1-((AO5+EXP(AO6*(AO4-AO7)))/(AO5+EXP(AO6*(AO4-AJ131))))^AO5)/(1-((AO5+EXP(AO6*(AO4-AO7)))/(AO5+EXP(AO6*(AO4-AO9))))^AO5))) -> 0 | AO131: 0 | AP131: 0
A132: 121 | B132: ='daily uptake'!F215 -> 2011-03-01 | C132: =5/9*'daily uptake'!Q215 -> 10.83333333 | D132: =5/9*'daily uptake'!N215 -> 3.611111111 | E132: =IF(AND($A132>='daily uptake'!$C$9,$A132<='daily uptake'!$C$10),$C132+E131,0) -> 1082.5 | F132: =IF(AND($A132>='daily uptake'!$C$18,$A132<='daily uptake'!$C$20),$D132+F131,0) -> 0 | G132: =IF(AND($A132>='daily uptake'!$C$24,$A132<='daily uptake'!$C$25),$C132+G131,0) -> 0 | H132: =IF(OR(F132<=I7,F132>I9),0,I8+(I10-I8)*(1-((I5+EXP(I6*(I4-I7)))/(I5+EXP(I6*(I4-F132))))^I5)/(1-((I5+EXP(I6*(I4-I7)))/(I5+EXP(I6*(I4-I9))))^I5)) -> 0 | I132: =IF(OR(F132<=J7,F132>J9),0,J8+(J10-J8)*(1-((J5+EXP(J6*(J4-J7)))/(J5+EXP(J6*(J4-F132))))^J5)/(1-((J5+EXP(J6*(J4-J7)))/(J5+EXP(J6*(J4-J9))))^J5)) -> 0 | J132: =IF(OR(F132<=J9,F132>100000),0,IF(F132<=K7,K8,K8+(K10-K8)*(1-((K5+EXP(K6*(K4-K7)))/(K5+EXP(K6*(K4-F132))))^K5)/(1-((K5+EXP(K6*(K4-K7)))/(K5+EXP(K6*(K4-K9))))^K5))) -> 0 | K132: 0 | L132: 0 | M132: 75.33570794 | N132: 0 | O132: 2011-03-01 | P132: =MAX(L$12:L132)+MAX(M$12:M132)+MAX(N$12:N132) -> 75.33570794 | Q132: 2011-03-01 | R132: 1.257448827 | AJ132: 12.48989899 | AL132: =IF(OR(AJ132<=AM7,AJ132>AM9),0,AM8+(AM10-AM8)*(1-((AM5+EXP(AM6*(AM4-AM7)))/(AM5+EXP(AM6*(AM4-AJ132))))^AM5)/(1-((AM5+EXP(AM6*(AM4-AM7)))/(AM5+EXP(AM6*(AM4-AM9))))^AM5)) -> 0 | AM132: =IF(OR(AJ132<=AN7,AJ132>AN9),0,AN8+(AN10-AN8)*(1-((AN5+EXP(AN6*(AN4-AN7)))/(AN5+EXP(AN6*(AN4-AJ132))))^AN5)/(1-((AN5+EXP(AN6*(AN4-AN7)))/(AN5+EXP(AN6*(AN4-AN9))))^AN5)) -> 0 | AN132: =IF(OR(AJ132<=AN9,AJ132>100000),0,IF(AJ132<=AO7,AO8,AO8+(AO10-AO8)*(1-((AO5+EXP(AO6*(AO4-AO7)))/(AO5+EXP(AO6*(AO4-AJ132))))^AO5)/(1-((AO5+EXP(AO6*(AO4-AO7)))/(AO5+EXP(AO6*(AO4-AO9))))^AO5))) -> 0 | AO132: 0 | AP132: 0
A133: 122 | B133: ='daily uptake'!F216 -> 2011-03-02 | C133: =5/9*'daily uptake'!Q216 -> 11.66666667 | D133: =5/9*'daily uptake'!N216 -> 3.888888889 | E133: =IF(AND($A133>='daily uptake'!$C$9,$A133<='daily uptake'!$C$10),$C133+E132,0) -> 1094.166667 | F133: =IF(AND($A133>='daily uptake'!$C$18,$A133<='daily uptake'!$C$20),$D133+F132,0) -> 0 | G133: =IF(AND($A133>='daily uptake'!$C$24,$A133<='daily uptake'!$C$25),$C133+G132,0) -> 0 | H133: =IF(OR(F133<=I7,F133>I9),0,I8+(I10-I8)*(1-((I5+EXP(I6*(I4-I7)))/(I5+EXP(I6*(I4-F133))))^I5)/(1-((I5+EXP(I6*(I4-I7)))/(I5+EXP(I6*(I4-I9))))^I5)) -> 0 | I133: =IF(OR(F133<=J7,F133>J9),0,J8+(J10-J8)*(1-((J5+EXP(J6*(J4-J7)))/(J5+EXP(J6*(J4-F133))))^J5)/(1-((J5+EXP(J6*(J4-J7)))/(J5+EXP(J6*(J4-J9))))^J5)) -> 0 | J133: =IF(OR(F133<=J9,F133>100000),0,IF(F133<=K7,K8,K8+(K10-K8)*(1-((K5+EXP(K6*(K4-K7)))/(K5+EXP(K6*(K4-F133))))^K5)/(1-((K5+EXP(K6*(K4-K7)))/(K5+EXP(K6*(K4-K9))))^K5))) -> 0 | K133: 0 | L133: 0 | M133: 76.69865599 | N133: 0 | O133: 2011-03-02 | P133: =MAX(L$12:L133)+MAX(M$12:M133)+MAX(N$12:N133) -> 76.69865599 | Q133: 2011-03-02 | R133: 1.362948053 | AJ133: 18.68686869 | AL133: =IF(OR(AJ133<=AM7,AJ133>AM9),0,AM8+(AM10-AM8)*(1-((AM5+EXP(AM6*(AM4-AM7)))/(AM5+EXP(AM6*(AM4-AJ133))))^AM5)/(1-((AM5+EXP(AM6*(AM4-AM7)))/(AM5+EXP(AM6*(AM4-AM9))))^AM5)) -> 0 | AM133: =IF(OR(AJ133<=AN7,AJ133>AN9),0,AN8+(AN10-AN8)*(1-((AN5+EXP(AN6*(AN4-AN7)))/(AN5+EXP(AN6*(AN4-AJ133))))^AN5)/(1-((AN5+EXP(AN6*(AN4-AN7)))/(AN5+EXP(AN6*(AN4-AN9))))^AN5)) -> 0 | AN133: =IF(OR(AJ133<=AN9,AJ133>100000),0,IF(AJ133<=AO7,AO8,AO8+(AO10-AO8)*(1-((AO5+EXP(AO6*(AO4-AO7)))/(AO5+EXP(AO6*(AO4-AJ133))))^AO5)/(1-((AO5+EXP(AO6*(AO4-AO7)))/(AO5+EXP(AO6*(AO4-AO9))))^AO5))) -> 0 | AO133: 0 | AP133: 0
A134: 123 | B134: ='daily uptake'!F217 -> 2011-03-03 | C134: =5/9*'daily uptake'!Q217 -> 10.27777778 | D134: =5/9*'daily uptake'!N217 -> 3.055555556 | E134: =IF(AND($A134>='daily uptake'!$C$9,$A134<='daily uptake'!$C$10),$C134+E133,0) -> 1104.444444 | F134: =IF(AND($A134>='daily uptake'!$C$18,$A134<='daily uptake'!$C$20),$D134+F133,0) -> 0 | G134: =IF(AND($A134>='daily uptake'!$C$24,$A134<='daily uptake'!$C$25),$C134+G133,0) -> 0 | H134: =IF(OR(F134<=I7,F134>I9),0,I8+(I10-I8)*(1-((I5+EXP(I6*(I4-I7)))/(I5+EXP(I6*(I4-F134))))^I5)/(1-((I5+EXP(I6*(I4-I7)))/(I5+EXP(I6*(I4-I9))))^I5)) -> 0 | I134: =IF(OR(F134<=J7,F134>J9),0,J8+(J10-J8)*(1-((J5+EXP(J6*(J4-J7)))/(J5+EXP(J6*(J4-F134))))^J5)/(1-((J5+EXP(J6*(J4-J7)))/(J5+EXP(J6*(J4-J9))))^J5)) -> 0 | J134: =IF(OR(F134<=J9,F134>100000),0,IF(F134<=K7,K8,K8+(K10-K8)*(1-((K5+EXP(K6*(K4-K7)))/(K5+EXP(K6*(K4-F134))))^K5)/(1-((K5+EXP(K6*(K4-K7)))/(K5+EXP(K6*(K4-K9))))^K5))) -> 0 | K134: 0 | L134: 0 | M134: 77.90667674 | N134: 0 | O134: 2011-03-03 | P134: =MAX(L$12:L134)+MAX(M$12:M134)+MAX(N$12:N134) -> 77.90667674 | Q134: 2011-03-03 | R134: 1.208020749 | AJ134: 25.36363636 | AL134: =IF(OR(AJ134<=AM7,AJ134>AM9),0,AM8+(AM10-AM8)*(1-((AM5+EXP(AM6*(AM4-AM7)))/(AM5+EXP(AM6*(AM4-AJ134))))^AM5)/(1-((AM5+EXP(AM6*(AM4-AM7)))/(AM5+EXP(AM6*(AM4-AM9))))^AM5)) -> 0 | AM134: =IF(OR(AJ134<=AN7,AJ134>AN9),0,AN8+(AN10-AN8)*(1-((AN5+EXP(AN6*(AN4-AN7)))/(AN5+EXP(AN6*(AN4-AJ134))))^AN5)/(1-((AN5+EXP(AN6*(AN4-AN7)))/(AN5+EXP(AN6*(AN4-AN9))))^AN5)) -> 0 | AN134: =IF(OR(AJ134<=AN9,AJ134>100000),0,IF(AJ134<=AO7,AO8,AO8+(AO10-AO8)*(1-((AO5+EXP(AO6*(AO4-AO7)))/(AO5+EXP(AO6*(AO4-AJ134))))^AO5)/(1-((AO5+EXP(AO6*(AO4-AO7)))/(AO5+EXP(AO6*(AO4-AO9))))^AO5))) -> 0 | AO134: 0 | AP134: 0
A135: 124 | B135: ='daily uptake'!F218 -> 2011-03-04 | C135: =5/9*'daily uptake'!Q218 -> 10.27777778 | D135: =5/9*'daily uptake'!N218 -> 3.611111111 | E135: =IF(AND($A135>='daily uptake'!$C$9,$A135<='daily uptake'!$C$10),$C135+E134,0) -> 1114.722222 | F135: =IF(AND($A135>='daily uptake'!$C$18,$A135<='daily uptake'!$C$20),$D135+F134,0) -> 0 | G135: =IF(AND($A135>='daily uptake'!$C$24,$A135<='daily uptake'!$C$25),$C135+G134,0) -> 0 | H135: =IF(OR(F135<=I7,F135>I9),0,I8+(I10-I8)*(1-((I5+EXP(I6*(I4-I7)))/(I5+EXP(I6*(I4-F135))))^I5)/(1-((I5+EXP(I6*(I4-I7)))/(I5+EXP(I6*(I4-I9))))^I5)) -> 0 | I135: =IF(OR(F135<=J7,F135>J9),0,J8+(J10-J8)*(1-((J5+EXP(J6*(J4-J7)))/(J5+EXP(J6*(J4-F135))))^J5)/(1-((J5+EXP(J6*(J4-J7)))/(J5+EXP(J6*(J4-J9))))^J5)) -> 0 | J135: =IF(OR(F135<=J9,F135>100000),0,IF(F135<=K7,K8,K8+(K10-K8)*(1-((K5+EXP(K6*(K4-K7)))/(K5+EXP(K6*(K4-F135))))^K5)/(1-((K5+EXP(K6*(K4-K7)))/(K5+EXP(K6*(K4-K9))))^K5))) -> 0 | K135: 0 | L135: 0 | M135: 79.12136493 | N135: 0 | O135: 2011-03-04 | P135: =MAX(L$12:L135)+MAX(M$12:M135)+MAX(N$12:N135) -> 79.12136493 | Q135: 2011-03-04 | R135: 1.214688186 | AJ135: 31.81313131 | AL135: =IF(OR(AJ135<=AM7,AJ135>AM9),0,AM8+(AM10-AM8)*(1-((AM5+EXP(AM6*(AM4-AM7)))/(AM5+EXP(AM6*(AM4-AJ135))))^AM5)/(1-((AM5+EXP(AM6*(AM4-AM7)))/(AM5+EXP(AM6*(AM4-AM9))))^AM5)) -> 0 | AM135: =IF(OR(AJ135<=AN7,AJ135>AN9),0,AN8+(AN10-AN8)*(1-((AN5+EXP(AN6*(AN4-AN7)))/(AN5+EXP(AN6*(AN4-AJ135))))^AN5)/(1-((AN5+EXP(AN6*(AN4-AN7)))/(AN5+EXP(AN6*(AN4-AN9))))^AN5)) -> 0 | AN135: =IF(OR(AJ135<=AN9,AJ135>100000),0,IF(AJ135<=AO7,AO8,AO8+(AO10-AO8)*(1-((AO5+EXP(AO6*(AO4-AO7)))/(AO5+EXP(AO6*(AO4-AJ135))))^AO5)/(1-((AO5+EXP(AO6*(AO4-AO7)))/(AO5+EXP(AO6*(AO4-AO9))))^AO5))) -> 0 | AO135: 0 | AP135: 0
A136: 125 | B136: ='daily uptake'!F219 -> 2011-03-05 | C136: =5/9*'daily uptake'!Q219 -> 10.55555556 | D136: =5/9*'daily uptake'!N219 -> 3.333333333 | E136: =IF(AND($A136>='daily uptake'!$C$9,$A136<='daily uptake'!$C$10),$C136+E135,0) -> 1125.277778 | F136: =IF(AND($A136>='daily uptake'!$C$18,$A136<='daily uptake'!$C$20),$D136+F135,0) -> 0 | G136: =IF(AND($A136>='daily uptake'!$C$24,$A136<='daily uptake'!$C$25),$C136+G135,0) -> 0 | H136: =IF(OR(F136<=I7,F136>I9),0,I8+(I10-I8)*(1-((I5+EXP(I6*(I4-I7)))/(I5+EXP(I6*(I4-F136))))^I5)/(1-((I5+EXP(I6*(I4-I7)))/(I5+EXP(I6*(I4-I9))))^I5)) -> 0 | I136: =IF(OR(F136<=J7,F136>J9),0,J8+(J10-J8)*(1-((J5+EXP(J6*(J4-J7)))/(J5+EXP(J6*(J4-F136))))^J5)/(1-((J5+EXP(J6*(J4-J7)))/(J5+EXP(J6*(J4-J9))))^J5)) -> 0 | J136: =IF(OR(F136<=J9,F136>100000),0,IF(F136<=K7,K8,K8+(K10-K8)*(1-((K5+EXP(K6*(K4-K7)))/(K5+EXP(K6*(K4-F136))))^K5)/(1-((K5+EXP(K6*(K4-K7)))/(K5+EXP(K6*(K4-K9))))^K5))) -> 0 | K136: 0 | L136: 0 | M136: 80.37561983 | N136: 0 | O136: 2011-03-05 | P136: =MAX(L$12:L136)+MAX(M$12:M136)+MAX(N$12:N136) -> 80.37561983 | Q136: 2011-03-05 | R136: 1.254254904 | AJ136: 38.33838384 | AL136: =IF(OR(AJ136<=AM7,AJ136>AM9),0,AM8+(AM10-AM8)*(1-((AM5+EXP(AM6*(AM4-AM7)))/(AM5+EXP(AM6*(AM4-AJ136))))^AM5)/(1-((AM5+EXP(AM6*(AM4-AM7)))/(AM5+EXP(AM6*(AM4-AM9))))^AM5)) -> 0 | AM136: =IF(OR(AJ136<=AN7,AJ136>AN9),0,AN8+(AN10-AN8)*(1-((AN5+EXP(AN6*(AN4-AN7)))/(AN5+EXP(AN6*(AN4-AJ136))))^AN5)/(1-((AN5+EXP(AN6*(AN4-AN7)))/(AN5+EXP(AN6*(AN4-AN9))))^AN5)) -> 0 | AN136: =IF(OR(AJ136<=AN9,AJ136>100000),0,IF(AJ136<=AO7,AO8,AO8+(AO10-AO8)*(1-((AO5+EXP(AO6*(AO4-AO7)))/(AO5+EXP(AO6*(AO4-AJ136))))^AO5)/(1-((AO5+EXP(AO6*(AO4-AO7)))/(AO5+EXP(AO6*(AO4-AO9))))^AO5))) -> 0 | AO136: 0 | AP136: 0
A137: 126 | B137: ='daily uptake'!F220 -> 2011-03-06 | C137: =5/9*'daily uptake'!Q220 -> 10.83333333 | D137: =5/9*'daily uptake'!N220 -> 3.888888889 | E137: =IF(AND($A137>='daily uptake'!$C$9,$A137<='daily uptake'!$C$10),$C137+E136,0) -> 1136.111111 | F137: =IF(AND($A137>='daily uptake'!$C$18,$A137<='daily uptake'!$C$20),$D137+F136,0) -> 0 | G137: =IF(AND($A137>='daily uptake'!$C$24,$A137<='daily uptake'!$C$25),$C137+G136,0) -> 0 | H137: =IF(OR(F137<=I7,F137>I9),0,I8+(I10-I8)*(1-((I5+EXP(I6*(I4-I7)))/(I5+EXP(I6*(I4-F137))))^I5)/(1-((I5+EXP(I6*(I4-I7)))/(I5+EXP(I6*(I4-I9))))^I5)) -> 0 | I137: =IF(OR(F137<=J7,F137>J9),0,J8+(J10-J8)*(1-((J5+EXP(J6*(J4-J7)))/(J5+EXP(J6*(J4-F137))))^J5)/(1-((J5+EXP(J6*(J4-J7)))/(J5+EXP(J6*(J4-J9))))^J5)) -> 0 | J137: =IF(OR(F137<=J9,F137>100000),0,IF(F137<=K7,K8,K8+(K10-K8)*(1-((K5+EXP(K6*(K4-K7)))/(K5+EXP(K6*(K4-F137))))^K5)/(1-((K5+EXP(K6*(K4-K7)))/(K5+EXP(K6*(K4-K9))))^K5))) -> 0 | K137: 0 | L137: 0 | M137: 81.66975804 | N137: 0 | O137: 2011-03-06 | P137: =MAX(L$12:L137)+MAX(M$12:M137)+MAX(N$12:N137) -> 81.66975804 | Q137: 2011-03-06 | R137: 1.294138211 | AJ137: 44.58585859 | AL137: =IF(OR(AJ137<=AM7,AJ137>AM9),0,AM8+(AM10-AM8)*(1-((AM5+EXP(AM6*(AM4-AM7)))/(AM5+EXP(AM6*(AM4-AJ137))))^AM5)/(1-((AM5+EXP(AM6*(AM4-AM7)))/(AM5+EXP(AM6*(AM4-AM9))))^AM5)) -> 0 | AM137: =IF(OR(AJ137<=AN7,AJ137>AN9),0,AN8+(AN10-AN8)*(1-((AN5+EXP(AN6*(AN4-AN7)))/(AN5+EXP(AN6*(AN4-AJ137))))^AN5)/(1-((AN5+EXP(AN6*(AN4-AN7)))/(AN5+EXP(AN6*(AN4-AN9))))^AN5)) -> 0 | AN137: =IF(OR(AJ137<=AN9,AJ137>100000),0,IF(AJ137<=AO7,AO8,AO8+(AO10-AO8)*(1-((AO5+EXP(AO6*(AO4-AO7)))/(AO5+EXP(AO6*(AO4-AJ137))))^AO5)/(1-((AO5+EXP(AO6*(AO4-AO7)))/(AO5+EXP(AO6*(AO4-AO9))))^AO5))) -> 0 | AO137: 0 | AP137: 0
A138: 127 | B138: ='daily uptake'!F221 -> 2011-03-07 | C138: =5/9*'daily uptake'!Q221 -> 11.11111111 | D138: =5/9*'daily uptake'!N221 -> 4.444444444 | E138: =IF(AND($A138>='daily uptake'!$C$9,$A138<='daily uptake'!$C$10),$C138+E137,0) -> 1147.222222 | F138: =IF(AND($A138>='daily uptake'!$C$18,$A138<='daily uptake'!$C$20),$D138+F137,0) -> 0 | G138: =IF(AND($A138>='daily uptake'!$C$24,$A138<='daily uptake'!$C$25),$C138+G137,0) -> 0 | H138: =IF(OR(F138<=I7,F138>I9),0,I8+(I10-I8)*(1-((I5+EXP(I6*(I4-I7)))/(I5+EXP(I6*(I4-F138))))^I5)/(1-((I5+EXP(I6*(I4-I7)))/(I5+EXP(I6*(I4-I9))))^I5)) -> 0 | I138: =IF(OR(F138<=J7,F138>J9),0,J8+(J10-J8)*(1-((J5+EXP(J6*(J4-J7)))/(J5+EXP(J6*(J4-F138))))^J5)/(1-((J5+EXP(J6*(J4-J7)))/(J5+EXP(J6*(J4-J9))))^J5)) -> 0 | J138: =IF(OR(F138<=J9,F138>100000),0,IF(F138<=K7,K8,K8+(K10-K8)*(1-((K5+EXP(K6*(K4-K7)))/(K5+EXP(K6*(K4-F138))))^K5)/(1-((K5+EXP(K6*(K4-K7)))/(K5+EXP(K6*(K4-K9))))^K5))) -> 0 | K138: 0 | L138: 0 | M138: 83.00407007 | N138: 0 | O138: 2011-03-07 | P138: =MAX(L$12:L138)+MAX(M$12:M138)+MAX(N$12:N138) -> 83.00407007 | Q138: 2011-03-07 | R138: 1.334312031 | AJ138: 51.3030303 | AL138: =IF(OR(AJ138<=AM7,AJ138>AM9),0,AM8+(AM10-AM8)*(1-((AM5+EXP(AM6*(AM4-AM7)))/(AM5+EXP(AM6*(AM4-AJ138))))^AM5)/(1-((AM5+EXP(AM6*(AM4-AM7)))/(AM5+EXP(AM6*(AM4-AM9))))^AM5)) -> 0 | AM138: =IF(OR(AJ138<=AN7,AJ138>AN9),0,AN8+(AN10-AN8)*(1-((AN5+EXP(AN6*(AN4-AN7)))/(AN5+EXP(AN6*(AN4-AJ138))))^AN5)/(1-((AN5+EXP(AN6*(AN4-AN7)))/(AN5+EXP(AN6*(AN4-AN9))))^AN5)) -> 0 | AN138: =IF(OR(AJ138<=AN9,AJ138>100000),0,IF(AJ138<=AO7,AO8,AO8+(AO10-AO8)*(1-((AO5+EXP(AO6*(AO4-AO7)))/(AO5+EXP(AO6*(AO4-AJ138))))^AO5)/(1-((AO5+EXP(AO6*(AO4-AO7)))/(AO5+EXP(AO6*(AO4-AO9))))^AO5))) -> 0 | AO138: 0 | AP138: 0
A139: 128 | B139: ='daily uptake'!F222 -> 2011-03-08 | C139: =5/9*'daily uptake'!Q222 -> 11.94444444 | D139: =5/9*'daily uptake'!N222 -> 4.722222222 | E139: =IF(AND($A139>='daily uptake'!$C$9,$A139<='daily uptake'!$C$10),$C139+E138,0) -> 1159.166667 | F139: =IF(AND($A139>='daily uptake'!$C$18,$A139<='daily uptake'!$C$20),$D139+F138,0) -> 0 | G139: =IF(AND($A139>='daily uptake'!$C$24,$A139<='daily uptake'!$C$25),$C139+G138,0) -> 0 | H139: =IF(OR(F139<=I7,F139>I9),0,I8+(I10-I8)*(1-((I5+EXP(I6*(I4-I7)))/(I5+EXP(I6*(I4-F139))))^I5)/(1-((I5+EXP(I6*(I4-I7)))/(I5+EXP(I6*(I4-I9))))^I5)) -> 0 | I139: =IF(OR(F139<=J7,F139>J9),0,J8+(J10-J8)*(1-((J5+EXP(J6*(J4-J7)))/(J5+EXP(J6*(J4-F139))))^J5)/(1-((J5+EXP(J6*(J4-J7)))/(J5+EXP(J6*(J4-J9))))^J5)) -> 0 | J139: =IF(OR(F139<=J9,F139>100000),0,IF(F139<=K7,K8,K8+(K10-K8)*(1-((K5+EXP(K6*(K4-K7)))/(K5+EXP(K6*(K4-F139))))^K5)/(1-((K5+EXP(K6*(K4-K7)))/(K5+EXP(K6*(K4-K9))))^K5))) -> 0 | K139: 0 | L139: 0 | M139: 84.44605612 | N139: 0 | O139: =B139 -> 2011-03-08 | P139: =MAX(L$12:L139)+MAX(M$12:M139)+MAX(N$12:N139) -> 84.44605612 | Q139: =B139 -> 2011-03-08 | R139: 1.441986049 | AJ139: 58.25252525 | AL139: =IF(OR(AJ139<=AM7,AJ139>AM9),0,AM8+(AM10-AM8)*(1-((AM5+EXP(AM6*(AM4-AM7)))/(AM5+EXP(AM6*(AM4-AJ139))))^AM5)/(1-((AM5+EXP(AM6*(AM4-AM7)))/(AM5+EXP(AM6*(AM4-AM9))))^AM5)) -> 0 | AM139: =IF(OR(AJ139<=AN7,AJ139>AN9),0,AN8+(AN10-AN8)*(1-((AN5+EXP(AN6*(AN4-AN7)))/(AN5+EXP(AN6*(AN4-AJ139))))^AN5)/(1-((AN5+EXP(AN6*(AN4-AN7)))/(AN5+EXP(AN6*(AN4-AN9))))^AN5)) -> 0 | AN139: =IF(OR(AJ139<=AN9,AJ139>100000),0,IF(AJ139<=AO7,AO8,AO8+(AO10-AO8)*(1-((AO5+EXP(AO6*(AO4-AO7)))/(AO5+EXP(AO6*(AO4-AJ139))))^AO5)/(1-((AO5+EXP(AO6*(AO4-AO7)))/(AO5+EXP(AO6*(AO4-AO9))))^AO5))) -> 0 | AO139: 0 | AP139: 0
A140: 129 | B140: ='daily uptake'!F223 -> 2011-03-09 | C140: =5/9*'daily uptake'!Q223 -> 11.66666667 | D140: =5/9*'daily uptake'!N223 -> 4.444444444 | E140: =IF(AND($A140>='daily uptake'!$C$9,$A140<='daily uptake'!$C$10),$C140+E139,0) -> 1170.833333 | F140: =IF(AND($A140>='daily uptake'!$C$18,$A140<='daily uptake'!$C$20),$D140+F139,0) -> 0 | G140: =IF(AND($A140>='daily uptake'!$C$24,$A140<='daily uptake'!$C$25),$C140+G139,0) -> 0 | H140: =IF(OR(F140<=I7,F140>I9),0,I8+(I10-I8)*(1-((I5+EXP(I6*(I4-I7)))/(I5+EXP(I6*(I4-F140))))^I5)/(1-((I5+EXP(I6*(I4-I7)))/(I5+EXP(I6*(I4-I9))))^I5)) -> 0 | I140: =IF(OR(F140<=J7,F140>J9),0,J8+(J10-J8)*(1-((J5+EXP(J6*(J4-J7)))/(J5+EXP(J6*(J4-F140))))^J5)/(1-((J5+EXP(J6*(J4-J7)))/(J5+EXP(J6*(J4-J9))))^J5)) -> 0 | J140: =IF(OR(F140<=J9,F140>100000),0,IF(F140<=K7,K8,K8+(K10-K8)*(1-((K5+EXP(K6*(K4-K7)))/(K5+EXP(K6*(K4-F140))))^K5)/(1-((K5+EXP(K6*(K4-K7)))/(K5+EXP(K6*(K4-K9))))^K5))) -> 0 | K140: =H140+I140+J140 -> 0 | L140: 0 | M140: =M$10*(1-(($M$5+EXP($M$6*$M$4))/($M$5+EXP($M$6*($M$4-$E140))))^$M$5)/(1-(($M$5+EXP($M$6*$M$4))/($M$5+EXP($M$6*($M$4-M$9))))^$M$5) -> 85.86180189 | N140: 0 | O140: 2011-03-09 | P140: =MAX(L$12:L140)+MAX(M$12:M140)+MAX(N$12:N140) -> 85.86180189 | Q140: 2011-03-09 | R140: 1.415745769 | AJ140: 65.00505051 | AL140: =IF(OR(AJ140<=AM7,AJ140>AM9),0,AM8+(AM10-AM8)*(1-((AM5+EXP(AM6*(AM4-AM7)))/(AM5+EXP(AM6*(AM4-AJ140))))^AM5)/(1-((AM5+EXP(AM6*(AM4-AM7)))/(AM5+EXP(AM6*(AM4-AM9))))^AM5)) -> 0 | AM140: =IF(OR(AJ140<=AN7,AJ140>AN9),0,AN8+(AN10-AN8)*(1-((AN5+EXP(AN6*(AN4-AN7)))/(AN5+EXP(AN6*(AN4-AJ140))))^AN5)/(1-((AN5+EXP(AN6*(AN4-AN7)))/(AN5+EXP(AN6*(AN4-AN9))))^AN5)) -> 0 | AN140: =IF(OR(AJ140<=AN9,AJ140>100000),0,IF(AJ140<=AO7,AO8,AO8+(AO10-AO8)*(1-((AO5+EXP(AO6*(AO4-AO7)))/(AO5+EXP(AO6*(AO4-AJ140))))^AO5)/(1-((AO5+EXP(AO6*(AO4-AO7)))/(AO5+EXP(AO6*(AO4-AO9))))^AO5))) -> 0 | AO140: =AL140+AM140+AN140 -> 0 | AP140: 0
A141: 130 | B141: ='daily uptake'!F224 -> 2011-03-10 | C141: =5/9*'daily uptake'!Q224 -> 11.94444444 | D141: =5/9*'daily uptake'!N224 -> 4.722222222 | E141: =IF(AND($A141>='daily uptake'!$C$9,$A141<='daily uptake'!$C$10),$C141+E140,0) -> 1182.777778 | F141: =IF(AND($A141>='daily uptake'!$C$18,$A141<='daily uptake'!$C$20),$D141+F140,0) -> 0 | G141: =IF(AND($A141>='daily uptake'!$C$24,$A141<='daily uptake'!$C$25),$C141+G140,0) -> 0 | H141: =IF(OR(F141<=I7,F141>I9),0,I8+(I10-I8)*(1-((I5+EXP(I6*(I4-I7)))/(I5+EXP(I6*(I4-F141))))^I5)/(1-((I5+EXP(I6*(I4-I7)))/(I5+EXP(I6*(I4-I9))))^I5)) -> 0 | I141: =IF(OR(F141<=J7,F141>J9),0,J8+(J10-J8)*(1-((J5+EXP(J6*(J4-J7)))/(J5+EXP(J6*(J4-F141))))^J5)/(1-((J5+EXP(J6*(J4-J7)))/(J5+EXP(J6*(J4-J9))))^J5)) -> 0 | J141: =IF(OR(F141<=J9,F141>100000),0,IF(F141<=K7,K8,K8+(K10-K8)*(1-((K5+EXP(K6*(K4-K7)))/(K5+EXP(K6*(K4-F141))))^K5)/(1-((K5+EXP(K6*(K4-K7)))/(K5+EXP(K6*(K4-K9))))^K5))) -> 0 | K141: 0 | L141: =IF(L$8=0,0,K141*L$7/L$8) -> 0 | M141: 87.31839415 | N141: =N$10*(1-(($N$5+EXP($N$6*$N$4))/($N$5+EXP($N$6*($N$4-$G141))))^$N$5)/(1-(($N$5+EXP($N$6*$N$4))/($N$5+EXP($N$6*($N$4-N$9))))^$N$5) -> 0 | O141: 2011-03-10 | P141: =MAX(L$12:L141)+MAX(M$12:M141)+MAX(N$12:N141) -> 87.31839415 | Q141: 2011-03-10 | R141: =P141-P140 -> 1.456592262 | AJ141: 72.31313131 | AL141: =IF(OR(AJ141<=AM7,AJ141>AM9),0,AM8+(AM10-AM8)*(1-((AM5+EXP(AM6*(AM4-AM7)))/(AM5+EXP(AM6*(AM4-AJ141))))^AM5)/(1-((AM5+EXP(AM6*(AM4-AM7)))/(AM5+EXP(AM6*(AM4-AM9))))^AM5)) -> 0 | AM141: =IF(OR(AJ141<=AN7,AJ141>AN9),0,AN8+(AN10-AN8)*(1-((AN5+EXP(AN6*(AN4-AN7)))/(AN5+EXP(AN6*(AN4-AJ141))))^AN5)/(1-((AN5+EXP(AN6*(AN4-AN7)))/(AN5+EXP(AN6*(AN4-AN9))))^AN5)) -> 0 | AN141: =IF(OR(AJ141<=AN9,AJ141>100000),0,IF(AJ141<=AO7,AO8,AO8+(AO10-AO8)*(1-((AO5+EXP(AO6*(AO4-AO7)))/(AO5+EXP(AO6*(AO4-AJ141))))^AO5)/(1-((AO5+EXP(AO6*(AO4-AO7)))/(AO5+EXP(AO6*(AO4-AO9))))^AO5))) -> 0 | AO141: 0 | AP141: =IF(AP$8=0,0,AO141*AP$7/AP$8) -> 0
A142: 131 | B142: ='daily uptake'!F225 -> 2011-03-11 | C142: =5/9*'daily uptake'!Q225 -> 12.5 | D142: =5/9*'daily uptake'!N225 -> 5 | E142: =IF(AND($A142>='daily uptake'!$C$9,$A142<='daily uptake'!$C$10),$C142+E141,0) -> 1195.277778 | F142: =IF(AND($A142>='daily uptake'!$C$18,$A142<='daily uptake'!$C$20),$D142+F141,0) -> 0 | G142: =IF(AND($A142>='daily uptake'!$C$24,$A142<='daily uptake'!$C$25),$C142+G141,0) -> 0 | H142: =IF(OR(F142<=I7,F142>I9),0,I8+(I10-I8)*(1-((I5+EXP(I6*(I4-I7)))/(I5+EXP(I6*(I4-F142))))^I5)/(1-((I5+EXP(I6*(I4-I7)))/(I5+EXP(I6*(I4-I9))))^I5)) -> 0 | I142: =IF(OR(F142<=J7,F142>J9),0,J8+(J10-J8)*(1-((J5+EXP(J6*(J4-J7)))/(J5+EXP(J6*(J4-F142))))^J5)/(1-((J5+EXP(J6*(J4-J7)))/(J5+EXP(J6*(J4-J9))))^J5)) -> 0 | J142: =IF(OR(F142<=J9,F142>100000),0,IF(F142<=K7,K8,K8+(K10-K8)*(1-((K5+EXP(K6*(K4-K7)))/(K5+EXP(K6*(K4-F142))))^K5)/(1-((K5+EXP(K6*(K4-K7)))/(K5+EXP(K6*(K4-K9))))^K5))) -> 0 | K142: 0 | L142: 0 | M142: 88.85009924 | N142: 0 | O142: 2011-03-11 | P142: =MAX(L$12:L142)+MAX(M$12:M142)+MAX(N$12:N142) -> 88.85009924 | Q142: 2011-03-11 | R142: 1.531705086 | AJ142: 79.82828283 | AL142: =IF(OR(AJ142<=AM7,AJ142>AM9),0,AM8+(AM10-AM8)*(1-((AM5+EXP(AM6*(AM4-AM7)))/(AM5+EXP(AM6*(AM4-AJ142))))^AM5)/(1-((AM5+EXP(AM6*(AM4-AM7)))/(AM5+EXP(AM6*(AM4-AM9))))^AM5)) -> 0 | AM142: =IF(OR(AJ142<=AN7,AJ142>AN9),0,AN8+(AN10-AN8)*(1-((AN5+EXP(AN6*(AN4-AN7)))/(AN5+EXP(AN6*(AN4-AJ142))))^AN5)/(1-((AN5+EXP(AN6*(AN4-AN7)))/(AN5+EXP(AN6*(AN4-AN9))))^AN5)) -> 0 | AN142: =IF(OR(AJ142<=AN9,AJ142>100000),0,IF(AJ142<=AO7,AO8,AO8+(AO10-AO8)*(1-((AO5+EXP(AO6*(AO4-AO7)))/(AO5+EXP(AO6*(AO4-AJ142))))^AO5)/(1-((AO5+EXP(AO6*(AO4-AO7)))/(AO5+EXP(AO6*(AO4-AO9))))^AO5))) -> 0 | AO142: 0 | AP142: 0
A143: 132 | B143: ='daily uptake'!F226 -> 2011-03-12 | C143: =5/9*'daily uptake'!Q226 -> 12.22222222 | D143: =5/9*'daily uptake'!N226 -> 5 | E143: =IF(AND($A143>='daily uptake'!$C$9,$A143<='daily uptake'!$C$10),$C143+E142,0) -> 1207.5 | F143: =IF(AND($A143>='daily uptake'!$C$18,$A143<='daily uptake'!$C$20),$D143+F142,0) -> 0 | G143: =IF(AND($A143>='daily uptake'!$C$24,$A143<='daily uptake'!$C$25),$C143+G142,0) -> 0 | H143: =IF(OR(F143<=I7,F143>I9),0,I8+(I10-I8)*(1-((I5+EXP(I6*(I4-I7)))/(I5+EXP(I6*(I4-F143))))^I5)/(1-((I5+EXP(I6*(I4-I7)))/(I5+EXP(I6*(I4-I9))))^I5)) -> 0 | I143: =IF(OR(F143<=J7,F143>J9),0,J8+(J10-J8)*(1-((J5+EXP(J6*(J4-J7)))/(J5+EXP(J6*(J4-F143))))^J5)/(1-((J5+EXP(J6*(J4-J7)))/(J5+EXP(J6*(J4-J9))))^J5)) -> 0 | J143: =IF(OR(F143<=J9,F143>100000),0,IF(F143<=K7,K8,K8+(K10-K8)*(1-((K5+EXP(K6*(K4-K7)))/(K5+EXP(K6*(K4-F143))))^K5)/(1-((K5+EXP(K6*(K4-K7)))/(K5+EXP(K6*(K4-K9))))^K5))) -> 0 | K143: 0 | L143: 0 | M143: 90.35467137 | N143: 0 | O143: 2011-03-12 | P143: =MAX(L$12:L143)+MAX(M$12:M143)+MAX(N$12:N143) -> 90.35467137 | Q143: 2011-03-12 | R143: 1.504572125 | AJ143: 87.0959596 | AL143: =IF(OR(AJ143<=AM7,AJ143>AM9),0,AM8+(AM10-AM8)*(1-((AM5+EXP(AM6*(AM4-AM7)))/(AM5+EXP(AM6*(AM4-AJ143))))^AM5)/(1-((AM5+EXP(AM6*(AM4-AM7)))/(AM5+EXP(AM6*(AM4-AM9))))^AM5)) -> 0 | AM143: =IF(OR(AJ143<=AN7,AJ143>AN9),0,AN8+(AN10-AN8)*(1-((AN5+EXP(AN6*(AN4-AN7)))/(AN5+EXP(AN6*(AN4-AJ143))))^AN5)/(1-((AN5+EXP(AN6*(AN4-AN7)))/(AN5+EXP(AN6*(AN4-AN9))))^AN5)) -> 0 | AN143: =IF(OR(AJ143<=AN9,AJ143>100000),0,IF(AJ143<=AO7,AO8,AO8+(AO10-AO8)*(1-((AO5+EXP(AO6*(AO4-AO7)))/(AO5+EXP(AO6*(AO4-AJ143))))^AO5)/(1-((AO5+EXP(AO6*(AO4-AO7)))/(AO5+EXP(AO6*(AO4-AO9))))^AO5))) -> 0 | AO143: 0 | AP143: 0
A144: 133 | B144: ='daily uptake'!F227 -> 2011-03-13 | C144: =5/9*'daily uptake'!Q227 -> 12.5 | D144: =5/9*'daily uptake'!N227 -> 5 | E144: =IF(AND($A144>='daily uptake'!$C$9,$A144<='daily uptake'!$C$10),$C144+E143,0) -> 1220 | F144: =IF(AND($A144>='daily uptake'!$C$18,$A144<='daily uptake'!$C$20),$D144+F143,0) -> 0 | G144: =IF(AND($A144>='daily uptake'!$C$24,$A144<='daily uptake'!$C$25),$C144+G143,0) -> 0 | H144: =IF(OR(F144<=I7,F144>I9),0,I8+(I10-I8)*(1-((I5+EXP(I6*(I4-I7)))/(I5+EXP(I6*(I4-F144))))^I5)/(1-((I5+EXP(I6*(I4-I7)))/(I5+EXP(I6*(I4-I9))))^I5)) -> 0 | I144: =IF(OR(F144<=J7,F144>J9),0,J8+(J10-J8)*(1-((J5+EXP(J6*(J4-J7)))/(J5+EXP(J6*(J4-F144))))^J5)/(1-((J5+EXP(J6*(J4-J7)))/(J5+EXP(J6*(J4-J9))))^J5)) -> 0 | J144: =IF(OR(F144<=J9,F144>100000),0,IF(F144<=K7,K8,K8+(K10-K8)*(1-((K5+EXP(K6*(K4-K7)))/(K5+EXP(K6*(K4-F144))))^K5)/(1-((K5+EXP(K6*(K4-K7)))/(K5+EXP(K6*(K4-K9))))^K5))) -> 0 | K144: 0 | L144: 0 | M144: 91.9001017 | N144: 0 | O144: 2011-03-13 | P144: =MAX(L$12:L144)+MAX(M$12:M144)+MAX(N$12:N144) -> 91.9001017 | Q144: 2011-03-13 | R144: 1.54543033 | AJ144: 94.96969697 | AL144: =IF(OR(AJ144<=AM7,AJ144>AM9),0,AM8+(AM10-AM8)*(1-((AM5+EXP(AM6*(AM4-AM7)))/(AM5+EXP(AM6*(AM4-AJ144))))^AM5)/(1-((AM5+EXP(AM6*(AM4-AM7)))/(AM5+EXP(AM6*(AM4-AM9))))^AM5)) -> 0 | AM144: =IF(OR(AJ144<=AN7,AJ144>AN9),0,AN8+(AN10-AN8)*(1-((AN5+EXP(AN6*(AN4-AN7)))/(AN5+EXP(AN6*(AN4-AJ144))))^AN5)/(1-((AN5+EXP(AN6*(AN4-AN7)))/(AN5+EXP(AN6*(AN4-AN9))))^AN5)) -> 0 | AN144: =IF(OR(AJ144<=AN9,AJ144>100000),0,IF(AJ144<=AO7,AO8,AO8+(AO10-AO8)*(1-((AO5+EXP(AO6*(AO4-AO7)))/(AO5+EXP(AO6*(AO4-AJ144))))^AO5)/(1-((AO5+EXP(AO6*(AO4-AO7)))/(AO5+EXP(AO6*(AO4-AO9))))^AO5))) -> 0 | AO144: 0 | AP144: 0
A145: 134 | B145: ='daily uptake'!F228 -> 2011-03-14 | C145: =5/9*'daily uptake'!Q228 -> 12.77777778 | D145: =5/9*'daily uptake'!N228 -> 5.277777778 | E145: =IF(AND($A145>='daily uptake'!$C$9,$A145<='daily uptake'!$C$10),$C145+E144,0) -> 1232.777778 | F145: =IF(AND($A145>='daily uptake'!$C$18,$A145<='daily uptake'!$C$20),$D145+F144,0) -> 0 | G145: =IF(AND($A145>='daily uptake'!$C$24,$A145<='daily uptake'!$C$25),$C145+G144,0) -> 0 | H145: =IF(OR(F145<=I7,F145>I9),0,I8+(I10-I8)*(1-((I5+EXP(I6*(I4-I7)))/(I5+EXP(I6*(I4-F145))))^I5)/(1-((I5+EXP(I6*(I4-I7)))/(I5+EXP(I6*(I4-I9))))^I5)) -> 0 | I145: =IF(OR(F145<=J7,F145>J9),0,J8+(J10-J8)*(1-((J5+EXP(J6*(J4-J7)))/(J5+EXP(J6*(J4-F145))))^J5)/(1-((J5+EXP(J6*(J4-J7)))/(J5+EXP(J6*(J4-J9))))^J5)) -> 0 | J145: =IF(OR(F145<=J9,F145>100000),0,IF(F145<=K7,K8,K8+(K10-K8)*(1-((K5+EXP(K6*(K4-K7)))/(K5+EXP(K6*(K4-F145))))^K5)/(1-((K5+EXP(K6*(K4-K7)))/(K5+EXP(K6*(K4-K9))))^K5))) -> 0 | K145: 0 | L145: 0 | M145: 93.48641341 | N145: 0 | O145: 2011-03-14 | P145: =MAX(L$12:L145)+MAX(M$12:M145)+MAX(N$12:N145) -> 93.48641341 | Q145: 2011-03-14 | R145: 1.586311712 | AJ145: 102.7474747 | AL145: =IF(OR(AJ145<=AM7,AJ145>AM9),0,AM8+(AM10-AM8)*(1-((AM5+EXP(AM6*(AM4-AM7)))/(AM5+EXP(AM6*(AM4-AJ145))))^AM5)/(1-((AM5+EXP(AM6*(AM4-AM7)))/(AM5+EXP(AM6*(AM4-AM9))))^AM5)) -> 0 | AM145: =IF(OR(AJ145<=AN7,AJ145>AN9),0,AN8+(AN10-AN8)*(1-((AN5+EXP(AN6*(AN4-AN7)))/(AN5+EXP(AN6*(AN4-AJ145))))^AN5)/(1-((AN5+EXP(AN6*(AN4-AN7)))/(AN5+EXP(AN6*(AN4-AN9))))^AN5)) -> 0 | AN145: =IF(OR(AJ145<=AN9,AJ145>100000),0,IF(AJ145<=AO7,AO8,AO8+(AO10-AO8)*(1-((AO5+EXP(AO6*(AO4-AO7)))/(AO5+EXP(AO6*(AO4-AJ145))))^AO5)/(1-((AO5+EXP(AO6*(AO4-AO7)))/(AO5+EXP(AO6*(AO4-AO9))))^AO5))) -> 0 | AO145: 0 | AP145: 0
A146: 135 | B146: ='daily uptake'!F229 -> 2011-03-15 | C146: =5/9*'daily uptake'!Q229 -> 13.05555556 | D146: =5/9*'daily uptake'!N229 -> 5.277777778 | E146: =IF(AND($A146>='daily uptake'!$C$9,$A146<='daily uptake'!$C$10),$C146+E145,0) -> 1245.833333 | F146: =IF(AND($A146>='daily uptake'!$C$18,$A146<='daily uptake'!$C$20),$D146+F145,0) -> 0 | G146: =IF(AND($A146>='daily uptake'!$C$24,$A146<='daily uptake'!$C$25),$C146+G145,0) -> 0 | H146: =IF(OR(F146<=I7,F146>I9),0,I8+(I10-I8)*(1-((I5+EXP(I6*(I4-I7)))/(I5+EXP(I6*(I4-F146))))^I5)/(1-((I5+EXP(I6*(I4-I7)))/(I5+EXP(I6*(I4-I9))))^I5)) -> 0 | I146: =IF(OR(F146<=J7,F146>J9),0,J8+(J10-J8)*(1-((J5+EXP(J6*(J4-J7)))/(J5+EXP(J6*(J4-F146))))^J5)/(1-((J5+EXP(J6*(J4-J7)))/(J5+EXP(J6*(J4-J9))))^J5)) -> 0 | J146: =IF(OR(F146<=J9,F146>100000),0,IF(F146<=K7,K8,K8+(K10-K8)*(1-((K5+EXP(K6*(K4-K7)))/(K5+EXP(K6*(K4-F146))))^K5)/(1-((K5+EXP(K6*(K4-K7)))/(K5+EXP(K6*(K4-K9))))^K5))) -> 0 | K146: 0 | L146: 0 | M146: 95.11357642 | N146: 0 | O146: 2011-03-15 | P146: =MAX(L$12:L146)+MAX(M$12:M146)+MAX(N$12:N146) -> 95.11357642 | Q146: 2011-03-15 | R146: 1.627163008 | AJ146: 110.6818182 | AL146: =IF(OR(AJ146<=AM7,AJ146>AM9),0,AM8+(AM10-AM8)*(1-((AM5+EXP(AM6*(AM4-AM7)))/(AM5+EXP(AM6*(AM4-AJ146))))^AM5)/(1-((AM5+EXP(AM6*(AM4-AM7)))/(AM5+EXP(AM6*(AM4-AM9))))^AM5)) -> 0 | AM146: =IF(OR(AJ146<=AN7,AJ146>AN9),0,AN8+(AN10-AN8)*(1-((AN5+EXP(AN6*(AN4-AN7)))/(AN5+EXP(AN6*(AN4-AJ146))))^AN5)/(1-((AN5+EXP(AN6*(AN4-AN7)))/(AN5+EXP(AN6*(AN4-AN9))))^AN5)) -> 0 | AN146: =IF(OR(AJ146<=AN9,AJ146>100000),0,IF(AJ146<=AO7,AO8,AO8+(AO10-AO8)*(1-((AO5+EXP(AO6*(AO4-AO7)))/(AO5+EXP(AO6*(AO4-AJ146))))^AO5)/(1-((AO5+EXP(AO6*(AO4-AO7)))/(AO5+EXP(AO6*(AO4-AO9))))^AO5))) -> 0 | AO146: 0 | AP146: 0
A147: 136 | B147: ='daily uptake'!F230 -> 2011-03-16 | C147: =5/9*'daily uptake'!Q230 -> 13.33333333 | D147: =5/9*'daily uptake'!N230 -> 5.277777778 | E147: =IF(AND($A147>='daily uptake'!$C$9,$A147<='daily uptake'!$C$10),$C147+E146,0) -> 1259.166667 | F147: =IF(AND($A147>='daily uptake'!$C$18,$A147<='daily uptake'!$C$20),$D147+F146,0) -> 0 | G147: =IF(AND($A147>='daily uptake'!$C$24,$A147<='daily uptake'!$C$25),$C147+G146,0) -> 0 | H147: =IF(OR(F147<=I7,F147>I9),0,I8+(I10-I8)*(1-((I5+EXP(I6*(I4-I7)))/(I5+EXP(I6*(I4-F147))))^I5)/(1-((I5+EXP(I6*(I4-I7)))/(I5+EXP(I6*(I4-I9))))^I5)) -> 0 | I147: =IF(OR(F147<=J7,F147>J9),0,J8+(J10-J8)*(1-((J5+EXP(J6*(J4-J7)))/(J5+EXP(J6*(J4-F147))))^J5)/(1-((J5+EXP(J6*(J4-J7)))/(J5+EXP(J6*(J4-J9))))^J5)) -> 0 | J147: =IF(OR(F147<=J9,F147>100000),0,IF(F147<=K7,K8,K8+(K10-K8)*(1-((K5+EXP(K6*(K4-K7)))/(K5+EXP(K6*(K4-F147))))^K5)/(1-((K5+EXP(K6*(K4-K7)))/(K5+EXP(K6*(K4-K9))))^K5))) -> 0 | K147: 0 | L147: 0 | M147: 96.78150342 | N147: 0 | O147: 2011-03-16 | P147: =MAX(L$12:L147)+MAX(M$12:M147)+MAX(N$12:N147) -> 96.78150342 | Q147: 2011-03-16 | R147: 1.667927007 | AJ147: 119.020202 | AL147: =IF(OR(AJ147<=AM7,AJ147>AM9),0,AM8+(AM10-AM8)*(1-((AM5+EXP(AM6*(AM4-AM7)))/(AM5+EXP(AM6*(AM4-AJ147))))^AM5)/(1-((AM5+EXP(AM6*(AM4-AM7)))/(AM5+EXP(AM6*(AM4-AM9))))^AM5)) -> 0 | AM147: =IF(OR(AJ147<=AN7,AJ147>AN9),0,AN8+(AN10-AN8)*(1-((AN5+EXP(AN6*(AN4-AN7)))/(AN5+EXP(AN6*(AN4-AJ147))))^AN5)/(1-((AN5+EXP(AN6*(AN4-AN7)))/(AN5+EXP(AN6*(AN4-AN9))))^AN5)) -> 0 | AN147: =IF(OR(AJ147<=AN9,AJ147>100000),0,IF(AJ147<=AO7,AO8,AO8+(AO10-AO8)*(1-((AO5+EXP(AO6*(AO4-AO7)))/(AO5+EXP(AO6*(AO4-AJ147))))^AO5)/(1-((AO5+EXP(AO6*(AO4-AO7)))/(AO5+EXP(AO6*(AO4-AO9))))^AO5))) -> 0 | AO147: 0 | AP147: 0
A148: 137 | B148: ='daily uptake'!F231 -> 2011-03-17 | C148: =5/9*'daily uptake'!Q231 -> 13.33333333 | D148: =5/9*'daily uptake'!N231 -> 5.833333333 | E148: =IF(AND($A148>='daily uptake'!$C$9,$A148<='daily uptake'!$C$10),$C148+E147,0) -> 1272.5 | F148: =IF(AND($A148>='daily uptake'!$C$18,$A148<='daily uptake'!$C$20),$D148+F147,0) -> 0 | G148: =IF(AND($A148>='daily uptake'!$C$24,$A148<='daily uptake'!$C$25),$C148+G147,0) -> 0 | H148: =IF(OR(F148<=I7,F148>I9),0,I8+(I10-I8)*(1-((I5+EXP(I6*(I4-I7)))/(I5+EXP(I6*(I4-F148))))^I5)/(1-((I5+EXP(I6*(I4-I7)))/(I5+EXP(I6*(I4-I9))))^I5)) -> 0 | I148: =IF(OR(F148<=J7,F148>J9),0,J8+(J10-J8)*(1-((J5+EXP(J6*(J4-J7)))/(J5+EXP(J6*(J4-F148))))^J5)/(1-((J5+EXP(J6*(J4-J7)))/(J5+EXP(J6*(J4-J9))))^J5)) -> 0 | J148: =IF(OR(F148<=J9,F148>100000),0,IF(F148<=K7,K8,K8+(K10-K8)*(1-((K5+EXP(K6*(K4-K7)))/(K5+EXP(K6*(K4-F148))))^K5)/(1-((K5+EXP(K6*(K4-K7)))/(K5+EXP(K6*(K4-K9))))^K5))) -> 0 | K148: 0 | L148: 0 | M148: 98.45512215 | N148: 0 | O148: 2011-03-17 | P148: =MAX(L$12:L148)+MAX(M$12:M148)+MAX(N$12:N148) -> 98.45512215 | Q148: 2011-03-17 | R148: 1.673618726 | AJ148: 127.4949495 | AL148: =IF(OR(AJ148<=AM7,AJ148>AM9),0,AM8+(AM10-AM8)*(1-((AM5+EXP(AM6*(AM4-AM7)))/(AM5+EXP(AM6*(AM4-AJ148))))^AM5)/(1-((AM5+EXP(AM6*(AM4-AM7)))/(AM5+EXP(AM6*(AM4-AM9))))^AM5)) -> 0 | AM148: =IF(OR(AJ148<=AN7,AJ148>AN9),0,AN8+(AN10-AN8)*(1-((AN5+EXP(AN6*(AN4-AN7)))/(AN5+EXP(AN6*(AN4-AJ148))))^AN5)/(1-((AN5+EXP(AN6*(AN4-AN7)))/(AN5+EXP(AN6*(AN4-AN9))))^AN5)) -> 0 | AN148: =IF(OR(AJ148<=AN9,AJ148>100000),0,IF(AJ148<=AO7,AO8,AO8+(AO10-AO8)*(1-((AO5+EXP(AO6*(AO4-AO7)))/(AO5+EXP(AO6*(AO4-AJ148))))^AO5)/(1-((AO5+EXP(AO6*(AO4-AO7)))/(AO5+EXP(AO6*(AO4-AO9))))^AO5))) -> 0 | AO148: 0 | AP148: 0
